Workbook

Sheet data
AE1: 2009-06-28 | AF1: 15.4 | AG1: 22.4 | AH1: 0 | AI1: =IF(AH1=0,0,1) -> 0
AE2: 2009-06-29 | AF2: 12.8 | AG2: 27.2 | AH2: 0 | AI2: =IF(AH2=0,0,1) -> 0
AE3: 2009-06-30 | AF3: 18.1 | AG3: 26.9 | AH3: 4.4 | AI3: 1
AE4: 2009-07-01 | AF4: 15.7 | AG4: 28.6 | AH4: 0 | AI4: 0
AE5: 2009-07-02 | AF5: 17.4 | AG5: 29 | AH5: 1.2 | AI5: 1
AC6: minimum: | AD6: 0 | AE6: 2009-07-03 | AF6: 16.8 | AG6: 28.8 | AH6: 0 | AI6: 0
AC7: maximum: | AD7: =MAX(AC10:AC59) -> 12.3 | AE7: 2009-07-04 | AF7: 16.6 | AG7: 26.6 | AH7: 0 | AI7: 0
A8: adatgyűjtés | B8: progn. | C8: weatheronline | D8: weatheronline | E8: weatheronline | F8: kurier | G8: kurier | H8: kurier | I8: wetter.rtl | J8: wetter.rtl | K8: raiffeisen | L8: raiffeisen | M8: stern | N8: stern | O8: stern | P8: wetter.exite | Q8: wetter.exite | R8: wetter.exite | S8: progn. | T8: tények | U8: tények | V8: tények | W8: esett 1 | X8: tények | Y8: tények | Z8: tények | AA8: esett 1-4nap | AB8: tények | AC8: tények | AD8: tények %-ban | AE8: 2009-07-05 | AF8: 12.9 | AG8: 27.1 | AH8: 0 | AI8: 0
A9: kelte | B9: kelte | C9: T-max | D9: T-min | E9: Rain-risk | F9: max | G9: min | H9: niederschlag | I9: max | J9: min | K9: max | L9: min | M9: min | N9: max | O9: niederschlag | P9: min | Q9: max | R9: niederschlag | S9: kelte | T9: maxhő | U9: minhő | V9: csapadék | W9: nem esett 0 | X9: kelt | Y9: maxhő-4nap | Z9: minhő-4nap | AA9: nem esett 0 | AB9: kelt | AC9: csapadék-4nap | AD9: csapadék-4nap | AE9: 2009-07-06 | AF9: 15.7 | AG9: 23.8 | AH9: 4.2 | AI9: 1
A10: 2009-06-29 | B10: =A10-1 -> 2009-06-28 | C10: 29 | D10: 18 | E10: 0.35 | F10: 31 | G10: 16 | H10: 0.05 | I10: 29 | J10: 16 | K10: 29 | L10: 15 | M10: 16 | N10: 31 | O10: 0.05 | P10: 17 | Q10: 27 | R10: 0.1 | S10: =A10-1 -> 2009-06-28 | T10: =VLOOKUP($S10+4,$AE$1:$AH$86,3,0) -> 29 | U10: =VLOOKUP($S10+4,$AE$1:$AH$86,2,0) -> 17.4 | V10: =VLOOKUP($S10+4,$AE$1:$AH$86,4,0) -> 1.2 | W10: =IF(V10=0,0,1) -> 1 | X10: =S10+4 -> 2009-07-02 | Y10: =VLOOKUP($X10-4,$AE$1:$AI$86,3,0) -> 22.4 | Z10: =VLOOKUP($X10-4,$AE$1:$AI$86,2,0) -> 15.4 | AA10: =VLOOKUP($X10-4,$AE$1:$AI$86,5,0) -> 0 | AB10: =X10-4 -> 2009-06-28 | AC10: =VLOOKUP($X10-4,$AE$1:$AI$86,4,0) -> 0 | AD10: =IF(AC10=0,0,AC10/$AD$7) -> 0 | AE10: 2009-07-07 | AF10: 14.1 | AG10: 21.4 | AH10: 0 | AI10: 0
A11: 2009-06-30 | B11: =A11-1 -> 2009-06-29 | C11: 30 | D11: 19 | E11: 0.3 | F11: 31 | G11: 15 | H11: 0.05 | I11: 28 | J11: 16 | K11: 29 | L11: 13 | M11: 16 | N11: 31 | O11: 0.05 | P11: 17 | Q11: 27 | R11: 0.1 | S11: =A11-1 -> 2009-06-29 | T11: 28.8 | U11: 16.8 | V11: 0 | W11: 0 | X11: 2009-07-03 | Y11: 27.2 | Z11: 12.8 | AA11: 0 | AB11: =X11-4 -> 2009-06-29 | AC11: 0 | AD11: =IF(AC11=0,0,AC11/$AD$7) -> 0 | AE11: 2009-07-08 | AF11: 12.6 | AG11: 17.8 | AH11: 5.4 | AI11: 1
A12: 2009-07-01 | B12: 2009-06-30 | C12: 30 | D12: 19 | E12: 0.45 | F12: 31 | G12: 18 | H12: 0.5 | I12: 26 | J12: 17 | K12: 24 | L12: 15 | M12: 18 | N12: 31 | O12: 0.5 | P12: 17 | Q12: 27 | R12: 0.1 | S12: 2009-06-30 | T12: 26.6 | U12: 16.6 | V12: 0 | W12: 0 | X12: 2009-07-04 | Y12: 26.9 | Z12: 18.1 | AA12: 1 | AB12: 2009-06-30 | AC12: 4.4 | AD12: 0.3577235772 | AE12: 2009-07-09 | AF12: 10.7 | AG12: 19.8 | AH12: 2.1 | AI12: 1
A13: 2009-07-02 | B13: 2009-07-01 | C13: 25 | D13: 15 | E13: 0.55 | F13: 27 | G13: 14 | H13: 0.5 | I13: 24 | J13: 14 | K13: 22 | L13: 10 | M13: 14 | N13: 27 | O13: 0.5 | P13: 16 | Q13: 23 | R13: 0.8 | S13: 2009-07-01 | T13: 27.1 | U13: 12.9 | V13: 0 | W13: 0 | X13: 2009-07-05 | Y13: 28.6 | Z13: 15.7 | AA13: 0 | AB13: 2009-07-01 | AC13: 0 | AD13: 0 | AE13: 2009-07-10 | AF13: 10.1 | AG13: 15.1 | AH13: 1.1 | AI13: 1
A14: 2009-07-03 | B14: 2009-07-02 | C14: 24 | D14: 15 | E14: 0.6 | F14: 26 | G14: 16 | H14: 0.05 | I14: 22 | J14: 14 | K14: 22 | L14: 13 | M14: 12 | N14: 26 | O14: 0.05 | P14: 15 | Q14: 23 | R14: 0.8 | S14: 2009-07-02 | T14: 23.8 | U14: 15.7 | V14: 4.2 | W14: 1 | X14: 2009-07-06 | Y14: 29 | Z14: 17.4 | AA14: 1 | AB14: 2009-07-02 | AC14: 1.2 | AD14: 0.09756097561 | AE14: 2009-07-11 | AF14: 11.3 | AG14: 19.6 | AH14: 1.2 | AI14: 1
A15: 2009-07-04 | B15: 2009-07-03 | C15: 24 | D15: 16 | E15: 0.45 | F15: 22 | G15: 12 | H15: 0.5 | I15: 21 | J15: 13 | K15: 22 | L15: 12 | M15: 12 | N15: 22 | O15: 0.5 | P15: 12 | Q15: 19 | R15: 0.7 | S15: 2009-07-03 | T15: 21.4 | U15: 14.1 | V15: 0 | W15: 0 | X15: 2009-07-07 | Y15: 28.8 | Z15: 16.8 | AA15: 0 | AB15: 2009-07-03 | AC15: 0 | AD15: 0 | AE15: 2009-07-12 | AF15: 12.4 | AG15: 21.2 | AH15: 0.1 | AI15: 1
A16: 2009-07-05 | B16: 2009-07-04 | C16: 19 | D16: 14 | E16: 0.85 | F16: 21 | G16: 10 | H16: 0.5 | I16: 20 | J16: 13 | K16: 19 | L16: 10 | M16: 14 | N16: 21 | O16: 0.5 | P16: 12 | Q16: 16 | R16: 0.8 | S16: 2009-07-04 | T16: 17.8 | U16: 12.6 | V16: 5.4 | W16: 1 | X16: 2009-07-08 | Y16: 26.6 | Z16: 16.6 | AA16: 0 | AB16: 2009-07-04 | AC16: 0 | AD16: 0 | AE16: 2009-07-13 | AF16: 13.6 | AG16: 25.8 | AH16: 9.9 | AI16: 1
A17: 2009-07-06 | B17: 2009-07-05 | C17: 18 | D17: 13 | E17: 0.6 | F17: 16 | G17: 11 | H17: 0.3 | I17: 19 | J17: 11 | K17: 20 | L17: 9 | M17: 14 | N17: 16 | O17: 0.3 | P17: 12 | Q17: 16 | R17: 0.8 | S17: 2009-07-05 | T17: 19.8 | U17: 10.7 | V17: 2.1 | W17: 1 | X17: 2009-07-09 | Y17: 27.1 | Z17: 12.9 | AA17: 0 | AB17: 2009-07-05 | AC17: 0 | AD17: 0 | AE17: 2009-07-14 | AF17: 17.6 | AG17: 24.4 | AH17: 7.8 | AI17: 1
A18: 2009-07-07 | B18: 2009-07-06 | C18: 17 | D18: 9 | E18: 0.55 | F18: 19 | G18: 12 | H18: 0.5 | I18: 17 | J18: 9 | K18: 13 | L18: 6 | M18: 8 | N18: 19 | O18: 0.5 | P18: 11 | Q18: 15 | R18: 0.8 | S18: 2009-07-06 | T18: 15.1 | U18: 10.1 | V18: 1.1 | W18: 1 | X18: 2009-07-10 | Y18: 23.8 | Z18: 15.7 | AA18: 1 | AB18: 2009-07-06 | AC18: 4.2 | AD18: 0.3414634146 | AE18: 2009-07-15 | AF18: 17.3 | AG18: 26.2 | AH18: 0 | AI18: 0
A19: 2009-07-08 | B19: 2009-07-07 | C19: 19 | D19: 11 | E19: 0.45 | F19: 19 | G19: 7 | H19: 0.15 | I19: 19 | J19: 11 | K19: 18 | L19: 10 | M19: 12 | N19: 19 | O19: 0.15 | P19: 10 | Q19: 16 | R19: 0.8 | S19: 2009-07-07 | T19: 19.6 | U19: 11.3 | V19: 1.2 | W19: 1 | X19: 2009-07-11 | Y19: 21.4 | Z19: 14.1 | AA19: 0 | AB19: 2009-07-07 | AC19: 0 | AD19: 0 | AE19: 2009-07-16 | AF19: 12.2 | AG19: 27.5 | AH19: 0 | AI19: 0
A20: 2009-07-09 | B20: 2009-07-08 | C20: 21 | D20: 11 | E20: 0.8 | F20: 25 | G20: 17 | H20: 0.1 | I20: 21 | J20: 10 | K20: 19 | L20: 9 | M20: 11 | N20: 25 | O20: 0.1 | P20: 11 | Q20: 19 | R20: 0.3 | S20: 2009-07-08 | T20: 21.2 | U20: 12.4 | V20: 0.1 | W20: 1 | X20: 2009-07-12 | Y20: 17.8 | Z20: 12.6 | AA20: 1 | AB20: 2009-07-08 | AC20: 5.4 | AD20: 0.4390243902 | AE20: 2009-07-17 | AF20: 14.8 | AG20: 22.5 | AH20: 4.4 | AI20: 1
A21: 2009-07-10 | B21: 2009-07-09 | C21: 25 | D21: 13 | E21: 0.1 | F21: 25 | G21: 14 | H21: 0.05 | I21: 24 | J21: 13 | K21: 22 | L21: 8 | M21: 10 | N21: 25 | O21: 0.05 | P21: 11 | Q21: 20 | R21: 0.3 | S21: 2009-07-09 | T21: 25.8 | U21: 13.6 | V21: 9.9 | W21: 1 | X21: 2009-07-13 | Y21: 19.8 | Z21: 10.7 | AA21: 1 | AB21: 2009-07-09 | AC21: 2.1 | AD21: 0.1707317073 | AE21: 2009-07-18 | AF21: 13.5 | AG21: 18.3 | AH21: 0.1 | AI21: 1
A22: 2009-07-11 | B22: 2009-07-10 | C22: 24 | D22: 15 | E22: 0.8 | F22: 24 | G22: 16 | H22: 0.8 | I22: 25 | J22: 15 | K22: 24 | L22: 13 | M22: 16 | N22: 24 | O22: 0.8 | P22: 14 | Q22: 24 | R22: 0.5 | S22: 2009-07-10 | T22: 24.4 | U22: 17.6 | V22: 7.8 | W22: 1 | X22: 2009-07-14 | Y22: 15.1 | Z22: 10.1 | AA22: 1 | AB22: 2009-07-10 | AC22: 1.1 | AD22: 0.08943089431 | AE22: 2009-07-19 | AF22: 10.3 | AG22: 21.3 | AH22: 3.8 | AI22: 1
A23: 2009-07-12 | B23: 2009-07-11 | C23: 24 | D23: 15 | E23: 0.9 | F23: 27 | G23: 15 | H23: 0.05 | I23: 26 | J23: 15 | K23: 24 | L23: 13 | M23: 16 | N23: 24 | O23: 0.8 | P23: 16 | Q23: 24 | R23: 0.6 | S23: 2009-07-11 | T23: 26.2 | U23: 17.3 | V23: 0 | W23: 0 | X23: 2009-07-15 | Y23: 19.6 | Z23: 11.3 | AA23: 1 | AB23: 2009-07-11 | AC23: 1.2 | AD23: 0.09756097561 | AE23: 2009-07-20 | AF23: 11.6 | AG23: 21.8 | AH23: 0 | AI23: 0
A24: 2009-07-13 | B24: 2009-07-12 | C24: 28 | D24: 13 | E24: 0.1 | F24: 28 | G24: 14 | H24: 0.05 | I24: 27 | J24: 13 | K24: 26 | L24: 9 | M24: 11 | N24: 28 | O24: 0.05 | P24: 18 | Q24: 24 | R24: 0.6 | S24: 2009-07-12 | T24: 27.5 | U24: 12.2 | V24: 0 | W24: 0 | X24: 2009-07-16 | Y24: 21.2 | Z24: 12.4 | AA24: 1 | AB24: 2009-07-12 | AC24: 0.1 | AD24: 0.008130081301 | AE24: 2009-07-21 | AF24: 12.6 | AG24: 27.3 | AH24: 0.7 | AI24: 1
A25: 2009-07-14 | B25: 2009-07-13 | C25: 24 | D25: 15 | E25: 0.95 | F25: 26 | G25: 12 | H25: 0.3 | I25: 26 | J25: 13 | K25: 22 | L25: 15 | M25: 15 | N25: 32 | O25: 0.05 | P25: 12 | Q25: 25 | R25: 0.2 | S25: 2009-07-13 | T25: 22.5 | U25: 14.8 | V25: 4.4 | W25: 1 | X25: 2009-07-17 | Y25: 25.8 | Z25: 13.6 | AA25: 1 | AB25: 2009-07-13 | AC25: 9.9 | AD25: 0.8048780488 | AE25: 2009-07-22 | AF25: 18.4 | AG25: 27.1 | AH25: 2.3 | AI25: 1
A26: 2009-07-15 | B26: 2009-07-14 | C26: 17 | D26: 13 | E26: 0.75 | F26: 15 | G26: 10 | H26: 0.15 | I26: 18 | J26: 13 | K26: 13 | L26: 10 | M26: 13 | N26: 15 | O26: 0.15 | P26: 17 | Q26: 24 | R26: 0.7 | S26: 2009-07-14 | T26: 18.3 | U26: 13.5 | V26: 0.1 | W26: 1 | X26: 2009-07-18 | Y26: 24.4 | Z26: 17.6 | AA26: 1 | AB26: 2009-07-14 | AC26: 7.8 | AD26: 0.6341463415 | AE26: 2009-07-23 | AF26: 16.6 | AG26: 24.3 | AH26: 8 | AI26: 1
A27: 2009-07-16 | B27: 2009-07-15 | C27: 19 | D27: 13 | E27: 0.75 | F27: 21 | G27: 13 | H27: 0.05 | I27: 19 | J27: 11 | K27: 17 | L27: 9 | M27: 10 | N27: 21 | O27: 0.05 | P27: 14 | Q27: 16 | R27: 0.8 | S27: 2009-07-15 | T27: 21.3 | U27: 10.3 | V27: 3.8 | W27: 1 | X27: 2009-07-19 | Y27: 26.2 | Z27: 17.3 | AA27: 0 | AB27: 2009-07-15 | AC27: 0 | AD27: 0 | AE27: 2009-07-24 | AF27: 15.7 | AG27: 22.3 | AH27: 10.3 | AI27: 1
A28: 2009-07-17 | B28: 2009-07-16 | C28: 21 | D28: 13 | E28: 0.55 | F28: 22 | G28: 11 | H28: 0.05 | I28: 20 | J28: 12 | K28: 18 | L28: 10 | M28: 11 | N28: 22 | O28: 0.05 | P28: 11 | Q28: 20 | R28: 0.8 | S28: 2009-07-16 | T28: 21.8 | U28: 11.6 | V28: 0 | W28: 0 | X28: 2009-07-20 | Y28: 27.5 | Z28: 12.2 | AA28: 0 | AB28: 2009-07-16 | AC28: 0 | AD28: 0 | AE28: 2009-07-25 | AF28: 12.1 | AG28: 19.2 | AH28: 5.1 | AI28: 1
A29: 2009-07-18 | B29: 2009-07-17 | C29: 24 | D29: 12 | E29: 0.35 | F29: 27 | G29: 19 | H29: 0.5 | I29: 26 | J29: 11 | K29: 23 | L29: 8 | M29: 11 | N29: 27 | O29: 0.5 | P29: 12 | Q29: 21 | R29: 0.2 | S29: 2009-07-17 | T29: 27.3 | U29: 12.6 | V29: 0.7 | W29: 1 | X29: 2009-07-21 | Y29: 22.5 | Z29: 14.8 | AA29: 1 | AB29: 2009-07-17 | AC29: 4.4 | AD29: 0.3577235772 | AE29: 2009-07-26 | AF29: 9.2 | AG29: 22.7 | AH29: 0 | AI29: 0
A30: 2009-07-19 | B30: 2009-07-18 | C30: 25 | D30: 17 | E30: 0.7 | F30: 28 | G30: 14 | H30: 0.5 | I30: 26 | J30: 16 | K30: 23 | L30: 15 | M30: 17 | N30: 28 | O30: 0.5 | P30: 14 | Q30: 22 | R30: 0.6 | S30: 2009-07-18 | T30: 27.1 | U30: 18.4 | V30: 2.3 | W30: 1 | X30: 2009-07-22 | Y30: 18.3 | Z30: 13.5 | AA30: 1 | AB30: 2009-07-18 | AC30: 0.1 | AD30: 0.008130081301 | AE30: 2009-07-27 | AF30: 10.8 | AG30: 27.2 | AH30: 0.4 | AI30: 1
A31: 2009-07-20 | B31: 2009-07-19 | C31: 24 | D31: 18 | E31: 0.85 | F31: 24 | G31: 14 | H31: 0.3 | I31: 27 | J31: 16 | K31: 22 | L31: 14 | M31: 15 | N31: 24 | O31: 0.3 | P31: 18 | Q31: 25 | R31: 0.9 | S31: 2009-07-19 | T31: 24.3 | U31: 16.6 | V31: 8 | W31: 1 | X31: 2009-07-23 | Y31: 21.3 | Z31: 10.3 | AA31: 1 | AB31: 2009-07-19 | AC31: 3.8 | AD31: 0.3089430894 | AE31: 2009-07-28 | AF31: 12.4 | AG31: 22.8 | AH31: 0 | AI31: 0
A32: 2009-07-22 | B32: 2009-07-21 | C32: 20 | D32: 14 | E32: 0.6 | F32: 21 | G32: 7 | H32: 0.15 | I32: 21 | J32: 13 | K32: 18 | L32: 10 | M32: 12 | N32: 21 | O32: 0.15 | P32: 16 | Q32: 22 | R32: 0.4 | S32: 2009-07-21 | T32: 19.2 | U32: 12.1 | V32: 5.1 | W32: 1 | X32: 2009-07-25 | Y32: 27.3 | Z32: 12.6 | AA32: 1 | AB32: 2009-07-21 | AC32: 0.7 | AD32: 0.05691056911 | AE32: 2009-07-29 | AF32: 9.7 | AG32: 26.2 | AH32: 0 | AI32: 0
A33: 2009-07-23 | B33: 2009-07-22 | C33: 25 | D33: 12 | E33: 0.05 | F33: 24 | G33: 10 | H33: 0.05 | I33: 22 | J33: 10 | K33: 20 | L33: 7 | M33: 7 | N33: 24 | O33: 0.05 | P33: 12 | Q33: 20 | R33: 0.5 | S33: 2009-07-22 | T33: 22.7 | U33: 9.2 | V33: 0 | W33: 0 | X33: 2009-07-26 | Y33: 27.1 | Z33: 18.4 | AA33: 1 | AB33: 2009-07-22 | AC33: 2.3 | AD33: 0.1869918699 | AE33: 2009-07-30 | AF33: 15 | AG33: 22.1 | AH33: 0.3 | AI33: 1
A34: 2009-07-24 | B34: 2009-07-23 | C34: 28 | D34: 12 | E34: 0.35 | F34: 30 | G34: 11 | H34: 0.02 | I34: 25 | J34: 12 | K34: 26 | L34: 11 | M34: 11 | N34: 30 | O34: 0 | P34: 10 | Q34: 23 | R34: 0.1 | S34: 2009-07-23 | T34: 27.2 | U34: 10.8 | V34: 0.4 | W34: 1 | X34: 2009-07-27 | Y34: 24.3 | Z34: 16.6 | AA34: 1 | AB34: 2009-07-23 | AC34: 8 | AD34: 0.6504065041 | AE34: 2009-07-31 | AF34: 10.5 | AG34: 21.4 | AH34: 0 | AI34: 0
A35: 2009-07-25 | B35: 2009-07-24 | C35: 27 | D35: 12 | E35: 0.25 | F35: 24 | G35: 11 | H35: 0.05 | I35: 23 | J35: 13 | K35: 19 | L35: 9 | M35: 11 | N35: 30 | O35: 0 | P35: 10 | Q35: 23 | R35: 0.1 | S35: 2009-07-24 | T35: 22.8 | U35: 12.4 | V35: 0 | W35: 0 | X35: 2009-07-28 | Y35: 22.3 | Z35: 15.7 | AA35: 1 | AB35: 2009-07-24 | AC35: 10.3 | AD35: 0.837398374 | AE35: 2009-08-01 | AF35: 9.3 | AG35: 26.4 | AH35: 0 | AI35: 0
A36: 2009-07-28 | B36: 2009-07-27 | C36: 24 | D36: 10 | E36: 0.05 | F36: 25 | G36: 12 | H36: 0.05 | I36: 21 | J36: 10 | K36: 21 | L36: 6 | M36: 10 | N36: 25 | O36: 0.05 | P36: 18 | Q36: 21 | R36: 0.1 | S36: 2009-07-27 | T36: 21.4 | U36: 10.5 | V36: 0 | W36: 0 | X36: 2009-07-31 | Y36: 27.2 | Z36: 10.8 | AA36: 1 | AB36: 2009-07-27 | AC36: 0.4 | AD36: 0.0325203252 | AE36: 2009-08-02 | AF36: 14.4 | AG36: 23.1 | AH36: 3.9 | AI36: 1
A37: 2009-07-29 | B37: 2009-07-28 | C37: 26 | D37: 10 | E37: 0.2 | F37: 25 | G37: 13 | H37: 0.05 | I37: 27 | J37: 10 | K37: 25 | L37: 9 | M37: 8 | N37: 25 | O37: 0.05 | P37: 9 | Q37: 19 | R37: 0.2 | S37: 2009-07-28 | T37: 26.4 | U37: 9.3 | V37: 0 | W37: 0 | X37: 2009-08-01 | Y37: 22.8 | Z37: 12.4 | AA37: 0 | AB37: 2009-07-28 | AC37: 0 | AD37: 0 | AE37: 2009-08-03 | AF37: 13.2 | AG37: 22.5 | AH37: 0 | AI37: 0
A38: 2009-07-30 | B38: 2009-07-29 | C38: 25 | D38: 16 | E38: 0.55 | F38: 25 | G38: 11 | H38: 0.1 | I38: 24 | J38: 14 | K38: 19 | L38: 13 | M38: 16 | N38: 25 | O38: 0.1 | P38: 12 | Q38: 23 | R38: 0.1 | S38: 2009-07-29 | T38: 23.1 | U38: 14.4 | V38: 3.9 | W38: 1 | X38: 2009-08-02 | Y38: 26.2 | Z38: 9.7 | AA38: 0 | AB38: 2009-07-29 | AC38: 0 | AD38: 0 | AE38: 2009-08-04 | AF38: 9 | AG38: 23.8 | AH38: 0 | AI38: 0
A39: 2009-07-31 | B39: 2009-07-30 | C39: 21 | D39: 15 | E39: 0.6 | F39: 23 | G39: 7 | H39: 0.05 | I39: 24 | J39: 14 | K39: 19 | L39: 13 | M39: 13 | N39: 23 | O39: 0.05 | P39: 15 | Q39: 22 | R39: 0.7 | S39: 2009-07-30 | T39: 22.5 | U39: 13.2 | V39: 0 | W39: 0 | X39: 2009-08-03 | Y39: 22.1 | Z39: 15 | AA39: 1 | AB39: 2009-07-30 | AC39: 0.3 | AD39: 0.0243902439 | AE39: 2009-08-05 | AF39: 10.2 | AG39: 26.4 | AH39: 0 | AI39: 0
A40: 2009-08-01 | B40: 2009-07-31 | C40: 26 | D40: 11 | E40: 0.05 | F40: 26 | G40: 11 | H40: 0.05 | I40: 27 | J40: 11 | K40: 24 | L40: 7 | M40: 8 | N40: 26 | O40: 0.05 | P40: 12 | Q40: 21 | R40: 0.7 | S40: 2009-07-31 | T40: 23.8 | U40: 9 | V40: 0 | W40: 0 | X40: 2009-08-04 | Y40: 21.4 | Z40: 10.5 | AA40: 0 | AB40: 2009-07-31 | AC40: 0 | AD40: 0 | AE40: 2009-08-06 | AF40: 12.6 | AG40: 28.5 | AH40: 0 | AI40: 0
A41: 2009-08-02 | B41: 2009-08-01 | C41: 28 | D41: 13 | E41: 0.05 | F41: 28 | G41: 14 | H41: 0.02 | I41: 27 | J41: 11 | K41: 27 | L41: 12 | M41: 10 | N41: 28 | O41: 0 | P41: 12 | Q41: 23 | R41: 0.1 | S41: 2009-08-01 | T41: 26.4 | U41: 10.2 | V41: 0 | W41: 0 | X41: 2009-08-05 | Y41: 26.4 | Z41: 9.3 | AA41: 0 | AB41: 2009-08-01 | AC41: 0 | AD41: 0 | AE41: 2009-08-07 | AF41: 14.7 | AG41: 28.7 | AH41: 0 | AI41: 0
A42: 2009-08-03 | B42: 2009-08-02 | C42: 28 | D42: 13 | E42: 0.05 | F42: 31 | G42: 16 | H42: 0.05 | I42: 28 | J42: 12 | K42: 27 | L42: 13 | M42: 10 | N42: 28 | O42: 0 | P42: 12 | Q42: 23 | R42: 0.1 | S42: 2009-08-02 | T42: =VLOOKUP($S42+4,$AE$1:$AH$86,3,0) -> 28.5 | U42: =VLOOKUP($S42+4,$AE$1:$AH$86,2,0) -> 12.6 | V42: =VLOOKUP($S42+4,$AE$1:$AH$86,4,0) -> 0 | W42: 0 | X42: =S42+4 -> 2009-08-06 | Y42: =VLOOKUP($X42-4,$AE$1:$AI$86,3,0) -> 23.1 | Z42: =VLOOKUP($X42-4,$AE$1:$AI$86,2,0) -> 14.4 | AA42: =VLOOKUP($X42-4,$AE$1:$AI$86,5,0) -> 1 | AB42: 2009-08-02 | AC42: =VLOOKUP($X42-4,$AE$1:$AI$86,4,0) -> 3.9 | AD42: 0.3170731707 | AE42: 2009-08-08 | AF42: 16.6 | AG42: 23.2 | AH42: 0 | AI42: 0
A43: 2009-08-04 | B43: 2009-08-03 | C43: 30 | D43: 15 | E43: 0.05 | F43: 30 | G43: 16 | H43: 0.02 | I43: 30 | J43: 14 | K43: 30 | L43: 14 | M43: 13 | N43: 30 | O43: 0 | P43: 13 | Q43: 26 | R43: 0.1 | S43: 2009-08-03 | T43: 28.7 | U43: 14.7 | V43: 0 | W43: 0 | X43: 2009-08-07 | Y43: 22.5 | Z43: 13.2 | AA43: 0 | AB43: 2009-08-03 | AC43: 0 | AD43: 0 | AE43: 2009-08-09 | AF43: 15.6 | AG43: 26.1 | AH43: 0 | AI43: 0
A44: 2009-08-05 | B44: 2009-08-04 | C44: 26 | D44: 16 | E44: 0.55 | F44: 29 | G44: 18 | H44: 0.1 | I44: 26 | J44: 16 | K44: 22 | L44: 16 | M44: 17 | N44: 29 | O44: 0.1 | P44: 14 | Q44: 28 | R44: 0.1 | S44: 2009-08-04 | T44: 23.2 | U44: 16.6 | V44: 0 | W44: 0 | X44: 2009-08-08 | Y44: 23.8 | Z44: 9 | AA44: 0 | AB44: 2009-08-04 | AC44: 0 | AD44: 0 | AE44: 2009-08-10 | AF44: 16 | AG44: 22.3 | AH44: 15 | AI44: 1
A45: 2009-08-06 | B45: 2009-08-05 | C45: 27 | D45: 17 | E45: 0.6 | F45: 29 | G45: 17 | H45: 0.5 | I45: 23 | J45: 15 | K45: 29 | L45: 15 | M45: 18 | N45: 29 | O45: 0.5 | P45: 16 | Q45: 24 | R45: 0.7 | S45: 2009-08-05 | T45: 26.1 | U45: 15.6 | V45: 0 | W45: 0 | X45: 2009-08-09 | Y45: 26.4 | Z45: 10.2 | AA45: 0 | AB45: 2009-08-05 | AC45: 0 | AD45: 0 | AE45: 2009-08-11 | AF45: 14.9 | AG45: 23.2 | AH45: 0.3 | AI45: 1
A46: 2009-08-07 | B46: 2009-08-06 | C46: 25 | D46: 17 | E46: 0.55 | F46: 28 | G46: 15 | H46: 0.5 | I46: 23 | J46: 15 | K46: 20 | L46: 13 | M46: 17 | N46: 28 | O46: 0.5 | P46: 15 | Q46: 24 | R46: 0.2 | S46: 2009-08-06 | T46: 22.3 | U46: 16 | V46: 15 | W46: 1 | X46: 2009-08-10 | Y46: 28.5 | Z46: 12.6 | AA46: 0 | AB46: 2009-08-06 | AC46: 0 | AD46: 0 | AE46: 2009-08-12 | AF46: 13.3 | AG46: 23 | AH46: 5.4 | AI46: 1
A47: 2009-08-08 | B47: 2009-08-07 | C47: 22 | D47: 13 | E47: 0.45 | F47: 24 | G47: 11 | H47: 0.05 | I47: 22 | J47: 12 | K47: 18 | L47: 11 | M47: 17 | N47: 28 | O47: 0.5 | P47: 15 | Q47: 23 | R47: 0.6 | S47: 2009-08-07 | T47: 23.2 | U47: 14.9 | V47: 0.3 | W47: 1 | X47: 2009-08-11 | Y47: 28.7 | Z47: 14.7 | AA47: 0 | AB47: 2009-08-07 | AC47: 0 | AD47: 0 | AE47: 2009-08-13 | AF47: 14.8 | AG47: 20.8 | AH47: 1.2 | AI47: 1
A48: 2009-08-24 | B48: 2009-08-23 | C48: 26 | D48: 14 | E48: 0.2 | F48: 27 | G48: 14 | H48: 0.02 | I48: 26 | J48: 13 | K48: 22 | L48: 13 | M48: 12 | N48: 27 | O48: 0 | P48: 12 | Q48: 25 | R48: 0.1 | S48: 2009-08-23 | T48: 27.8 | U48: 13.8 | V48: 0 | W48: 0 | X48: 2009-08-27 | Y48: 24.5 | Z48: 8.7 | AA48: 0 | AB48: 2009-08-23 | AC48: 0 | AD48: 0 | AE48: 2009-08-14 | AF48: 10.6 | AG48: 22.6 | AH48: 0 | AI48: 0
A49: 2009-08-25 | B49: 2009-08-24 | C49: 24 | D49: 15 | E49: 0.35 | F49: 25 | G49: 11 | H49: 0.05 | I49: 26 | J49: 14 | K49: 19 | L49: 14 | M49: 15 | N49: 25 | O49: 0.05 | P49: 15 | Q49: 24 | R49: 0.6 | S49: 2009-08-24 | T49: 23.2 | U49: 15.1 | V49: 0.2 | W49: 1 | X49: 2009-08-28 | Y49: 27.4 | Z49: 10.6 | AA49: 0 | AB49: 2009-08-24 | AC49: 0 | AD49: 0 | AE49: 2009-08-15 | AF49: 10.3 | AG49: 27.1 | AH49: 0 | AI49: 0
A50: 2009-08-27 | B50: 2009-08-26 | C50: 21 | D50: 8 | E50: 0.05 | F50: 21 | G50: 9 | H50: 0.05 | I50: 21 | J50: 7 | K50: 18 | L50: 6 | M50: 7 | N50: 21 | O50: 0.05 | P50: 9 | Q50: 19 | R50: 0.1 | S50: 2009-08-26 | T50: 21.2 | U50: 4.4 | V50: 0 | W50: 0 | X50: 2009-08-30 | Y50: 24.5 | Z50: 11.6 | AA50: 0 | AB50: 2009-08-26 | AC50: 0 | AD50: 0 | AE50: 2009-08-16 | AF50: 12.9 | AG50: 31.1 | AH50: 0 | AI50: 0
A51: 2009-08-28 | B51: 2009-08-27 | C51: 24 | D51: 9 | E51: 0.05 | F51: 25 | G51: 10 | H51: 0.05 | I51: 26 | J51: 8 | K51: 23 | L51: 6 | M51: 6 | N51: 25 | O51: 0.05 | P51: 8 | Q51: 22 | R51: 0.1 | S51: 2009-08-27 | T51: 25.6 | U51: 7 | V51: 0 | W51: 0 | X51: 2009-08-31 | Y51: 27.8 | Z51: 13.8 | AA51: 0 | AB51: 2009-08-27 | AC51: 0 | AD51: 0 | AE51: 2009-08-17 | AF51: 13.7 | AG51: 27.8 | AH51: 0 | AI51: 0
A52: 2009-08-30 | B52: 2009-08-29 | C52: 22 | D52: 14 | E52: 0.4 | F52: 23 | G52: 14 | H52: 0.05 | I52: 22 | J52: 15 | K52: 19 | L52: 12 | M52: 14 | N52: 23 | O52: 0.05 | P52: 17 | Q52: 21 | R52: 0.6 | S52: 2009-08-29 | T52: 21.8 | U52: 12.5 | V52: 0 | W52: 0 | X52: 2009-09-02 | Y52: 19.4 | Z52: 9.4 | AA52: 0 | AB52: 2009-08-29 | AC52: 0 | AD52: 0 | AE52: 2009-08-18 | AF52: 11.7 | AG52: 25.3 | AH52: 0 | AI52: 0
A53: 2009-08-31 | B53: 2009-08-30 | C53: 19 | D53: 12 | E53: 0.55 | F53: 22 | G53: 13 | H53: 0.05 | I53: 22 | J53: 12 | K53: 18 | L53: 10 | M53: 14 | N53: 22 | O53: 0.05 | P53: 14 | Q53: 19 | R53: 0.6 | S53: 2009-08-30 | T53: 19.6 | U53: 12.6 | V53: 4.6 | W53: 1 | X53: 2009-09-03 | Y53: 21.2 | Z53: 4.4 | AA53: 0 | AB53: 2009-08-30 | AC53: 0 | AD53: 0 | AE53: 2009-08-19 | AF53: 11.6 | AG53: 29.9 | AH53: 0 | AI53: 0
A54: 2009-09-01 | B54: 2009-08-31 | C54: 16 | D54: 13 | E54: 0.75 | F54: 17 | G54: 12 | H54: 0.5 | I54: 18 | J54: 13 | K54: 13 | L54: 11 | M54: 12 | N54: 17 | O54: 0.5 | P54: 11 | Q54: 14 | R54: 0.9 | S54: 2009-08-31 | T54: 17.3 | U54: 10.4 | V54: 12.3 | W54: 1 | X54: 2009-09-04 | Y54: 25.6 | Z54: 7 | AA54: 0 | AB54: 2009-08-31 | AC54: 0 | AD54: 0 | AE54: 2009-08-20 | AF54: 15.6 | AG54: 33.7 | AH54: 0 | AI54: 0
A55: 2009-09-03 | B55: 2009-09-02 | C55: 19 | D55: 10 | E55: 0.2 | F55: 19 | G55: 8 | H55: 0.1 | I55: 19 | J55: 9 | K55: 16 | L55: 10 | M55: 10 | N55: 19 | O55: 0.1 | P55: 8 | Q55: 18 | R55: 0.2 | S55: 2009-09-02 | T55: 18.1 | U55: 6.6 | V55: 0 | W55: 0 | X55: 2009-09-06 | Y55: 21.8 | Z55: 12.5 | AA55: 0 | AB55: 2009-09-02 | AC55: 0 | AD55: 0 | AE55: 2009-08-21 | AF55: 13.6 | AG55: 23.8 | AH55: 11.7 | AI55: 1
A56: 2009-09-04 | B56: 2009-09-03 | C56: 21 | D56: 8 | E56: 0.2 | F56: 23 | G56: 11 | H56: 0.05 | I56: 21 | J56: 8 | K56: 18 | L56: 8 | M56: 10 | N56: 23 | O56: 0.05 | P56: 9 | Q56: 20 | R56: 0.2 | S56: 2009-09-03 | T56: 22.5 | U56: 7 | V56: 0 | W56: 0 | X56: 2009-09-07 | Y56: 19.6 | Z56: 12.6 | AA56: 1 | AB56: 2009-09-03 | AC56: 4.6 | AD56: 0.3739837398 | AE56: 2009-08-22 | AF56: 11.1 | AG56: 22.5 | AH56: 0 | AI56: 0
A57: 2009-09-05 | B57: =A57-1 -> 2009-09-04 | C57: 25 | D57: 11 | E57: 0.05 | F57: 26 | G57: 13 | H57: 0.05 | I57: 24 | J57: 9 | K57: 23 | L57: 8 | M57: 11 | N57: 26 | O57: 0.05 | P57: 11 | Q57: 24 | R57: 0.1 | S57: 2009-09-04 | T57: 25.8 | U57: 8.1 | V57: 0 | W57: 0 | X57: 2009-09-08 | Y57: 17.3 | Z57: 10.4 | AA57: 1 | AB57: 2009-09-04 | AC57: 12.3 | AD57: 1 | AE57: 2009-08-23 | AF57: 8.7 | AG57: 24.5 | AH57: 0 | AI57: 0
A58: 2009-09-06 | B58: 2009-09-05 | C58: 27 | D58: 11 | E58: 0.05 | F58: 28 | G58: 14 | H58: 0.05 | I58: 24 | J58: 11 | K58: 26 | L58: 10 | M58: 12 | N58: 28 | O58: 0.05 | P58: 12 | Q58: 24 | R58: 0.3 | S58: 2009-09-05 | T58: 22.8 | U58: 8.9 | V58: 0 | W58: 0 | X58: 2009-09-09 | Y58: 16.5 | Z58: 9.9 | AA58: 1 | AB58: 2009-09-05 | AC58: 0.3 | AD58: 0.0243902439 | AE58: 2009-08-24 | AF58: 10.6 | AG58: 27.4 | AH58: 0 | AI58: 0
A59: 2009-09-08 | B59: 2009-09-07 | C59: 21 | D59: 13 | E59: 0.2 | F59: 21 | G59: 11 | H59: 0.05 | I59: 20 | J59: 11 | K59: 19 | L59: 10 | M59: 13 | N59: 21 | O59: 0.05 | P59: 13 | Q59: 19 | R59: 0.2 | S59: 2009-09-07 | T59: 18.9 | U59: 12.1 | V59: 0 | W59: 0 | X59: 2009-09-11 | Y59: 22.5 | Z59: 7 | AA59: 0 | AB59: 2009-09-07 | AC59: 0 | AD59: 0 | AE59: 2009-08-25 | AF59: 15 | AG59: 24.4 | AH59: 2.1 | AI59: 1
A60: 2009-09-09 | B60: 2009-09-08 | C60: 20 | D60: 11 | E60: 0.3 | F60: 22 | G60: 10 | H60: 0.1 | I60: 18 | J60: 9 | K60: 17 | L60: 9 | M60: 14 | N60: 22 | O60: 0.1 | P60: 14 | Q60: 19 | R60: 0.3 | S60: 2009-09-08 | T60: 19.1 | U60: 11.6 | V60: 0 | W60: 0 | X60: 2009-09-12 | Y60: 25.8 | Z60: 8.1 | AA60: 0 | AB60: 2009-09-08 | AC60: 0 | AD60: 0 | AE60: 2009-08-26 | AF60: 11.6 | AG60: 24.5 | AH60: 0 | AI60: 0
A61: 2009-09-10 | B61: 2009-09-09 | C61: 18 | D61: 10 | E61: 0.2 | F61: 19 | G61: 13 | H61: 10 | I61: 20 | J61: 9 | K61: 14 | L61: 6 | M61: 13 | N61: 19 | O61: 0.1 | P61: 12 | Q61: 17 | R61: 0.2 | S61: 2009-09-09 | T61: 15.6 | U61: 8.1 | V61: 2.2 | W61: 1 | X61: 2009-09-13 | Y61: 22.8 | Z61: 8.9 | AA61: 0 | AB61: 2009-09-09 | AC61: 0 | AD61: 0 | AE61: 2009-08-27 | AF61: 13.8 | AG61: 27.8 | AH61: 0 | AI61: 0
A62: 2009-09-11 | B62: 2009-09-10 | C62: 17 | D62: 11 | E62: 0.35 | F62: 17 | G62: 11 | H62: 0.15 | I62: 18 | J62: 9 | K62: 15 | L62: 9 | M62: 11 | N62: 17 | O62: 15 | P62: 11 | Q62: 16 | R62: 0.8 | S62: 2009-09-10 | T62: 13.4 | U62: 10.2 | V62: 13.2 | W62: 1 | X62: 2009-09-14 | Y62: 17.5 | Z62: 14 | AA62: 0 | AB62: 2009-09-10 | AC62: 0 | AD62: 0 | AE62: 2009-08-28 | AF62: 15.1 | AG62: 23.2 | AH62: 0.2 | AI62: 1
A63: 2009-09-12 | B63: 2009-09-11 | C63: 16 | D63: 11 | E63: 0.7 | F63: 18 | G63: 12 | H63: 30 | I63: 21 | J63: 10 | K63: 12 | L63: 8 | M63: 11 | N63: 18 | O63: 0.3 | P63: 8 | Q63: 15 | R63: 0.7 | S63: 2009-09-11 | T63: 15.6 | U63: 10.3 | V63: 1.2 | W63: 1 | X63: 2009-09-15 | Y63: 18.9 | Z63: 12.1 | AA63: 0 | AB63: 2009-09-11 | AC63: 0 | AD63: 0 | AE63: 2009-08-29 | AF63: 9.4 | AG63: 19.4 | AH63: 0 | AI63: 0
A64: 2009-09-13 | B64: 2009-09-12 | C64: 24 | D64: 12 | E64: 0.1 | F64: 26 | G64: 15 | H64: 0.05 | I64: 22 | J64: 10 | K64: 23 | L64: 10 | M64: 12 | N64: 26 | O64: 0.05 | P64: 11 | Q64: 23 | R64: 0.2 | S64: 2009-09-12 | T64: 19.2 | U64: 14.2 | V64: 0 | W64: 0 | X64: 2009-09-16 | Y64: 19.1 | Z64: 11.6 | AA64: 0 | AB64: 2009-09-12 | AC64: 0 | AD64: 0 | AE64: 2009-08-30 | AF64: 4.4 | AG64: 21.2 | AH64: 0 | AI64: 0
A65: 2009-09-14 | B65: 2009-09-13 | C65: 23 | D65: 13 | E65: 0.1 | F65: 23 | G65: 11 | H65: 0.05 | I65: 18 | J65: 12 | K65: 20 | L65: 13 | M65: 13 | N65: 23 | O65: 0.05 | P65: 14 | Q65: 20 | R65: 0.5 | S65: 2009-09-13 | T65: 19.6 | U65: 12.6 | V65: 0 | W65: 0 | X65: 2009-09-17 | Y65: 15.6 | Z65: 8.1 | AA65: 1 | AB65: 2009-09-13 | AC65: 2.2 | AD65: 0.1788617886 | AE65: 2009-08-31 | AF65: 7 | AG65: 25.6 | AH65: 0 | AI65: =IF(AH65=0,0,1) -> 0
A66: 2009-09-15 | B66: 2009-09-14 | C66: 22 | D66: 8 | E66: 0.05 | F66: 23 | G66: 10 | H66: 0.02 | I66: 20 | J66: 8 | K66: 20 | L66: 6 | M66: 8 | N66: 23 | O66: 0 | P66: 9 | Q66: 22 | R66: 0.1 | S66: 2009-09-14 | T66: 22 | U66: 11.4 | V66: 0 | W66: 0 | X66: 2009-09-18 | Y66: 13.4 | Z66: 10.2 | AA66: 1 | AB66: 2009-09-14 | AC66: 13.2 | AD66: 1.073170732 | AE66: 2009-09-01 | AF66: 10.2 | AG66: 28.9 | AH66: 2.5 | AI66: 1
A67: 2009-09-16 | B67: 2009-09-15 | C67: 23 | D67: 9 | E67: 0.05 | F67: 24 | G67: 9 | H67: 0.02 | I67: 22 | J67: 8 | K67: 20 | L67: 10 | M67: 9 | N67: 24 | O67: 0 | P67: 11 | Q67: 22 | R67: 0.1 | S67: 2009-09-15 | T67: 23.5 | U67: 12.5 | V67: 0 | W67: 0 | X67: 2009-09-19 | Y67: 15.6 | Z67: 10.3 | AA67: 1 | AB67: 2009-09-15 | AC67: 1.2 | AD67: 0.09756097561 | AE67: 2009-09-02 | AF67: 12.5 | AG67: 21.8 | AH67: 0 | AI67: =IF(AH67=0,0,1) -> 0
A68: 2009-09-17 | B68: 2009-09-16 | C68: 23 | D68: 12 | E68: 0.35 | F68: 25 | G68: 10 | H68: 0.02 | I68: 21 | J68: 11 | K68: 21 | L68: 10 | M68: 9 | N68: 24 | O68: 0 | P68: 12 | Q68: 21 | R68: 0.3 | S68: 2009-09-16 | T68: 23.7 | U68: 15 | V68: 0 | W68: 0 | X68: 2009-09-20 | Y68: 19.2 | Z68: 14.2 | AA68: 0 | AB68: 2009-09-16 | AC68: 0 | AD68: 0 | AE68: 2009-09-03 | AF68: 12.6 | AG68: 19.6 | AH68: 4.6 | AI68: 1
A69: 2009-09-18 | B69: 2009-09-17 | C69: 23 | D69: 13 | E69: 0.55 | F69: 26 | G69: 11 | H69: 0.05 | I69: 22 | J69: 11 | K69: 21 | L69: 12 | M69: 13 | N69: 26 | O69: 0.05 | P69: 13 | Q69: 23 | R69: 0.2 | S69: 2009-09-17 | T69: 21.3 | U69: 14.9 | V69: 0 | W69: 0 | X69: 2009-09-21 | Y69: 19.6 | Z69: 12.6 | AA69: 0 | AB69: 2009-09-17 | AC69: 0 | AD69: 0 | AE69: 2009-09-04 | AF69: 10.4 | AG69: 17.3 | AH69: 12.3 | AI69: 1
V70: Max.csap.: | AE70: 2009-09-05 | AF70: 9.9 | AG70: 16.5 | AH70: 0.3 | AI70: 1
V71: =MAX(V6:V69) -> 15 | AE71: 2009-09-06 | AF71: 6.6 | AG71: 18.1 | AH71: 0 | AI71: 0
AE72: 2009-09-07 | AF72: 7 | AG72: 22.5 | AH72: 0 | AI72: 0
AE73: 2009-09-08 | AF73: 8.1 | AG73: 25.8 | AH73: 0 | AI73: 0
AE74: 2009-09-09 | AF74: 8.9 | AG74: 22.8 | AH74: 0 | AI74: 0
AE75: 2009-09-10 | AF75: 14 | AG75: 17.5 | AH75: 0 | AI75: 0
AE76: 2009-09-11 | AF76: 12.1 | AG76: 18.9 | AH76: 0 | AI76: 0
AE77: 2009-09-12 | AF77: 11.6 | AG77: 19.1 | AH77: 0 | AI77: 0
AE78: 2009-09-13 | AF78: 8.1 | AG78: 15.6 | AH78: 2.2 | AI78: 1
AE79: 2009-09-14 | AF79: 10.2 | AG79: 13.4 | AH79: 13.2 | AI79: 1
AE80: 2009-09-15 | AF80: 10.3 | AG80: 15.6 | AH80: 1.2 | AI80: 1
AE81: 2009-09-16 | AF81: 14.2 | AG81: 19.2 | AH81: 0 | AI81: 0
AE82: 2009-09-17 | AF82: 12.6 | AG82: 19.6 | AH82: 0 | AI82: 0
AE83: 2009-09-18 | AF83: 11.4 | AG83: 22 | AH83: 0 | AI83: 0
AE84: 2009-09-19 | AF84: 12.5 | AG84: 23.5 | AH84: 0 | AI84: 0
AE85: 2009-09-20 | AF85: 15 | AG85: 23.7 | AH85: 0 | AI85: 0
AE86: 2009-09-21 | AF86: 14.9 | AG86: 21.3 | AH86: 0 | AI86: 0

Sheet találatok
E1: maximumhőmérséklet találati arányai:
A3: prognózis rögzítésének kelte | B3: prognózis keletkezésének kelte | C3: tények kelte | D3: a tényadat változása | E3: weatheronline | F3: =SUM(F4:F53)/50 -> 0.9 | G3: kurier | H3: =SUM(H4:H53)/50 -> 0.88 | I3: wetter.rtl | J3: =SUM(J4:J53)/50 -> 0.92 | K3: raiffeisen | L3: =SUM(L4:L53)/50 -> 0.86 | M3: stern | N3: =SUM(N4:N53)/50 -> 0.88 | O3: wetter.excite | P3: =SUM(P4:P53)/50 -> 0.8
A4: =data!$A10 -> 2009-06-29 | B4: =A4-1 -> 2009-06-28 | C4: =B4+4 -> 2009-07-02 | D4: =data!T10-data!Y10 -> 6.6 | E4: =data!C10-data!Y10 -> 6.6 | F4: =IF(E4=$D4,1,IF(E4*$D4>0,1,0)) -> 1 | G4: =data!F10-data!Y10 -> 8.6 | H4: =IF(G4=$D4,1,IF(G4*$D4>0,1,0)) -> 1 | I4: =data!I10-data!Y10 -> 6.6 | J4: =IF(I4=$D4,1,IF(I4*$D4>0,1,0)) -> 1 | K4: =data!K10-data!Y10 -> 6.6 | L4: =IF(K4=$D4,1,IF(K4*$D4>0,1,0)) -> 1 | M4: =data!N10-data!Y10 -> 8.6 | N4: =IF(M4=$D4,1,IF(M4*$D4>0,1,0)) -> 1 | O4: =data!Q10-data!Y10 -> 4.6 | P4: =IF(O4=$D4,1,IF(O4*$D4>0,1,0)) -> 1
A5: =data!$A11 -> 2009-06-30 | B5: =A5-1 -> 2009-06-29 | C5: =B5+4 -> 2009-07-03 | D5: =data!T11-data!Y11 -> 1.6 | E5: =data!C11-data!Y11 -> 2.8 | F5: =IF(E5=$D5,1,IF(E5*$D5>0,1,0)) -> 1 | G5: =data!F11-data!Y11 -> 3.8 | H5: =IF(G5=$D5,1,IF(G5*$D5>0,1,0)) -> 1 | I5: =data!I11-data!Y11 -> 0.8 | J5: =IF(I5=$D5,1,IF(I5*$D5>0,1,0)) -> 1 | K5: =data!K11-data!Y11 -> 1.8 | L5: =IF(K5=$D5,1,IF(K5*$D5>0,1,0)) -> 1 | M5: =data!N11-data!Y11 -> 3.8 | N5: =IF(M5=$D5,1,IF(M5*$D5>0,1,0)) -> 1 | O5: =data!Q11-data!Y11 -> -0.2 | P5: =IF(O5=$D5,1,IF(O5*$D5>0,1,0)) -> 0
A6: =data!$A12 -> 2009-07-01 | B6: 2009-06-30 | C6: 2009-07-04 | D6: =data!T12-data!Y12 -> -0.3 | E6: =data!C12-data!Y12 -> 3.1 | F6: 0 | G6: =data!F12-data!Y12 -> 4.1 | H6: 0 | I6: =data!I12-data!Y12 -> -0.9 | J6: 1 | K6: =data!K12-data!Y12 -> -2.9 | L6: 1 | M6: =data!N12-data!Y12 -> 4.1 | N6: 0 | O6: =data!Q12-data!Y12 -> 0.1 | P6: 0
A7: =data!$A13 -> 2009-07-02 | B7: 2009-07-01 | C7: 2009-07-05 | D7: =data!T13-data!Y13 -> -1.5 | E7: =data!C13-data!Y13 -> -3.6 | F7: 1 | G7: =data!F13-data!Y13 -> -1.6 | H7: 1 | I7: =data!I13-data!Y13 -> -4.6 | J7: 1 | K7: =data!K13-data!Y13 -> -6.6 | L7: 1 | M7: =data!N13-data!Y13 -> -1.6 | N7: 1 | O7: =data!Q13-data!Y13 -> -5.6 | P7: 1
A8: =data!$A14 -> 2009-07-03 | B8: 2009-07-02 | C8: 2009-07-06 | D8: =data!T14-data!Y14 -> -5.2 | E8: =data!C14-data!Y14 -> -5 | F8: 1 | G8: =data!F14-data!Y14 -> -3 | H8: 1 | I8: =data!I14-data!Y14 -> -7 | J8: 1 | K8: =data!K14-data!Y14 -> -7 | L8: 1 | M8: =data!N14-data!Y14 -> -3 | N8: 1 | O8: =data!Q14-data!Y14 -> -6 | P8: 1
A9: =data!$A15 -> 2009-07-04 | B9: 2009-07-03 | C9: 2009-07-07 | D9: =data!T15-data!Y15 -> -7.4 | E9: =data!C15-data!Y15 -> -4.8 | F9: 1 | G9: =data!F15-data!Y15 -> -6.8 | H9: 1 | I9: =data!I15-data!Y15 -> -7.8 | J9: 1 | K9: =data!K15-data!Y15 -> -6.8 | L9: 1 | M9: =data!N15-data!Y15 -> -6.8 | N9: 1 | O9: =data!Q15-data!Y15 -> -9.8 | P9: 1
A10: =data!$A16 -> 2009-07-05 | B10: 2009-07-04 | C10: 2009-07-08 | D10: =data!T16-data!Y16 -> -8.8 | E10: =data!C16-data!Y16 -> -7.6 | F10: 1 | G10: =data!F16-data!Y16 -> -5.6 | H10: 1 | I10: =data!I16-data!Y16 -> -6.6 | J10: 1 | K10: =data!K16-data!Y16 -> -7.6 | L10: 1 | M10: =data!N16-data!Y16 -> -5.6 | N10: 1 | O10: =data!Q16-data!Y16 -> -10.6 | P10: 1
A11: =data!$A17 -> 2009-07-06 | B11: 2009-07-05 | C11: 2009-07-09 | D11: =data!T17-data!Y17 -> -7.3 | E11: =data!C17-data!Y17 -> -9.1 | F11: 1 | G11: =data!F17-data!Y17 -> -11.1 | H11: 1 | I11: =data!I17-data!Y17 -> -8.1 | J11: 1 | K11: =data!K17-data!Y17 -> -7.1 | L11: 1 | M11: =data!N17-data!Y17 -> -11.1 | N11: 1 | O11: =data!Q17-data!Y17 -> -11.1 | P11: 1
A12: =data!$A18 -> 2009-07-07 | B12: 2009-07-06 | C12: 2009-07-10 | D12: =data!T18-data!Y18 -> -8.7 | E12: =data!C18-data!Y18 -> -6.8 | F12: 1 | G12: =data!F18-data!Y18 -> -4.8 | H12: 1 | I12: =data!I18-data!Y18 -> -6.8 | J12: 1 | K12: =data!K18-data!Y18 -> -10.8 | L12: 1 | M12: =data!N18-data!Y18 -> -4.8 | N12: 1 | O12: =data!Q18-data!Y18 -> -8.8 | P12: 1
A13: =data!$A19 -> 2009-07-08 | B13: 2009-07-07 | C13: 2009-07-11 | D13: =data!T19-data!Y19 -> -1.8 | E13: =data!C19-data!Y19 -> -2.4 | F13: 1 | G13: =data!F19-data!Y19 -> -2.4 | H13: 1 | I13: =data!I19-data!Y19 -> -2.4 | J13: 1 | K13: =data!K19-data!Y19 -> -3.4 | L13: 1 | M13: =data!N19-data!Y19 -> -2.4 | N13: 1 | O13: =data!Q19-data!Y19 -> -5.4 | P13: 1
A14: =data!$A20 -> 2009-07-09 | B14: 2009-07-08 | C14: 2009-07-12 | D14: =data!T20-data!Y20 -> 3.4 | E14: =data!C20-data!Y20 -> 3.2 | F14: 1 | G14: =data!F20-data!Y20 -> 7.2 | H14: 1 | I14: =data!I20-data!Y20 -> 3.2 | J14: 1 | K14: =data!K20-data!Y20 -> 1.2 | L14: 1 | M14: =data!N20-data!Y20 -> 7.2 | N14: 1 | O14: =data!Q20-data!Y20 -> 1.2 | P14: 1
A15: =data!$A21 -> 2009-07-10 | B15: 2009-07-09 | C15: 2009-07-13 | D15: =data!T21-data!Y21 -> 6 | E15: =data!C21-data!Y21 -> 5.2 | F15: 1 | G15: =data!F21-data!Y21 -> 5.2 | H15: 1 | I15: =data!I21-data!Y21 -> 4.2 | J15: 1 | K15: =data!K21-data!Y21 -> 2.2 | L15: 1 | M15: =data!N21-data!Y21 -> 5.2 | N15: 1 | O15: =data!Q21-data!Y21 -> 0.2 | P15: 1
A16: =data!$A22 -> 2009-07-11 | B16: 2009-07-10 | C16: 2009-07-14 | D16: =data!T22-data!Y22 -> 9.3 | E16: =data!C22-data!Y22 -> 8.9 | F16: 1 | G16: =data!F22-data!Y22 -> 8.9 | H16: 1 | I16: =data!I22-data!Y22 -> 9.9 | J16: 1 | K16: =data!K22-data!Y22 -> 8.9 | L16: 1 | M16: =data!N22-data!Y22 -> 8.9 | N16: 1 | O16: =data!Q22-data!Y22 -> 8.9 | P16: 1
A17: =data!$A23 -> 2009-07-12 | B17: 2009-07-11 | C17: 2009-07-15 | D17: =data!T23-data!Y23 -> 6.6 | E17: =data!C23-data!Y23 -> 4.4 | F17: 1 | G17: =data!F23-data!Y23 -> 7.4 | H17: 1 | I17: =data!I23-data!Y23 -> 6.4 | J17: 1 | K17: =data!K23-data!Y23 -> 4.4 | L17: 1 | M17: =data!N23-data!Y23 -> 4.4 | N17: 1 | O17: =data!Q23-data!Y23 -> 4.4 | P17: 1
A18: =data!$A24 -> 2009-07-13 | B18: 2009-07-12 | C18: 2009-07-16 | D18: =data!T24-data!Y24 -> 6.3 | E18: =data!C24-data!Y24 -> 6.8 | F18: 1 | G18: =data!F24-data!Y24 -> 6.8 | H18: 1 | I18: =data!I24-data!Y24 -> 5.8 | J18: 1 | K18: =data!K24-data!Y24 -> 4.8 | L18: 1 | M18: =data!N24-data!Y24 -> 6.8 | N18: 1 | O18: =data!Q24-data!Y24 -> 2.8 | P18: 1
A19: =data!$A25 -> 2009-07-14 | B19: 2009-07-13 | C19: 2009-07-17 | D19: =data!T25-data!Y25 -> -3.3 | E19: =data!C25-data!Y25 -> -1.8 | F19: 1 | G19: =data!F25-data!Y25 -> 0.2 | H19: 0 | I19: =data!I25-data!Y25 -> 0.2 | J19: 0 | K19: =data!K25-data!Y25 -> -3.8 | L19: 1 | M19: =data!N25-data!Y25 -> 6.2 | N19: 0 | O19: =data!Q25-data!Y25 -> -0.8 | P19: 1
A20: =data!$A26 -> 2009-07-15 | B20: 2009-07-14 | C20: 2009-07-18 | D20: =data!T26-data!Y26 -> -6.1 | E20: =data!C26-data!Y26 -> -7.4 | F20: 1 | G20: =data!F26-data!Y26 -> -9.4 | H20: 1 | I20: =data!I26-data!Y26 -> -6.4 | J20: 1 | K20: =data!K26-data!Y26 -> -11.4 | L20: 1 | M20: =data!N26-data!Y26 -> -9.4 | N20: 1 | O20: =data!Q26-data!Y26 -> -0.4 | P20: 1
A21: =data!$A27 -> 2009-07-16 | B21: 2009-07-15 | C21: 2009-07-19 | D21: =data!T27-data!Y27 -> -4.9 | E21: =data!C27-data!Y27 -> -7.2 | F21: 1 | G21: =data!F27-data!Y27 -> -5.2 | H21: 1 | I21: =data!I27-data!Y27 -> -7.2 | J21: 1 | K21: =data!K27-data!Y27 -> -9.2 | L21: 1 | M21: =data!N27-data!Y27 -> -5.2 | N21: 1 | O21: =data!Q27-data!Y27 -> -10.2 | P21: 1
A22: =data!$A28 -> 2009-07-17 | B22: 2009-07-16 | C22: 2009-07-20 | D22: =data!T28-data!Y28 -> -5.7 | E22: =data!C28-data!Y28 -> -6.5 | F22: 1 | G22: =data!F28-data!Y28 -> -5.5 | H22: 1 | I22: =data!I28-data!Y28 -> -7.5 | J22: 1 | K22: =data!K28-data!Y28 -> -9.5 | L22: 1 | M22: =data!N28-data!Y28 -> -5.5 | N22: 1 | O22: =data!Q28-data!Y28 -> -7.5 | P22: 1
A23: =data!$A29 -> 2009-07-18 | B23: 2009-07-17 | C23: 2009-07-21 | D23: =data!T29-data!Y29 -> 4.8 | E23: =data!C29-data!Y29 -> 1.5 | F23: 1 | G23: =data!F29-data!Y29 -> 4.5 | H23: 1 | I23: =data!I29-data!Y29 -> 3.5 | J23: 1 | K23: =data!K29-data!Y29 -> 0.5 | L23: 1 | M23: =data!N29-data!Y29 -> 4.5 | N23: 1 | O23: =data!Q29-data!Y29 -> -1.5 | P23: 0
A24: =data!$A30 -> 2009-07-19 | B24: 2009-07-18 | C24: 2009-07-22 | D24: =data!T30-data!Y30 -> 8.8 | E24: =data!C30-data!Y30 -> 6.7 | F24: 1 | G24: =data!F30-data!Y30 -> 9.7 | H24: 1 | I24: =data!I30-data!Y30 -> 7.7 | J24: 1 | K24: =data!K30-data!Y30 -> 4.7 | L24: 1 | M24: =data!N30-data!Y30 -> 9.7 | N24: 1 | O24: =data!Q30-data!Y30 -> 3.7 | P24: 1
A25: =data!$A31 -> 2009-07-20 | B25: 2009-07-19 | C25: 2009-07-23 | D25: =data!T31-data!Y31 -> 3 | E25: =data!C31-data!Y31 -> 2.7 | F25: 1 | G25: =data!F31-data!Y31 -> 2.7 | H25: 1 | I25: =data!I31-data!Y31 -> 5.7 | J25: 1 | K25: =data!K31-data!Y31 -> 0.7 | L25: 1 | M25: =data!N31-data!Y31 -> 2.7 | N25: 1 | O25: =data!Q31-data!Y31 -> 3.7 | P25: 1
A26: =data!$A32 -> 2009-07-22 | B26: 2009-07-21 | C26: 2009-07-25 | D26: =data!T32-data!Y32 -> -8.1 | E26: =data!C32-data!Y32 -> -7.3 | F26: 1 | G26: =data!F32-data!Y32 -> -6.3 | H26: 1 | I26: =data!I32-data!Y32 -> -6.3 | J26: 1 | K26: =data!K32-data!Y32 -> -9.3 | L26: 1 | M26: =data!N32-data!Y32 -> -6.3 | N26: 1 | O26: =data!Q32-data!Y32 -> -5.3 | P26: 1
A27: =data!$A33 -> 2009-07-23 | B27: 2009-07-22 | C27: 2009-07-26 | D27: =data!T33-data!Y33 -> -4.4 | E27: =data!C33-data!Y33 -> -2.1 | F27: 1 | G27: =data!F33-data!Y33 -> -3.1 | H27: 1 | I27: =data!I33-data!Y33 -> -5.1 | J27: 1 | K27: =data!K33-data!Y33 -> -7.1 | L27: 1 | M27: =data!N33-data!Y33 -> -3.1 | N27: 1 | O27: =data!Q33-data!Y33 -> -7.1 | P27: 1
A28: =data!$A34 -> 2009-07-24 | B28: 2009-07-23 | C28: 2009-07-27 | D28: =data!T34-data!Y34 -> 2.9 | E28: =data!C34-data!Y34 -> 3.7 | F28: 1 | G28: =data!F34-data!Y34 -> 5.7 | H28: 1 | I28: =data!I34-data!Y34 -> 0.7 | J28: 1 | K28: =data!K34-data!Y34 -> 1.7 | L28: 1 | M28: =data!N34-data!Y34 -> 5.7 | N28: 1 | O28: =data!Q34-data!Y34 -> -1.3 | P28: 0
A29: =data!$A35 -> 2009-07-25 | B29: 2009-07-24 | C29: 2009-07-28 | D29: =data!T35-data!Y35 -> 0.5 | E29: =data!C35-data!Y35 -> 4.7 | F29: 1 | G29: =data!F35-data!Y35 -> 1.7 | H29: 1 | I29: =data!I35-data!Y35 -> 0.7 | J29: 1 | K29: =data!K35-data!Y35 -> -3.3 | L29: 0 | M29: =data!N35-data!Y35 -> 7.7 | N29: 1 | O29: =data!Q35-data!Y35 -> 0.7 | P29: 1
A30: =data!$A36 -> 2009-07-28 | B30: 2009-07-27 | C30: 2009-07-31 | D30: =data!T36-data!Y36 -> -5.8 | E30: =data!C36-data!Y36 -> -3.2 | F30: 1 | G30: =data!F36-data!Y36 -> -2.2 | H30: 1 | I30: =data!I36-data!Y36 -> -6.2 | J30: 1 | K30: =data!K36-data!Y36 -> -6.2 | L30: 1 | M30: =data!N36-data!Y36 -> -2.2 | N30: 1 | O30: =data!Q36-data!Y36 -> -6.2 | P30: 1
A31: =data!$A37 -> 2009-07-29 | B31: 2009-07-28 | C31: 2009-08-01 | D31: =data!T37-data!Y37 -> 3.6 | E31: =data!C37-data!Y37 -> 3.2 | F31: 1 | G31: =data!F37-data!Y37 -> 2.2 | H31: 1 | I31: =data!I37-data!Y37 -> 4.2 | J31: 1 | K31: =data!K37-data!Y37 -> 2.2 | L31: 1 | M31: =data!N37-data!Y37 -> 2.2 | N31: 1 | O31: =data!Q37-data!Y37 -> -3.8 | P31: 0
A32: =data!$A38 -> 2009-07-30 | B32: 2009-07-29 | C32: 2009-08-02 | D32: =data!T38-data!Y38 -> -3.1 | E32: =data!C38-data!Y38 -> -1.2 | F32: 1 | G32: =data!F38-data!Y38 -> -1.2 | H32: 1 | I32: =data!I38-data!Y38 -> -2.2 | J32: 1 | K32: =data!K38-data!Y38 -> -7.2 | L32: 1 | M32: =data!N38-data!Y38 -> -1.2 | N32: 1 | O32: =data!Q38-data!Y38 -> -3.2 | P32: 1
A33: =data!$A39 -> 2009-07-31 | B33: 2009-07-30 | C33: 2009-08-03 | D33: =data!T39-data!Y39 -> 0.4 | E33: =data!C39-data!Y39 -> -1.1 | F33: 0 | G33: =data!F39-data!Y39 -> 0.9 | H33: 1 | I33: =data!I39-data!Y39 -> 1.9 | J33: 1 | K33: =data!K39-data!Y39 -> -3.1 | L33: 0 | M33: =data!N39-data!Y39 -> 0.9 | N33: 1 | O33: =data!Q39-data!Y39 -> -0.1 | P33: 0
A34: =data!$A40 -> 2009-08-01 | B34: 2009-07-31 | C34: 2009-08-04 | D34: =data!T40-data!Y40 -> 2.4 | E34: =data!C40-data!Y40 -> 4.6 | F34: 1 | G34: =data!F40-data!Y40 -> 4.6 | H34: 1 | I34: =data!I40-data!Y40 -> 5.6 | J34: 1 | K34: =data!K40-data!Y40 -> 2.6 | L34: 1 | M34: =data!N40-data!Y40 -> 4.6 | N34: 1 | O34: =data!Q40-data!Y40 -> -0.4 | P34: 0
A35: =data!$A41 -> 2009-08-02 | B35: 2009-08-01 | C35: 2009-08-05 | D35: =data!T41-data!Y41 -> 0 | E35: =data!C41-data!Y41 -> 1.6 | F35: 0 | G35: =data!F41-data!Y41 -> 1.6 | H35: 0 | I35: =data!I41-data!Y41 -> 0.6 | J35: 0 | K35: =data!K41-data!Y41 -> 0.6 | L35: 0 | M35: =data!N41-data!Y41 -> 1.6 | N35: 0 | O35: =data!Q41-data!Y41 -> -3.4 | P35: 0
A36: =data!$A42 -> 2009-08-03 | B36: 2009-08-02 | C36: 2009-08-06 | D36: =data!T42-data!Y42 -> 5.4 | E36: =data!C42-data!Y42 -> 4.9 | F36: 1 | G36: =data!F42-data!Y42 -> 7.9 | H36: 1 | I36: =data!I42-data!Y42 -> 4.9 | J36: 1 | K36: =data!K42-data!Y42 -> 3.9 | L36: 1 | M36: =data!N42-data!Y42 -> 4.9 | N36: 1 | O36: =data!Q42-data!Y42 -> -0.1 | P36: 0
A37: =data!$A43 -> 2009-08-04 | B37: 2009-08-03 | C37: 2009-08-07 | D37: =data!T43-data!Y43 -> 6.2 | E37: =data!C43-data!Y43 -> 7.5 | F37: 1 | G37: =data!F43-data!Y43 -> 7.5 | H37: 1 | I37: =data!I43-data!Y43 -> 7.5 | J37: 1 | K37: =data!K43-data!Y43 -> 7.5 | L37: 1 | M37: =data!N43-data!Y43 -> 7.5 | N37: 1 | O37: =data!Q43-data!Y43 -> 3.5 | P37: 1
A38: =data!$A44 -> 2009-08-05 | B38: 2009-08-04 | C38: 2009-08-08 | D38: =data!T44-data!Y44 -> -0.6 | E38: =data!C44-data!Y44 -> 2.2 | F38: 0 | G38: =data!F44-data!Y44 -> 5.2 | H38: 0 | I38: =data!I44-data!Y44 -> 2.2 | J38: 0 | K38: =data!K44-data!Y44 -> -1.8 | L38: 1 | M38: =data!N44-data!Y44 -> 5.2 | N38: 0 | O38: =data!Q44-data!Y44 -> 4.2 | P38: 0
A39: =data!$A45 -> 2009-08-06 | B39: 2009-08-05 | C39: 2009-08-09 | D39: =data!T45-data!Y45 -> -0.3 | E39: =data!C45-data!Y45 -> 0.6 | F39: 0 | G39: =data!F45-data!Y45 -> 2.6 | H39: 0 | I39: =data!I45-data!Y45 -> -3.4 | J39: 1 | K39: =data!K45-data!Y45 -> 2.6 | L39: 0 | M39: =data!N45-data!Y45 -> 2.6 | N39: 0 | O39: =data!Q45-data!Y45 -> -2.4 | P39: 1
A40: =data!$A46 -> 2009-08-07 | B40: 2009-08-06 | C40: 2009-08-10 | D40: =data!T46-data!Y46 -> -6.2 | E40: =data!C46-data!Y46 -> -3.5 | F40: 1 | G40: =data!F46-data!Y46 -> -0.5 | H40: 1 | I40: =data!I46-data!Y46 -> -5.5 | J40: 1 | K40: =data!K46-data!Y46 -> -8.5 | L40: 1 | M40: =data!N46-data!Y46 -> -0.5 | N40: 1 | O40: =data!Q46-data!Y46 -> -4.5 | P40: 1
A41: =data!$A47 -> 2009-08-08 | B41: 2009-08-07 | C41: 2009-08-11 | D41: =data!T47-data!Y47 -> -5.5 | E41: =data!C47-data!Y47 -> -6.7 | F41: 1 | G41: =data!F47-data!Y47 -> -4.7 | H41: 1 | I41: =data!I47-data!Y47 -> -6.7 | J41: 1 | K41: =data!K47-data!Y47 -> -10.7 | L41: 1 | M41: =data!N47-data!Y47 -> -0.7 | N41: 1 | O41: =data!Q47-data!Y47 -> -5.7 | P41: 1
A42: =data!$A48 -> 2009-08-24 | B42: 2009-08-23 | C42: 2009-08-27 | D42: =data!T48-data!Y48 -> 3.3 | E42: =data!C48-data!Y48 -> 1.5 | F42: 1 | G42: =data!F48-data!Y48 -> 2.5 | H42: 1 | I42: =data!I48-data!Y48 -> 1.5 | J42: 1 | K42: =data!K48-data!Y48 -> -2.5 | L42: 0 | M42: =data!N48-data!Y48 -> 2.5 | N42: 1 | O42: =data!Q48-data!Y48 -> 0.5 | P42: 1
A43: =data!$A49 -> 2009-08-25 | B43: 2009-08-24 | C43: 2009-08-28 | D43: =data!T49-data!Y49 -> -4.2 | E43: =data!C49-data!Y49 -> -3.4 | F43: 1 | G43: =data!F49-data!Y49 -> -2.4 | H43: 1 | I43: =data!I49-data!Y49 -> -1.4 | J43: 1 | K43: =data!K49-data!Y49 -> -8.4 | L43: 1 | M43: =data!N49-data!Y49 -> -2.4 | N43: 1 | O43: =data!Q49-data!Y49 -> -3.4 | P43: 1
A44: =data!$A50 -> 2009-08-27 | B44: 2009-08-26 | C44: 2009-08-30 | D44: =data!T50-data!Y50 -> -3.3 | E44: =data!C50-data!Y50 -> -3.5 | F44: 1 | G44: =data!F50-data!Y50 -> -3.5 | H44: 1 | I44: =data!I50-data!Y50 -> -3.5 | J44: 1 | K44: =data!K50-data!Y50 -> -6.5 | L44: 1 | M44: =data!N50-data!Y50 -> -3.5 | N44: 1 | O44: =data!Q50-data!Y50 -> -5.5 | P44: 1
A45: =data!$A51 -> 2009-08-28 | B45: 2009-08-27 | C45: 2009-08-31 | D45: =data!T51-data!Y51 -> -2.2 | E45: =data!C51-data!Y51 -> -3.8 | F45: 1 | G45: =data!F51-data!Y51 -> -2.8 | H45: 1 | I45: =data!I51-data!Y51 -> -1.8 | J45: 1 | K45: =data!K51-data!Y51 -> -4.8 | L45: 1 | M45: =data!N51-data!Y51 -> -2.8 | N45: 1 | O45: =data!Q51-data!Y51 -> -5.8 | P45: 1
A46: =data!$A52 -> 2009-08-30 | B46: 2009-08-29 | C46: 2009-09-02 | D46: =data!T52-data!Y52 -> 2.4 | E46: =data!C52-data!Y52 -> 2.6 | F46: 1 | G46: =data!F52-data!Y52 -> 3.6 | H46: 1 | I46: =data!I52-data!Y52 -> 2.6 | J46: 1 | K46: =data!K52-data!Y52 -> -0.4 | L46: 0 | M46: =data!N52-data!Y52 -> 3.6 | N46: 1 | O46: =data!Q52-data!Y52 -> 1.6 | P46: 1
A47: =data!$A53 -> 2009-08-31 | B47: 2009-08-30 | C47: 2009-09-03 | D47: =data!T53-data!Y53 -> -1.6 | E47: =data!C53-data!Y53 -> -2.2 | F47: 1 | G47: =data!F53-data!Y53 -> 0.8 | H47: 0 | I47: =data!I53-data!Y53 -> 0.8 | J47: 0 | K47: =data!K53-data!Y53 -> -3.2 | L47: 1 | M47: =data!N53-data!Y53 -> 0.8 | N47: 0 | O47: =data!Q53-data!Y53 -> -2.2 | P47: 1
A48: =data!$A54 -> 2009-09-01 | B48: 2009-08-31 | C48: 2009-09-04 | D48: =data!T54-data!Y54 -> -8.3 | E48: =data!C54-data!Y54 -> -9.6 | F48: 1 | G48: =data!F54-data!Y54 -> -8.6 | H48: 1 | I48: =data!I54-data!Y54 -> -7.6 | J48: 1 | K48: =data!K54-data!Y54 -> -12.6 | L48: 1 | M48: =data!N54-data!Y54 -> -8.6 | N48: 1 | O48: =data!Q54-data!Y54 -> -11.6 | P48: 1
A49: =data!$A55 -> 2009-09-03 | B49: 2009-09-02 | C49: 2009-09-06 | D49: =data!T55-data!Y55 -> -3.7 | E49: =data!C55-data!Y55 -> -2.8 | F49: 1 | G49: =data!F55-data!Y55 -> -2.8 | H49: 1 | I49: =data!I55-data!Y55 -> -2.8 | J49: 1 | K49: =data!K55-data!Y55 -> -5.8 | L49: 1 | M49: =data!N55-data!Y55 -> -2.8 | N49: 1 | O49: =data!Q55-data!Y55 -> -3.8 | P49: 1
A50: =data!$A56 -> 2009-09-04 | B50: 2009-09-03 | C50: 2009-09-07 | D50: =data!T56-data!Y56 -> 2.9 | E50: =data!C56-data!Y56 -> 1.4 | F50: 1 | G50: =data!F56-data!Y56 -> 3.4 | H50: 1 | I50: =data!I56-data!Y56 -> 1.4 | J50: 1 | K50: =data!K56-data!Y56 -> -1.6 | L50: 0 | M50: =data!N56-data!Y56 -> 3.4 | N50: 1 | O50: =data!Q56-data!Y56 -> 0.4 | P50: 1
A51: =data!$A57 -> 2009-09-05 | B51: 2009-09-04 | C51: 2009-09-08 | D51: =data!T57-data!Y57 -> 8.5 | E51: =data!C57-data!Y57 -> 7.7 | F51: 1 | G51: =data!F57-data!Y57 -> 8.7 | H51: 1 | I51: =data!I57-data!Y57 -> 6.7 | J51: 1 | K51: =data!K57-data!Y57 -> 5.7 | L51: 1 | M51: =data!N57-data!Y57 -> 8.7 | N51: 1 | O51: =data!Q57-data!Y57 -> 6.7 | P51: 1
A52: =data!$A58 -> 2009-09-06 | B52: 2009-09-05 | C52: 2009-09-09 | D52: =data!T58-data!Y58 -> 6.3 | E52: =data!C58-data!Y58 -> 10.5 | F52: 1 | G52: =data!F58-data!Y58 -> 11.5 | H52: 1 | I52: =data!I58-data!Y58 -> 7.5 | J52: 1 | K52: =data!K58-data!Y58 -> 9.5 | L52: 1 | M52: =data!N58-data!Y58 -> 11.5 | N52: 1 | O52: =data!Q58-data!Y58 -> 7.5 | P52: 1
A53: =data!$A59 -> 2009-09-08 | B53: 2009-09-07 | C53: 2009-09-11 | D53: =data!T59-data!Y59 -> -3.6 | E53: =data!C59-data!Y59 -> -1.5 | F53: 1 | G53: =data!F59-data!Y59 -> -1.5 | H53: 1 | I53: =data!I59-data!Y59 -> -2.5 | J53: 1 | K53: =data!K59-data!Y59 -> -3.5 | L53: 1 | M53: =data!N59-data!Y59 -> -1.5 | N53: 1 | O53: =data!Q59-data!Y59 -> -3.5 | P53: 1
A54: =data!$A60 -> 2009-09-09 | B54: =A54-1 -> 2009-09-08 | C54: =B54+4 -> 2009-09-12 | D54: =data!T60-data!Y60 -> -6.7 | E54: =data!C60-data!Y60 -> -5.8 | F54: 1 | G54: =data!F60-data!Y60 -> -3.8 | H54: 1 | I54: =data!I60-data!Y60 -> -7.8 | J54: 1 | K54: =data!K60-data!Y60 -> -8.8 | L54: 1 | M54: =data!N60-data!Y60 -> -3.8 | N54: 1 | O54: =data!Q60-data!Y60 -> -6.8 | P54: 1
A55: =data!$A61 -> 2009-09-10 | B55: 2009-09-09 | C55: 2009-09-13 | D55: =data!T61-data!Y61 -> -7.2 | E55: =data!C61-data!Y61 -> -4.8 | F55: 1 | G55: =data!F61-data!Y61 -> -3.8 | H55: 1 | I55: =data!I61-data!Y61 -> -2.8 | J55: 1 | K55: =data!K61-data!Y61 -> -8.8 | L55: 1 | M55: =data!N61-data!Y61 -> -3.8 | N55: 1 | O55: =data!Q61-data!Y61 -> -5.8 | P55: 1
A56: =data!$A62 -> 2009-09-11 | B56: 2009-09-10 | C56: 2009-09-14 | D56: =data!T62-data!Y62 -> -4.1 | E56: =data!C62-data!Y62 -> -0.5 | F56: 1 | G56: =data!F62-data!Y62 -> -0.5 | H56: 1 | I56: =data!I62-data!Y62 -> 0.5 | J56: 0 | K56: =data!K62-data!Y62 -> -2.5 | L56: 1 | M56: =data!N62-data!Y62 -> -0.5 | N56: 1 | O56: =data!Q62-data!Y62 -> -1.5 | P56: 1
A57: =data!$A63 -> 2009-09-12 | B57: 2009-09-11 | C57: 2009-09-15 | D57: =data!T63-data!Y63 -> -3.3 | E57: =data!C63-data!Y63 -> -2.9 | F57: 1 | G57: =data!F63-data!Y63 -> -0.9 | H57: 1 | I57: =data!I63-data!Y63 -> 2.1 | J57: 0 | K57: =data!K63-data!Y63 -> -6.9 | L57: 1 | M57: =data!N63-data!Y63 -> -0.9 | N57: 1 | O57: =data!Q63-data!Y63 -> -3.9 | P57: 1
A58: =data!$A64 -> 2009-09-13 | B58: 2009-09-12 | C58: 2009-09-16 | D58: =data!T64-data!Y64 -> 0.1 | E58: =data!C64-data!Y64 -> 4.9 | F58: 1 | G58: =data!F64-data!Y64 -> 6.9 | H58: 1 | I58: =data!I64-data!Y64 -> 2.9 | J58: 1 | K58: =data!K64-data!Y64 -> 3.9 | L58: 1 | M58: =data!N64-data!Y64 -> 6.9 | N58: 1 | O58: =data!Q64-data!Y64 -> 3.9 | P58: 1
A59: =data!$A65 -> 2009-09-14 | B59: 2009-09-13 | C59: 2009-09-17 | D59: =data!T65-data!Y65 -> 4 | E59: =data!C65-data!Y65 -> 7.4 | F59: 1 | G59: =data!F65-data!Y65 -> 7.4 | H59: 1 | I59: =data!I65-data!Y65 -> 2.4 | J59: 1 | K59: =data!K65-data!Y65 -> 4.4 | L59: 1 | M59: =data!N65-data!Y65 -> 7.4 | N59: 1 | O59: =data!Q65-data!Y65 -> 4.4 | P59: 1
A60: =data!$A66 -> 2009-09-15 | B60: 2009-09-14 | C60: 2009-09-18 | D60: =data!T66-data!Y66 -> 8.6 | E60: =data!C66-data!Y66 -> 8.6 | F60: 1 | G60: =data!F66-data!Y66 -> 9.6 | H60: 1 | I60: =data!I66-data!Y66 -> 6.6 | J60: 1 | K60: =data!K66-data!Y66 -> 6.6 | L60: 1 | M60: =data!N66-data!Y66 -> 9.6 | N60: 1 | O60: =data!Q66-data!Y66 -> 8.6 | P60: 1
A61: =data!$A67 -> 2009-09-16 | B61: 2009-09-15 | C61: 2009-09-19 | D61: =data!T67-data!Y67 -> 7.9 | E61: =data!C67-data!Y67 -> 7.4 | F61: 1 | G61: =data!F67-data!Y67 -> 8.4 | H61: 1 | I61: =data!I67-data!Y67 -> 6.4 | J61: 1 | K61: =data!K67-data!Y67 -> 4.4 | L61: 1 | M61: =data!N67-data!Y67 -> 8.4 | N61: 1 | O61: =data!Q67-data!Y67 -> 6.4 | P61: 1
A62: =data!$A68 -> 2009-09-17 | B62: 2009-09-16 | C62: 2009-09-20 | D62: =data!T68-data!Y68 -> 4.5 | E62: =data!C68-data!Y68 -> 3.8 | F62: 1 | G62: =data!F68-data!Y68 -> 5.8 | H62: 1 | I62: =data!I68-data!Y68 -> 1.8 | J62: 1 | K62: =data!K68-data!Y68 -> 1.8 | L62: 1 | M62: =data!N68-data!Y68 -> 4.8 | N62: 1 | O62: =data!Q68-data!Y68 -> 1.8 | P62: 1
A63: =data!$A69 -> 2009-09-18 | B63: 2009-09-17 | C63: 2009-09-21 | D63: =data!T69-data!Y69 -> 1.7 | E63: =data!C69-data!Y69 -> 3.4 | F63: 1 | G63: =data!F69-data!Y69 -> 6.4 | H63: 1 | I63: =data!I69-data!Y69 -> 2.4 | J63: 1 | K63: =data!K69-data!Y69 -> 1.4 | L63: 1 | M63: =data!N69-data!Y69 -> 6.4 | N63: 1 | O63: =data!Q69-data!Y69 -> 3.4 | P63: 1
E64: maximum hőmérséklet első 50 nap(konkurencia) | F64: =SUM(F4:F53)/50 -> 0.9 | H64: =SUM(H4:H53)/50 -> 0.88 | J64: =SUM(J4:J53)/50 -> 0.92 | L64: =SUM(L4:L53)/50 -> 0.86 | N64: =SUM(N4:N53)/50 -> 0.88 | P64: =SUM(P4:P53)/50 -> 0.8
E65: maximum hőmérséklet első 50 nap(saját) | J65: =maxar1!Z207 -> 0.98
E66: maximum hőmérséklet utolsó 10 nap(konkurencia) | F66: =SUM(F54:F63)/10 -> 1 | H66: =SUM(H54:H63)/10 -> 1 | J66: =SUM(J54:J63)/10 -> 0.8 | L66: =SUM(L54:L63)/10 -> 1 | N66: =SUM(N54:N63)/10 -> 1 | P66: =SUM(P54:P63)/10 -> 1
E67: maximum hőmérséklet utolsó 10 nap(saját) | J67: =maxar1!Z268 -> 0.8
E68: maximum hőmérséklet összes(konkurencia) | F68: =SUM(F4:F63)/60 -> 0.9166666667 | H68: =SUM(H4:H63)/60 -> 0.9 | J68: =SUM(J4:J63)/60 -> 0.9 | L68: =SUM(L4:L63)/60 -> 0.8833333333 | N68: =SUM(N4:N63)/60 -> 0.9 | P68: =SUM(P4:P63)/60 -> 0.8333333333
E69: maximum hőmérséklet összes(saját) | J69: =maxar1!Z269 -> 0.95
E70: minimumhőmérséklet találati arányai:
A72: prognózis rögzítésének kelte | B72: prognózis keletkezésének kelte | C72: tények kelte | D72: a tényadat változása | E72: weatheronline | F72: =SUM(F73:F122)/50 -> 0.8 | G72: kurier | H72: =SUM(H73:H122)/50 -> 0.78 | I72: wetter.rtl | J72: =SUM(J73:J122)/50 -> 0.88 | K72: raiffeisen | L72: =SUM(L73:L122)/50 -> 0.92 | M72: stern | N72: =SUM(N73:N122)/50 -> 0.9 | O72: wetter.excite | P72: =SUM(P73:P122)/50 -> 0.8
A73: =data!$A10 -> 2009-06-29 | B73: =A73-1 -> 2009-06-28 | C73: =B73+4 -> 2009-07-02 | D73: =data!U10-data!Z10 -> 2 | E73: =data!D10-data!Z10 -> 2.6 | F73: =IF(E73=$D73,1,IF(E73*$D73>0,1,0)) -> 1 | G73: =data!G10-data!Z10 -> 0.6 | H73: =IF(G73=$D73,1,IF(G73*$D73>0,1,0)) -> 1 | I73: =data!J10-data!Z10 -> 0.6 | J73: =IF(I73=$D73,1,IF(I73*$D73>0,1,0)) -> 1 | K73: =data!L10-data!Z10 -> -0.4 | L73: =IF(K73=$D73,1,IF(K73*$D73>0,1,0)) -> 0 | M73: =data!M10-data!Z10 -> 0.6 | N73: =IF(M73=$D73,1,IF(M73*$D73>0,1,0)) -> 1 | O73: =data!P10-data!Z10 -> 1.6 | P73: =IF(O73=$D73,1,IF(O73*$D73>0,1,0)) -> 1
A74: =data!$A11 -> 2009-06-30 | B74: 2009-06-29 | C74: =B74+4 -> 2009-07-03 | D74: =data!U11-data!Z11 -> 4 | E74: =data!D11-data!Z11 -> 6.2 | F74: 1 | G74: =data!G11-data!Z11 -> 2.2 | H74: 1 | I74: =data!J11-data!Z11 -> 3.2 | J74: 1 | K74: =data!L11-data!Z11 -> 0.2 | L74: 1 | M74: =data!M11-data!Z11 -> 3.2 | N74: 1 | O74: =data!P11-data!Z11 -> 4.2 | P74: 1
A75: =data!$A12 -> 2009-07-01 | B75: 2009-06-30 | C75: 2009-07-04 | D75: =data!U12-data!Z12 -> -1.5 | E75: =data!D12-data!Z12 -> 0.9 | F75: 0 | G75: =data!G12-data!Z12 -> -0.1 | H75: 1 | I75: =data!J12-data!Z12 -> -1.1 | J75: 1 | K75: =data!L12-data!Z12 -> -3.1 | L75: 1 | M75: =data!M12-data!Z12 -> -0.1 | N75: 1 | O75: =data!P12-data!Z12 -> -1.1 | P75: 1
A76: =data!$A13 -> 2009-07-02 | B76: 2009-07-01 | C76: 2009-07-05 | D76: =data!U13-data!Z13 -> -2.8 | E76: =data!D13-data!Z13 -> -0.7 | F76: 1 | G76: =data!G13-data!Z13 -> -1.7 | H76: 1 | I76: =data!J13-data!Z13 -> -1.7 | J76: 1 | K76: =data!L13-data!Z13 -> -5.7 | L76: 1 | M76: =data!M13-data!Z13 -> -1.7 | N76: 1 | O76: =data!P13-data!Z13 -> 0.3 | P76: 0
A77: =data!$A14 -> 2009-07-03 | B77: 2009-07-02 | C77: 2009-07-06 | D77: =data!U14-data!Z14 -> -1.7 | E77: =data!D14-data!Z14 -> -2.4 | F77: 1 | G77: =data!G14-data!Z14 -> -1.4 | H77: 1 | I77: =data!J14-data!Z14 -> -3.4 | J77: 1 | K77: =data!L14-data!Z14 -> -4.4 | L77: 1 | M77: =data!M14-data!Z14 -> -5.4 | N77: 1 | O77: =data!P14-data!Z14 -> -2.4 | P77: 1
A78: =data!$A15 -> 2009-07-04 | B78: 2009-07-03 | C78: 2009-07-07 | D78: =data!U15-data!Z15 -> -2.7 | E78: =data!D15-data!Z15 -> -0.8 | F78: 1 | G78: =data!G15-data!Z15 -> -4.8 | H78: 1 | I78: =data!J15-data!Z15 -> -3.8 | J78: 1 | K78: =data!L15-data!Z15 -> -4.8 | L78: 1 | M78: =data!M15-data!Z15 -> -4.8 | N78: 1 | O78: =data!P15-data!Z15 -> -4.8 | P78: 1
A79: =data!$A16 -> 2009-07-05 | B79: 2009-07-04 | C79: 2009-07-08 | D79: =data!U16-data!Z16 -> -4 | E79: =data!D16-data!Z16 -> -2.6 | F79: 1 | G79: =data!G16-data!Z16 -> -6.6 | H79: 1 | I79: =data!J16-data!Z16 -> -3.6 | J79: 1 | K79: =data!L16-data!Z16 -> -6.6 | L79: 1 | M79: =data!M16-data!Z16 -> -2.6 | N79: 1 | O79: =data!P16-data!Z16 -> -4.6 | P79: 1
A80: =data!$A17 -> 2009-07-06 | B80: 2009-07-05 | C80: 2009-07-09 | D80: =data!U17-data!Z17 -> -2.2 | E80: =data!D17-data!Z17 -> 0.1 | F80: 0 | G80: =data!G17-data!Z17 -> -1.9 | H80: 1 | I80: =data!J17-data!Z17 -> -1.9 | J80: 1 | K80: =data!L17-data!Z17 -> -3.9 | L80: 1 | M80: =data!M17-data!Z17 -> 1.1 | N80: 0 | O80: =data!P17-data!Z17 -> -0.9 | P80: 1
A81: =data!$A18 -> 2009-07-07 | B81: 2009-07-06 | C81: 2009-07-10 | D81: =data!U18-data!Z18 -> -5.6 | E81: =data!D18-data!Z18 -> -6.7 | F81: 1 | G81: =data!G18-data!Z18 -> -3.7 | H81: 1 | I81: =data!J18-data!Z18 -> -6.7 | J81: 1 | K81: =data!L18-data!Z18 -> -9.7 | L81: 1 | M81: =data!M18-data!Z18 -> -7.7 | N81: 1 | O81: =data!P18-data!Z18 -> -4.7 | P81: 1
A82: =data!$A19 -> 2009-07-08 | B82: 2009-07-07 | C82: 2009-07-11 | D82: =data!U19-data!Z19 -> -2.8 | E82: =data!D19-data!Z19 -> -3.1 | F82: 1 | G82: =data!G19-data!Z19 -> -7.1 | H82: 1 | I82: =data!J19-data!Z19 -> -3.1 | J82: 1 | K82: =data!L19-data!Z19 -> -4.1 | L82: 1 | M82: =data!M19-data!Z19 -> -2.1 | N82: 1 | O82: =data!P19-data!Z19 -> -4.1 | P82: 1
A83: =data!$A20 -> 2009-07-09 | B83: 2009-07-08 | C83: 2009-07-12 | D83: =data!U20-data!Z20 -> -0.2 | E83: =data!D20-data!Z20 -> -1.6 | F83: 1 | G83: =data!G20-data!Z20 -> 4.4 | H83: 0 | I83: =data!J20-data!Z20 -> -2.6 | J83: 1 | K83: =data!L20-data!Z20 -> -3.6 | L83: 1 | M83: =data!M20-data!Z20 -> -1.6 | N83: 1 | O83: =data!P20-data!Z20 -> -1.6 | P83: 1
A84: =data!$A21 -> 2009-07-10 | B84: 2009-07-09 | C84: 2009-07-13 | D84: =data!U21-data!Z21 -> 2.9 | E84: =data!D21-data!Z21 -> 2.3 | F84: 1 | G84: =data!G21-data!Z21 -> 3.3 | H84: 1 | I84: =data!J21-data!Z21 -> 2.3 | J84: 1 | K84: =data!L21-data!Z21 -> -2.7 | L84: 0 | M84: =data!M21-data!Z21 -> -0.7 | N84: 0 | O84: =data!P21-data!Z21 -> 0.3 | P84: 1
A85: =data!$A22 -> 2009-07-11 | B85: 2009-07-10 | C85: 2009-07-14 | D85: =data!U22-data!Z22 -> 7.5 | E85: =data!D22-data!Z22 -> 4.9 | F85: 1 | G85: =data!G22-data!Z22 -> 5.9 | H85: 1 | I85: =data!J22-data!Z22 -> 4.9 | J85: 1 | K85: =data!L22-data!Z22 -> 2.9 | L85: 1 | M85: =data!M22-data!Z22 -> 5.9 | N85: 1 | O85: =data!P22-data!Z22 -> 3.9 | P85: 1
A86: =data!$A23 -> 2009-07-12 | B86: 2009-07-11 | C86: 2009-07-15 | D86: =data!U23-data!Z23 -> 6 | E86: =data!D23-data!Z23 -> 3.7 | F86: 1 | G86: =data!G23-data!Z23 -> 3.7 | H86: 1 | I86: =data!J23-data!Z23 -> 3.7 | J86: 1 | K86: =data!L23-data!Z23 -> 1.7 | L86: 1 | M86: =data!M23-data!Z23 -> 4.7 | N86: 1 | O86: =data!P23-data!Z23 -> 4.7 | P86: 1
A87: =data!$A24 -> 2009-07-13 | B87: 2009-07-12 | C87: 2009-07-16 | D87: =data!U24-data!Z24 -> -0.2 | E87: =data!D24-data!Z24 -> 0.6 | F87: 0 | G87: =data!G24-data!Z24 -> 1.6 | H87: 0 | I87: =data!J24-data!Z24 -> 0.6 | J87: 0 | K87: =data!L24-data!Z24 -> -3.4 | L87: 1 | M87: =data!M24-data!Z24 -> -1.4 | N87: 1 | O87: =data!P24-data!Z24 -> 5.6 | P87: 0
A88: =data!$A25 -> 2009-07-14 | B88: 2009-07-13 | C88: 2009-07-17 | D88: =data!U25-data!Z25 -> 1.2 | E88: =data!D25-data!Z25 -> 1.4 | F88: 1 | G88: =data!G25-data!Z25 -> -1.6 | H88: 0 | I88: =data!J25-data!Z25 -> -0.6 | J88: 0 | K88: =data!L25-data!Z25 -> 1.4 | L88: 1 | M88: =data!M25-data!Z25 -> 1.4 | N88: 1 | O88: =data!P25-data!Z25 -> -1.6 | P88: 0
A89: =data!$A26 -> 2009-07-15 | B89: 2009-07-14 | C89: 2009-07-18 | D89: =data!U26-data!Z26 -> -4.1 | E89: =data!D26-data!Z26 -> -4.6 | F89: 1 | G89: =data!G26-data!Z26 -> -7.6 | H89: 1 | I89: =data!J26-data!Z26 -> -4.6 | J89: 1 | K89: =data!L26-data!Z26 -> -7.6 | L89: 1 | M89: =data!M26-data!Z26 -> -4.6 | N89: 1 | O89: =data!P26-data!Z26 -> -0.6 | P89: 1
A90: =data!$A27 -> 2009-07-16 | B90: 2009-07-15 | C90: 2009-07-19 | D90: =data!U27-data!Z27 -> -7 | E90: =data!D27-data!Z27 -> -4.3 | F90: 1 | G90: =data!G27-data!Z27 -> -4.3 | H90: 1 | I90: =data!J27-data!Z27 -> -6.3 | J90: 1 | K90: =data!L27-data!Z27 -> -8.3 | L90: 1 | M90: =data!M27-data!Z27 -> -7.3 | N90: 1 | O90: =data!P27-data!Z27 -> -3.3 | P90: 1
A91: =data!$A28 -> 2009-07-17 | B91: 2009-07-16 | C91: 2009-07-20 | D91: =data!U28-data!Z28 -> -0.6 | E91: =data!D28-data!Z28 -> 0.8 | F91: 0 | G91: =data!G28-data!Z28 -> -1.2 | H91: 1 | I91: =data!J28-data!Z28 -> -0.2 | J91: 1 | K91: =data!L28-data!Z28 -> -2.2 | L91: 1 | M91: =data!M28-data!Z28 -> -1.2 | N91: 1 | O91: =data!P28-data!Z28 -> -1.2 | P91: 1
A92: =data!$A29 -> 2009-07-18 | B92: 2009-07-17 | C92: 2009-07-21 | D92: =data!U29-data!Z29 -> -2.2 | E92: =data!D29-data!Z29 -> -2.8 | F92: 1 | G92: =data!G29-data!Z29 -> 4.2 | H92: 0 | I92: =data!J29-data!Z29 -> -3.8 | J92: 1 | K92: =data!L29-data!Z29 -> -6.8 | L92: 1 | M92: =data!M29-data!Z29 -> -3.8 | N92: 1 | O92: =data!P29-data!Z29 -> -2.8 | P92: 1
A93: =data!$A30 -> 2009-07-19 | B93: 2009-07-18 | C93: 2009-07-22 | D93: =data!U30-data!Z30 -> 4.9 | E93: =data!D30-data!Z30 -> 3.5 | F93: 1 | G93: =data!G30-data!Z30 -> 0.5 | H93: 1 | I93: =data!J30-data!Z30 -> 2.5 | J93: 1 | K93: =data!L30-data!Z30 -> 1.5 | L93: 1 | M93: =data!M30-data!Z30 -> 3.5 | N93: 1 | O93: =data!P30-data!Z30 -> 0.5 | P93: 1
A94: =data!$A31 -> 2009-07-20 | B94: 2009-07-19 | C94: 2009-07-23 | D94: =data!U31-data!Z31 -> 6.3 | E94: =data!D31-data!Z31 -> 7.7 | F94: 1 | G94: =data!G31-data!Z31 -> 3.7 | H94: 1 | I94: =data!J31-data!Z31 -> 5.7 | J94: 1 | K94: =data!L31-data!Z31 -> 3.7 | L94: 1 | M94: =data!M31-data!Z31 -> 4.7 | N94: 1 | O94: =data!P31-data!Z31 -> 7.7 | P94: 1
A95: =data!$A32 -> 2009-07-22 | B95: 2009-07-21 | C95: 2009-07-25 | D95: =data!U32-data!Z32 -> -0.5 | E95: =data!D32-data!Z32 -> 1.4 | F95: 0 | G95: =data!G32-data!Z32 -> -5.6 | H95: 1 | I95: =data!J32-data!Z32 -> 0.4 | J95: 0 | K95: =data!L32-data!Z32 -> -2.6 | L95: 1 | M95: =data!M32-data!Z32 -> -0.6 | N95: 1 | O95: =data!P32-data!Z32 -> 3.4 | P95: 0
A96: =data!$A33 -> 2009-07-23 | B96: 2009-07-22 | C96: 2009-07-26 | D96: =data!U33-data!Z33 -> -9.2 | E96: =data!D33-data!Z33 -> -6.4 | F96: 1 | G96: =data!G33-data!Z33 -> -8.4 | H96: 1 | I96: =data!J33-data!Z33 -> -8.4 | J96: 1 | K96: =data!L33-data!Z33 -> -11.4 | L96: 1 | M96: =data!M33-data!Z33 -> -11.4 | N96: 1 | O96: =data!P33-data!Z33 -> -6.4 | P96: 1
A97: =data!$A34 -> 2009-07-24 | B97: 2009-07-23 | C97: 2009-07-27 | D97: =data!U34-data!Z34 -> -5.8 | E97: =data!D34-data!Z34 -> -4.6 | F97: 1 | G97: =data!G34-data!Z34 -> -5.6 | H97: 1 | I97: =data!J34-data!Z34 -> -4.6 | J97: 1 | K97: =data!L34-data!Z34 -> -5.6 | L97: 1 | M97: =data!M34-data!Z34 -> -5.6 | N97: 1 | O97: =data!P34-data!Z34 -> -6.6 | P97: 1
A98: =data!$A35 -> 2009-07-25 | B98: 2009-07-24 | C98: 2009-07-28 | D98: =data!U35-data!Z35 -> -3.3 | E98: =data!D35-data!Z35 -> -3.7 | F98: 1 | G98: =data!G35-data!Z35 -> -4.7 | H98: 1 | I98: =data!J35-data!Z35 -> -2.7 | J98: 1 | K98: =data!L35-data!Z35 -> -6.7 | L98: 1 | M98: =data!M35-data!Z35 -> -4.7 | N98: 1 | O98: =data!P35-data!Z35 -> -5.7 | P98: 1
A99: =data!$A36 -> 2009-07-28 | B99: 2009-07-27 | C99: 2009-07-31 | D99: =data!U36-data!Z36 -> -0.3 | E99: =data!D36-data!Z36 -> -0.8 | F99: 1 | G99: =data!G36-data!Z36 -> 1.2 | H99: 0 | I99: =data!J36-data!Z36 -> -0.8 | J99: 1 | K99: =data!L36-data!Z36 -> -4.8 | L99: 1 | M99: =data!M36-data!Z36 -> -0.8 | N99: 1 | O99: =data!P36-data!Z36 -> 7.2 | P99: 0
A100: =data!$A37 -> 2009-07-29 | B100: 2009-07-28 | C100: 2009-08-01 | D100: =data!U37-data!Z37 -> -3.1 | E100: =data!D37-data!Z37 -> -2.4 | F100: 1 | G100: =data!G37-data!Z37 -> 0.6 | H100: 0 | I100: =data!J37-data!Z37 -> -2.4 | J100: 1 | K100: =data!L37-data!Z37 -> -3.4 | L100: 1 | M100: =data!M37-data!Z37 -> -4.4 | N100: 1 | O100: =data!P37-data!Z37 -> -3.4 | P100: 1
A101: =data!$A38 -> 2009-07-30 | B101: 2009-07-29 | C101: 2009-08-02 | D101: =data!U38-data!Z38 -> 4.7 | E101: =data!D38-data!Z38 -> 6.3 | F101: 1 | G101: =data!G38-data!Z38 -> 1.3 | H101: 1 | I101: =data!J38-data!Z38 -> 4.3 | J101: 1 | K101: =data!L38-data!Z38 -> 3.3 | L101: 1 | M101: =data!M38-data!Z38 -> 6.3 | N101: 1 | O101: =data!P38-data!Z38 -> 2.3 | P101: 1
A102: =data!$A39 -> 2009-07-31 | B102: 2009-07-30 | C102: 2009-08-03 | D102: =data!U39-data!Z39 -> -1.8 | E102: =data!D39-data!Z39 -> 0 | F102: 0 | G102: =data!G39-data!Z39 -> -8 | H102: 1 | I102: =data!J39-data!Z39 -> -1 | J102: 1 | K102: =data!L39-data!Z39 -> -2 | L102: 1 | M102: =data!M39-data!Z39 -> -2 | N102: 1 | O102: =data!P39-data!Z39 -> 0 | P102: 0
A103: =data!$A40 -> 2009-08-01 | B103: 2009-07-31 | C103: 2009-08-04 | D103: =data!U40-data!Z40 -> -1.5 | E103: =data!D40-data!Z40 -> 0.5 | F103: 0 | G103: =data!G40-data!Z40 -> 0.5 | H103: 0 | I103: =data!J40-data!Z40 -> 0.5 | J103: 0 | K103: =data!L40-data!Z40 -> -3.5 | L103: 1 | M103: =data!M40-data!Z40 -> -2.5 | N103: 1 | O103: =data!P40-data!Z40 -> 1.5 | P103: 0
A104: =data!$A41 -> 2009-08-02 | B104: 2009-08-01 | C104: 2009-08-05 | D104: =data!U41-data!Z41 -> 0.9 | E104: =data!D41-data!Z41 -> 3.7 | F104: 1 | G104: =data!G41-data!Z41 -> 4.7 | H104: 1 | I104: =data!J41-data!Z41 -> 1.7 | J104: 1 | K104: =data!L41-data!Z41 -> 2.7 | L104: 1 | M104: =data!M41-data!Z41 -> 0.7 | N104: 1 | O104: =data!P41-data!Z41 -> 2.7 | P104: 1
A105: =data!$A42 -> 2009-08-03 | B105: =A105-1 -> 2009-08-02 | C105: 2009-08-06 | D105: =data!U42-data!Z42 -> -1.8 | E105: =data!D42-data!Z42 -> -1.4 | F105: =IF(E105=$D105,1,IF(E105*$D105>0,1,0)) -> 1 | G105: =data!G42-data!Z42 -> 1.6 | H105: =IF(G105=$D105,1,IF(G105*$D105>0,1,0)) -> 0 | I105: =data!J42-data!Z42 -> -2.4 | J105: =IF(I105=$D105,1,IF(I105*$D105>0,1,0)) -> 1 | K105: =data!L42-data!Z42 -> -1.4 | L105: =IF(K105=$D105,1,IF(K105*$D105>0,1,0)) -> 1 | M105: =data!M42-data!Z42 -> -4.4 | N105: =IF(M105=$D105,1,IF(M105*$D105>0,1,0)) -> 1 | O105: =data!P42-data!Z42 -> -2.4 | P105: =IF(O105=$D105,1,IF(O105*$D105>0,1,0)) -> 1
A106: =data!$A43 -> 2009-08-04 | B106: 2009-08-03 | C106: 2009-08-07 | D106: =data!U43-data!Z43 -> 1.5 | E106: =data!D43-data!Z43 -> 1.8 | F106: 1 | G106: =data!G43-data!Z43 -> 2.8 | H106: 1 | I106: =data!J43-data!Z43 -> 0.8 | J106: 1 | K106: =data!L43-data!Z43 -> 0.8 | L106: 1 | M106: =data!M43-data!Z43 -> -0.2 | N106: 0 | O106: =data!P43-data!Z43 -> -0.2 | P106: 0
A107: =data!$A44 -> 2009-08-05 | B107: 2009-08-04 | C107: 2009-08-08 | D107: =data!U44-data!Z44 -> 7.6 | E107: =data!D44-data!Z44 -> 7 | F107: 1 | G107: =data!G44-data!Z44 -> 9 | H107: 1 | I107: =data!J44-data!Z44 -> 7 | J107: 1 | K107: =data!L44-data!Z44 -> 7 | L107: 1 | M107: =data!M44-data!Z44 -> 8 | N107: 1 | O107: =data!P44-data!Z44 -> 5 | P107: 1
A108: =data!$A45 -> 2009-08-06 | B108: 2009-08-05 | C108: 2009-08-09 | D108: =data!U45-data!Z45 -> 5.4 | E108: =data!D45-data!Z45 -> 6.8 | F108: 1 | G108: =data!G45-data!Z45 -> 6.8 | H108: 1 | I108: =data!J45-data!Z45 -> 4.8 | J108: 1 | K108: =data!L45-data!Z45 -> 4.8 | L108: 1 | M108: =data!M45-data!Z45 -> 7.8 | N108: 1 | O108: =data!P45-data!Z45 -> 5.8 | P108: 1
A109: =data!$A46 -> 2009-08-07 | B109: 2009-08-06 | C109: 2009-08-10 | D109: =data!U46-data!Z46 -> 3.4 | E109: =data!D46-data!Z46 -> 4.4 | F109: 1 | G109: =data!G46-data!Z46 -> 2.4 | H109: 1 | I109: =data!J46-data!Z46 -> 2.4 | J109: 1 | K109: =data!L46-data!Z46 -> 0.4 | L109: 1 | M109: =data!M46-data!Z46 -> 4.4 | N109: 1 | O109: =data!P46-data!Z46 -> 2.4 | P109: 1
A110: =data!$A47 -> 2009-08-08 | B110: 2009-08-07 | C110: 2009-08-11 | D110: =data!U47-data!Z47 -> 0.2 | E110: =data!D47-data!Z47 -> -1.7 | F110: 0 | G110: =data!G47-data!Z47 -> -3.7 | H110: 0 | I110: =data!J47-data!Z47 -> -2.7 | J110: 0 | K110: =data!L47-data!Z47 -> -3.7 | L110: 0 | M110: =data!M47-data!Z47 -> 2.3 | N110: 1 | O110: =data!P47-data!Z47 -> 0.3 | P110: 1
A111: =data!$A48 -> 2009-08-24 | B111: 2009-08-23 | C111: 2009-08-27 | D111: =data!U48-data!Z48 -> 5.1 | E111: =data!D48-data!Z48 -> 5.3 | F111: 1 | G111: =data!G48-data!Z48 -> 5.3 | H111: 1 | I111: =data!J48-data!Z48 -> 4.3 | J111: 1 | K111: =data!L48-data!Z48 -> 4.3 | L111: 1 | M111: =data!M48-data!Z48 -> 3.3 | N111: 1 | O111: =data!P48-data!Z48 -> 3.3 | P111: 1
A112: =data!$A49 -> 2009-08-25 | B112: 2009-08-24 | C112: 2009-08-28 | D112: =data!U49-data!Z49 -> 4.5 | E112: =data!D49-data!Z49 -> 4.4 | F112: 1 | G112: =data!G49-data!Z49 -> 0.4 | H112: 1 | I112: =data!J49-data!Z49 -> 3.4 | J112: 1 | K112: =data!L49-data!Z49 -> 3.4 | L112: 1 | M112: =data!M49-data!Z49 -> 4.4 | N112: 1 | O112: =data!P49-data!Z49 -> 4.4 | P112: 1
A113: =data!$A50 -> 2009-08-27 | B113: 2009-08-26 | C113: 2009-08-30 | D113: =data!U50-data!Z50 -> -7.2 | E113: =data!D50-data!Z50 -> -3.6 | F113: 1 | G113: =data!G50-data!Z50 -> -2.6 | H113: 1 | I113: =data!J50-data!Z50 -> -4.6 | J113: 1 | K113: =data!L50-data!Z50 -> -5.6 | L113: 1 | M113: =data!M50-data!Z50 -> -4.6 | N113: 1 | O113: =data!P50-data!Z50 -> -2.6 | P113: 1
A114: =data!$A51 -> 2009-08-28 | B114: 2009-08-27 | C114: 2009-08-31 | D114: =data!U51-data!Z51 -> -6.8 | E114: =data!D51-data!Z51 -> -4.8 | F114: 1 | G114: =data!G51-data!Z51 -> -3.8 | H114: 1 | I114: =data!J51-data!Z51 -> -5.8 | J114: 1 | K114: =data!L51-data!Z51 -> -7.8 | L114: 1 | M114: =data!M51-data!Z51 -> -7.8 | N114: 1 | O114: =data!P51-data!Z51 -> -5.8 | P114: 1
A115: =data!$A52 -> 2009-08-30 | B115: 2009-08-29 | C115: 2009-09-02 | D115: =data!U52-data!Z52 -> 3.1 | E115: =data!D52-data!Z52 -> 4.6 | F115: 1 | G115: =data!G52-data!Z52 -> 4.6 | H115: 1 | I115: =data!J52-data!Z52 -> 5.6 | J115: 1 | K115: =data!L52-data!Z52 -> 2.6 | L115: 1 | M115: =data!M52-data!Z52 -> 4.6 | N115: 1 | O115: =data!P52-data!Z52 -> 7.6 | P115: 1
A116: =data!$A53 -> 2009-08-31 | B116: 2009-08-30 | C116: 2009-09-03 | D116: =data!U53-data!Z53 -> 8.2 | E116: =data!D53-data!Z53 -> 7.6 | F116: 1 | G116: =data!G53-data!Z53 -> 8.6 | H116: 1 | I116: =data!J53-data!Z53 -> 7.6 | J116: 1 | K116: =data!L53-data!Z53 -> 5.6 | L116: 1 | M116: =data!M53-data!Z53 -> 9.6 | N116: 1 | O116: =data!P53-data!Z53 -> 9.6 | P116: 1
A117: =data!$A54 -> 2009-09-01 | B117: 2009-08-31 | C117: 2009-09-04 | D117: =data!U54-data!Z54 -> 3.4 | E117: =data!D54-data!Z54 -> 6 | F117: 1 | G117: =data!G54-data!Z54 -> 5 | H117: 1 | I117: =data!J54-data!Z54 -> 6 | J117: 1 | K117: =data!L54-data!Z54 -> 4 | L117: 1 | M117: =data!M54-data!Z54 -> 5 | N117: 1 | O117: =data!P54-data!Z54 -> 4 | P117: 1
A118: =data!$A55 -> 2009-09-03 | B118: 2009-09-02 | C118: 2009-09-06 | D118: =data!U55-data!Z55 -> -5.9 | E118: =data!D55-data!Z55 -> -2.5 | F118: 1 | G118: =data!G55-data!Z55 -> -4.5 | H118: 1 | I118: =data!J55-data!Z55 -> -3.5 | J118: 1 | K118: =data!L55-data!Z55 -> -2.5 | L118: 1 | M118: =data!M55-data!Z55 -> -2.5 | N118: 1 | O118: =data!P55-data!Z55 -> -4.5 | P118: 1
A119: =data!$A56 -> 2009-09-04 | B119: 2009-09-03 | C119: 2009-09-07 | D119: =data!U56-data!Z56 -> -5.6 | E119: =data!D56-data!Z56 -> -4.6 | F119: 1 | G119: =data!G56-data!Z56 -> -1.6 | H119: 1 | I119: =data!J56-data!Z56 -> -4.6 | J119: 1 | K119: =data!L56-data!Z56 -> -4.6 | L119: 1 | M119: =data!M56-data!Z56 -> -2.6 | N119: 1 | O119: =data!P56-data!Z56 -> -3.6 | P119: 1
A120: =data!$A57 -> 2009-09-05 | B120: 2009-09-04 | C120: 2009-09-08 | D120: =data!U57-data!Z57 -> -2.3 | E120: =data!D57-data!Z57 -> 0.6 | F120: 0 | G120: =data!G57-data!Z57 -> 2.6 | H120: 0 | I120: =data!J57-data!Z57 -> -1.4 | J120: 1 | K120: =data!L57-data!Z57 -> -2.4 | L120: 1 | M120: =data!M57-data!Z57 -> 0.6 | N120: 0 | O120: =data!P57-data!Z57 -> 0.6 | P120: 0
A121: =data!$A58 -> 2009-09-06 | B121: 2009-09-05 | C121: 2009-09-09 | D121: =data!U58-data!Z58 -> -1 | E121: =data!D58-data!Z58 -> 1.1 | F121: 0 | G121: =data!G58-data!Z58 -> 4.1 | H121: 0 | I121: =data!J58-data!Z58 -> 1.1 | J121: 0 | K121: =data!L58-data!Z58 -> 0.1 | L121: 0 | M121: =data!M58-data!Z58 -> 2.1 | N121: 0 | O121: =data!P58-data!Z58 -> 2.1 | P121: 0
A122: =data!$A59 -> 2009-09-08 | B122: 2009-09-07 | C122: 2009-09-11 | D122: =data!U59-data!Z59 -> 5.1 | E122: =data!D59-data!Z59 -> 6 | F122: 1 | G122: =data!G59-data!Z59 -> 4 | H122: 1 | I122: =data!J59-data!Z59 -> 4 | J122: 1 | K122: =data!L59-data!Z59 -> 3 | L122: 1 | M122: =data!M59-data!Z59 -> 6 | N122: 1 | O122: =data!P59-data!Z59 -> 6 | P122: 1
A123: =data!$A60 -> 2009-09-09 | B123: 2009-09-08 | C123: =B123+4 -> 2009-09-12 | D123: =data!U60-data!Z60 -> 3.5 | E123: =data!D60-data!Z60 -> 2.9 | F123: 1 | G123: =data!G60-data!Z60 -> 1.9 | H123: 1 | I123: =data!J60-data!Z60 -> 0.9 | J123: 1 | K123: =data!L60-data!Z60 -> 0.9 | L123: 1 | M123: =data!M60-data!Z60 -> 5.9 | N123: 1 | O123: =data!P60-data!Z60 -> 5.9 | P123: 1
A124: =data!$A61 -> 2009-09-10 | B124: 2009-09-09 | C124: 2009-09-13 | D124: =data!U61-data!Z61 -> -0.8 | E124: =data!D61-data!Z61 -> 1.1 | F124: 0 | G124: =data!G61-data!Z61 -> 4.1 | H124: 0 | I124: =data!J61-data!Z61 -> 0.1 | J124: 0 | K124: =data!L61-data!Z61 -> -2.9 | L124: 1 | M124: =data!M61-data!Z61 -> 4.1 | N124: 0 | O124: =data!P61-data!Z61 -> 3.1 | P124: 0
A125: =data!$A62 -> 2009-09-11 | B125: 2009-09-10 | C125: 2009-09-14 | D125: =data!U62-data!Z62 -> -3.8 | E125: =data!D62-data!Z62 -> -3 | F125: 1 | G125: =data!G62-data!Z62 -> -3 | H125: 1 | I125: =data!J62-data!Z62 -> -5 | J125: 1 | K125: =data!L62-data!Z62 -> -5 | L125: 1 | M125: =data!M62-data!Z62 -> -3 | N125: 1 | O125: =data!P62-data!Z62 -> -3 | P125: 1
A126: =data!$A63 -> 2009-09-12 | B126: 2009-09-11 | C126: 2009-09-15 | D126: =data!U63-data!Z63 -> -1.8 | E126: =data!D63-data!Z63 -> -1.1 | F126: 1 | G126: =data!G63-data!Z63 -> -0.1 | H126: 1 | I126: =data!J63-data!Z63 -> -2.1 | J126: 1 | K126: =data!L63-data!Z63 -> -4.1 | L126: 1 | M126: =data!M63-data!Z63 -> -1.1 | N126: 1 | O126: =data!P63-data!Z63 -> -4.1 | P126: 1
A127: =data!$A64 -> 2009-09-13 | B127: 2009-09-12 | C127: 2009-09-16 | D127: =data!U64-data!Z64 -> 2.6 | E127: =data!D64-data!Z64 -> 0.4 | F127: 1 | G127: =data!G64-data!Z64 -> 3.4 | H127: 1 | I127: =data!J64-data!Z64 -> -1.6 | J127: 0 | K127: =data!L64-data!Z64 -> -1.6 | L127: 0 | M127: =data!M64-data!Z64 -> 0.4 | N127: 1 | O127: =data!P64-data!Z64 -> -0.6 | P127: 0
A128: =data!$A65 -> 2009-09-14 | B128: 2009-09-13 | C128: 2009-09-17 | D128: =data!U65-data!Z65 -> 4.5 | E128: =data!D65-data!Z65 -> 4.9 | F128: 1 | G128: =data!G65-data!Z65 -> 2.9 | H128: 1 | I128: =data!J65-data!Z65 -> 3.9 | J128: 1 | K128: =data!L65-data!Z65 -> 4.9 | L128: 1 | M128: =data!M65-data!Z65 -> 4.9 | N128: 1 | O128: =data!P65-data!Z65 -> 5.9 | P128: 1
A129: =data!$A66 -> 2009-09-15 | B129: 2009-09-14 | C129: 2009-09-18 | D129: =data!U66-data!Z66 -> 1.2 | E129: =data!D66-data!Z66 -> -2.2 | F129: 0 | G129: =data!G66-data!Z66 -> -0.2 | H129: 0 | I129: =data!J66-data!Z66 -> -2.2 | J129: 0 | K129: =data!L66-data!Z66 -> -4.2 | L129: 0 | M129: =data!M66-data!Z66 -> -2.2 | N129: 0 | O129: =data!P66-data!Z66 -> -1.2 | P129: 0
A130: =data!$A67 -> 2009-09-16 | B130: 2009-09-15 | C130: 2009-09-19 | D130: =data!U67-data!Z67 -> 2.2 | E130: =data!D67-data!Z67 -> -1.3 | F130: 0 | G130: =data!G67-data!Z67 -> -1.3 | H130: 0 | I130: =data!J67-data!Z67 -> -2.3 | J130: 0 | K130: =data!L67-data!Z67 -> -0.3 | L130: 0 | M130: =data!M67-data!Z67 -> -1.3 | N130: 0 | O130: =data!P67-data!Z67 -> 0.7 | P130: 1
A131: =data!$A68 -> 2009-09-17 | B131: 2009-09-16 | C131: 2009-09-20 | D131: =data!U68-data!Z68 -> 0.8 | E131: =data!D68-data!Z68 -> -2.2 | F131: 0 | G131: =data!G68-data!Z68 -> -4.2 | H131: 0 | I131: =data!J68-data!Z68 -> -3.2 | J131: 0 | K131: =data!L68-data!Z68 -> -4.2 | L131: 0 | M131: =data!M68-data!Z68 -> -5.2 | N131: 0 | O131: =data!P68-data!Z68 -> -2.2 | P131: 0
A132: =data!$A69 -> 2009-09-18 | B132: 2009-09-17 | C132: 2009-09-21 | D132: =data!U69-data!Z69 -> 2.3 | E132: =data!D69-data!Z69 -> 0.4 | F132: 1 | G132: =data!G69-data!Z69 -> -1.6 | H132: 0 | I132: =data!J69-data!Z69 -> -1.6 | J132: 0 | K132: =data!L69-data!Z69 -> -0.6 | L132: 0 | M132: =data!M69-data!Z69 -> 0.4 | N132: 1 | O132: =data!P69-data!Z69 -> 0.4 | P132: 1
E133: minimum hőmérséklet első 50 nap(konkurencia) | F133: =SUM(F73:F122)/50 -> 0.8 | H133: =SUM(H73:H122)/50 -> 0.78 | J133: =SUM(J73:J122)/50 -> 0.88 | L133: =SUM(L73:L122)/50 -> 0.92 | N133: =SUM(N73:N122)/50 -> 0.9 | P133: =SUM(P73:P122)/50 -> 0.8
E134: minimum hőmérséklet első 50 nap(saját) | L134: =minar1!Z207 -> 0.82
E135: minimum hőmérséklet utolsó 10 nap(konkurencia) | F135: =SUM(F123:F132)/10 -> 0.6 | H135: =SUM(H123:H132)/10 -> 0.5 | J135: =SUM(J123:J132)/10 -> 0.4 | L135: =SUM(L123:L132)/10 -> 0.5 | N135: =SUM(N123:N132)/10 -> 0.6 | P135: =SUM(P123:P132)/10 -> 0.6
E136: minimum hőmérséklet utolsó 10 nap(saját) | L136: =minar1!Z268 -> 0.8
E137: minimum hőmérséklet összes(konkurencia) | F137: =SUM(F73:F132)/60 -> 0.7666666667 | H137: =SUM(H73:H132)/60 -> 0.7333333333 | J137: =SUM(J73:J132)/60 -> 0.8 | L137: =SUM(L73:L132)/60 -> 0.85 | N137: =SUM(N73:N132)/60 -> 0.85 | P137: =SUM(P73:P132)/60 -> 0.7666666667
E138: minimum hőmérséklet összes(saját) | L138: =minar1!Z269 -> 0.8166666667
E139: csapadékmennyiség találati arányai:
A141: prognózis rögzítésének kelte | B141: prognózis keletkezésének kelte | C141: tények kelte | D141: tények: csapadékmennyiség | E141: weatheronline | F141: =SUM(F142:F201)/60 -> 0.7333333333 | G141: kurier | H141: =SUM(H142:H201)/60 -> 0.6166666667 | I141: stern | J141: =SUM(J142:J201)/60 -> 0.5833333333 | K141: wetter.excite | L141: =SUM(L142:L201)/60 -> 0.6666666667
A142: =data!A10 -> 2009-06-29 | B142: =data!B10 -> 2009-06-28 | C142: =B142+4 -> 2009-07-02 | D142: =data!W10 -> 1 | E142: =IF(data!E10>0.5,1,0) -> 0 | F142: =IF(D142=E142,1,0) -> 0 | G142: =IF(data!H10>0.5,1,0) -> 0 | H142: =IF(D142=G142,1,0) -> 0 | I142: =IF(data!O10>0.5,1,0) -> 0 | J142: =IF(D142=I142,1,0) -> 0 | K142: =IF(data!R10>0.5,1,0) -> 0 | L142: =IF(D142=K142,1,0) -> 0
A143: =data!A11 -> 2009-06-30 | B143: =data!B11 -> 2009-06-29 | C143: =B143+4 -> 2009-07-03 | D143: =data!W11 -> 0 | E143: =IF(data!E11>0.5,1,0) -> 0 | F143: =IF(D143=E143,1,0) -> 1 | G143: =IF(data!H11>0.5,1,0) -> 0 | H143: =IF(D143=G143,1,0) -> 1 | I143: =IF(data!O11>0.5,1,0) -> 0 | J143: =IF(D143=I143,1,0) -> 1 | K143: =IF(data!R11>0.5,1,0) -> 0 | L143: =IF(D143=K143,1,0) -> 1
A144: =data!A12 -> 2009-07-01 | B144: =data!B12 -> 2009-06-30 | C144: 2009-07-04 | D144: =data!W12 -> 0 | E144: =IF(data!E12>0.5,1,0) -> 0 | F144: 1 | G144: =IF(data!H12>0.5,1,0) -> 0 | H144: 1 | I144: =IF(data!O12>0.5,1,0) -> 0 | J144: 1 | K144: =IF(data!R12>0.5,1,0) -> 0 | L144: 1
A145: =data!A13 -> 2009-07-02 | B145: =data!B13 -> 2009-07-01 | C145: 2009-07-05 | D145: =data!W13 -> 0 | E145: =IF(data!E13>0.5,1,0) -> 1 | F145: 0 | G145: =IF(data!H13>0.5,1,0) -> 0 | H145: 1 | I145: =IF(data!O13>0.5,1,0) -> 0 | J145: 1 | K145: =IF(data!R13>0.5,1,0) -> 1 | L145: 0
A146: =data!A14 -> 2009-07-03 | B146: =data!B14 -> 2009-07-02 | C146: 2009-07-06 | D146: =data!W14 -> 1 | E146: =IF(data!E14>0.5,1,0) -> 1 | F146: 1 | G146: =IF(data!H14>0.5,1,0) -> 0 | H146: 0 | I146: =IF(data!O14>0.5,1,0) -> 0 | J146: 0 | K146: =IF(data!R14>0.5,1,0) -> 1 | L146: 1
A147: =data!A15 -> 2009-07-04 | B147: =data!B15 -> 2009-07-03 | C147: 2009-07-07 | D147: =data!W15 -> 0 | E147: =IF(data!E15>0.5,1,0) -> 0 | F147: 1 | G147: =IF(data!H15>0.5,1,0) -> 0 | H147: 1 | I147: =IF(data!O15>0.5,1,0) -> 0 | J147: 1 | K147: =IF(data!R15>0.5,1,0) -> 1 | L147: 0
A148: =data!A16 -> 2009-07-05 | B148: =data!B16 -> 2009-07-04 | C148: 2009-07-08 | D148: =data!W16 -> 1 | E148: =IF(data!E16>0.5,1,0) -> 1 | F148: 1 | G148: =IF(data!H16>0.5,1,0) -> 0 | H148: 0 | I148: =IF(data!O16>0.5,1,0) -> 0 | J148: 0 | K148: =IF(data!R16>0.5,1,0) -> 1 | L148: 1
A149: =data!A17 -> 2009-07-06 | B149: =data!B17 -> 2009-07-05 | C149: 2009-07-09 | D149: =data!W17 -> 1 | E149: =IF(data!E17>0.5,1,0) -> 1 | F149: 1 | G149: =IF(data!H17>0.5,1,0) -> 0 | H149: 0 | I149: =IF(data!O17>0.5,1,0) -> 0 | J149: 0 | K149: =IF(data!R17>0.5,1,0) -> 1 | L149: 1
A150: =data!A18 -> 2009-07-07 | B150: =data!B18 -> 2009-07-06 | C150: 2009-07-10 | D150: =data!W18 -> 1 | E150: =IF(data!E18>0.5,1,0) -> 1 | F150: 1 | G150: =IF(data!H18>0.5,1,0) -> 0 | H150: 0 | I150: =IF(data!O18>0.5,1,0) -> 0 | J150: 0 | K150: =IF(data!R18>0.5,1,0) -> 1 | L150: 1
A151: =data!A19 -> 2009-07-08 | B151: =data!B19 -> 2009-07-07 | C151: 2009-07-11 | D151: =data!W19 -> 1 | E151: =IF(data!E19>0.5,1,0) -> 0 | F151: 0 | G151: =IF(data!H19>0.5,1,0) -> 0 | H151: 0 | I151: =IF(data!O19>0.5,1,0) -> 0 | J151: 0 | K151: =IF(data!R19>0.5,1,0) -> 1 | L151: 1
A152: =data!A20 -> 2009-07-09 | B152: =data!B20 -> 2009-07-08 | C152: 2009-07-12 | D152: =data!W20 -> 1 | E152: =IF(data!E20>0.5,1,0) -> 1 | F152: 1 | G152: =IF(data!H20>0.5,1,0) -> 0 | H152: 0 | I152: =IF(data!O20>0.5,1,0) -> 0 | J152: 0 | K152: =IF(data!R20>0.5,1,0) -> 0 | L152: 0
A153: =data!A21 -> 2009-07-10 | B153: =data!B21 -> 2009-07-09 | C153: 2009-07-13 | D153: =data!W21 -> 1 | E153: =IF(data!E21>0.5,1,0) -> 0 | F153: 0 | G153: =IF(data!H21>0.5,1,0) -> 0 | H153: 0 | I153: =IF(data!O21>0.5,1,0) -> 0 | J153: 0 | K153: =IF(data!R21>0.5,1,0) -> 0 | L153: 0
A154: =data!A22 -> 2009-07-11 | B154: =data!B22 -> 2009-07-10 | C154: 2009-07-14 | D154: =data!W22 -> 1 | E154: =IF(data!E22>0.5,1,0) -> 1 | F154: 1 | G154: =IF(data!H22>0.5,1,0) -> 1 | H154: 1 | I154: =IF(data!O22>0.5,1,0) -> 1 | J154: 1 | K154: =IF(data!R22>0.5,1,0) -> 0 | L154: 0
A155: =data!A23 -> 2009-07-12 | B155: =data!B23 -> 2009-07-11 | C155: 2009-07-15 | D155: =data!W23 -> 0 | E155: =IF(data!E23>0.5,1,0) -> 1 | F155: 0 | G155: =IF(data!H23>0.5,1,0) -> 0 | H155: 1 | I155: =IF(data!O23>0.5,1,0) -> 1 | J155: 0 | K155: =IF(data!R23>0.5,1,0) -> 1 | L155: 0
A156: =data!A24 -> 2009-07-13 | B156: =data!B24 -> 2009-07-12 | C156: 2009-07-16 | D156: =data!W24 -> 0 | E156: =IF(data!E24>0.5,1,0) -> 0 | F156: =IF(D156=E156,1,0) -> 1 | G156: =IF(data!H24>0.5,1,0) -> 0 | H156: 1 | I156: =IF(data!O24>0.5,1,0) -> 0 | J156: 1 | K156: =IF(data!R24>0.5,1,0) -> 1 | L156: 0
A157: =data!A25 -> 2009-07-14 | B157: =data!B25 -> 2009-07-13 | C157: 2009-07-17 | D157: =data!W25 -> 1 | E157: =IF(data!E25>0.5,1,0) -> 1 | F157: =IF(D157=E157,1,0) -> 1 | G157: =IF(data!H25>0.5,1,0) -> 0 | H157: 0 | I157: =IF(data!O25>0.5,1,0) -> 0 | J157: 0 | K157: =IF(data!R25>0.5,1,0) -> 0 | L157: 0
A158: =data!A26 -> 2009-07-15 | B158: =data!B26 -> 2009-07-14 | C158: 2009-07-18 | D158: =data!W26 -> 1 | E158: =IF(data!E26>0.5,1,0) -> 1 | F158: 1 | G158: =IF(data!H26>0.5,1,0) -> 0 | H158: 0 | I158: =IF(data!O26>0.5,1,0) -> 0 | J158: 0 | K158: =IF(data!R26>0.5,1,0) -> 1 | L158: 1
A159: =data!A27 -> 2009-07-16 | B159: =data!B27 -> 2009-07-15 | C159: 2009-07-19 | D159: =data!W27 -> 1 | E159: =IF(data!E27>0.5,1,0) -> 1 | F159: 1 | G159: =IF(data!H27>0.5,1,0) -> 0 | H159: 0 | I159: =IF(data!O27>0.5,1,0) -> 0 | J159: 0 | K159: =IF(data!R27>0.5,1,0) -> 1 | L159: 1
A160: =data!A28 -> 2009-07-17 | B160: =data!B28 -> 2009-07-16 | C160: 2009-07-20 | D160: =data!W28 -> 0 | E160: =IF(data!E28>0.5,1,0) -> 1 | F160: 0 | G160: =IF(data!H28>0.5,1,0) -> 0 | H160: 1 | I160: =IF(data!O28>0.5,1,0) -> 0 | J160: 1 | K160: =IF(data!R28>0.5,1,0) -> 1 | L160: 0
A161: =data!A29 -> 2009-07-18 | B161: =data!B29 -> 2009-07-17 | C161: 2009-07-21 | D161: =data!W29 -> 1 | E161: =IF(data!E29>0.5,1,0) -> 0 | F161: 0 | G161: =IF(data!H29>0.5,1,0) -> 0 | H161: 0 | I161: =IF(data!O29>0.5,1,0) -> 0 | J161: 0 | K161: =IF(data!R29>0.5,1,0) -> 0 | L161: 0
A162: =data!A30 -> 2009-07-19 | B162: =data!B30 -> 2009-07-18 | C162: 2009-07-22 | D162: =data!W30 -> 1 | E162: =IF(data!E30>0.5,1,0) -> 1 | F162: 1 | G162: =IF(data!H30>0.5,1,0) -> 0 | H162: 0 | I162: =IF(data!O30>0.5,1,0) -> 0 | J162: 0 | K162: =IF(data!R30>0.5,1,0) -> 1 | L162: 1
A163: =data!A31 -> 2009-07-20 | B163: =data!B31 -> 2009-07-19 | C163: 2009-07-23 | D163: =data!W31 -> 1 | E163: =IF(data!E31>0.5,1,0) -> 1 | F163: 1 | G163: =IF(data!H31>0.5,1,0) -> 0 | H163: 0 | I163: =IF(data!O31>0.5,1,0) -> 0 | J163: 0 | K163: =IF(data!R31>0.5,1,0) -> 1 | L163: 1
A164: =data!A32 -> 2009-07-22 | B164: =data!B32 -> 2009-07-21 | C164: 2009-07-25 | D164: =data!W32 -> 1 | E164: =IF(data!E32>0.5,1,0) -> 1 | F164: 1 | G164: =IF(data!H32>0.5,1,0) -> 0 | H164: 0 | I164: =IF(data!O32>0.5,1,0) -> 0 | J164: 0 | K164: =IF(data!R32>0.5,1,0) -> 0 | L164: 0
A165: =data!A33 -> 2009-07-23 | B165: =data!B33 -> 2009-07-22 | C165: 2009-07-26 | D165: =data!W33 -> 0 | E165: =IF(data!E33>0.5,1,0) -> 0 | F165: 1 | G165: =IF(data!H33>0.5,1,0) -> 0 | H165: 1 | I165: =IF(data!O33>0.5,1,0) -> 0 | J165: 1 | K165: =IF(data!R33>0.5,1,0) -> 0 | L165: 1
A166: =data!A34 -> 2009-07-24 | B166: =data!B34 -> 2009-07-23 | C166: 2009-07-27 | D166: =data!W34 -> 1 | E166: =IF(data!E34>0.5,1,0) -> 0 | F166: 0 | G166: =IF(data!H34>0.5,1,0) -> 0 | H166: 0 | I166: =IF(data!O34>0.5,1,0) -> 0 | J166: 0 | K166: =IF(data!R34>0.5,1,0) -> 0 | L166: 0
A167: =data!A35 -> 2009-07-25 | B167: =data!B35 -> 2009-07-24 | C167: 2009-07-28 | D167: =data!W35 -> 0 | E167: =IF(data!E35>0.5,1,0) -> 0 | F167: 1 | G167: =IF(data!H35>0.5,1,0) -> 0 | H167: 1 | I167: =IF(data!O35>0.5,1,0) -> 0 | J167: 1 | K167: =IF(data!R35>0.5,1,0) -> 0 | L167: 1
A168: =data!A36 -> 2009-07-28 | B168: =data!B36 -> 2009-07-27 | C168: 2009-07-31 | D168: =data!W36 -> 0 | E168: =IF(data!E36>0.5,1,0) -> 0 | F168: 1 | G168: =IF(data!H36>0.5,1,0) -> 0 | H168: 1 | I168: =IF(data!O36>0.5,1,0) -> 0 | J168: 1 | K168: =IF(data!R36>0.5,1,0) -> 0 | L168: 1
A169: =data!A37 -> 2009-07-29 | B169: =data!B37 -> 2009-07-28 | C169: 2009-08-01 | D169: =data!W37 -> 0 | E169: =IF(data!E37>0.5,1,0) -> 0 | F169: 1 | G169: =IF(data!H37>0.5,1,0) -> 0 | H169: 1 | I169: =IF(data!O37>0.5,1,0) -> 0 | J169: 1 | K169: =IF(data!R37>0.5,1,0) -> 0 | L169: 1
A170: =data!A38 -> 2009-07-30 | B170: =data!B38 -> 2009-07-29 | C170: 2009-08-02 | D170: =data!W38 -> 1 | E170: =IF(data!E38>0.5,1,0) -> 1 | F170: 1 | G170: =IF(data!H38>0.5,1,0) -> 0 | H170: 0 | I170: =IF(data!O38>0.5,1,0) -> 0 | J170: 0 | K170: =IF(data!R38>0.5,1,0) -> 0 | L170: 0
A171: =data!A39 -> 2009-07-31 | B171: =data!B39 -> 2009-07-30 | C171: 2009-08-03 | D171: =data!W39 -> 0 | E171: =IF(data!E39>0.5,1,0) -> 1 | F171: 0 | G171: =IF(data!H39>0.5,1,0) -> 0 | H171: 1 | I171: =IF(data!O39>0.5,1,0) -> 0 | J171: 1 | K171: =IF(data!R39>0.5,1,0) -> 1 | L171: 0
A172: =data!A40 -> 2009-08-01 | B172: =data!B40 -> 2009-07-31 | C172: 2009-08-04 | D172: =data!W40 -> 0 | E172: =IF(data!E40>0.5,1,0) -> 0 | F172: 1 | G172: =IF(data!H40>0.5,1,0) -> 0 | H172: 1 | I172: =IF(data!O40>0.5,1,0) -> 0 | J172: 1 | K172: =IF(data!R40>0.5,1,0) -> 1 | L172: 0
A173: =data!A41 -> 2009-08-02 | B173: =data!B41 -> 2009-08-01 | C173: 2009-08-05 | D173: =data!W41 -> 0 | E173: =IF(data!E41>0.5,1,0) -> 0 | F173: 1 | G173: =IF(data!H41>0.5,1,0) -> 0 | H173: 1 | I173: =IF(data!O41>0.5,1,0) -> 0 | J173: 1 | K173: =IF(data!R41>0.5,1,0) -> 0 | L173: 1
A174: =data!A42 -> 2009-08-03 | B174: =data!B42 -> 2009-08-02 | C174: 2009-08-06 | D174: =data!W42 -> 0 | E174: =IF(data!E42>0.5,1,0) -> 0 | F174: 1 | G174: =IF(data!H42>0.5,1,0) -> 0 | H174: 1 | I174: =IF(data!O42>0.5,1,0) -> 0 | J174: 1 | K174: =IF(data!R42>0.5,1,0) -> 0 | L174: 1
A175: =data!A43 -> 2009-08-04 | B175: =data!B43 -> 2009-08-03 | C175: 2009-08-07 | D175: =data!W43 -> 0 | E175: =IF(data!E43>0.5,1,0) -> 0 | F175: 1 | G175: =IF(data!H43>0.5,1,0) -> 0 | H175: 1 | I175: =IF(data!O43>0.5,1,0) -> 0 | J175: 1 | K175: =IF(data!R43>0.5,1,0) -> 0 | L175: 1
A176: =data!A44 -> 2009-08-05 | B176: =data!B44 -> 2009-08-04 | C176: 2009-08-08 | D176: =data!W44 -> 0 | E176: =IF(data!E44>0.5,1,0) -> 1 | F176: 0 | G176: =IF(data!H44>0.5,1,0) -> 0 | H176: 1 | I176: =IF(data!O44>0.5,1,0) -> 0 | J176: 1 | K176: =IF(data!R44>0.5,1,0) -> 0 | L176: 1
A177: =data!A45 -> 2009-08-06 | B177: =data!B45 -> 2009-08-05 | C177: 2009-08-09 | D177: =data!W45 -> 0 | E177: =IF(data!E45>0.5,1,0) -> 1 | F177: 0 | G177: =IF(data!H45>0.5,1,0) -> 0 | H177: 1 | I177: =IF(data!O45>0.5,1,0) -> 0 | J177: 1 | K177: =IF(data!R45>0.5,1,0) -> 1 | L177: 0
A178: =data!A46 -> 2009-08-07 | B178: =data!B46 -> 2009-08-06 | C178: 2009-08-10 | D178: =data!W46 -> 1 | E178: =IF(data!E46>0.5,1,0) -> 1 | F178: 1 | G178: =IF(data!H46>0.5,1,0) -> 0 | H178: 0 | I178: =IF(data!O46>0.5,1,0) -> 0 | J178: 0 | K178: =IF(data!R46>0.5,1,0) -> 0 | L178: 0
A179: =data!A47 -> 2009-08-08 | B179: =data!B47 -> 2009-08-07 | C179: 2009-08-11 | D179: =data!W47 -> 1 | E179: =IF(data!E47>0.5,1,0) -> 0 | F179: 0 | G179: =IF(data!H47>0.5,1,0) -> 0 | H179: 0 | I179: =IF(data!O47>0.5,1,0) -> 0 | J179: 0 | K179: =IF(data!R47>0.5,1,0) -> 1 | L179: 1
A180: =data!A48 -> 2009-08-24 | B180: =data!B48 -> 2009-08-23 | C180: 2009-08-27 | D180: =data!W48 -> 0 | E180: =IF(data!E48>0.5,1,0) -> 0 | F180: 1 | G180: =IF(data!H48>0.5,1,0) -> 0 | H180: 1 | I180: =IF(data!O48>0.5,1,0) -> 0 | J180: 1 | K180: =IF(data!R48>0.5,1,0) -> 0 | L180: 1
A181: =data!A49 -> 2009-08-25 | B181: =data!B49 -> 2009-08-24 | C181: 2009-08-28 | D181: =data!W49 -> 1 | E181: =IF(data!E49>0.5,1,0) -> 0 | F181: 0 | G181: =IF(data!H49>0.5,1,0) -> 0 | H181: 0 | I181: =IF(data!O49>0.5,1,0) -> 0 | J181: 0 | K181: =IF(data!R49>0.5,1,0) -> 1 | L181: 1
A182: =data!A50 -> 2009-08-27 | B182: =data!B50 -> 2009-08-26 | C182: 2009-08-30 | D182: =data!W50 -> 0 | E182: =IF(data!E50>0.5,1,0) -> 0 | F182: 1 | G182: =IF(data!H50>0.5,1,0) -> 0 | H182: 1 | I182: =IF(data!O50>0.5,1,0) -> 0 | J182: 1 | K182: =IF(data!R50>0.5,1,0) -> 0 | L182: 1
A183: =data!A51 -> 2009-08-28 | B183: =data!B51 -> 2009-08-27 | C183: 2009-08-31 | D183: =data!W51 -> 0 | E183: =IF(data!E51>0.5,1,0) -> 0 | F183: 1 | G183: =IF(data!H51>0.5,1,0) -> 0 | H183: 1 | I183: =IF(data!O51>0.5,1,0) -> 0 | J183: 1 | K183: =IF(data!R51>0.5,1,0) -> 0 | L183: 1
A184: =data!A52 -> 2009-08-30 | B184: =data!B52 -> 2009-08-29 | C184: 2009-09-02 | D184: =data!W52 -> 0 | E184: =IF(data!E52>0.5,1,0) -> 0 | F184: 1 | G184: =IF(data!H52>0.5,1,0) -> 0 | H184: 1 | I184: =IF(data!O52>0.5,1,0) -> 0 | J184: 1 | K184: =IF(data!R52>0.5,1,0) -> 1 | L184: 0
A185: =data!A53 -> 2009-08-31 | B185: =data!B53 -> 2009-08-30 | C185: 2009-09-03 | D185: =data!W53 -> 1 | E185: =IF(data!E53>0.5,1,0) -> 1 | F185: 1 | G185: =IF(data!H53>0.5,1,0) -> 0 | H185: 0 | I185: =IF(data!O53>0.5,1,0) -> 0 | J185: 0 | K185: =IF(data!R53>0.5,1,0) -> 1 | L185: 1
A186: =data!A54 -> 2009-09-01 | B186: =data!B54 -> 2009-08-31 | C186: 2009-09-04 | D186: =data!W54 -> 1 | E186: =IF(data!E54>0.5,1,0) -> 1 | F186: 1 | G186: =IF(data!H54>0.5,1,0) -> 0 | H186: 0 | I186: =IF(data!O54>0.5,1,0) -> 0 | J186: 0 | K186: =IF(data!R54>0.5,1,0) -> 1 | L186: 1
A187: =data!A55 -> 2009-09-03 | B187: =data!B55 -> 2009-09-02 | C187: 2009-09-06 | D187: =data!W55 -> 0 | E187: =IF(data!E55>0.5,1,0) -> 0 | F187: 1 | G187: =IF(data!H55>0.5,1,0) -> 0 | H187: 1 | I187: =IF(data!O55>0.5,1,0) -> 0 | J187: 1 | K187: =IF(data!R55>0.5,1,0) -> 0 | L187: 1
A188: =data!A56 -> 2009-09-04 | B188: =data!B56 -> 2009-09-03 | C188: 2009-09-07 | D188: =data!W56 -> 0 | E188: =IF(data!E56>0.5,1,0) -> 0 | F188: 1 | G188: =IF(data!H56>0.5,1,0) -> 0 | H188: 1 | I188: =IF(data!O56>0.5,1,0) -> 0 | J188: 1 | K188: =IF(data!R56>0.5,1,0) -> 0 | L188: 1
A189: =data!A57 -> 2009-09-05 | B189: =data!B57 -> 2009-09-04 | C189: 2009-09-08 | D189: =data!W57 -> 0 | E189: =IF(data!E57>0.5,1,0) -> 0 | F189: 1 | G189: =IF(data!H57>0.5,1,0) -> 0 | H189: 1 | I189: =IF(data!O57>0.5,1,0) -> 0 | J189: 1 | K189: =IF(data!R57>0.5,1,0) -> 0 | L189: 1
A190: =data!A58 -> 2009-09-06 | B190: =data!B58 -> 2009-09-05 | C190: 2009-09-09 | D190: =data!W58 -> 0 | E190: =IF(data!E58>0.5,1,0) -> 0 | F190: 1 | G190: =IF(data!H58>0.5,1,0) -> 0 | H190: 1 | I190: =IF(data!O58>0.5,1,0) -> 0 | J190: 1 | K190: =IF(data!R58>0.5,1,0) -> 0 | L190: 1
A191: =data!A59 -> 2009-09-08 | B191: =data!B59 -> 2009-09-07 | C191: 2009-09-11 | D191: =data!W59 -> 0 | E191: =IF(data!E59>0.5,1,0) -> 0 | F191: 1 | G191: =IF(data!H59>0.5,1,0) -> 0 | H191: 1 | I191: =IF(data!O59>0.5,1,0) -> 0 | J191: 1 | K191: =IF(data!R59>0.5,1,0) -> 0 | L191: 1
A192: =data!A60 -> 2009-09-09 | B192: =data!B60 -> 2009-09-08 | C192: =B192+4 -> 2009-09-12 | D192: =data!W60 -> 0 | E192: =IF(data!E60>0.5,1,0) -> 0 | F192: 1 | G192: =IF(data!H60>0.5,1,0) -> 0 | H192: 1 | I192: =IF(data!O60>0.5,1,0) -> 0 | J192: 1 | K192: =IF(data!R60>0.5,1,0) -> 0 | L192: 1
A193: =data!A61 -> 2009-09-10 | B193: =data!B61 -> 2009-09-09 | C193: 2009-09-13 | D193: =data!W61 -> 1 | E193: =IF(data!E61>0.5,1,0) -> 0 | F193: 0 | G193: =IF(data!H61>0.5,1,0) -> 1 | H193: 1 | I193: =IF(data!O61>0.5,1,0) -> 0 | J193: 0 | K193: =IF(data!R61>0.5,1,0) -> 0 | L193: 0
A194: =data!A62 -> 2009-09-11 | B194: =data!B62 -> 2009-09-10 | C194: 2009-09-14 | D194: =data!W62 -> 1 | E194: =IF(data!E62>0.5,1,0) -> 0 | F194: 0 | G194: =IF(data!H62>0.5,1,0) -> 0 | H194: 0 | I194: =IF(data!O62>0.5,1,0) -> 1 | J194: 1 | K194: =IF(data!R62>0.5,1,0) -> 1 | L194: 1
A195: =data!A63 -> 2009-09-12 | B195: =data!B63 -> 2009-09-11 | C195: 2009-09-15 | D195: =data!W63 -> 1 | E195: =IF(data!E63>0.5,1,0) -> 1 | F195: 1 | G195: =IF(data!H63>0.5,1,0) -> 1 | H195: 1 | I195: =IF(data!O63>0.5,1,0) -> 0 | J195: 0 | K195: =IF(data!R63>0.5,1,0) -> 1 | L195: 1
A196: =data!A64 -> 2009-09-13 | B196: =data!B64 -> 2009-09-12 | C196: 2009-09-16 | D196: =data!W64 -> 0 | E196: =IF(data!E64>0.5,1,0) -> 0 | F196: 1 | G196: =IF(data!H64>0.5,1,0) -> 0 | H196: 1 | I196: =IF(data!O64>0.5,1,0) -> 0 | J196: 1 | K196: =IF(data!R64>0.5,1,0) -> 0 | L196: 1
A197: =data!A65 -> 2009-09-14 | B197: =data!B65 -> 2009-09-13 | C197: 2009-09-17 | D197: =data!W65 -> 0 | E197: =IF(data!E65>0.5,1,0) -> 0 | F197: 1 | G197: =IF(data!H65>0.5,1,0) -> 0 | H197: 1 | I197: =IF(data!O65>0.5,1,0) -> 0 | J197: 1 | K197: =IF(data!R65>0.5,1,0) -> 0 | L197: 1
A198: =data!A66 -> 2009-09-15 | B198: =data!B66 -> 2009-09-14 | C198: 2009-09-18 | D198: =data!W66 -> 0 | E198: =IF(data!E66>0.5,1,0) -> 0 | F198: 1 | G198: =IF(data!H66>0.5,1,0) -> 0 | H198: 1 | I198: =IF(data!O66>0.5,1,0) -> 0 | J198: 1 | K198: =IF(data!R66>0.5,1,0) -> 0 | L198: 1
A199: =data!A67 -> 2009-09-16 | B199: =data!B67 -> 2009-09-15 | C199: 2009-09-19 | D199: =data!W67 -> 0 | E199: =IF(data!E67>0.5,1,0) -> 0 | F199: 1 | G199: =IF(data!H67>0.5,1,0) -> 0 | H199: 1 | I199: =IF(data!O67>0.5,1,0) -> 0 | J199: 1 | K199: =IF(data!R67>0.5,1,0) -> 0 | L199: 1
A200: =data!A68 -> 2009-09-17 | B200: =data!B68 -> 2009-09-16 | C200: 2009-09-20 | D200: =data!W68 -> 0 | E200: =IF(data!E68>0.5,1,0) -> 0 | F200: 1 | G200: =IF(data!H68>0.5,1,0) -> 0 | H200: 1 | I200: =IF(data!O68>0.5,1,0) -> 0 | J200: 1 | K200: =IF(data!R68>0.5,1,0) -> 0 | L200: 1
A201: =data!A69 -> 2009-09-18 | B201: =data!B69 -> 2009-09-17 | C201: 2009-09-21 | D201: =data!W69 -> 0 | E201: =IF(data!E69>0.5,1,0) -> 1 | F201: 0 | G201: =IF(data!H69>0.5,1,0) -> 0 | H201: 1 | I201: =IF(data!O69>0.5,1,0) -> 0 | J201: 1 | K201: =IF(data!R69>0.5,1,0) -> 0 | L201: 1
E202: csapadék első 50 nap(konkurencia) | F202: =SUM(F142:F191)/50 -> 0.74 | H202: =SUM(H142:H191)/50 -> 0.56 | J202: =SUM(J142:J191)/50 -> 0.54 | L202: =SUM(L142:L191)/50 -> 0.62
E203: csapadék első 50 nap(saját) | F203: =csapaa!Z207 -> 0.76
... 4 more rows

Sheet csapaa
A1: adatgyűjtés | B1: progn. | C1: weatheronline | D1: weatheronline | E1: weatheronline | F1: kurier | G1: kurier | H1: kurier | I1: wetter.rtl | J1: wetter.rtl | K1: raiffeisen | L1: raiffeisen | M1: stern | N1: stern | O1: stern | P1: wetter.exite | Q1: wetter.exite | R1: wetter.exite | S1: progn. | T1: tények | U1: tények
A2: kelte | B2: kelte | C2: T-max | D2: T-min | E2: Rain-risk | F2: max | G2: min | H2: niederschlag | I2: max | J2: min | K2: max | L2: min | M2: min | N2: max | O2: niederschlag | P2: min | Q2: max | R2: niederschlag | S2: kelte | T2: csapadék | U2: kelt
A3: 2009-06-29 | B3: 2009-06-28 | C3: =data!C10 -> 29 | D3: =data!D10 -> 18 | E3: =data!E10 -> 0.35 | F3: =data!F10 -> 31 | G3: =data!G10 -> 16 | H3: =data!H10 -> 0.05 | I3: =data!I10 -> 29 | J3: =data!J10 -> 16 | K3: =data!K10 -> 29 | L3: =data!L10 -> 15 | M3: =data!M10 -> 16 | N3: =data!N10 -> 31 | O3: =data!O10 -> 0.05 | P3: =data!P10 -> 17 | Q3: =data!Q10 -> 27 | R3: =data!R10 -> 0.1 | S3: 2009-06-28 | T3: =data!V10 -> 1.2 | U3: =[1]data!Y10 -> 2009-07-02
A4: 2009-06-30 | B4: 2009-06-29 | C4: =data!C11 -> 30 | D4: =data!D11 -> 19 | E4: =data!E11 -> 0.3 | F4: =data!F11 -> 31 | G4: =data!G11 -> 15 | H4: =data!H11 -> 0.05 | I4: =data!I11 -> 28 | J4: =data!J11 -> 16 | K4: =data!K11 -> 29 | L4: =data!L11 -> 13 | M4: =data!M11 -> 16 | N4: =data!N11 -> 31 | O4: =data!O11 -> 0.05 | P4: =data!P11 -> 17 | Q4: =data!Q11 -> 27 | R4: =data!R11 -> 0.1 | S4: 2009-06-29 | T4: =data!V11 -> 0 | U4: =[1]data!Y11 -> 2009-07-03
A5: 2009-07-01 | B5: 2009-06-30 | C5: =data!C12 -> 30 | D5: =data!D12 -> 19 | E5: =data!E12 -> 0.45 | F5: =data!F12 -> 31 | G5: =data!G12 -> 18 | H5: =data!H12 -> 0.5 | I5: =data!I12 -> 26 | J5: =data!J12 -> 17 | K5: =data!K12 -> 24 | L5: =data!L12 -> 15 | M5: =data!M12 -> 18 | N5: =data!N12 -> 31 | O5: =data!O12 -> 0.5 | P5: =data!P12 -> 17 | Q5: =data!Q12 -> 27 | R5: =data!R12 -> 0.1 | S5: 2009-06-30 | T5: =data!V12 -> 0 | U5: =[1]data!Y12 -> 2009-07-04
A6: 2009-07-02 | B6: 2009-07-01 | C6: =data!C13 -> 25 | D6: =data!D13 -> 15 | E6: =data!E13 -> 0.55 | F6: =data!F13 -> 27 | G6: =data!G13 -> 14 | H6: =data!H13 -> 0.5 | I6: =data!I13 -> 24 | J6: =data!J13 -> 14 | K6: =data!K13 -> 22 | L6: =data!L13 -> 10 | M6: =data!M13 -> 14 | N6: =data!N13 -> 27 | O6: =data!O13 -> 0.5 | P6: =data!P13 -> 16 | Q6: =data!Q13 -> 23 | R6: =data!R13 -> 0.8 | S6: 2009-07-01 | T6: =data!V13 -> 0 | U6: =[1]data!Y13 -> 2009-07-05
A7: 2009-07-03 | B7: 2009-07-02 | C7: =data!C14 -> 24 | D7: =data!D14 -> 15 | E7: =data!E14 -> 0.6 | F7: =data!F14 -> 26 | G7: =data!G14 -> 16 | H7: =data!H14 -> 0.05 | I7: =data!I14 -> 22 | J7: =data!J14 -> 14 | K7: =data!K14 -> 22 | L7: =data!L14 -> 13 | M7: =data!M14 -> 12 | N7: =data!N14 -> 26 | O7: =data!O14 -> 0.05 | P7: =data!P14 -> 15 | Q7: =data!Q14 -> 23 | R7: =data!R14 -> 0.8 | S7: 2009-07-02 | T7: =data!V14 -> 4.2 | U7: =[1]data!Y14 -> 2009-07-06
A8: 2009-07-04 | B8: 2009-07-03 | C8: =data!C15 -> 24 | D8: =data!D15 -> 16 | E8: =data!E15 -> 0.45 | F8: =data!F15 -> 22 | G8: =data!G15 -> 12 | H8: =data!H15 -> 0.5 | I8: =data!I15 -> 21 | J8: =data!J15 -> 13 | K8: =data!K15 -> 22 | L8: =data!L15 -> 12 | M8: =data!M15 -> 12 | N8: =data!N15 -> 22 | O8: =data!O15 -> 0.5 | P8: =data!P15 -> 12 | Q8: =data!Q15 -> 19 | R8: =data!R15 -> 0.7 | S8: 2009-07-03 | T8: =data!V15 -> 0 | U8: =[1]data!Y15 -> 2009-07-07
A9: 2009-07-05 | B9: 2009-07-04 | C9: =data!C16 -> 19 | D9: =data!D16 -> 14 | E9: =data!E16 -> 0.85 | F9: =data!F16 -> 21 | G9: =data!G16 -> 10 | H9: =data!H16 -> 0.5 | I9: =data!I16 -> 20 | J9: =data!J16 -> 13 | K9: =data!K16 -> 19 | L9: =data!L16 -> 10 | M9: =data!M16 -> 14 | N9: =data!N16 -> 21 | O9: =data!O16 -> 0.5 | P9: =data!P16 -> 12 | Q9: =data!Q16 -> 16 | R9: =data!R16 -> 0.8 | S9: 2009-07-04 | T9: =data!V16 -> 5.4 | U9: =[1]data!Y16 -> 2009-07-08
A10: 2009-07-06 | B10: 2009-07-05 | C10: =data!C17 -> 18 | D10: =data!D17 -> 13 | E10: =data!E17 -> 0.6 | F10: =data!F17 -> 16 | G10: =data!G17 -> 11 | H10: =data!H17 -> 0.3 | I10: =data!I17 -> 19 | J10: =data!J17 -> 11 | K10: =data!K17 -> 20 | L10: =data!L17 -> 9 | M10: =data!M17 -> 14 | N10: =data!N17 -> 16 | O10: =data!O17 -> 0.3 | P10: =data!P17 -> 12 | Q10: =data!Q17 -> 16 | R10: =data!R17 -> 0.8 | S10: 2009-07-05 | T10: =data!V17 -> 2.1 | U10: =[1]data!Y17 -> 2009-07-09
A11: 2009-07-07 | B11: 2009-07-06 | C11: =data!C18 -> 17 | D11: =data!D18 -> 9 | E11: =data!E18 -> 0.55 | F11: =data!F18 -> 19 | G11: =data!G18 -> 12 | H11: =data!H18 -> 0.5 | I11: =data!I18 -> 17 | J11: =data!J18 -> 9 | K11: =data!K18 -> 13 | L11: =data!L18 -> 6 | M11: =data!M18 -> 8 | N11: =data!N18 -> 19 | O11: =data!O18 -> 0.5 | P11: =data!P18 -> 11 | Q11: =data!Q18 -> 15 | R11: =data!R18 -> 0.8 | S11: 2009-07-06 | T11: =data!V18 -> 1.1 | U11: =[1]data!Y18 -> 2009-07-10
A12: 2009-07-08 | B12: 2009-07-07 | C12: =data!C19 -> 19 | D12: =data!D19 -> 11 | E12: =data!E19 -> 0.45 | F12: =data!F19 -> 19 | G12: =data!G19 -> 7 | H12: =data!H19 -> 0.15 | I12: =data!I19 -> 19 | J12: =data!J19 -> 11 | K12: =data!K19 -> 18 | L12: =data!L19 -> 10 | M12: =data!M19 -> 12 | N12: =data!N19 -> 19 | O12: =data!O19 -> 0.15 | P12: =data!P19 -> 10 | Q12: =data!Q19 -> 16 | R12: =data!R19 -> 0.8 | S12: 2009-07-07 | T12: =data!V19 -> 1.2 | U12: =[1]data!Y19 -> 2009-07-11
A13: 2009-07-09 | B13: 2009-07-08 | C13: =data!C20 -> 21 | D13: =data!D20 -> 11 | E13: =data!E20 -> 0.8 | F13: =data!F20 -> 25 | G13: =data!G20 -> 17 | H13: =data!H20 -> 0.1 | I13: =data!I20 -> 21 | J13: =data!J20 -> 10 | K13: =data!K20 -> 19 | L13: =data!L20 -> 9 | M13: =data!M20 -> 11 | N13: =data!N20 -> 25 | O13: =data!O20 -> 0.1 | P13: =data!P20 -> 11 | Q13: =data!Q20 -> 19 | R13: =data!R20 -> 0.3 | S13: 2009-07-08 | T13: =data!V20 -> 0.1 | U13: =[1]data!Y20 -> 2009-07-12
A14: 2009-07-10 | B14: 2009-07-09 | C14: =data!C21 -> 25 | D14: =data!D21 -> 13 | E14: =data!E21 -> 0.1 | F14: =data!F21 -> 25 | G14: =data!G21 -> 14 | H14: =data!H21 -> 0.05 | I14: =data!I21 -> 24 | J14: =data!J21 -> 13 | K14: =data!K21 -> 22 | L14: =data!L21 -> 8 | M14: =data!M21 -> 10 | N14: =data!N21 -> 25 | O14: =data!O21 -> 0.05 | P14: =data!P21 -> 11 | Q14: =data!Q21 -> 20 | R14: =data!R21 -> 0.3 | S14: 2009-07-09 | T14: =data!V21 -> 9.9 | U14: =[1]data!Y21 -> 2009-07-13
A15: 2009-07-11 | B15: 2009-07-10 | C15: =data!C22 -> 24 | D15: =data!D22 -> 15 | E15: =data!E22 -> 0.8 | F15: =data!F22 -> 24 | G15: =data!G22 -> 16 | H15: =data!H22 -> 0.8 | I15: =data!I22 -> 25 | J15: =data!J22 -> 15 | K15: =data!K22 -> 24 | L15: =data!L22 -> 13 | M15: =data!M22 -> 16 | N15: =data!N22 -> 24 | O15: =data!O22 -> 0.8 | P15: =data!P22 -> 14 | Q15: =data!Q22 -> 24 | R15: =data!R22 -> 0.5 | S15: 2009-07-10 | T15: =data!V22 -> 7.8 | U15: =[1]data!Y22 -> 2009-07-14
A16: 2009-07-12 | B16: 2009-07-11 | C16: =data!C23 -> 24 | D16: =data!D23 -> 15 | E16: =data!E23 -> 0.9 | F16: =data!F23 -> 27 | G16: =data!G23 -> 15 | H16: =data!H23 -> 0.05 | I16: =data!I23 -> 26 | J16: =data!J23 -> 15 | K16: =data!K23 -> 24 | L16: =data!L23 -> 13 | M16: =data!M23 -> 16 | N16: =data!N23 -> 24 | O16: =data!O23 -> 0.8 | P16: =data!P23 -> 16 | Q16: =data!Q23 -> 24 | R16: =data!R23 -> 0.6 | S16: 2009-07-11 | T16: =data!V23 -> 0 | U16: =[1]data!Y23 -> 2009-07-15
A17: 2009-07-13 | B17: 2009-07-12 | C17: =data!C24 -> 28 | D17: =data!D24 -> 13 | E17: =data!E24 -> 0.1 | F17: =data!F24 -> 28 | G17: =data!G24 -> 14 | H17: =data!H24 -> 0.05 | I17: =data!I24 -> 27 | J17: =data!J24 -> 13 | K17: =data!K24 -> 26 | L17: =data!L24 -> 9 | M17: =data!M24 -> 11 | N17: =data!N24 -> 28 | O17: =data!O24 -> 0.05 | P17: =data!P24 -> 18 | Q17: =data!Q24 -> 24 | R17: =data!R24 -> 0.6 | S17: 2009-07-12 | T17: =data!V24 -> 0 | U17: =[1]data!Y24 -> 2009-07-16
A18: 2009-07-14 | B18: 2009-07-13 | C18: =data!C25 -> 24 | D18: =data!D25 -> 15 | E18: =data!E25 -> 0.95 | F18: =data!F25 -> 26 | G18: =data!G25 -> 12 | H18: =data!H25 -> 0.3 | I18: =data!I25 -> 26 | J18: =data!J25 -> 13 | K18: =data!K25 -> 22 | L18: =data!L25 -> 15 | M18: =data!M25 -> 15 | N18: =data!N25 -> 32 | O18: =data!O25 -> 0.05 | P18: =data!P25 -> 12 | Q18: =data!Q25 -> 25 | R18: =data!R25 -> 0.2 | S18: 2009-07-13 | T18: =data!V25 -> 4.4 | U18: =[1]data!Y25 -> 2009-07-17
A19: 2009-07-15 | B19: 2009-07-14 | C19: =data!C26 -> 17 | D19: =data!D26 -> 13 | E19: =data!E26 -> 0.75 | F19: =data!F26 -> 15 | G19: =data!G26 -> 10 | H19: =data!H26 -> 0.15 | I19: =data!I26 -> 18 | J19: =data!J26 -> 13 | K19: =data!K26 -> 13 | L19: =data!L26 -> 10 | M19: =data!M26 -> 13 | N19: =data!N26 -> 15 | O19: =data!O26 -> 0.15 | P19: =data!P26 -> 17 | Q19: =data!Q26 -> 24 | R19: =data!R26 -> 0.7 | S19: 2009-07-14 | T19: =data!V26 -> 0.1 | U19: =[1]data!Y26 -> 2009-07-18
A20: 2009-07-16 | B20: 2009-07-15 | C20: =data!C27 -> 19 | D20: =data!D27 -> 13 | E20: =data!E27 -> 0.75 | F20: =data!F27 -> 21 | G20: =data!G27 -> 13 | H20: =data!H27 -> 0.05 | I20: =data!I27 -> 19 | J20: =data!J27 -> 11 | K20: =data!K27 -> 17 | L20: =data!L27 -> 9 | M20: =data!M27 -> 10 | N20: =data!N27 -> 21 | O20: =data!O27 -> 0.05 | P20: =data!P27 -> 14 | Q20: =data!Q27 -> 16 | R20: =data!R27 -> 0.8 | S20: 2009-07-15 | T20: =data!V27 -> 3.8 | U20: =[1]data!Y27 -> 2009-07-19
A21: 2009-07-17 | B21: 2009-07-16 | C21: =data!C28 -> 21 | D21: =data!D28 -> 13 | E21: =data!E28 -> 0.55 | F21: =data!F28 -> 22 | G21: =data!G28 -> 11 | H21: =data!H28 -> 0.05 | I21: =data!I28 -> 20 | J21: =data!J28 -> 12 | K21: =data!K28 -> 18 | L21: =data!L28 -> 10 | M21: =data!M28 -> 11 | N21: =data!N28 -> 22 | O21: =data!O28 -> 0.05 | P21: =data!P28 -> 11 | Q21: =data!Q28 -> 20 | R21: =data!R28 -> 0.8 | S21: 2009-07-16 | T21: =data!V28 -> 0 | U21: =[1]data!Y28 -> 2009-07-20
A22: 2009-07-18 | B22: 2009-07-17 | C22: =data!C29 -> 24 | D22: =data!D29 -> 12 | E22: =data!E29 -> 0.35 | F22: =data!F29 -> 27 | G22: =data!G29 -> 19 | H22: =data!H29 -> 0.5 | I22: =data!I29 -> 26 | J22: =data!J29 -> 11 | K22: =data!K29 -> 23 | L22: =data!L29 -> 8 | M22: =data!M29 -> 11 | N22: =data!N29 -> 27 | O22: =data!O29 -> 0.5 | P22: =data!P29 -> 12 | Q22: =data!Q29 -> 21 | R22: =data!R29 -> 0.2 | S22: 2009-07-17 | T22: =data!V29 -> 0.7 | U22: =[1]data!Y29 -> 2009-07-21
A23: 2009-07-19 | B23: 2009-07-18 | C23: =data!C30 -> 25 | D23: =data!D30 -> 17 | E23: =data!E30 -> 0.7 | F23: =data!F30 -> 28 | G23: =data!G30 -> 14 | H23: =data!H30 -> 0.5 | I23: =data!I30 -> 26 | J23: =data!J30 -> 16 | K23: =data!K30 -> 23 | L23: =data!L30 -> 15 | M23: =data!M30 -> 17 | N23: =data!N30 -> 28 | O23: =data!O30 -> 0.5 | P23: =data!P30 -> 14 | Q23: =data!Q30 -> 22 | R23: =data!R30 -> 0.6 | S23: 2009-07-18 | T23: =data!V30 -> 2.3 | U23: =[1]data!Y30 -> 2009-07-22
A24: 2009-07-20 | B24: 2009-07-19 | C24: =data!C31 -> 24 | D24: =data!D31 -> 18 | E24: =data!E31 -> 0.85 | F24: =data!F31 -> 24 | G24: =data!G31 -> 14 | H24: =data!H31 -> 0.3 | I24: =data!I31 -> 27 | J24: =data!J31 -> 16 | K24: =data!K31 -> 22 | L24: =data!L31 -> 14 | M24: =data!M31 -> 15 | N24: =data!N31 -> 24 | O24: =data!O31 -> 0.3 | P24: =data!P31 -> 18 | Q24: =data!Q31 -> 25 | R24: =data!R31 -> 0.9 | S24: 2009-07-19 | T24: =data!V31 -> 8 | U24: =[1]data!Y31 -> 2009-07-23
A25: 2009-07-22 | B25: 2009-07-21 | C25: =data!C32 -> 20 | D25: =data!D32 -> 14 | E25: =data!E32 -> 0.6 | F25: =data!F32 -> 21 | G25: =data!G32 -> 7 | H25: =data!H32 -> 0.15 | I25: =data!I32 -> 21 | J25: =data!J32 -> 13 | K25: =data!K32 -> 18 | L25: =data!L32 -> 10 | M25: =data!M32 -> 12 | N25: =data!N32 -> 21 | O25: =data!O32 -> 0.15 | P25: =data!P32 -> 16 | Q25: =data!Q32 -> 22 | R25: =data!R32 -> 0.4 | S25: 2009-07-21 | T25: =data!V32 -> 5.1 | U25: =[1]data!Y32 -> 2009-07-25
A26: 2009-07-23 | B26: 2009-07-22 | C26: =data!C33 -> 25 | D26: =data!D33 -> 12 | E26: =data!E33 -> 0.05 | F26: =data!F33 -> 24 | G26: =data!G33 -> 10 | H26: =data!H33 -> 0.05 | I26: =data!I33 -> 22 | J26: =data!J33 -> 10 | K26: =data!K33 -> 20 | L26: =data!L33 -> 7 | M26: =data!M33 -> 7 | N26: =data!N33 -> 24 | O26: =data!O33 -> 0.05 | P26: =data!P33 -> 12 | Q26: =data!Q33 -> 20 | R26: =data!R33 -> 0.5 | S26: 2009-07-22 | T26: =data!V33 -> 0 | U26: =[1]data!Y33 -> 2009-07-26
A27: 2009-07-24 | B27: 2009-07-23 | C27: =data!C34 -> 28 | D27: =data!D34 -> 12 | E27: =data!E34 -> 0.35 | F27: =data!F34 -> 30 | G27: =data!G34 -> 11 | H27: =data!H34 -> 0.02 | I27: =data!I34 -> 25 | J27: =data!J34 -> 12 | K27: =data!K34 -> 26 | L27: =data!L34 -> 11 | M27: =data!M34 -> 11 | N27: =data!N34 -> 30 | O27: =data!O34 -> 0 | P27: =data!P34 -> 10 | Q27: =data!Q34 -> 23 | R27: =data!R34 -> 0.1 | S27: 2009-07-23 | T27: =data!V34 -> 0.4 | U27: =[1]data!Y34 -> 2009-07-27
A28: 2009-07-25 | B28: 2009-07-24 | C28: =data!C35 -> 27 | D28: =data!D35 -> 12 | E28: =data!E35 -> 0.25 | F28: =data!F35 -> 24 | G28: =data!G35 -> 11 | H28: =data!H35 -> 0.05 | I28: =data!I35 -> 23 | J28: =data!J35 -> 13 | K28: =data!K35 -> 19 | L28: =data!L35 -> 9 | M28: =data!M35 -> 11 | N28: =data!N35 -> 30 | O28: =data!O35 -> 0 | P28: =data!P35 -> 10 | Q28: =data!Q35 -> 23 | R28: =data!R35 -> 0.1 | S28: 2009-07-24 | T28: =data!V35 -> 0 | U28: =[1]data!Y35 -> 2009-07-28
A29: 2009-07-28 | B29: 2009-07-27 | C29: =data!C36 -> 24 | D29: =data!D36 -> 10 | E29: =data!E36 -> 0.05 | F29: =data!F36 -> 25 | G29: =data!G36 -> 12 | H29: =data!H36 -> 0.05 | I29: =data!I36 -> 21 | J29: =data!J36 -> 10 | K29: =data!K36 -> 21 | L29: =data!L36 -> 6 | M29: =data!M36 -> 10 | N29: =data!N36 -> 25 | O29: =data!O36 -> 0.05 | P29: =data!P36 -> 18 | Q29: =data!Q36 -> 21 | R29: =data!R36 -> 0.1 | S29: 2009-07-27 | T29: =data!V36 -> 0 | U29: =[1]data!Y36 -> 2009-07-31
A30: 2009-07-29 | B30: 2009-07-28 | C30: =data!C37 -> 26 | D30: =data!D37 -> 10 | E30: =data!E37 -> 0.2 | F30: =data!F37 -> 25 | G30: =data!G37 -> 13 | H30: =data!H37 -> 0.05 | I30: =data!I37 -> 27 | J30: =data!J37 -> 10 | K30: =data!K37 -> 25 | L30: =data!L37 -> 9 | M30: =data!M37 -> 8 | N30: =data!N37 -> 25 | O30: =data!O37 -> 0.05 | P30: =data!P37 -> 9 | Q30: =data!Q37 -> 19 | R30: =data!R37 -> 0.2 | S30: 2009-07-28 | T30: =data!V37 -> 0 | U30: =[1]data!Y37 -> 2009-08-01
A31: 2009-07-30 | B31: 2009-07-29 | C31: =data!C38 -> 25 | D31: =data!D38 -> 16 | E31: =data!E38 -> 0.55 | F31: =data!F38 -> 25 | G31: =data!G38 -> 11 | H31: =data!H38 -> 0.1 | I31: =data!I38 -> 24 | J31: =data!J38 -> 14 | K31: =data!K38 -> 19 | L31: =data!L38 -> 13 | M31: =data!M38 -> 16 | N31: =data!N38 -> 25 | O31: =data!O38 -> 0.1 | P31: =data!P38 -> 12 | Q31: =data!Q38 -> 23 | R31: =data!R38 -> 0.1 | S31: 2009-07-29 | T31: =data!V38 -> 3.9 | U31: =[1]data!Y38 -> 2009-08-02
A32: 2009-07-31 | B32: 2009-07-30 | C32: =data!C39 -> 21 | D32: =data!D39 -> 15 | E32: =data!E39 -> 0.6 | F32: =data!F39 -> 23 | G32: =data!G39 -> 7 | H32: =data!H39 -> 0.05 | I32: =data!I39 -> 24 | J32: =data!J39 -> 14 | K32: =data!K39 -> 19 | L32: =data!L39 -> 13 | M32: =data!M39 -> 13 | N32: =data!N39 -> 23 | O32: =data!O39 -> 0.05 | P32: =data!P39 -> 15 | Q32: =data!Q39 -> 22 | R32: =data!R39 -> 0.7 | S32: 2009-07-30 | T32: =data!V39 -> 0 | U32: =[1]data!Y39 -> 2009-08-03
A33: 2009-08-01 | B33: 2009-07-31 | C33: =data!C40 -> 26 | D33: =data!D40 -> 11 | E33: =data!E40 -> 0.05 | F33: =data!F40 -> 26 | G33: =data!G40 -> 11 | H33: =data!H40 -> 0.05 | I33: =data!I40 -> 27 | J33: =data!J40 -> 11 | K33: =data!K40 -> 24 | L33: =data!L40 -> 7 | M33: =data!M40 -> 8 | N33: =data!N40 -> 26 | O33: =data!O40 -> 0.05 | P33: =data!P40 -> 12 | Q33: =data!Q40 -> 21 | R33: =data!R40 -> 0.7 | S33: 2009-07-31 | T33: =data!V40 -> 0 | U33: =[1]data!Y40 -> 2009-08-04
A34: 2009-08-02 | B34: 2009-08-01 | C34: =data!C41 -> 28 | D34: =data!D41 -> 13 | E34: =data!E41 -> 0.05 | F34: =data!F41 -> 28 | G34: =data!G41 -> 14 | H34: =data!H41 -> 0.02 | I34: =data!I41 -> 27 | J34: =data!J41 -> 11 | K34: =data!K41 -> 27 | L34: =data!L41 -> 12 | M34: =data!M41 -> 10 | N34: =data!N41 -> 28 | O34: =data!O41 -> 0 | P34: =data!P41 -> 12 | Q34: =data!Q41 -> 23 | R34: =data!R41 -> 0.1 | S34: 2009-08-01 | T34: =data!V41 -> 0 | U34: =[1]data!Y41 -> 2009-08-05
A35: 2009-08-03 | B35: 2009-08-02 | C35: =data!C42 -> 28 | D35: =data!D42 -> 13 | E35: =data!E42 -> 0.05 | F35: =data!F42 -> 31 | G35: =data!G42 -> 16 | H35: =data!H42 -> 0.05 | I35: =data!I42 -> 28 | J35: =data!J42 -> 12 | K35: =data!K42 -> 27 | L35: =data!L42 -> 13 | M35: =data!M42 -> 10 | N35: =data!N42 -> 28 | O35: =data!O42 -> 0 | P35: =data!P42 -> 12 | Q35: =data!Q42 -> 23 | R35: =data!R42 -> 0.1 | S35: 2009-08-02 | T35: =data!V42 -> 0 | U35: =[1]data!Y42 -> 2009-08-06
A36: 2009-08-04 | B36: 2009-08-03 | C36: =data!C43 -> 30 | D36: =data!D43 -> 15 | E36: =data!E43 -> 0.05 | F36: =data!F43 -> 30 | G36: =data!G43 -> 16 | H36: =data!H43 -> 0.02 | I36: =data!I43 -> 30 | J36: =data!J43 -> 14 | K36: =data!K43 -> 30 | L36: =data!L43 -> 14 | M36: =data!M43 -> 13 | N36: =data!N43 -> 30 | O36: =data!O43 -> 0 | P36: =data!P43 -> 13 | Q36: =data!Q43 -> 26 | R36: =data!R43 -> 0.1 | S36: 2009-08-03 | T36: =data!V43 -> 0 | U36: =[1]data!Y43 -> 2009-08-07
A37: 2009-08-05 | B37: 2009-08-04 | C37: =data!C44 -> 26 | D37: =data!D44 -> 16 | E37: =data!E44 -> 0.55 | F37: =data!F44 -> 29 | G37: =data!G44 -> 18 | H37: =data!H44 -> 0.1 | I37: =data!I44 -> 26 | J37: =data!J44 -> 16 | K37: =data!K44 -> 22 | L37: =data!L44 -> 16 | M37: =data!M44 -> 17 | N37: =data!N44 -> 29 | O37: =data!O44 -> 0.1 | P37: =data!P44 -> 14 | Q37: =data!Q44 -> 28 | R37: =data!R44 -> 0.1 | S37: 2009-08-04 | T37: =data!V44 -> 0 | U37: =[1]data!Y44 -> 2009-08-08
A38: 2009-08-06 | B38: 2009-08-05 | C38: =data!C45 -> 27 | D38: =data!D45 -> 17 | E38: =data!E45 -> 0.6 | F38: =data!F45 -> 29 | G38: =data!G45 -> 17 | H38: =data!H45 -> 0.5 | I38: =data!I45 -> 23 | J38: =data!J45 -> 15 | K38: =data!K45 -> 29 | L38: =data!L45 -> 15 | M38: =data!M45 -> 18 | N38: =data!N45 -> 29 | O38: =data!O45 -> 0.5 | P38: =data!P45 -> 16 | Q38: =data!Q45 -> 24 | R38: =data!R45 -> 0.7 | S38: 2009-08-05 | T38: =data!V45 -> 0 | U38: =[1]data!Y45 -> 2009-08-09
A39: 2009-08-07 | B39: 2009-08-06 | C39: =data!C46 -> 25 | D39: =data!D46 -> 17 | E39: =data!E46 -> 0.55 | F39: =data!F46 -> 28 | G39: =data!G46 -> 15 | H39: =data!H46 -> 0.5 | I39: =data!I46 -> 23 | J39: =data!J46 -> 15 | K39: =data!K46 -> 20 | L39: =data!L46 -> 13 | M39: =data!M46 -> 17 | N39: =data!N46 -> 28 | O39: =data!O46 -> 0.5 | P39: =data!P46 -> 15 | Q39: =data!Q46 -> 24 | R39: =data!R46 -> 0.2 | S39: 2009-08-06 | T39: =data!V46 -> 15 | U39: =[1]data!Y46 -> 2009-08-10
A40: 2009-08-08 | B40: 2009-08-07 | C40: =data!C47 -> 22 | D40: =data!D47 -> 13 | E40: =data!E47 -> 0.45 | F40: =data!F47 -> 24 | G40: =data!G47 -> 11 | H40: =data!H47 -> 0.05 | I40: =data!I47 -> 22 | J40: =data!J47 -> 12 | K40: =data!K47 -> 18 | L40: =data!L47 -> 11 | M40: =data!M47 -> 17 | N40: =data!N47 -> 28 | O40: =data!O47 -> 0.5 | P40: =data!P47 -> 15 | Q40: =data!Q47 -> 23 | R40: =data!R47 -> 0.6 | S40: 2009-08-07 | T40: =data!V47 -> 0.3 | U40: =[1]data!Y47 -> 2009-08-11
A41: 2009-08-24 | B41: 2009-08-23 | C41: =data!C48 -> 26 | D41: =data!D48 -> 14 | E41: =data!E48 -> 0.2 | F41: =data!F48 -> 27 | G41: =data!G48 -> 14 | H41: =data!H48 -> 0.02 | I41: =data!I48 -> 26 | J41: =data!J48 -> 13 | K41: =data!K48 -> 22 | L41: =data!L48 -> 13 | M41: =data!M48 -> 12 | N41: =data!N48 -> 27 | O41: =data!O48 -> 0 | P41: =data!P48 -> 12 | Q41: =data!Q48 -> 25 | R41: =data!R48 -> 0.1 | S41: 2009-08-23 | T41: =data!V48 -> 0 | U41: =[1]data!Y48 -> 2009-08-27
A42: 2009-08-25 | B42: 2009-08-24 | C42: =data!C49 -> 24 | D42: =data!D49 -> 15 | E42: =data!E49 -> 0.35 | F42: =data!F49 -> 25 | G42: =data!G49 -> 11 | H42: =data!H49 -> 0.05 | I42: =data!I49 -> 26 | J42: =data!J49 -> 14 | K42: =data!K49 -> 19 | L42: =data!L49 -> 14 | M42: =data!M49 -> 15 | N42: =data!N49 -> 25 | O42: =data!O49 -> 0.05 | P42: =data!P49 -> 15 | Q42: =data!Q49 -> 24 | R42: =data!R49 -> 0.6 | S42: 2009-08-24 | T42: =data!V49 -> 0.2 | U42: =[1]data!Y49 -> 2009-08-28
A43: 2009-08-27 | B43: 2009-08-26 | C43: =data!C50 -> 21 | D43: =data!D50 -> 8 | E43: =data!E50 -> 0.05 | F43: =data!F50 -> 21 | G43: =data!G50 -> 9 | H43: =data!H50 -> 0.05 | I43: =data!I50 -> 21 | J43: =data!J50 -> 7 | K43: =data!K50 -> 18 | L43: =data!L50 -> 6 | M43: =data!M50 -> 7 | N43: =data!N50 -> 21 | O43: =data!O50 -> 0.05 | P43: =data!P50 -> 9 | Q43: =data!Q50 -> 19 | R43: =data!R50 -> 0.1 | S43: 2009-08-26 | T43: =data!V50 -> 0 | U43: =[1]data!Y50 -> 2009-08-30
A44: 2009-08-28 | B44: 2009-08-27 | C44: =data!C51 -> 24 | D44: =data!D51 -> 9 | E44: =data!E51 -> 0.05 | F44: =data!F51 -> 25 | G44: =data!G51 -> 10 | H44: =data!H51 -> 0.05 | I44: =data!I51 -> 26 | J44: =data!J51 -> 8 | K44: =data!K51 -> 23 | L44: =data!L51 -> 6 | M44: =data!M51 -> 6 | N44: =data!N51 -> 25 | O44: =data!O51 -> 0.05 | P44: =data!P51 -> 8 | Q44: =data!Q51 -> 22 | R44: =data!R51 -> 0.1 | S44: 2009-08-27 | T44: =data!V51 -> 0 | U44: =[1]data!Y51 -> 2009-08-31
A45: 2009-08-30 | B45: 2009-08-29 | C45: =data!C52 -> 22 | D45: =data!D52 -> 14 | E45: =data!E52 -> 0.4 | F45: =data!F52 -> 23 | G45: =data!G52 -> 14 | H45: =data!H52 -> 0.05 | I45: =data!I52 -> 22 | J45: =data!J52 -> 15 | K45: =data!K52 -> 19 | L45: =data!L52 -> 12 | M45: =data!M52 -> 14 | N45: =data!N52 -> 23 | O45: =data!O52 -> 0.05 | P45: =data!P52 -> 17 | Q45: =data!Q52 -> 21 | R45: =data!R52 -> 0.6 | S45: 2009-08-29 | T45: =data!V52 -> 0 | U45: =[1]data!Y52 -> 2009-09-02
A46: 2009-08-31 | B46: 2009-08-30 | C46: =data!C53 -> 19 | D46: =data!D53 -> 12 | E46: =data!E53 -> 0.55 | F46: =data!F53 -> 22 | G46: =data!G53 -> 13 | H46: =data!H53 -> 0.05 | I46: =data!I53 -> 22 | J46: =data!J53 -> 12 | K46: =data!K53 -> 18 | L46: =data!L53 -> 10 | M46: =data!M53 -> 14 | N46: =data!N53 -> 22 | O46: =data!O53 -> 0.05 | P46: =data!P53 -> 14 | Q46: =data!Q53 -> 19 | R46: =data!R53 -> 0.6 | S46: 2009-08-30 | T46: =data!V53 -> 4.6 | U46: =[1]data!Y53 -> 2009-09-03
A47: 2009-09-01 | B47: 2009-08-31 | C47: =data!C54 -> 16 | D47: =data!D54 -> 13 | E47: =data!E54 -> 0.75 | F47: =data!F54 -> 17 | G47: =data!G54 -> 12 | H47: =data!H54 -> 0.5 | I47: =data!I54 -> 18 | J47: =data!J54 -> 13 | K47: =data!K54 -> 13 | L47: =data!L54 -> 11 | M47: =data!M54 -> 12 | N47: =data!N54 -> 17 | O47: =data!O54 -> 0.5 | P47: =data!P54 -> 11 | Q47: =data!Q54 -> 14 | R47: =data!R54 -> 0.9 | S47: 2009-08-31 | T47: =data!V54 -> 12.3 | U47: =[1]data!Y54 -> 2009-09-04
A48: 2009-09-03 | B48: 2009-09-02 | C48: =data!C55 -> 19 | D48: =data!D55 -> 10 | E48: =data!E55 -> 0.2 | F48: =data!F55 -> 19 | G48: =data!G55 -> 8 | H48: =data!H55 -> 0.1 | I48: =data!I55 -> 19 | J48: =data!J55 -> 9 | K48: =data!K55 -> 16 | L48: =data!L55 -> 10 | M48: =data!M55 -> 10 | N48: =data!N55 -> 19 | O48: =data!O55 -> 0.1 | P48: =data!P55 -> 8 | Q48: =data!Q55 -> 18 | R48: =data!R55 -> 0.2 | S48: 2009-09-02 | T48: =data!V55 -> 0 | U48: =[1]data!Y55 -> 2009-09-06
A49: 2009-09-04 | B49: 2009-09-03 | C49: =data!C56 -> 21 | D49: =data!D56 -> 8 | E49: =data!E56 -> 0.2 | F49: =data!F56 -> 23 | G49: =data!G56 -> 11 | H49: =data!H56 -> 0.05 | I49: =data!I56 -> 21 | J49: =data!J56 -> 8 | K49: =data!K56 -> 18 | L49: =data!L56 -> 8 | M49: =data!M56 -> 10 | N49: =data!N56 -> 23 | O49: =data!O56 -> 0.05 | P49: =data!P56 -> 9 | Q49: =data!Q56 -> 20 | R49: =data!R56 -> 0.2 | S49: 2009-09-03 | T49: =data!V56 -> 0 | U49: =[1]data!Y56 -> 2009-09-07
A50: 2009-09-05 | B50: 2009-09-04 | C50: =data!C57 -> 25 | D50: =data!D57 -> 11 | E50: =data!E57 -> 0.05 | F50: =data!F57 -> 26 | G50: =data!G57 -> 13 | H50: =data!H57 -> 0.05 | I50: =data!I57 -> 24 | J50: =data!J57 -> 9 | K50: =data!K57 -> 23 | L50: =data!L57 -> 8 | M50: =data!M57 -> 11 | N50: =data!N57 -> 26 | O50: =data!O57 -> 0.05 | P50: =data!P57 -> 11 | Q50: =data!Q57 -> 24 | R50: =data!R57 -> 0.1 | S50: 2009-09-04 | T50: =data!V57 -> 0 | U50: =[1]data!Y57 -> 2009-09-08
A51: 2009-09-06 | B51: 2009-09-05 | C51: =data!C58 -> 27 | D51: =data!D58 -> 11 | E51: =data!E58 -> 0.05 | F51: =data!F58 -> 28 | G51: =data!G58 -> 14 | H51: =data!H58 -> 0.05 | I51: =data!I58 -> 24 | J51: =data!J58 -> 11 | K51: =data!K58 -> 26 | L51: =data!L58 -> 10 | M51: =data!M58 -> 12 | N51: =data!N58 -> 28 | O51: =data!O58 -> 0.05 | P51: =data!P58 -> 12 | Q51: =data!Q58 -> 24 | R51: =data!R58 -> 0.3 | S51: 2009-09-05 | T51: =data!V58 -> 0 | U51: =[1]data!Y58 -> 2009-09-09
A52: 2009-09-08 | B52: 2009-09-07 | C52: =data!C59 -> 21 | D52: =data!D59 -> 13 | E52: =data!E59 -> 0.2 | F52: =data!F59 -> 21 | G52: =data!G59 -> 11 | H52: =data!H59 -> 0.05 | I52: =data!I59 -> 20 | J52: =data!J59 -> 11 | K52: =data!K59 -> 19 | L52: =data!L59 -> 10 | M52: =data!M59 -> 13 | N52: =data!N59 -> 21 | O52: =data!O59 -> 0.05 | P52: =data!P59 -> 13 | Q52: =data!Q59 -> 19 | R52: =data!R59 -> 0.2 | S52: 2009-09-07 | T52: =data!V59 -> 0 | U52: =[1]data!Y59 -> 2009-09-11
A53: 2009-09-09 | B53: 2009-09-08 | C53: =data!C60 -> 20 | D53: =data!D60 -> 11 | E53: =data!E60 -> 0.3 | F53: =data!F60 -> 22 | G53: =data!G60 -> 10 | H53: =data!H60 -> 0.1 | I53: =data!I60 -> 18 | J53: =data!J60 -> 9 | K53: =data!K60 -> 17 | L53: =data!L60 -> 9 | M53: =data!M60 -> 14 | N53: =data!N60 -> 22 | O53: =data!O60 -> 0.1 | P53: =data!P60 -> 14 | Q53: =data!Q60 -> 19 | R53: =data!R60 -> 0.3 | S53: 2009-09-08 | T53: =data!V60 -> 0 | U53: =[1]data!Y60 -> 2009-09-12
A54: 2009-09-10 | B54: 2009-09-09 | C54: =data!C61 -> 18 | D54: =data!D61 -> 10 | E54: =data!E61 -> 0.2 | F54: =data!F61 -> 19 | G54: =data!G61 -> 13 | H54: =data!H61 -> 10 | I54: =data!I61 -> 20 | J54: =data!J61 -> 9 | K54: =data!K61 -> 14 | L54: =data!L61 -> 6 | M54: =data!M61 -> 13 | N54: =data!N61 -> 19 | O54: =data!O61 -> 0.1 | P54: =data!P61 -> 12 | Q54: =data!Q61 -> 17 | R54: =data!R61 -> 0.2 | S54: 2009-09-09 | T54: =data!V61 -> 2.2 | U54: =[1]data!Y61 -> 2009-09-13
A55: 2009-09-11 | B55: 2009-09-10 | C55: =data!C62 -> 17 | D55: =data!D62 -> 11 | E55: =data!E62 -> 0.35 | F55: =data!F62 -> 17 | G55: =data!G62 -> 11 | H55: =data!H62 -> 0.15 | I55: =data!I62 -> 18 | J55: =data!J62 -> 9 | K55: =data!K62 -> 15 | L55: =data!L62 -> 9 | M55: =data!M62 -> 11 | N55: =data!N62 -> 17 | O55: =data!O62 -> 15 | P55: =data!P62 -> 11 | Q55: =data!Q62 -> 16 | R55: =data!R62 -> 0.8 | S55: 2009-09-10 | T55: =data!V62 -> 13.2 | U55: =[1]data!Y62 -> 2009-09-14
A56: 2009-09-12 | B56: 2009-09-11 | C56: =data!C63 -> 16 | D56: =data!D63 -> 11 | E56: =data!E63 -> 0.7 | F56: =data!F63 -> 18 | G56: =data!G63 -> 12 | H56: =data!H63 -> 30 | I56: =data!I63 -> 21 | J56: =data!J63 -> 10 | K56: =data!K63 -> 12 | L56: =data!L63 -> 8 | M56: =data!M63 -> 11 | N56: =data!N63 -> 18 | O56: =data!O63 -> 0.3 | P56: =data!P63 -> 8 | Q56: =data!Q63 -> 15 | R56: =data!R63 -> 0.7 | S56: 2009-09-11 | T56: =data!V63 -> 1.2 | U56: =[1]data!Y63 -> 2009-09-15
A57: 2009-09-13 | B57: 2009-09-12 | C57: =data!C64 -> 24 | D57: =data!D64 -> 12 | E57: =data!E64 -> 0.1 | F57: =data!F64 -> 26 | G57: =data!G64 -> 15 | H57: =data!H64 -> 0.05 | I57: =data!I64 -> 22 | J57: =data!J64 -> 10 | K57: =data!K64 -> 23 | L57: =data!L64 -> 10 | M57: =data!M64 -> 12 | N57: =data!N64 -> 26 | O57: =data!O64 -> 0.05 | P57: =data!P64 -> 11 | Q57: =data!Q64 -> 23 | R57: =data!R64 -> 0.2 | S57: 2009-09-12 | T57: =data!V64 -> 0 | U57: =[1]data!Y64 -> 2009-09-16
A58: 2009-09-14 | B58: 2009-09-13 | C58: =data!C65 -> 23 | D58: =data!D65 -> 13 | E58: =data!E65 -> 0.1 | F58: =data!F65 -> 23 | G58: =data!G65 -> 11 | H58: =data!H65 -> 0.05 | I58: =data!I65 -> 18 | J58: =data!J65 -> 12 | K58: =data!K65 -> 20 | L58: =data!L65 -> 13 | M58: =data!M65 -> 13 | N58: =data!N65 -> 23 | O58: =data!O65 -> 0.05 | P58: =data!P65 -> 14 | Q58: =data!Q65 -> 20 | R58: =data!R65 -> 0.5 | S58: 2009-09-13 | T58: =data!V65 -> 0 | U58: =[1]data!Y65 -> 2009-09-17
A59: 2009-09-15 | B59: 2009-09-14 | C59: =data!C66 -> 22 | D59: =data!D66 -> 8 | E59: =data!E66 -> 0.05 | F59: =data!F66 -> 23 | G59: =data!G66 -> 10 | H59: =data!H66 -> 0.02 | I59: =data!I66 -> 20 | J59: =data!J66 -> 8 | K59: =data!K66 -> 20 | L59: =data!L66 -> 6 | M59: =data!M66 -> 8 | N59: =data!N66 -> 23 | O59: =data!O66 -> 0 | P59: =data!P66 -> 9 | Q59: =data!Q66 -> 22 | R59: =data!R66 -> 0.1 | S59: 2009-09-14 | T59: =data!V66 -> 0 | U59: =[1]data!Y66 -> 2009-09-18
A60: 2009-09-16 | B60: 2009-09-15 | C60: =data!C67 -> 23 | D60: =data!D67 -> 9 | E60: =data!E67 -> 0.05 | F60: =data!F67 -> 24 | G60: =data!G67 -> 9 | H60: =data!H67 -> 0.02 | I60: =data!I67 -> 22 | J60: =data!J67 -> 8 | K60: =data!K67 -> 20 | L60: =data!L67 -> 10 | M60: =data!M67 -> 9 | N60: =data!N67 -> 24 | O60: =data!O67 -> 0 | P60: =data!P67 -> 11 | Q60: =data!Q67 -> 22 | R60: =data!R67 -> 0.1 | S60: 2009-09-15 | T60: =data!V67 -> 0 | U60: =[1]data!Y67 -> 2009-09-19
A61: 2009-09-17 | B61: 2009-09-16 | C61: =data!C68 -> 23 | D61: =data!D68 -> 12 | E61: =data!E68 -> 0.35 | F61: =data!F68 -> 25 | G61: =data!G68 -> 10 | H61: =data!H68 -> 0.02 | I61: =data!I68 -> 21 | J61: =data!J68 -> 11 | K61: =data!K68 -> 21 | L61: =data!L68 -> 10 | M61: =data!M68 -> 9 | N61: =data!N68 -> 24 | O61: =data!O68 -> 0 | P61: =data!P68 -> 12 | Q61: =data!Q68 -> 21 | R61: =data!R68 -> 0.3 | S61: 2009-09-16 | T61: =data!V68 -> 0 | U61: =[1]data!Y68 -> 2009-09-20
A62: 2009-09-18 | B62: 2009-09-17 | C62: =data!C69 -> 23 | D62: =data!D69 -> 13 | E62: =data!E69 -> 0.55 | F62: =data!F69 -> 26 | G62: =data!G69 -> 11 | H62: =data!H69 -> 0.05 | I62: =data!I69 -> 22 | J62: =data!J69 -> 11 | K62: =data!K69 -> 21 | L62: =data!L69 -> 12 | M62: =data!M69 -> 13 | N62: =data!N69 -> 26 | O62: =data!O69 -> 0.05 | P62: =data!P69 -> 13 | Q62: =data!Q69 -> 23 | R62: =data!R69 -> 0.2 | S62: 2009-09-17 | T62: =data!V69 -> 0 | U62: =[1]data!Y69 -> 2009-09-21
A64: első | B64: qvartilis | C64: =QUARTILE(C$3:C$52,1) -> 21 | D64: =QUARTILE(D$3:D$52,1) -> 12 | E64: 0.2 | F64: 22 | G64: 11 | H64: 0.05 | I64: 21 | J64: 11 | K64: 19 | L64: 9 | M64: 10.25 | N64: 22 | O64: 0.05 | P64: 11 | Q64: 19.25 | R64: 0.1
A65: második | B65: qvartilis | C65: =QUARTILE(C$3:C$52,2) -> 24 | D65: =QUARTILE(D$3:D$52,2) -> 13 | E65: 0.45 | F65: 25 | G65: 13 | H65: 0.05 | I65: 24 | J65: 13 | K65: 22 | L65: 10 | M65: 12 | N65: 25 | O65: 0.05 | P65: 12 | Q65: 22.5 | R65: 0.35
A66: harmadik | B66: qvartilis | C66: =QUARTILE(C$3:C$52,3) -> 26 | D66: =QUARTILE(D$3:D$52,3) -> 15 | E66: 0.6 | F66: 27.75 | G66: 14.75 | H66: 0.3 | I66: 26 | J66: 14 | K66: 24 | L66: 13 | M66: 15 | N66: 28 | O66: 0.45 | P66: 15 | Q66: 24 | R66: 0.7
S68: tény*100
A69: aacsap4 | C69: =IF(C3<C$64,1,IF(C3<C$65,2,IF(C3<C$66,3,4))) -> 4 | D69: =IF(D3<D$64,1,IF(D3<D$65,2,IF(D3<D$66,3,4))) -> 4 | E69: 2 | F69: 4 | G69: 4 | H69: 3 | I69: 4 | J69: 4 | K69: 4 | L69: 4 | M69: 4 | N69: 4 | O69: 3 | P69: 4 | Q69: 4 | R69: 2 | S69: =T3*100 -> 120 | T69: méret: | U69: 50*16(+1)
C70: =IF(C4<C$64,1,IF(C4<C$65,2,IF(C4<C$66,3,4))) -> 4 | D70: 4 | E70: 2 | F70: 4 | G70: 4 | H70: 3 | I70: 4 | J70: 4 | K70: 4 | L70: 4 | M70: 4 | N70: 4 | O70: 3 | P70: 4 | Q70: 4 | R70: 2 | S70: =T4*100 -> 0
C71: =IF(C5<C$64,1,IF(C5<C$65,2,IF(C5<C$66,3,4))) -> 4 | D71: 4 | E71: 3 | F71: 4 | G71: 4 | H71: 4 | I71: 4 | J71: 4 | K71: 4 | L71: 4 | M71: 4 | N71: 4 | O71: 4 | P71: 4 | Q71: 4 | R71: 2 | S71: 0
C72: =IF(C6<C$64,1,IF(C6<C$65,2,IF(C6<C$66,3,4))) -> 3 | D72: 4 | E72: 3 | F72: 3 | G72: 3 | H72: 4 | I72: 3 | J72: 4 | K72: 3 | L72: 3 | M72: 3 | N72: 3 | O72: 4 | P72: 4 | Q72: 3 | R72: 4 | S72: 0
C73: =IF(C7<C$64,1,IF(C7<C$65,2,IF(C7<C$66,3,4))) -> 3 | D73: 4 | E73: 4 | F73: 3 | G73: 4 | H73: 3 | I73: 2 | J73: 4 | K73: 3 | L73: 4 | M73: 3 | N73: 3 | O73: 3 | P73: 4 | Q73: 3 | R73: 4 | S73: 420
C74: =IF(C8<C$64,1,IF(C8<C$65,2,IF(C8<C$66,3,4))) -> 3 | D74: 4 | E74: 3 | F74: 2 | G74: 2 | H74: 4 | I74: 2 | J74: 3 | K74: 3 | L74: 3 | M74: 3 | N74: 2 | O74: 4 | P74: 3 | Q74: 1 | R74: 4 | S74: 0
C75: =IF(C9<C$64,1,IF(C9<C$65,2,IF(C9<C$66,3,4))) -> 1 | D75: 3 | E75: 4 | F75: 1 | G75: 1 | H75: 4 | I75: 1 | J75: 3 | K75: 2 | L75: 3 | M75: 3 | N75: 1 | O75: 4 | P75: 3 | Q75: 1 | R75: 4 | S75: 540
C76: =IF(C10<C$64,1,IF(C10<C$65,2,IF(C10<C$66,3,4))) -> 1 | D76: 3 | E76: 4 | F76: 1 | G76: 2 | H76: 4 | I76: 1 | J76: 2 | K76: 2 | L76: 2 | M76: 3 | N76: 1 | O76: 3 | P76: 3 | Q76: 1 | R76: 4 | S76: 210
C77: =IF(C11<C$64,1,IF(C11<C$65,2,IF(C11<C$66,3,4))) -> 1 | D77: 1 | E77: 3 | F77: 1 | G77: 2 | H77: 4 | I77: 1 | J77: 1 | K77: 1 | L77: 1 | M77: 1 | N77: 1 | O77: 4 | P77: 2 | Q77: 1 | R77: 4 | S77: 110
C78: =IF(C12<C$64,1,IF(C12<C$65,2,IF(C12<C$66,3,4))) -> 1 | D78: 1 | E78: 3 | F78: 1 | G78: 1 | H78: 3 | I78: 1 | J78: 2 | K78: 1 | L78: 3 | M78: 3 | N78: 1 | O78: 3 | P78: 1 | Q78: 1 | R78: 4 | S78: 120
C79: =IF(C13<C$64,1,IF(C13<C$65,2,IF(C13<C$66,3,4))) -> 2 | D79: 1 | E79: 4 | F79: 3 | G79: 4 | H79: 3 | I79: 2 | J79: 1 | K79: 2 | L79: 2 | M79: 2 | N79: 3 | O79: 3 | P79: 2 | Q79: 1 | R79: 2 | S79: 10
C80: =IF(C14<C$64,1,IF(C14<C$65,2,IF(C14<C$66,3,4))) -> 3 | D80: 3 | E80: 1 | F80: 3 | G80: 3 | H80: 3 | I80: 3 | J80: 3 | K80: 3 | L80: 1 | M80: 1 | N80: 3 | O80: 3 | P80: 2 | Q80: 2 | R80: 2 | S80: 990
C81: =IF(C15<C$64,1,IF(C15<C$65,2,IF(C15<C$66,3,4))) -> 3 | D81: 4 | E81: 4 | F81: 2 | G81: 4 | H81: 4 | I81: 3 | J81: 4 | K81: 4 | L81: 4 | M81: 4 | N81: 2 | O81: 4 | P81: 3 | Q81: 4 | R81: 3 | S81: 780
C82: =IF(C16<C$64,1,IF(C16<C$65,2,IF(C16<C$66,3,4))) -> 3 | D82: 4 | E82: 4 | F82: 3 | G82: 4 | H82: 3 | I82: 4 | J82: 4 | K82: 4 | L82: 4 | M82: 4 | N82: 2 | O82: 4 | P82: 4 | Q82: 4 | R82: 3 | S82: 0
C83: =IF(C17<C$64,1,IF(C17<C$65,2,IF(C17<C$66,3,4))) -> 4 | D83: 3 | E83: 1 | F83: 4 | G83: 3 | H83: 3 | I83: 4 | J83: 3 | K83: 4 | L83: 2 | M83: 2 | N83: 4 | O83: 3 | P83: 4 | Q83: 4 | R83: 3 | S83: 0
C84: =IF(C18<C$64,1,IF(C18<C$65,2,IF(C18<C$66,3,4))) -> 3 | D84: 4 | E84: 4 | F84: 3 | G84: 2 | H84: 4 | I84: 4 | J84: 3 | K84: 3 | L84: 4 | M84: 4 | N84: 4 | O84: 3 | P84: 3 | Q84: 4 | R84: 2 | S84: 440
C85: =IF(C19<C$64,1,IF(C19<C$65,2,IF(C19<C$66,3,4))) -> 1 | D85: 3 | E85: 4 | F85: 1 | G85: 1 | H85: 3 | I85: 1 | J85: 3 | K85: 1 | L85: 3 | M85: 3 | N85: 1 | O85: 3 | P85: 4 | Q85: 4 | R85: 4 | S85: 10
C86: =IF(C20<C$64,1,IF(C20<C$65,2,IF(C20<C$66,3,4))) -> 1 | D86: 3 | E86: 4 | F86: 1 | G86: 3 | H86: 3 | I86: 1 | J86: 2 | K86: 1 | L86: 2 | M86: 1 | N86: 1 | O86: 3 | P86: 3 | Q86: 1 | R86: 4 | S86: 380
C87: =IF(C21<C$64,1,IF(C21<C$65,2,IF(C21<C$66,3,4))) -> 2 | D87: 3 | E87: 3 | F87: 2 | G87: 2 | H87: 3 | I87: 1 | J87: 2 | K87: 1 | L87: 3 | M87: 2 | N87: 2 | O87: 3 | P87: 2 | Q87: 2 | R87: 4 | S87: 0
C88: =IF(C22<C$64,1,IF(C22<C$65,2,IF(C22<C$66,3,4))) -> 3 | D88: 2 | E88: 2 | F88: 3 | G88: 4 | H88: 4 | I88: 4 | J88: 2 | K88: 3 | L88: 1 | M88: 2 | N88: 3 | O88: 4 | P88: 3 | Q88: 2 | R88: 2 | S88: 70
C89: =IF(C23<C$64,1,IF(C23<C$65,2,IF(C23<C$66,3,4))) -> 3 | D89: 4 | E89: 4 | F89: 4 | G89: 3 | H89: 4 | I89: 4 | J89: 4 | K89: 3 | L89: 4 | M89: 4 | N89: 4 | O89: 4 | P89: 3 | Q89: 2 | R89: 3 | S89: 230
C90: =IF(C24<C$64,1,IF(C24<C$65,2,IF(C24<C$66,3,4))) -> 3 | D90: 4 | E90: 4 | F90: 2 | G90: 3 | H90: 4 | I90: 4 | J90: 4 | K90: 3 | L90: 4 | M90: 4 | N90: 2 | O90: 3 | P90: 4 | Q90: 4 | R90: 4 | S90: 800
C91: =IF(C25<C$64,1,IF(C25<C$65,2,IF(C25<C$66,3,4))) -> 1 | D91: 3 | E91: 4 | F91: 1 | G91: 1 | H91: 3 | I91: 2 | J91: 3 | K91: 1 | L91: 3 | M91: 3 | N91: 1 | O91: 3 | P91: 4 | Q91: 2 | R91: 3 | S91: 510
C92: =IF(C26<C$64,1,IF(C26<C$65,2,IF(C26<C$66,3,4))) -> 3 | D92: 2 | E92: 1 | F92: 2 | G92: 1 | H92: 3 | I92: 2 | J92: 1 | K92: 2 | L92: 1 | M92: 1 | N92: 2 | O92: 3 | P92: 3 | Q92: 2 | R92: 3 | S92: 0
C93: =IF(C27<C$64,1,IF(C27<C$65,2,IF(C27<C$66,3,4))) -> 4 | D93: 2 | E93: 2 | F93: 4 | G93: 2 | H93: 1 | I93: 3 | J93: 2 | K93: 4 | L93: 3 | M93: 2 | N93: 4 | O93: 1 | P93: 1 | Q93: 3 | R93: 2 | S93: 40
C94: =IF(C28<C$64,1,IF(C28<C$65,2,IF(C28<C$66,3,4))) -> 4 | D94: 2 | E94: 2 | F94: 2 | G94: 2 | H94: 3 | I94: 2 | J94: 3 | K94: 2 | L94: 2 | M94: 2 | N94: 4 | O94: 1 | P94: 1 | Q94: 3 | R94: 2 | S94: 0
C95: =IF(C29<C$64,1,IF(C29<C$65,2,IF(C29<C$66,3,4))) -> 3 | D95: 1 | E95: 1 | F95: 3 | G95: 2 | H95: 3 | I95: 2 | J95: 1 | K95: 2 | L95: 1 | M95: 1 | N95: 3 | O95: 3 | P95: 4 | Q95: 2 | R95: 2 | S95: 0
C96: =IF(C30<C$64,1,IF(C30<C$65,2,IF(C30<C$66,3,4))) -> 4 | D96: 1 | E96: 2 | F96: 3 | G96: 3 | H96: 3 | I96: 4 | J96: 1 | K96: 4 | L96: 2 | M96: 1 | N96: 3 | O96: 3 | P96: 1 | Q96: 1 | R96: 2 | S96: 0
C97: =IF(C31<C$64,1,IF(C31<C$65,2,IF(C31<C$66,3,4))) -> 3 | D97: 4 | E97: 3 | F97: 3 | G97: 2 | H97: 3 | I97: 3 | J97: 4 | K97: 2 | L97: 4 | M97: 4 | N97: 3 | O97: 3 | P97: 3 | Q97: 3 | R97: 2 | S97: 390
C98: =IF(C32<C$64,1,IF(C32<C$65,2,IF(C32<C$66,3,4))) -> 2 | D98: 4 | E98: 4 | F98: 2 | G98: 1 | H98: 3 | I98: 3 | J98: 4 | K98: 2 | L98: 4 | M98: 3 | N98: 2 | O98: 3 | P98: 4 | Q98: 2 | R98: 4 | S98: 0
C99: =IF(C33<C$64,1,IF(C33<C$65,2,IF(C33<C$66,3,4))) -> 4 | D99: 1 | E99: 1 | F99: 3 | G99: 2 | H99: 3 | I99: 4 | J99: 2 | K99: 4 | L99: 1 | M99: 1 | N99: 3 | O99: 3 | P99: 3 | Q99: 2 | R99: 4 | S99: 0
C100: =IF(C34<C$64,1,IF(C34<C$65,2,IF(C34<C$66,3,4))) -> 4 | D100: 3 | E100: 1 | F100: 4 | G100: 3 | H100: 1 | I100: 4 | J100: 2 | K100: 4 | L100: 3 | M100: 1 | N100: 4 | O100: 1 | P100: 3 | Q100: 3 | R100: 2 | S100: 0
C101: =IF(C35<C$64,1,IF(C35<C$65,2,IF(C35<C$66,3,4))) -> 4 | D101: 3 | E101: 1 | F101: 4 | G101: 4 | H101: 3 | I101: 4 | J101: 2 | K101: 4 | L101: 4 | M101: 1 | N101: 4 | O101: 1 | P101: 3 | Q101: 3 | R101: 2 | S101: 0
C102: =IF(C36<C$64,1,IF(C36<C$65,2,IF(C36<C$66,3,4))) -> 4 | D102: 4 | E102: 1 | F102: 4 | G102: 4 | H102: 1 | I102: 4 | J102: 4 | K102: 4 | L102: 4 | M102: 3 | N102: 4 | O102: 1 | P102: 3 | Q102: 4 | R102: 2 | S102: 0
C103: =IF(C37<C$64,1,IF(C37<C$65,2,IF(C37<C$66,3,4))) -> 4 | D103: 4 | E103: 3 | F103: 4 | G103: 4 | H103: 3 | I103: 4 | J103: 4 | K103: 3 | L103: 4 | M103: 4 | N103: 4 | O103: 3 | P103: 3 | Q103: 4 | R103: 2 | S103: 0
C104: =IF(C38<C$64,1,IF(C38<C$65,2,IF(C38<C$66,3,4))) -> 4 | D104: 4 | E104: 4 | F104: 4 | G104: 4 | H104: 4 | I104: 2 | J104: 4 | K104: 4 | L104: 4 | M104: 4 | N104: 4 | O104: 4 | P104: 4 | Q104: 4 | R104: 4 | S104: 0
C105: =IF(C39<C$64,1,IF(C39<C$65,2,IF(C39<C$66,3,4))) -> 3 | D105: 4 | E105: 3 | F105: 4 | G105: 4 | H105: 4 | I105: 2 | J105: 4 | K105: 2 | L105: 4 | M105: 4 | N105: 4 | O105: 4 | P105: 4 | Q105: 4 | R105: 2 | S105: 1500
C106: =IF(C40<C$64,1,IF(C40<C$65,2,IF(C40<C$66,3,4))) -> 2 | D106: 3 | E106: 3 | F106: 2 | G106: 2 | H106: 3 | I106: 2 | J106: 2 | K106: 1 | L106: 3 | M106: 4 | N106: 4 | O106: 4 | P106: 4 | Q106: 3 | R106: 3 | S106: 30
C107: =IF(C41<C$64,1,IF(C41<C$65,2,IF(C41<C$66,3,4))) -> 4 | D107: 3 | E107: 2 | F107: 3 | G107: 3 | H107: 1 | I107: 4 | J107: 3 | K107: 3 | L107: 4 | M107: 3 | N107: 3 | O107: 1 | P107: 3 | Q107: 4 | R107: 2 | S107: 0
C108: =IF(C42<C$64,1,IF(C42<C$65,2,IF(C42<C$66,3,4))) -> 3 | D108: 4 | E108: 2 | F108: 3 | G108: 2 | H108: 3 | I108: 4 | J108: 4 | K108: 2 | L108: 4 | M108: 4 | N108: 3 | O108: 3 | P108: 4 | Q108: 4 | R108: 3 | S108: 20
C109: =IF(C43<C$64,1,IF(C43<C$65,2,IF(C43<C$66,3,4))) -> 2 | D109: 1 | E109: 1 | F109: 1 | G109: 1 | H109: 3 | I109: 2 | J109: 1 | K109: 1 | L109: 1 | M109: 1 | N109: 1 | O109: 3 | P109: 1 | Q109: 1 | R109: 2 | S109: 0
C110: =IF(C44<C$64,1,IF(C44<C$65,2,IF(C44<C$66,3,4))) -> 3 | D110: 1 | E110: 1 | F110: 3 | G110: 1 | H110: 3 | I110: 4 | J110: 1 | K110: 3 | L110: 1 | M110: 1 | N110: 3 | O110: 3 | P110: 1 | Q110: 2 | R110: 2 | S110: 0
C111: =IF(C45<C$64,1,IF(C45<C$65,2,IF(C45<C$66,3,4))) -> 2 | D111: 3 | E111: 2 | F111: 2 | G111: 3 | H111: 3 | I111: 2 | J111: 4 | K111: 2 | L111: 3 | M111: 3 | N111: 2 | O111: 3 | P111: 4 | Q111: 2 | R111: 3 | S111: 0
C112: =IF(C46<C$64,1,IF(C46<C$65,2,IF(C46<C$66,3,4))) -> 1 | D112: 2 | E112: 3 | F112: 2 | G112: 3 | H112: 3 | I112: 2 | J112: 2 | K112: 1 | L112: 3 | M112: 3 | N112: 2 | O112: 3 | P112: 3 | Q112: 1 | R112: 3 | S112: 460
C113: =IF(C47<C$64,1,IF(C47<C$65,2,IF(C47<C$66,3,4))) -> 1 | D113: 3 | E113: 4 | F113: 1 | G113: 2 | H113: 4 | I113: 1 | J113: 3 | K113: 1 | L113: 3 | M113: 3 | N113: 1 | O113: 4 | P113: 2 | Q113: 1 | R113: 4 | S113: 1230
C114: =IF(C48<C$64,1,IF(C48<C$65,2,IF(C48<C$66,3,4))) -> 1 | D114: 1 | E114: 2 | F114: 1 | G114: 1 | H114: 3 | I114: 1 | J114: 1 | K114: 1 | L114: 3 | M114: 1 | N114: 1 | O114: 3 | P114: 1 | Q114: 1 | R114: 2 | S114: 0
C115: =IF(C49<C$64,1,IF(C49<C$65,2,IF(C49<C$66,3,4))) -> 2 | D115: 1 | E115: 2 | F115: 2 | G115: 2 | H115: 3 | I115: 2 | J115: 1 | K115: 1 | L115: 1 | M115: 1 | N115: 2 | O115: 3 | P115: 1 | Q115: 2 | R115: 2 | S115: 0
C116: =IF(C50<C$64,1,IF(C50<C$65,2,IF(C50<C$66,3,4))) -> 3 | D116: 1 | E116: 1 | F116: 3 | G116: 3 | H116: 3 | I116: 3 | J116: 1 | K116: 3 | L116: 1 | M116: 2 | N116: 3 | O116: 3 | P116: 2 | Q116: 4 | R116: 2 | S116: 0
C117: =IF(C51<C$64,1,IF(C51<C$65,2,IF(C51<C$66,3,4))) -> 4 | D117: 1 | E117: 1 | F117: 4 | G117: 3 | H117: 3 | I117: 3 | J117: 2 | K117: 4 | L117: 3 | M117: 3 | N117: 4 | O117: 3 | P117: 3 | Q117: 4 | R117: 2 | S117: 0
C118: =IF(C52<C$64,1,IF(C52<C$65,2,IF(C52<C$66,3,4))) -> 2 | D118: 3 | E118: 2 | F118: 1 | G118: 2 | H118: 3 | I118: 1 | J118: 2 | K118: 2 | L118: 3 | M118: 3 | N118: 1 | O118: 3 | P118: 3 | Q118: 1 | R118: 2 | S118: 0
C119: =IF(C53<C$64,1,IF(C53<C$65,2,IF(C53<C$66,3,4))) -> 1 | D119: 1 | E119: 2 | F119: 2 | G119: 1 | H119: 3 | I119: 1 | J119: 1 | K119: 1 | L119: 2 | M119: 3 | N119: 2 | O119: 3 | P119: 3 | Q119: 1 | R119: 2 | S119: 0
C120: =IF(C54<C$64,1,IF(C54<C$65,2,IF(C54<C$66,3,4))) -> 1 | D120: 1 | E120: 2 | F120: 1 | G120: 3 | H120: 4 | I120: 1 | J120: 1 | K120: 1 | L120: 1 | M120: 3 | N120: 1 | O120: 3 | P120: 3 | Q120: 1 | R120: 2 | S120: 220
C121: =IF(C55<C$64,1,IF(C55<C$65,2,IF(C55<C$66,3,4))) -> 1 | D121: 1 | E121: 2 | F121: 1 | G121: 2 | H121: 3 | I121: 1 | J121: 1 | K121: 1 | L121: 2 | M121: 2 | N121: 1 | O121: 4 | P121: 2 | Q121: 1 | R121: 4 | S121: 1320
C122: =IF(C56<C$64,1,IF(C56<C$65,2,IF(C56<C$66,3,4))) -> 1 | D122: 1 | E122: 4 | F122: 1 | G122: 2 | H122: 4 | I122: 2 | J122: 1 | K122: 1 | L122: 1 | M122: 2 | N122: 1 | O122: 3 | P122: 1 | Q122: 1 | R122: 4 | S122: 120
C123: =IF(C57<C$64,1,IF(C57<C$65,2,IF(C57<C$66,3,4))) -> 3 | D123: 2 | E123: 1 | F123: 3 | G123: 4 | H123: 3 | I123: 2 | J123: 1 | K123: 3 | L123: 3 | M123: 3 | N123: 3 | O123: 3 | P123: 2 | Q123: 3 | R123: 2 | S123: 0
C124: =IF(C58<C$64,1,IF(C58<C$65,2,IF(C58<C$66,3,4))) -> 2 | D124: 3 | E124: 1 | F124: 2 | G124: 2 | H124: 3 | I124: 1 | J124: 2 | K124: 2 | L124: 4 | M124: 3 | N124: 2 | O124: 3 | P124: 3 | Q124: 2 | R124: 3 | S124: 0
C125: =IF(C59<C$64,1,IF(C59<C$65,2,IF(C59<C$66,3,4))) -> 2 | D125: 1 | E125: 1 | F125: 2 | G125: 1 | H125: 1 | I125: 1 | J125: 1 | K125: 2 | L125: 1 | M125: 1 | N125: 2 | O125: 1 | P125: 1 | Q125: 2 | R125: 2 | S125: 0
C126: =IF(C60<C$64,1,IF(C60<C$65,2,IF(C60<C$66,3,4))) -> 2 | D126: 1 | E126: 1 | F126: 2 | G126: 1 | H126: 1 | I126: 2 | J126: 1 | K126: 2 | L126: 3 | M126: 1 | N126: 2 | O126: 1 | P126: 2 | Q126: 2 | R126: 2 | S126: 0
C127: =IF(C61<C$64,1,IF(C61<C$65,2,IF(C61<C$66,3,4))) -> 2 | D127: 2 | E127: 2 | F127: 3 | G127: 1 | H127: 1 | I127: 2 | J127: 2 | K127: 2 | L127: 3 | M127: 1 | N127: 2 | O127: 1 | P127: 3 | Q127: 2 | R127: 2 | S127: 0
C128: =IF(C62<C$64,1,IF(C62<C$65,2,IF(C62<C$66,3,4))) -> 2 | D128: 3 | E128: 3 | F128: 3 | G128: 2 | H128: 3 | I128: 2 | J128: 2 | K128: 2 | L128: 3 | M128: 3 | N128: 3 | O128: 3 | P128: 3 | Q128: 3 | R128: 2 | S128: 0
A130: LINEÁRIS közelítés (additív)
A132: A feladat alapadatainak visszaigazolása: | B132: -
A133: Feladat azonosítója: | B133: aacsap4
A134: Objektumok (primer sorok) száma: | B134: 50
A135: X-attribútumok (oszlopok) száma: | B135: 16
A136: Lépcsők száma: | B136: 4
A137: Az eltolás mértéke | B137: 0
A138: A feladat részletes jellemzése | B138: MCM: demo
A141: Rangsorszámok | B141: X (A1) | C141: X (A2) | D141: X (A3) | E141: X (A4) | F141: X (A5) | G141: X (A6) | H141: X (A7) | I141: X (A8) | J141: X (A9) | K141: X (A10) | L141: X (A11) | M141: X (A12) | N141: X (A13) | O141: X (A14) | P141: X (A15) | Q141: X (A16) | R141: Y (A17)
A142: feladatkód N°= aacsap4
A143: O(1) | B143: 4 | C143: 4 | D143: 2 | E143: 4 | F143: 4 | G143: 3 | H143: 4 | I143: 4 | J143: 4 | K143: 4 | L143: 4 | M143: 4 | N143: 3 | O143: 4 | P143: 4 | Q143: 2 | R143: 120
A144: O(2) | B144: 4 | C144: 4 | D144: 2 | E144: 4 | F144: 4 | G144: 3 | H144: 4 | I144: 4 | J144: 4 | K144: 4 | L144: 4 | M144: 4 | N144: 3 | O144: 4 | P144: 4 | Q144: 2 | R144: 0
A145: O(3) | B145: 4 | C145: 4 | D145: 3 | E145: 4 | F145: 4 | G145: 4 | H145: 4 | I145: 4 | J145: 4 | K145: 4 | L145: 4 | M145: 4 | N145: 4 | O145: 4 | P145: 4 | Q145: 2 | R145: 0
A146: O(4) | B146: 3 | C146: 4 | D146: 3 | E146: 3 | F146: 3 | G146: 4 | H146: 3 | I146: 4 | J146: 3 | K146: 3 | L146: 3 | M146: 3 | N146: 4 | O146: 4 | P146: 3 | Q146: 4 | R146: 0
A147: O(5) | B147: 3 | C147: 4 | D147: 4 | E147: 3 | F147: 4 | G147: 3 | H147: 2 | I147: 4 | J147: 3 | K147: 4 | L147: 3 | M147: 3 | N147: 3 | O147: 4 | P147: 3 | Q147: 4 | R147: 420
A148: O(6) | B148: 3 | C148: 4 | D148: 3 | E148: 2 | F148: 2 | G148: 4 | H148: 2 | I148: 3 | J148: 3 | K148: 3 | L148: 3 | M148: 2 | N148: 4 | O148: 3 | P148: 1 | Q148: 4 | R148: 0
A149: O(7) | B149: 1 | C149: 3 | D149: 4 | E149: 1 | F149: 1 | G149: 4 | H149: 1 | I149: 3 | J149: 2 | K149: 3 | L149: 3 | M149: 1 | N149: 4 | O149: 3 | P149: 1 | Q149: 4 | R149: 540
A150: O(8) | B150: 1 | C150: 3 | D150: 4 | E150: 1 | F150: 2 | G150: 4 | H150: 1 | I150: 2 | J150: 2 | K150: 2 | L150: 3 | M150: 1 | N150: 3 | O150: 3 | P150: 1 | Q150: 4 | R150: 210
A151: O(9) | B151: 1 | C151: 1 | D151: 3 | E151: 1 | F151: 2 | G151: 4 | H151: 1 | I151: 1 | J151: 1 | K151: 1 | L151: 1 | M151: 1 | N151: 4 | O151: 2 | P151: 1 | Q151: 4 | R151: 110
A152: O(10) | B152: 1 | C152: 1 | D152: 3 | E152: 1 | F152: 1 | G152: 3 | H152: 1 | I152: 2 | J152: 1 | K152: 3 | L152: 3 | M152: 1 | N152: 3 | O152: 1 | P152: 1 | Q152: 4 | R152: 120
A153: O(11) | B153: 2 | C153: 1 | D153: 4 | E153: 3 | F153: 4 | G153: 3 | H153: 2 | I153: 1 | J153: 2 | K153: 2 | L153: 2 | M153: 3 | N153: 3 | O153: 2 | P153: 1 | Q153: 2 | R153: 10
A154: O(12) | B154: 3 | C154: 3 | D154: 1 | E154: 3 | F154: 3 | G154: 3 | H154: 3 | I154: 3 | J154: 3 | K154: 1 | L154: 1 | M154: 3 | N154: 3 | O154: 2 | P154: 2 | Q154: 2 | R154: 990
A155: O(13) | B155: 3 | C155: 4 | D155: 4 | E155: 2 | F155: 4 | G155: 4 | H155: 3 | I155: 4 | J155: 4 | K155: 4 | L155: 4 | M155: 2 | N155: 4 | O155: 3 | P155: 4 | Q155: 3 | R155: 780
A156: O(14) | B156: 3 | C156: 4 | D156: 4 | E156: 3 | F156: 4 | G156: 3 | H156: 4 | I156: 4 | J156: 4 | K156: 4 | L156: 4 | M156: 2 | N156: 4 | O156: 4 | P156: 4 | Q156: 3 | R156: 0
A157: O(15) | B157: 4 | C157: 3 | D157: 1 | E157: 4 | F157: 3 | G157: 3 | H157: 4 | I157: 3 | J157: 4 | K157: 2 | L157: 2 | M157: 4 | N157: 3 | O157: 4 | P157: 4 | Q157: 3 | R157: 0
A158: O(16) | B158: 3 | C158: 4 | D158: 4 | E158: 3 | F158: 2 | G158: 4 | H158: 4 | I158: 3 | J158: 3 | K158: 4 | L158: 4 | M158: 4 | N158: 3 | O158: 3 | P158: 4 | Q158: 2 | R158: 440
A159: O(17) | B159: 1 | C159: 3 | D159: 4 | E159: 1 | F159: 1 | G159: 3 | H159: 1 | I159: 3 | J159: 1 | K159: 3 | L159: 3 | M159: 1 | N159: 3 | O159: 4 | P159: 4 | Q159: 4 | R159: 10
A160: O(18) | B160: 1 | C160: 3 | D160: 4 | E160: 1 | F160: 3 | G160: 3 | H160: 1 | I160: 2 | J160: 1 | K160: 2 | L160: 1 | M160: 1 | N160: 3 | O160: 3 | P160: 1 | Q160: 4 | R160: 380
A161: O(19) | B161: 2 | C161: 3 | D161: 3 | E161: 2 | F161: 2 | G161: 3 | H161: 1 | I161: 2 | J161: 1 | K161: 3 | L161: 2 | M161: 2 | N161: 3 | O161: 2 | P161: 2 | Q161: 4 | R161: 0
A162: O(20) | B162: 3 | C162: 2 | D162: 2 | E162: 3 | F162: 4 | G162: 4 | H162: 4 | I162: 2 | J162: 3 | K162: 1 | L162: 2 | M162: 3 | N162: 4 | O162: 3 | P162: 2 | Q162: 2 | R162: 70
A163: O(21) | B163: 3 | C163: 4 | D163: 4 | E163: 4 | F163: 3 | G163: 4 | H163: 4 | I163: 4 | J163: 3 | K163: 4 | L163: 4 | M163: 4 | N163: 4 | O163: 3 | P163: 2 | Q163: 3 | R163: 230
A164: O(22) | B164: 3 | C164: 4 | D164: 4 | E164: 2 | F164: 3 | G164: 4 | H164: 4 | I164: 4 | J164: 3 | K164: 4 | L164: 4 | M164: 2 | N164: 3 | O164: 4 | P164: 4 | Q164: 4 | R164: 800
A165: O(23) | B165: 1 | C165: 3 | D165: 4 | E165: 1 | F165: 1 | G165: 3 | H165: 2 | I165: 3 | J165: 1 | K165: 3 | L165: 3 | M165: 1 | N165: 3 | O165: 4 | P165: 2 | Q165: 3 | R165: 510
A166: O(24) | B166: 3 | C166: 2 | D166: 1 | E166: 2 | F166: 1 | G166: 3 | H166: 2 | I166: 1 | J166: 2 | K166: 1 | L166: 1 | M166: 2 | N166: 3 | O166: 3 | P166: 2 | Q166: 3 | R166: 0
A167: O(25) | B167: 4 | C167: 2 | D167: 2 | E167: 4 | F167: 2 | G167: 1 | H167: 3 | I167: 2 | J167: 4 | K167: 3 | L167: 2 | M167: 4 | N167: 1 | O167: 1 | P167: 3 | Q167: 2 | R167: 40
A168: O(26) | B168: 4 | C168: 2 | D168: 2 | E168: 2 | F168: 2 | G168: 3 | H168: 2 | I168: 3 | J168: 2 | K168: 2 | L168: 2 | M168: 4 | N168: 1 | O168: 1 | P168: 3 | Q168: 2 | R168: 0
A169: O(27) | B169: 3 | C169: 1 | D169: 1 | E169: 3 | F169: 2 | G169: 3 | H169: 2 | I169: 1 | J169: 2 | K169: 1 | L169: 1 | M169: 3 | N169: 3 | O169: 4 | P169: 2 | Q169: 2 | R169: 0
A170: O(28) | B170: 4 | C170: 1 | D170: 2 | E170: 3 | F170: 3 | G170: 3 | H170: 4 | I170: 1 | J170: 4 | K170: 2 | L170: 1 | M170: 3 | N170: 3 | O170: 1 | P170: 1 | Q170: 2 | R170: 0
A171: O(29) | B171: 3 | C171: 4 | D171: 3 | E171: 3 | F171: 2 | G171: 3 | H171: 3 | I171: 4 | J171: 2 | K171: 4 | L171: 4 | M171: 3 | N171: 3 | O171: 3 | P171: 3 | Q171: 2 | R171: 390
A172: O(30) | B172: 2 | C172: 4 | D172: 4 | E172: 2 | F172: 1 | G172: 3 | H172: 3 | I172: 4 | J172: 2 | K172: 4 | L172: 3 | M172: 2 | N172: 3 | O172: 4 | P172: 2 | Q172: 4 | R172: 0
A173: O(31) | B173: 4 | C173: 1 | D173: 1 | E173: 3 | F173: 2 | G173: 3 | H173: 4 | I173: 2 | J173: 4 | K173: 1 | L173: 1 | M173: 3 | N173: 3 | O173: 3 | P173: 2 | Q173: 4 | R173: 0
A174: O(32) | B174: 4 | C174: 3 | D174: 1 | E174: 4 | F174: 3 | G174: 1 | H174: 4 | I174: 2 | J174: 4 | K174: 3 | L174: 1 | M174: 4 | N174: 1 | O174: 3 | P174: 3 | Q174: 2 | R174: 0
A175: O(33) | B175: 4 | C175: 3 | D175: 1 | E175: 4 | F175: 4 | G175: 3 | H175: 4 | I175: 2 | J175: 4 | K175: 4 | L175: 1 | M175: 4 | N175: 1 | O175: 3 | P175: 3 | Q175: 2 | R175: 0
A176: O(34) | B176: 4 | C176: 4 | D176: 1 | E176: 4 | F176: 4 | G176: 1 | H176: 4 | I176: 4 | J176: 4 | K176: 4 | L176: 3 | M176: 4 | N176: 1 | O176: 3 | P176: 4 | Q176: 2 | R176: 0
A177: O(35) | B177: 4 | C177: 4 | D177: 3 | E177: 4 | F177: 4 | G177: 3 | H177: 4 | I177: 4 | J177: 3 | K177: 4 | L177: 4 | M177: 4 | N177: 3 | O177: 3 | P177: 4 | Q177: 2 | R177: 0
A178: O(36) | B178: 4 | C178: 4 | D178: 4 | E178: 4 | F178: 4 | G178: 4 | H178: 2 | I178: 4 | J178: 4 | K178: 4 | L178: 4 | M178: 4 | N178: 4 | O178: 4 | P178: 4 | Q178: 4 | R178: 0
A179: O(37) | B179: 3 | C179: 4 | D179: 3 | E179: 4 | F179: 4 | G179: 4 | H179: 2 | I179: 4 | J179: 2 | K179: 4 | L179: 4 | M179: 4 | N179: 4 | O179: 4 | P179: 4 | Q179: 2 | R179: 1500
A180: O(38) | B180: 2 | C180: 3 | D180: 3 | E180: 2 | F180: 2 | G180: 3 | H180: 2 | I180: 2 | J180: 1 | K180: 3 | L180: 4 | M180: 4 | N180: 4 | O180: 4 | P180: 3 | Q180: 3 | R180: 30
A181: O(39) | B181: 4 | C181: 3 | D181: 2 | E181: 3 | F181: 3 | G181: 1 | H181: 4 | I181: 3 | J181: 3 | K181: 4 | L181: 3 | M181: 3 | N181: 1 | O181: 3 | P181: 4 | Q181: 2 | R181: 0
A182: O(40) | B182: 3 | C182: 4 | D182: 2 | E182: 3 | F182: 2 | G182: 3 | H182: 4 | I182: 4 | J182: 2 | K182: 4 | L182: 4 | M182: 3 | N182: 3 | O182: 4 | P182: 4 | Q182: 3 | R182: 20
A183: O(41) | B183: 2 | C183: 1 | D183: 1 | E183: 1 | F183: 1 | G183: 3 | H183: 2 | I183: 1 | J183: 1 | K183: 1 | L183: 1 | M183: 1 | N183: 3 | O183: 1 | P183: 1 | Q183: 2 | R183: 0
A184: O(42) | B184: 3 | C184: 1 | D184: 1 | E184: 3 | F184: 1 | G184: 3 | H184: 4 | I184: 1 | J184: 3 | K184: 1 | L184: 1 | M184: 3 | N184: 3 | O184: 1 | P184: 2 | Q184: 2 | R184: 0
A185: O(43) | B185: 2 | C185: 3 | D185: 2 | E185: 2 | F185: 3 | G185: 3 | H185: 2 | I185: 4 | J185: 2 | K185: 3 | L185: 3 | M185: 2 | N185: 3 | O185: 4 | P185: 2 | Q185: 3 | R185: 0
A186: O(44) | B186: 1 | C186: 2 | D186: 3 | E186: 2 | F186: 3 | G186: 3 | H186: 2 | I186: 2 | J186: 1 | K186: 3 | L186: 3 | M186: 2 | N186: 3 | O186: 3 | P186: 1 | Q186: 3 | R186: 460
A187: O(45) | B187: 1 | C187: 3 | D187: 4 | E187: 1 | F187: 2 | G187: 4 | H187: 1 | I187: 3 | J187: 1 | K187: 3 | L187: 3 | M187: 1 | N187: 4 | O187: 2 | P187: 1 | Q187: 4 | R187: 1230
A188: O(46) | B188: 1 | C188: 1 | D188: 2 | E188: 1 | F188: 1 | G188: 3 | H188: 1 | I188: 1 | J188: 1 | K188: 3 | L188: 1 | M188: 1 | N188: 3 | O188: 1 | P188: 1 | Q188: 2 | R188: 0
A189: O(47) | B189: 2 | C189: 1 | D189: 2 | E189: 2 | F189: 2 | G189: 3 | H189: 2 | I189: 1 | J189: 1 | K189: 1 | L189: 1 | M189: 2 | N189: 3 | O189: 1 | P189: 2 | Q189: 2 | R189: 0
A190: O(48) | B190: 3 | C190: 1 | D190: 1 | E190: 3 | F190: 3 | G190: 3 | H190: 3 | I190: 1 | J190: 3 | K190: 1 | L190: 2 | M190: 3 | N190: 3 | O190: 2 | P190: 4 | Q190: 2 | R190: 0
A191: O(49) | B191: 4 | C191: 1 | D191: 1 | E191: 4 | F191: 3 | G191: 3 | H191: 3 | I191: 2 | J191: 4 | K191: 3 | L191: 3 | M191: 4 | N191: 3 | O191: 3 | P191: 4 | Q191: 2 | R191: 0
A192: O(50) | B192: 2 | C192: 3 | D192: 2 | E192: 1 | F192: 2 | G192: 3 | H192: 1 | I192: 2 | J192: 2 | K192: 3 | L192: 3 | M192: 1 | N192: 3 | O192: 3 | P192: 1 | Q192: 2 | R192: 0
A193: Lépcsők (átlag) | B193: X (A1) | C193: X (A2) | D193: X (A3) | E193: X (A4) | F193: X (A5) | G193: X (A6) | H193: X (A7) | I193: X (A8) | J193: X (A9) | K193: X (A10) | L193: X (A11) | M193: X (A12) | N193: X (A13) | O193: X (A14) | P193: X (A15) | Q193: X (A16)
A194: feladatkód N°= aacsap4
A195: S1 | B195: (0+380)/2=190 | C195: (0+0)/2=0 | D195: (0+0)/2=0 | E195: (0+0)/2=0 | F195: (0+0)/2=0 | G195: (0+0)/2=0 | H195: (0+0)/2=0 | I195: (0+0)/2=0 | J195: (0+0)/2=0 | K195: (0+0)/2=0 | L195: (0+0)/2=0 | M195: (0+0)/2=0 | N195: (0+0)/2=0 | O195: (0+0)/2=0 | P195: (0+0)/2=0 | Q195: (0+0)/2=0
A196: S2 | B196: (0+0)/2=0 | C196: (0+0)/2=0 | D196: (0+0)/2=0 | E196: (0+0)/2=0 | F196: (0+0)/2=0 | G196: (0+0)/2=0 | H196: (0+130)/2=65 | I196: (0+0)/2=0 | J196: (0+0)/2=0 | K196: (0+0)/2=0 | L196: (0+0)/2=0 | M196: (0+0)/2=0 | N196: (0+0)/2=0 | O196: (0+560)/2=280 | P196: (0+0)/2=0 | Q196: (0+0)/2=0
A197: S3 | B197: (0+430)/2=215 | C197: (0+0)/2=0 | D197: (0+530)/2=265 | E197: (0+0)/2=0 | F197: (0+0)/2=0 | G197: (0+0)/2=0 | H197: (0+0)/2=0 | I197: (0+0)/2=0 | J197: (0+0)/2=0 | K197: (0+0)/2=0 | L197: (0+0)/2=0 | M197: (0+0)/2=0 | N197: (0+0)/2=0 | O197: (0+0)/2=0 | P197: (0+0)/2=0 | Q197: (0+0)/2=0
A198: S4 | B198: (0+0)/2=0 | C198: (0+0)/2=0 | D198: (0+0)/2=0 | E198: (0+40)/2=20 | F198: (0+0)/2=0 | G198: (0+290)/2=145 | H198: (0+0)/2=0 | I198: (0+0)/2=0 | J198: (0+0)/2=0 | K198: (0+0)/2=0 | L198: (0+80)/2=40 | M198: (0+0)/2=0 | N198: (0+0)/2=0 | O198: (0+0)/2=0 | P198: (0+0)/2=0 | Q198: (0+0)/2=0
A199: Lépcsők (átlag) | B199: X (A1) | C199: X (A2) | D199: X (A3) | E199: X (A4) | F199: X (A5) | G199: X (A6) | H199: X (A7) | I199: X (A8) | J199: X (A9) | K199: X (A10) | L199: X (A11) | M199: X (A12) | N199: X (A13) | O199: X (A14) | P199: X (A15) | Q199: X (A16)
A200: feladatkód N°= aacsap4
A201: S1 | B201: 190 | C201: 0 | D201: 0 | E201: 0 | F201: 0 | G201: 0 | H201: 0 | I201: 0 | J201: 0 | K201: 0 | L201: 0 | M201: 0 | N201: 0 | O201: 0 | P201: 0 | Q201: 0
A202: S2 | B202: 0 | C202: 0 | D202: 0 | E202: 0 | F202: 0 | G202: 0 | H202: 65 | I202: 0 | J202: 0 | K202: 0 | L202: 0 | M202: 0 | N202: 0 | O202: 280 | P202: 0 | Q202: 0
A203: S3 | B203: 215 | C203: 0 | D203: 265 | E203: 0 | F203: 0 | G203: 0 | H203: 0 | I203: 0 | J203: 0 | K203: 0 | L203: 0 | M203: 0 | N203: 0 | O203: 0 | P203: 0 | Q203: 0
A204: S4 | B204: 0 | C204: 0 | D204: 0 | E204: 20 | F204: 0 | G204: 145 | H204: 0 | I204: 0 | J204: 0 | K204: 0 | L204: 40 | M204: 0 | N204: 0 | O204: 0 | P204: 0 | Q204: 0
A205: COCO-matrix N°: aacsap4 | B205: X (A1) | C205: X (A2) | D205: X (A3) | E205: X (A4) | F205: X (A5) | G205: X (A6) | H205: X (A7) | I205: X (A8) | J205: X (A9) | K205: X (A10) | L205: X (A11) | M205: X (A12) | N205: X (A13) | O205: X (A14) | P205: X (A15) | Q205: X (A16) | R205: Y(*) (A17) | S205: Y | T205: delta | U205: % | Y205: 3.34
W206: visszakorrigált | X206: visszakorrigált | Y206: prognózis | Z206: találat
... 65 more rows

Sheet maxar1
A1: adatgyűjtés | B1: progn. | C1: weatheronline | D1: weatheronline | E1: weatheronline | F1: kurier | G1: kurier | H1: kurier | I1: wetter.rtl | J1: wetter.rtl | K1: raiffeisen | L1: raiffeisen | M1: stern | N1: stern | O1: stern | P1: wetter.exite | Q1: wetter.exite | R1: wetter.exite | S1: progn. | T1: delta tények | U1: tények
A2: kelte | B2: kelte | C2: T-max | D2: T-min | E2: Rain-risk | F2: max | G2: min | H2: niederschlag | I2: max | J2: min | K2: max | L2: min | M2: min | N2: max | O2: niederschlag | P2: min | Q2: max | R2: niederschlag | S2: kelte | T2: maxhő | U2: kelt
A3: 2009-06-29 | B3: 2009-06-28 | C3: =data!C10 -> 29 | D3: =data!D10 -> 18 | E3: =data!E10 -> 0.35 | F3: =data!F10 -> 31 | G3: =data!G10 -> 16 | H3: =data!H10 -> 0.05 | I3: =data!I10 -> 29 | J3: =data!J10 -> 16 | K3: =data!K10 -> 29 | L3: =data!L10 -> 15 | M3: =data!M10 -> 16 | N3: =data!N10 -> 31 | O3: =data!O10 -> 0.05 | P3: =data!P10 -> 17 | Q3: =data!Q10 -> 27 | R3: =data!R10 -> 0.1 | S3: 2009-06-28 | T3: =data!T10-data!Y10 -> 6.6 | U3: =[1]data!Y10 -> 2009-07-02
A4: 2009-06-30 | B4: 2009-06-29 | C4: =data!C11 -> 30 | D4: =data!D11 -> 19 | E4: =data!E11 -> 0.3 | F4: =data!F11 -> 31 | G4: =data!G11 -> 15 | H4: =data!H11 -> 0.05 | I4: =data!I11 -> 28 | J4: =data!J11 -> 16 | K4: =data!K11 -> 29 | L4: =data!L11 -> 13 | M4: =data!M11 -> 16 | N4: =data!N11 -> 31 | O4: =data!O11 -> 0.05 | P4: =data!P11 -> 17 | Q4: =data!Q11 -> 27 | R4: =data!R11 -> 0.1 | S4: 2009-06-29 | T4: =data!T11-data!Y11 -> 1.6 | U4: =[1]data!Y11 -> 2009-07-03
A5: 2009-07-01 | B5: 2009-06-30 | C5: =data!C12 -> 30 | D5: =data!D12 -> 19 | E5: =data!E12 -> 0.45 | F5: =data!F12 -> 31 | G5: =data!G12 -> 18 | H5: =data!H12 -> 0.5 | I5: =data!I12 -> 26 | J5: =data!J12 -> 17 | K5: =data!K12 -> 24 | L5: =data!L12 -> 15 | M5: =data!M12 -> 18 | N5: =data!N12 -> 31 | O5: =data!O12 -> 0.5 | P5: =data!P12 -> 17 | Q5: =data!Q12 -> 27 | R5: =data!R12 -> 0.1 | S5: 2009-06-30 | T5: =data!T12-data!Y12 -> -0.3 | U5: =[1]data!Y12 -> 2009-07-04
A6: 2009-07-02 | B6: 2009-07-01 | C6: =data!C13 -> 25 | D6: =data!D13 -> 15 | E6: =data!E13 -> 0.55 | F6: =data!F13 -> 27 | G6: =data!G13 -> 14 | H6: =data!H13 -> 0.5 | I6: =data!I13 -> 24 | J6: =data!J13 -> 14 | K6: =data!K13 -> 22 | L6: =data!L13 -> 10 | M6: =data!M13 -> 14 | N6: =data!N13 -> 27 | O6: =data!O13 -> 0.5 | P6: =data!P13 -> 16 | Q6: =data!Q13 -> 23 | R6: =data!R13 -> 0.8 | S6: 2009-07-01 | T6: =data!T13-data!Y13 -> -1.5 | U6: =[1]data!Y13 -> 2009-07-05
A7: 2009-07-03 | B7: 2009-07-02 | C7: =data!C14 -> 24 | D7: =data!D14 -> 15 | E7: =data!E14 -> 0.6 | F7: =data!F14 -> 26 | G7: =data!G14 -> 16 | H7: =data!H14 -> 0.05 | I7: =data!I14 -> 22 | J7: =data!J14 -> 14 | K7: =data!K14 -> 22 | L7: =data!L14 -> 13 | M7: =data!M14 -> 12 | N7: =data!N14 -> 26 | O7: =data!O14 -> 0.05 | P7: =data!P14 -> 15 | Q7: =data!Q14 -> 23 | R7: =data!R14 -> 0.8 | S7: 2009-07-02 | T7: =data!T14-data!Y14 -> -5.2 | U7: =[1]data!Y14 -> 2009-07-06
A8: 2009-07-04 | B8: 2009-07-03 | C8: =data!C15 -> 24 | D8: =data!D15 -> 16 | E8: =data!E15 -> 0.45 | F8: =data!F15 -> 22 | G8: =data!G15 -> 12 | H8: =data!H15 -> 0.5 | I8: =data!I15 -> 21 | J8: =data!J15 -> 13 | K8: =data!K15 -> 22 | L8: =data!L15 -> 12 | M8: =data!M15 -> 12 | N8: =data!N15 -> 22 | O8: =data!O15 -> 0.5 | P8: =data!P15 -> 12 | Q8: =data!Q15 -> 19 | R8: =data!R15 -> 0.7 | S8: 2009-07-03 | T8: =data!T15-data!Y15 -> -7.4 | U8: =[1]data!Y15 -> 2009-07-07
A9: 2009-07-05 | B9: 2009-07-04 | C9: =data!C16 -> 19 | D9: =data!D16 -> 14 | E9: =data!E16 -> 0.85 | F9: =data!F16 -> 21 | G9: =data!G16 -> 10 | H9: =data!H16 -> 0.5 | I9: =data!I16 -> 20 | J9: =data!J16 -> 13 | K9: =data!K16 -> 19 | L9: =data!L16 -> 10 | M9: =data!M16 -> 14 | N9: =data!N16 -> 21 | O9: =data!O16 -> 0.5 | P9: =data!P16 -> 12 | Q9: =data!Q16 -> 16 | R9: =data!R16 -> 0.8 | S9: 2009-07-04 | T9: =data!T16-data!Y16 -> -8.8 | U9: =[1]data!Y16 -> 2009-07-08
A10: 2009-07-06 | B10: 2009-07-05 | C10: =data!C17 -> 18 | D10: =data!D17 -> 13 | E10: =data!E17 -> 0.6 | F10: =data!F17 -> 16 | G10: =data!G17 -> 11 | H10: =data!H17 -> 0.3 | I10: =data!I17 -> 19 | J10: =data!J17 -> 11 | K10: =data!K17 -> 20 | L10: =data!L17 -> 9 | M10: =data!M17 -> 14 | N10: =data!N17 -> 16 | O10: =data!O17 -> 0.3 | P10: =data!P17 -> 12 | Q10: =data!Q17 -> 16 | R10: =data!R17 -> 0.8 | S10: 2009-07-05 | T10: =data!T17-data!Y17 -> -7.3 | U10: =[1]data!Y17 -> 2009-07-09
A11: 2009-07-07 | B11: 2009-07-06 | C11: =data!C18 -> 17 | D11: =data!D18 -> 9 | E11: =data!E18 -> 0.55 | F11: =data!F18 -> 19 | G11: =data!G18 -> 12 | H11: =data!H18 -> 0.5 | I11: =data!I18 -> 17 | J11: =data!J18 -> 9 | K11: =data!K18 -> 13 | L11: =data!L18 -> 6 | M11: =data!M18 -> 8 | N11: =data!N18 -> 19 | O11: =data!O18 -> 0.5 | P11: =data!P18 -> 11 | Q11: =data!Q18 -> 15 | R11: =data!R18 -> 0.8 | S11: 2009-07-06 | T11: =data!T18-data!Y18 -> -8.7 | U11: =[1]data!Y18 -> 2009-07-10
A12: 2009-07-08 | B12: 2009-07-07 | C12: =data!C19 -> 19 | D12: =data!D19 -> 11 | E12: =data!E19 -> 0.45 | F12: =data!F19 -> 19 | G12: =data!G19 -> 7 | H12: =data!H19 -> 0.15 | I12: =data!I19 -> 19 | J12: =data!J19 -> 11 | K12: =data!K19 -> 18 | L12: =data!L19 -> 10 | M12: =data!M19 -> 12 | N12: =data!N19 -> 19 | O12: =data!O19 -> 0.15 | P12: =data!P19 -> 10 | Q12: =data!Q19 -> 16 | R12: =data!R19 -> 0.8 | S12: 2009-07-07 | T12: =data!T19-data!Y19 -> -1.8 | U12: =[1]data!Y19 -> 2009-07-11
A13: 2009-07-09 | B13: 2009-07-08 | C13: =data!C20 -> 21 | D13: =data!D20 -> 11 | E13: =data!E20 -> 0.8 | F13: =data!F20 -> 25 | G13: =data!G20 -> 17 | H13: =data!H20 -> 0.1 | I13: =data!I20 -> 21 | J13: =data!J20 -> 10 | K13: =data!K20 -> 19 | L13: =data!L20 -> 9 | M13: =data!M20 -> 11 | N13: =data!N20 -> 25 | O13: =data!O20 -> 0.1 | P13: =data!P20 -> 11 | Q13: =data!Q20 -> 19 | R13: =data!R20 -> 0.3 | S13: 2009-07-08 | T13: =data!T20-data!Y20 -> 3.4 | U13: =[1]data!Y20 -> 2009-07-12
A14: 2009-07-10 | B14: 2009-07-09 | C14: =data!C21 -> 25 | D14: =data!D21 -> 13 | E14: =data!E21 -> 0.1 | F14: =data!F21 -> 25 | G14: =data!G21 -> 14 | H14: =data!H21 -> 0.05 | I14: =data!I21 -> 24 | J14: =data!J21 -> 13 | K14: =data!K21 -> 22 | L14: =data!L21 -> 8 | M14: =data!M21 -> 10 | N14: =data!N21 -> 25 | O14: =data!O21 -> 0.05 | P14: =data!P21 -> 11 | Q14: =data!Q21 -> 20 | R14: =data!R21 -> 0.3 | S14: 2009-07-09 | T14: =data!T21-data!Y21 -> 6 | U14: =[1]data!Y21 -> 2009-07-13
A15: 2009-07-11 | B15: 2009-07-10 | C15: =data!C22 -> 24 | D15: =data!D22 -> 15 | E15: =data!E22 -> 0.8 | F15: =data!F22 -> 24 | G15: =data!G22 -> 16 | H15: =data!H22 -> 0.8 | I15: =data!I22 -> 25 | J15: =data!J22 -> 15 | K15: =data!K22 -> 24 | L15: =data!L22 -> 13 | M15: =data!M22 -> 16 | N15: =data!N22 -> 24 | O15: =data!O22 -> 0.8 | P15: =data!P22 -> 14 | Q15: =data!Q22 -> 24 | R15: =data!R22 -> 0.5 | S15: 2009-07-10 | T15: =data!T22-data!Y22 -> 9.3 | U15: =[1]data!Y22 -> 2009-07-14
A16: 2009-07-12 | B16: 2009-07-11 | C16: =data!C23 -> 24 | D16: =data!D23 -> 15 | E16: =data!E23 -> 0.9 | F16: =data!F23 -> 27 | G16: =data!G23 -> 15 | H16: =data!H23 -> 0.05 | I16: =data!I23 -> 26 | J16: =data!J23 -> 15 | K16: =data!K23 -> 24 | L16: =data!L23 -> 13 | M16: =data!M23 -> 16 | N16: =data!N23 -> 24 | O16: =data!O23 -> 0.8 | P16: =data!P23 -> 16 | Q16: =data!Q23 -> 24 | R16: =data!R23 -> 0.6 | S16: 2009-07-11 | T16: =data!T23-data!Y23 -> 6.6 | U16: =[1]data!Y23 -> 2009-07-15
A17: 2009-07-13 | B17: 2009-07-12 | C17: =data!C24 -> 28 | D17: =data!D24 -> 13 | E17: =data!E24 -> 0.1 | F17: =data!F24 -> 28 | G17: =data!G24 -> 14 | H17: =data!H24 -> 0.05 | I17: =data!I24 -> 27 | J17: =data!J24 -> 13 | K17: =data!K24 -> 26 | L17: =data!L24 -> 9 | M17: =data!M24 -> 11 | N17: =data!N24 -> 28 | O17: =data!O24 -> 0.05 | P17: =data!P24 -> 18 | Q17: =data!Q24 -> 24 | R17: =data!R24 -> 0.6 | S17: 2009-07-12 | T17: =data!T24-data!Y24 -> 6.3 | U17: =[1]data!Y24 -> 2009-07-16
A18: 2009-07-14 | B18: 2009-07-13 | C18: =data!C25 -> 24 | D18: =data!D25 -> 15 | E18: =data!E25 -> 0.95 | F18: =data!F25 -> 26 | G18: =data!G25 -> 12 | H18: =data!H25 -> 0.3 | I18: =data!I25 -> 26 | J18: =data!J25 -> 13 | K18: =data!K25 -> 22 | L18: =data!L25 -> 15 | M18: =data!M25 -> 15 | N18: =data!N25 -> 32 | O18: =data!O25 -> 0.05 | P18: =data!P25 -> 12 | Q18: =data!Q25 -> 25 | R18: =data!R25 -> 0.2 | S18: 2009-07-13 | T18: =data!T25-data!Y25 -> -3.3 | U18: =[1]data!Y25 -> 2009-07-17
A19: 2009-07-15 | B19: 2009-07-14 | C19: =data!C26 -> 17 | D19: =data!D26 -> 13 | E19: =data!E26 -> 0.75 | F19: =data!F26 -> 15 | G19: =data!G26 -> 10 | H19: =data!H26 -> 0.15 | I19: =data!I26 -> 18 | J19: =data!J26 -> 13 | K19: =data!K26 -> 13 | L19: =data!L26 -> 10 | M19: =data!M26 -> 13 | N19: =data!N26 -> 15 | O19: =data!O26 -> 0.15 | P19: =data!P26 -> 17 | Q19: =data!Q26 -> 24 | R19: =data!R26 -> 0.7 | S19: 2009-07-14 | T19: =data!T26-data!Y26 -> -6.1 | U19: =[1]data!Y26 -> 2009-07-18
A20: 2009-07-16 | B20: 2009-07-15 | C20: =data!C27 -> 19 | D20: =data!D27 -> 13 | E20: =data!E27 -> 0.75 | F20: =data!F27 -> 21 | G20: =data!G27 -> 13 | H20: =data!H27 -> 0.05 | I20: =data!I27 -> 19 | J20: =data!J27 -> 11 | K20: =data!K27 -> 17 | L20: =data!L27 -> 9 | M20: =data!M27 -> 10 | N20: =data!N27 -> 21 | O20: =data!O27 -> 0.05 | P20: =data!P27 -> 14 | Q20: =data!Q27 -> 16 | R20: =data!R27 -> 0.8 | S20: 2009-07-15 | T20: =data!T27-data!Y27 -> -4.9 | U20: =[1]data!Y27 -> 2009-07-19
A21: 2009-07-17 | B21: 2009-07-16 | C21: =data!C28 -> 21 | D21: =data!D28 -> 13 | E21: =data!E28 -> 0.55 | F21: =data!F28 -> 22 | G21: =data!G28 -> 11 | H21: =data!H28 -> 0.05 | I21: =data!I28 -> 20 | J21: =data!J28 -> 12 | K21: =data!K28 -> 18 | L21: =data!L28 -> 10 | M21: =data!M28 -> 11 | N21: =data!N28 -> 22 | O21: =data!O28 -> 0.05 | P21: =data!P28 -> 11 | Q21: =data!Q28 -> 20 | R21: =data!R28 -> 0.8 | S21: 2009-07-16 | T21: =data!T28-data!Y28 -> -5.7 | U21: =[1]data!Y28 -> 2009-07-20
A22: 2009-07-18 | B22: 2009-07-17 | C22: =data!C29 -> 24 | D22: =data!D29 -> 12 | E22: =data!E29 -> 0.35 | F22: =data!F29 -> 27 | G22: =data!G29 -> 19 | H22: =data!H29 -> 0.5 | I22: =data!I29 -> 26 | J22: =data!J29 -> 11 | K22: =data!K29 -> 23 | L22: =data!L29 -> 8 | M22: =data!M29 -> 11 | N22: =data!N29 -> 27 | O22: =data!O29 -> 0.5 | P22: =data!P29 -> 12 | Q22: =data!Q29 -> 21 | R22: =data!R29 -> 0.2 | S22: 2009-07-17 | T22: =data!T29-data!Y29 -> 4.8 | U22: =[1]data!Y29 -> 2009-07-21
A23: 2009-07-19 | B23: 2009-07-18 | C23: =data!C30 -> 25 | D23: =data!D30 -> 17 | E23: =data!E30 -> 0.7 | F23: =data!F30 -> 28 | G23: =data!G30 -> 14 | H23: =data!H30 -> 0.5 | I23: =data!I30 -> 26 | J23: =data!J30 -> 16 | K23: =data!K30 -> 23 | L23: =data!L30 -> 15 | M23: =data!M30 -> 17 | N23: =data!N30 -> 28 | O23: =data!O30 -> 0.5 | P23: =data!P30 -> 14 | Q23: =data!Q30 -> 22 | R23: =data!R30 -> 0.6 | S23: 2009-07-18 | T23: =data!T30-data!Y30 -> 8.8 | U23: =[1]data!Y30 -> 2009-07-22
A24: 2009-07-20 | B24: 2009-07-19 | C24: =data!C31 -> 24 | D24: =data!D31 -> 18 | E24: =data!E31 -> 0.85 | F24: =data!F31 -> 24 | G24: =data!G31 -> 14 | H24: =data!H31 -> 0.3 | I24: =data!I31 -> 27 | J24: =data!J31 -> 16 | K24: =data!K31 -> 22 | L24: =data!L31 -> 14 | M24: =data!M31 -> 15 | N24: =data!N31 -> 24 | O24: =data!O31 -> 0.3 | P24: =data!P31 -> 18 | Q24: =data!Q31 -> 25 | R24: =data!R31 -> 0.9 | S24: 2009-07-19 | T24: =data!T31-data!Y31 -> 3 | U24: =[1]data!Y31 -> 2009-07-23
A25: 2009-07-22 | B25: 2009-07-21 | C25: =data!C32 -> 20 | D25: =data!D32 -> 14 | E25: =data!E32 -> 0.6 | F25: =data!F32 -> 21 | G25: =data!G32 -> 7 | H25: =data!H32 -> 0.15 | I25: =data!I32 -> 21 | J25: =data!J32 -> 13 | K25: =data!K32 -> 18 | L25: =data!L32 -> 10 | M25: =data!M32 -> 12 | N25: =data!N32 -> 21 | O25: =data!O32 -> 0.15 | P25: =data!P32 -> 16 | Q25: =data!Q32 -> 22 | R25: =data!R32 -> 0.4 | S25: 2009-07-21 | T25: =data!T32-data!Y32 -> -8.1 | U25: =[1]data!Y32 -> 2009-07-25
A26: 2009-07-23 | B26: 2009-07-22 | C26: =data!C33 -> 25 | D26: =data!D33 -> 12 | E26: =data!E33 -> 0.05 | F26: =data!F33 -> 24 | G26: =data!G33 -> 10 | H26: =data!H33 -> 0.05 | I26: =data!I33 -> 22 | J26: =data!J33 -> 10 | K26: =data!K33 -> 20 | L26: =data!L33 -> 7 | M26: =data!M33 -> 7 | N26: =data!N33 -> 24 | O26: =data!O33 -> 0.05 | P26: =data!P33 -> 12 | Q26: =data!Q33 -> 20 | R26: =data!R33 -> 0.5 | S26: 2009-07-22 | T26: =data!T33-data!Y33 -> -4.4 | U26: =[1]data!Y33 -> 2009-07-26
A27: 2009-07-24 | B27: 2009-07-23 | C27: =data!C34 -> 28 | D27: =data!D34 -> 12 | E27: =data!E34 -> 0.35 | F27: =data!F34 -> 30 | G27: =data!G34 -> 11 | H27: =data!H34 -> 0.02 | I27: =data!I34 -> 25 | J27: =data!J34 -> 12 | K27: =data!K34 -> 26 | L27: =data!L34 -> 11 | M27: =data!M34 -> 11 | N27: =data!N34 -> 30 | O27: =data!O34 -> 0 | P27: =data!P34 -> 10 | Q27: =data!Q34 -> 23 | R27: =data!R34 -> 0.1 | S27: 2009-07-23 | T27: =data!T34-data!Y34 -> 2.9 | U27: =[1]data!Y34 -> 2009-07-27
A28: 2009-07-25 | B28: 2009-07-24 | C28: =data!C35 -> 27 | D28: =data!D35 -> 12 | E28: =data!E35 -> 0.25 | F28: =data!F35 -> 24 | G28: =data!G35 -> 11 | H28: =data!H35 -> 0.05 | I28: =data!I35 -> 23 | J28: =data!J35 -> 13 | K28: =data!K35 -> 19 | L28: =data!L35 -> 9 | M28: =data!M35 -> 11 | N28: =data!N35 -> 30 | O28: =data!O35 -> 0 | P28: =data!P35 -> 10 | Q28: =data!Q35 -> 23 | R28: =data!R35 -> 0.1 | S28: 2009-07-24 | T28: =data!T35-data!Y35 -> 0.5 | U28: =[1]data!Y35 -> 2009-07-28
A29: 2009-07-28 | B29: 2009-07-27 | C29: =data!C36 -> 24 | D29: =data!D36 -> 10 | E29: =data!E36 -> 0.05 | F29: =data!F36 -> 25 | G29: =data!G36 -> 12 | H29: =data!H36 -> 0.05 | I29: =data!I36 -> 21 | J29: =data!J36 -> 10 | K29: =data!K36 -> 21 | L29: =data!L36 -> 6 | M29: =data!M36 -> 10 | N29: =data!N36 -> 25 | O29: =data!O36 -> 0.05 | P29: =data!P36 -> 18 | Q29: =data!Q36 -> 21 | R29: =data!R36 -> 0.1 | S29: 2009-07-27 | T29: =data!T36-data!Y36 -> -5.8 | U29: =[1]data!Y36 -> 2009-07-31
A30: 2009-07-29 | B30: 2009-07-28 | C30: =data!C37 -> 26 | D30: =data!D37 -> 10 | E30: =data!E37 -> 0.2 | F30: =data!F37 -> 25 | G30: =data!G37 -> 13 | H30: =data!H37 -> 0.05 | I30: =data!I37 -> 27 | J30: =data!J37 -> 10 | K30: =data!K37 -> 25 | L30: =data!L37 -> 9 | M30: =data!M37 -> 8 | N30: =data!N37 -> 25 | O30: =data!O37 -> 0.05 | P30: =data!P37 -> 9 | Q30: =data!Q37 -> 19 | R30: =data!R37 -> 0.2 | S30: 2009-07-28 | T30: =data!T37-data!Y37 -> 3.6 | U30: =[1]data!Y37 -> 2009-08-01
A31: 2009-07-30 | B31: 2009-07-29 | C31: =data!C38 -> 25 | D31: =data!D38 -> 16 | E31: =data!E38 -> 0.55 | F31: =data!F38 -> 25 | G31: =data!G38 -> 11 | H31: =data!H38 -> 0.1 | I31: =data!I38 -> 24 | J31: =data!J38 -> 14 | K31: =data!K38 -> 19 | L31: =data!L38 -> 13 | M31: =data!M38 -> 16 | N31: =data!N38 -> 25 | O31: =data!O38 -> 0.1 | P31: =data!P38 -> 12 | Q31: =data!Q38 -> 23 | R31: =data!R38 -> 0.1 | S31: 2009-07-29 | T31: =data!T38-data!Y38 -> -3.1 | U31: =[1]data!Y38 -> 2009-08-02
A32: 2009-07-31 | B32: 2009-07-30 | C32: =data!C39 -> 21 | D32: =data!D39 -> 15 | E32: =data!E39 -> 0.6 | F32: =data!F39 -> 23 | G32: =data!G39 -> 7 | H32: =data!H39 -> 0.05 | I32: =data!I39 -> 24 | J32: =data!J39 -> 14 | K32: =data!K39 -> 19 | L32: =data!L39 -> 13 | M32: =data!M39 -> 13 | N32: =data!N39 -> 23 | O32: =data!O39 -> 0.05 | P32: =data!P39 -> 15 | Q32: =data!Q39 -> 22 | R32: =data!R39 -> 0.7 | S32: 2009-07-30 | T32: =data!T39-data!Y39 -> 0.4 | U32: =[1]data!Y39 -> 2009-08-03
A33: 2009-08-01 | B33: 2009-07-31 | C33: =data!C40 -> 26 | D33: =data!D40 -> 11 | E33: =data!E40 -> 0.05 | F33: =data!F40 -> 26 | G33: =data!G40 -> 11 | H33: =data!H40 -> 0.05 | I33: =data!I40 -> 27 | J33: =data!J40 -> 11 | K33: =data!K40 -> 24 | L33: =data!L40 -> 7 | M33: =data!M40 -> 8 | N33: =data!N40 -> 26 | O33: =data!O40 -> 0.05 | P33: =data!P40 -> 12 | Q33: =data!Q40 -> 21 | R33: =data!R40 -> 0.7 | S33: 2009-07-31 | T33: =data!T40-data!Y40 -> 2.4 | U33: =[1]data!Y40 -> 2009-08-04
A34: 2009-08-02 | B34: 2009-08-01 | C34: =data!C41 -> 28 | D34: =data!D41 -> 13 | E34: =data!E41 -> 0.05 | F34: =data!F41 -> 28 | G34: =data!G41 -> 14 | H34: =data!H41 -> 0.02 | I34: =data!I41 -> 27 | J34: =data!J41 -> 11 | K34: =data!K41 -> 27 | L34: =data!L41 -> 12 | M34: =data!M41 -> 10 | N34: =data!N41 -> 28 | O34: =data!O41 -> 0 | P34: =data!P41 -> 12 | Q34: =data!Q41 -> 23 | R34: =data!R41 -> 0.1 | S34: 2009-08-01 | T34: =data!T41-data!Y41 -> 0 | U34: =[1]data!Y41 -> 2009-08-05
A35: 2009-08-03 | B35: 2009-08-02 | C35: =data!C42 -> 28 | D35: =data!D42 -> 13 | E35: =data!E42 -> 0.05 | F35: =data!F42 -> 31 | G35: =data!G42 -> 16 | H35: =data!H42 -> 0.05 | I35: =data!I42 -> 28 | J35: =data!J42 -> 12 | K35: =data!K42 -> 27 | L35: =data!L42 -> 13 | M35: =data!M42 -> 10 | N35: =data!N42 -> 28 | O35: =data!O42 -> 0 | P35: =data!P42 -> 12 | Q35: =data!Q42 -> 23 | R35: =data!R42 -> 0.1 | S35: 2009-08-02 | T35: =data!T42-data!Y42 -> 5.4 | U35: =[1]data!Y42 -> 2009-08-06
A36: 2009-08-04 | B36: 2009-08-03 | C36: =data!C43 -> 30 | D36: =data!D43 -> 15 | E36: =data!E43 -> 0.05 | F36: =data!F43 -> 30 | G36: =data!G43 -> 16 | H36: =data!H43 -> 0.02 | I36: =data!I43 -> 30 | J36: =data!J43 -> 14 | K36: =data!K43 -> 30 | L36: =data!L43 -> 14 | M36: =data!M43 -> 13 | N36: =data!N43 -> 30 | O36: =data!O43 -> 0 | P36: =data!P43 -> 13 | Q36: =data!Q43 -> 26 | R36: =data!R43 -> 0.1 | S36: 2009-08-03 | T36: =data!T43-data!Y43 -> 6.2 | U36: =[1]data!Y43 -> 2009-08-07
A37: 2009-08-05 | B37: 2009-08-04 | C37: =data!C44 -> 26 | D37: =data!D44 -> 16 | E37: =data!E44 -> 0.55 | F37: =data!F44 -> 29 | G37: =data!G44 -> 18 | H37: =data!H44 -> 0.1 | I37: =data!I44 -> 26 | J37: =data!J44 -> 16 | K37: =data!K44 -> 22 | L37: =data!L44 -> 16 | M37: =data!M44 -> 17 | N37: =data!N44 -> 29 | O37: =data!O44 -> 0.1 | P37: =data!P44 -> 14 | Q37: =data!Q44 -> 28 | R37: =data!R44 -> 0.1 | S37: 2009-08-04 | T37: =data!T44-data!Y44 -> -0.6 | U37: =[1]data!Y44 -> 2009-08-08
A38: 2009-08-06 | B38: 2009-08-05 | C38: =data!C45 -> 27 | D38: =data!D45 -> 17 | E38: =data!E45 -> 0.6 | F38: =data!F45 -> 29 | G38: =data!G45 -> 17 | H38: =data!H45 -> 0.5 | I38: =data!I45 -> 23 | J38: =data!J45 -> 15 | K38: =data!K45 -> 29 | L38: =data!L45 -> 15 | M38: =data!M45 -> 18 | N38: =data!N45 -> 29 | O38: =data!O45 -> 0.5 | P38: =data!P45 -> 16 | Q38: =data!Q45 -> 24 | R38: =data!R45 -> 0.7 | S38: 2009-08-05 | T38: =data!T45-data!Y45 -> -0.3 | U38: =[1]data!Y45 -> 2009-08-09
A39: 2009-08-07 | B39: 2009-08-06 | C39: =data!C46 -> 25 | D39: =data!D46 -> 17 | E39: =data!E46 -> 0.55 | F39: =data!F46 -> 28 | G39: =data!G46 -> 15 | H39: =data!H46 -> 0.5 | I39: =data!I46 -> 23 | J39: =data!J46 -> 15 | K39: =data!K46 -> 20 | L39: =data!L46 -> 13 | M39: =data!M46 -> 17 | N39: =data!N46 -> 28 | O39: =data!O46 -> 0.5 | P39: =data!P46 -> 15 | Q39: =data!Q46 -> 24 | R39: =data!R46 -> 0.2 | S39: 2009-08-06 | T39: =data!T46-data!Y46 -> -6.2 | U39: =[1]data!Y46 -> 2009-08-10
A40: 2009-08-08 | B40: 2009-08-07 | C40: =data!C47 -> 22 | D40: =data!D47 -> 13 | E40: =data!E47 -> 0.45 | F40: =data!F47 -> 24 | G40: =data!G47 -> 11 | H40: =data!H47 -> 0.05 | I40: =data!I47 -> 22 | J40: =data!J47 -> 12 | K40: =data!K47 -> 18 | L40: =data!L47 -> 11 | M40: =data!M47 -> 17 | N40: =data!N47 -> 28 | O40: =data!O47 -> 0.5 | P40: =data!P47 -> 15 | Q40: =data!Q47 -> 23 | R40: =data!R47 -> 0.6 | S40: 2009-08-07 | T40: =data!T47-data!Y47 -> -5.5 | U40: =[1]data!Y47 -> 2009-08-11
A41: 2009-08-24 | B41: 2009-08-23 | C41: =data!C48 -> 26 | D41: =data!D48 -> 14 | E41: =data!E48 -> 0.2 | F41: =data!F48 -> 27 | G41: =data!G48 -> 14 | H41: =data!H48 -> 0.02 | I41: =data!I48 -> 26 | J41: =data!J48 -> 13 | K41: =data!K48 -> 22 | L41: =data!L48 -> 13 | M41: =data!M48 -> 12 | N41: =data!N48 -> 27 | O41: =data!O48 -> 0 | P41: =data!P48 -> 12 | Q41: =data!Q48 -> 25 | R41: =data!R48 -> 0.1 | S41: 2009-08-23 | T41: =data!T48-data!Y48 -> 3.3 | U41: =[1]data!Y48 -> 2009-08-27
A42: 2009-08-25 | B42: 2009-08-24 | C42: =data!C49 -> 24 | D42: =data!D49 -> 15 | E42: =data!E49 -> 0.35 | F42: =data!F49 -> 25 | G42: =data!G49 -> 11 | H42: =data!H49 -> 0.05 | I42: =data!I49 -> 26 | J42: =data!J49 -> 14 | K42: =data!K49 -> 19 | L42: =data!L49 -> 14 | M42: =data!M49 -> 15 | N42: =data!N49 -> 25 | O42: =data!O49 -> 0.05 | P42: =data!P49 -> 15 | Q42: =data!Q49 -> 24 | R42: =data!R49 -> 0.6 | S42: 2009-08-24 | T42: =data!T49-data!Y49 -> -4.2 | U42: =[1]data!Y49 -> 2009-08-28
A43: 2009-08-27 | B43: 2009-08-26 | C43: =data!C50 -> 21 | D43: =data!D50 -> 8 | E43: =data!E50 -> 0.05 | F43: =data!F50 -> 21 | G43: =data!G50 -> 9 | H43: =data!H50 -> 0.05 | I43: =data!I50 -> 21 | J43: =data!J50 -> 7 | K43: =data!K50 -> 18 | L43: =data!L50 -> 6 | M43: =data!M50 -> 7 | N43: =data!N50 -> 21 | O43: =data!O50 -> 0.05 | P43: =data!P50 -> 9 | Q43: =data!Q50 -> 19 | R43: =data!R50 -> 0.1 | S43: 2009-08-26 | T43: =data!T50-data!Y50 -> -3.3 | U43: =[1]data!Y50 -> 2009-08-30
A44: 2009-08-28 | B44: 2009-08-27 | C44: =data!C51 -> 24 | D44: =data!D51 -> 9 | E44: =data!E51 -> 0.05 | F44: =data!F51 -> 25 | G44: =data!G51 -> 10 | H44: =data!H51 -> 0.05 | I44: =data!I51 -> 26 | J44: =data!J51 -> 8 | K44: =data!K51 -> 23 | L44: =data!L51 -> 6 | M44: =data!M51 -> 6 | N44: =data!N51 -> 25 | O44: =data!O51 -> 0.05 | P44: =data!P51 -> 8 | Q44: =data!Q51 -> 22 | R44: =data!R51 -> 0.1 | S44: 2009-08-27 | T44: =data!T51-data!Y51 -> -2.2 | U44: =[1]data!Y51 -> 2009-08-31
A45: 2009-08-30 | B45: 2009-08-29 | C45: =data!C52 -> 22 | D45: =data!D52 -> 14 | E45: =data!E52 -> 0.4 | F45: =data!F52 -> 23 | G45: =data!G52 -> 14 | H45: =data!H52 -> 0.05 | I45: =data!I52 -> 22 | J45: =data!J52 -> 15 | K45: =data!K52 -> 19 | L45: =data!L52 -> 12 | M45: =data!M52 -> 14 | N45: =data!N52 -> 23 | O45: =data!O52 -> 0.05 | P45: =data!P52 -> 17 | Q45: =data!Q52 -> 21 | R45: =data!R52 -> 0.6 | S45: 2009-08-29 | T45: =data!T52-data!Y52 -> 2.4 | U45: =[1]data!Y52 -> 2009-09-02
A46: 2009-08-31 | B46: 2009-08-30 | C46: =data!C53 -> 19 | D46: =data!D53 -> 12 | E46: =data!E53 -> 0.55 | F46: =data!F53 -> 22 | G46: =data!G53 -> 13 | H46: =data!H53 -> 0.05 | I46: =data!I53 -> 22 | J46: =data!J53 -> 12 | K46: =data!K53 -> 18 | L46: =data!L53 -> 10 | M46: =data!M53 -> 14 | N46: =data!N53 -> 22 | O46: =data!O53 -> 0.05 | P46: =data!P53 -> 14 | Q46: =data!Q53 -> 19 | R46: =data!R53 -> 0.6 | S46: 2009-08-30 | T46: =data!T53-data!Y53 -> -1.6 | U46: =[1]data!Y53 -> 2009-09-03
A47: 2009-09-01 | B47: 2009-08-31 | C47: =data!C54 -> 16 | D47: =data!D54 -> 13 | E47: =data!E54 -> 0.75 | F47: =data!F54 -> 17 | G47: =data!G54 -> 12 | H47: =data!H54 -> 0.5 | I47: =data!I54 -> 18 | J47: =data!J54 -> 13 | K47: =data!K54 -> 13 | L47: =data!L54 -> 11 | M47: =data!M54 -> 12 | N47: =data!N54 -> 17 | O47: =data!O54 -> 0.5 | P47: =data!P54 -> 11 | Q47: =data!Q54 -> 14 | R47: =data!R54 -> 0.9 | S47: 2009-08-31 | T47: =data!T54-data!Y54 -> -8.3 | U47: =[1]data!Y54 -> 2009-09-04
A48: 2009-09-03 | B48: 2009-09-02 | C48: =data!C55 -> 19 | D48: =data!D55 -> 10 | E48: =data!E55 -> 0.2 | F48: =data!F55 -> 19 | G48: =data!G55 -> 8 | H48: =data!H55 -> 0.1 | I48: =data!I55 -> 19 | J48: =data!J55 -> 9 | K48: =data!K55 -> 16 | L48: =data!L55 -> 10 | M48: =data!M55 -> 10 | N48: =data!N55 -> 19 | O48: =data!O55 -> 0.1 | P48: =data!P55 -> 8 | Q48: =data!Q55 -> 18 | R48: =data!R55 -> 0.2 | S48: 2009-09-02 | T48: =data!T55-data!Y55 -> -3.7 | U48: =[1]data!Y55 -> 2009-09-06
A49: 2009-09-04 | B49: 2009-09-03 | C49: =data!C56 -> 21 | D49: =data!D56 -> 8 | E49: =data!E56 -> 0.2 | F49: =data!F56 -> 23 | G49: =data!G56 -> 11 | H49: =data!H56 -> 0.05 | I49: =data!I56 -> 21 | J49: =data!J56 -> 8 | K49: =data!K56 -> 18 | L49: =data!L56 -> 8 | M49: =data!M56 -> 10 | N49: =data!N56 -> 23 | O49: =data!O56 -> 0.05 | P49: =data!P56 -> 9 | Q49: =data!Q56 -> 20 | R49: =data!R56 -> 0.2 | S49: 2009-09-03 | T49: =data!T56-data!Y56 -> 2.9 | U49: =[1]data!Y56 -> 2009-09-07
A50: 2009-09-05 | B50: 2009-09-04 | C50: =data!C57 -> 25 | D50: =data!D57 -> 11 | E50: =data!E57 -> 0.05 | F50: =data!F57 -> 26 | G50: =data!G57 -> 13 | H50: =data!H57 -> 0.05 | I50: =data!I57 -> 24 | J50: =data!J57 -> 9 | K50: =data!K57 -> 23 | L50: =data!L57 -> 8 | M50: =data!M57 -> 11 | N50: =data!N57 -> 26 | O50: =data!O57 -> 0.05 | P50: =data!P57 -> 11 | Q50: =data!Q57 -> 24 | R50: =data!R57 -> 0.1 | S50: 2009-09-04 | T50: =data!T57-data!Y57 -> 8.5 | U50: =[1]data!Y57 -> 2009-09-08
A51: 2009-09-06 | B51: 2009-09-05 | C51: =data!C58 -> 27 | D51: =data!D58 -> 11 | E51: =data!E58 -> 0.05 | F51: =data!F58 -> 28 | G51: =data!G58 -> 14 | H51: =data!H58 -> 0.05 | I51: =data!I58 -> 24 | J51: =data!J58 -> 11 | K51: =data!K58 -> 26 | L51: =data!L58 -> 10 | M51: =data!M58 -> 12 | N51: =data!N58 -> 28 | O51: =data!O58 -> 0.05 | P51: =data!P58 -> 12 | Q51: =data!Q58 -> 24 | R51: =data!R58 -> 0.3 | S51: 2009-09-05 | T51: =data!T58-data!Y58 -> 6.3 | U51: =[1]data!Y58 -> 2009-09-09
A52: 2009-09-08 | B52: 2009-09-07 | C52: =data!C59 -> 21 | D52: =data!D59 -> 13 | E52: =data!E59 -> 0.2 | F52: =data!F59 -> 21 | G52: =data!G59 -> 11 | H52: =data!H59 -> 0.05 | I52: =data!I59 -> 20 | J52: =data!J59 -> 11 | K52: =data!K59 -> 19 | L52: =data!L59 -> 10 | M52: =data!M59 -> 13 | N52: =data!N59 -> 21 | O52: =data!O59 -> 0.05 | P52: =data!P59 -> 13 | Q52: =data!Q59 -> 19 | R52: =data!R59 -> 0.2 | S52: 2009-09-07 | T52: =data!T59-data!Y59 -> -3.6 | U52: =[1]data!Y59 -> 2009-09-11
A53: 2009-09-09 | B53: 2009-09-08 | C53: =data!C60 -> 20 | D53: =data!D60 -> 11 | E53: =data!E60 -> 0.3 | F53: =data!F60 -> 22 | G53: =data!G60 -> 10 | H53: =data!H60 -> 0.1 | I53: =data!I60 -> 18 | J53: =data!J60 -> 9 | K53: =data!K60 -> 17 | L53: =data!L60 -> 9 | M53: =data!M60 -> 14 | N53: =data!N60 -> 22 | O53: =data!O60 -> 0.1 | P53: =data!P60 -> 14 | Q53: =data!Q60 -> 19 | R53: =data!R60 -> 0.3 | S53: 2009-09-08 | T53: =data!T60-data!Y60 -> -6.7 | U53: =[1]data!Y60 -> 2009-09-12
A54: 2009-09-10 | B54: 2009-09-09 | C54: =data!C61 -> 18 | D54: =data!D61 -> 10 | E54: =data!E61 -> 0.2 | F54: =data!F61 -> 19 | G54: =data!G61 -> 13 | H54: =data!H61 -> 10 | I54: =data!I61 -> 20 | J54: =data!J61 -> 9 | K54: =data!K61 -> 14 | L54: =data!L61 -> 6 | M54: =data!M61 -> 13 | N54: =data!N61 -> 19 | O54: =data!O61 -> 0.1 | P54: =data!P61 -> 12 | Q54: =data!Q61 -> 17 | R54: =data!R61 -> 0.2 | S54: 2009-09-09 | T54: =data!T61-data!Y61 -> -7.2 | U54: =[1]data!Y61 -> 2009-09-13
A55: 2009-09-11 | B55: 2009-09-10 | C55: =data!C62 -> 17 | D55: =data!D62 -> 11 | E55: =data!E62 -> 0.35 | F55: =data!F62 -> 17 | G55: =data!G62 -> 11 | H55: =data!H62 -> 0.15 | I55: =data!I62 -> 18 | J55: =data!J62 -> 9 | K55: =data!K62 -> 15 | L55: =data!L62 -> 9 | M55: =data!M62 -> 11 | N55: =data!N62 -> 17 | O55: =data!O62 -> 15 | P55: =data!P62 -> 11 | Q55: =data!Q62 -> 16 | R55: =data!R62 -> 0.8 | S55: 2009-09-10 | T55: =data!T62-data!Y62 -> -4.1 | U55: =[1]data!Y62 -> 2009-09-14
A56: 2009-09-12 | B56: 2009-09-11 | C56: =data!C63 -> 16 | D56: =data!D63 -> 11 | E56: =data!E63 -> 0.7 | F56: =data!F63 -> 18 | G56: =data!G63 -> 12 | H56: =data!H63 -> 30 | I56: =data!I63 -> 21 | J56: =data!J63 -> 10 | K56: =data!K63 -> 12 | L56: =data!L63 -> 8 | M56: =data!M63 -> 11 | N56: =data!N63 -> 18 | O56: =data!O63 -> 0.3 | P56: =data!P63 -> 8 | Q56: =data!Q63 -> 15 | R56: =data!R63 -> 0.7 | S56: 2009-09-11 | T56: =data!T63-data!Y63 -> -3.3 | U56: =[1]data!Y63 -> 2009-09-15
A57: 2009-09-13 | B57: 2009-09-12 | C57: =data!C64 -> 24 | D57: =data!D64 -> 12 | E57: =data!E64 -> 0.1 | F57: =data!F64 -> 26 | G57: =data!G64 -> 15 | H57: =data!H64 -> 0.05 | I57: =data!I64 -> 22 | J57: =data!J64 -> 10 | K57: =data!K64 -> 23 | L57: =data!L64 -> 10 | M57: =data!M64 -> 12 | N57: =data!N64 -> 26 | O57: =data!O64 -> 0.05 | P57: =data!P64 -> 11 | Q57: =data!Q64 -> 23 | R57: =data!R64 -> 0.2 | S57: 2009-09-12 | T57: =data!T64-data!Y64 -> 0.1 | U57: =[1]data!Y64 -> 2009-09-16
A58: 2009-09-14 | B58: 2009-09-13 | C58: =data!C65 -> 23 | D58: =data!D65 -> 13 | E58: =data!E65 -> 0.1 | F58: =data!F65 -> 23 | G58: =data!G65 -> 11 | H58: =data!H65 -> 0.05 | I58: =data!I65 -> 18 | J58: =data!J65 -> 12 | K58: =data!K65 -> 20 | L58: =data!L65 -> 13 | M58: =data!M65 -> 13 | N58: =data!N65 -> 23 | O58: =data!O65 -> 0.05 | P58: =data!P65 -> 14 | Q58: =data!Q65 -> 20 | R58: =data!R65 -> 0.5 | S58: 2009-09-13 | T58: =data!T65-data!Y65 -> 4 | U58: =[1]data!Y65 -> 2009-09-17
A59: 2009-09-15 | B59: 2009-09-14 | C59: =data!C66 -> 22 | D59: =data!D66 -> 8 | E59: =data!E66 -> 0.05 | F59: =data!F66 -> 23 | G59: =data!G66 -> 10 | H59: =data!H66 -> 0.02 | I59: =data!I66 -> 20 | J59: =data!J66 -> 8 | K59: =data!K66 -> 20 | L59: =data!L66 -> 6 | M59: =data!M66 -> 8 | N59: =data!N66 -> 23 | O59: =data!O66 -> 0 | P59: =data!P66 -> 9 | Q59: =data!Q66 -> 22 | R59: =data!R66 -> 0.1 | S59: 2009-09-14 | T59: =data!T66-data!Y66 -> 8.6 | U59: =[1]data!Y66 -> 2009-09-18
A60: 2009-09-16 | B60: 2009-09-15 | C60: =data!C67 -> 23 | D60: =data!D67 -> 9 | E60: =data!E67 -> 0.05 | F60: =data!F67 -> 24 | G60: =data!G67 -> 9 | H60: =data!H67 -> 0.02 | I60: =data!I67 -> 22 | J60: =data!J67 -> 8 | K60: =data!K67 -> 20 | L60: =data!L67 -> 10 | M60: =data!M67 -> 9 | N60: =data!N67 -> 24 | O60: =data!O67 -> 0 | P60: =data!P67 -> 11 | Q60: =data!Q67 -> 22 | R60: =data!R67 -> 0.1 | S60: 2009-09-15 | T60: =data!T67-data!Y67 -> 7.9 | U60: =[1]data!Y67 -> 2009-09-19
A61: 2009-09-17 | B61: 2009-09-16 | C61: =data!C68 -> 23 | D61: =data!D68 -> 12 | E61: =data!E68 -> 0.35 | F61: =data!F68 -> 25 | G61: =data!G68 -> 10 | H61: =data!H68 -> 0.02 | I61: =data!I68 -> 21 | J61: =data!J68 -> 11 | K61: =data!K68 -> 21 | L61: =data!L68 -> 10 | M61: =data!M68 -> 9 | N61: =data!N68 -> 24 | O61: =data!O68 -> 0 | P61: =data!P68 -> 12 | Q61: =data!Q68 -> 21 | R61: =data!R68 -> 0.3 | S61: 2009-09-16 | T61: =data!T68-data!Y68 -> 4.5 | U61: =[1]data!Y68 -> 2009-09-20
A62: 2009-09-18 | B62: 2009-09-17 | C62: =data!C69 -> 23 | D62: =data!D69 -> 13 | E62: =data!E69 -> 0.55 | F62: =data!F69 -> 26 | G62: =data!G69 -> 11 | H62: =data!H69 -> 0.05 | I62: =data!I69 -> 22 | J62: =data!J69 -> 11 | K62: =data!K69 -> 21 | L62: =data!L69 -> 12 | M62: =data!M69 -> 13 | N62: =data!N69 -> 26 | O62: =data!O69 -> 0.05 | P62: =data!P69 -> 13 | Q62: =data!Q69 -> 23 | R62: =data!R69 -> 0.2 | S62: 2009-09-17 | T62: =data!T69-data!Y69 -> 1.7 | U62: =[1]data!Y69 -> 2009-09-21
A64: első | B64: qvartilis | C64: =QUARTILE(C$3:C$52,1) -> 21 | D64: =QUARTILE(D$3:D$52,1) -> 12 | E64: 0.2 | F64: 22 | G64: 11 | H64: 0.05 | I64: 21 | J64: 11 | K64: 19 | L64: 9 | M64: 10.25 | N64: 22 | O64: 0.05 | P64: 11 | Q64: 19.25 | R64: 0.1
A65: második | B65: qvartilis | C65: =QUARTILE(C$3:C$52,2) -> 24 | D65: =QUARTILE(D$3:D$52,2) -> 13 | E65: 0.45 | F65: 25 | G65: 13 | H65: 0.05 | I65: 24 | J65: 13 | K65: 22 | L65: 10 | M65: 12 | N65: 25 | O65: 0.05 | P65: 12 | Q65: 22.5 | R65: 0.35
A66: harmadik | B66: qvartilis | C66: =QUARTILE(C$3:C$52,3) -> 26 | D66: =QUARTILE(D$3:D$52,3) -> 15 | E66: 0.6 | F66: 27.75 | G66: 14.75 | H66: 0.3 | I66: 26 | J66: 14 | K66: 24 | L66: 13 | M66: 15 | N66: 28 | O66: 0.45 | P66: 15 | Q66: 24 | R66: 0.7
S67: delta
S68: (tény+10)*100
A69: maxar1 | C69: =IF(C3<C$64,1,IF(C3<C$65,2,IF(C3<C$66,3,4))) -> 4 | D69: =IF(D3<D$64,1,IF(D3<D$65,2,IF(D3<D$66,3,4))) -> 4 | E69: 2 | F69: 4 | G69: 4 | H69: 3 | I69: 4 | J69: 4 | K69: 4 | L69: 4 | M69: 4 | N69: 4 | O69: 3 | P69: 4 | Q69: 4 | R69: 2 | S69: =(T3+10)*100 -> 1660 | T69: méret: | U69: 50*16(+1)
C70: =IF(C4<C$64,1,IF(C4<C$65,2,IF(C4<C$66,3,4))) -> 4 | D70: 4 | E70: 2 | F70: 4 | G70: 4 | H70: 3 | I70: 4 | J70: 4 | K70: 4 | L70: 4 | M70: 4 | N70: 4 | O70: 3 | P70: 4 | Q70: 4 | R70: 2 | S70: =(T4+10)*100 -> 1160
C71: 4 | D71: 4 | E71: 3 | F71: 4 | G71: 4 | H71: 4 | I71: 4 | J71: 4 | K71: 4 | L71: 4 | M71: 4 | N71: 4 | O71: 4 | P71: 4 | Q71: 4 | R71: 2 | S71: 970
C72: 3 | D72: 4 | E72: 3 | F72: 3 | G72: 3 | H72: 4 | I72: 3 | J72: 4 | K72: 3 | L72: 3 | M72: 3 | N72: 3 | O72: 4 | P72: 4 | Q72: 3 | R72: 4 | S72: 850
C73: 3 | D73: 4 | E73: 4 | F73: 3 | G73: 4 | H73: 3 | I73: 2 | J73: 4 | K73: 3 | L73: 4 | M73: 3 | N73: 3 | O73: 3 | P73: 4 | Q73: 3 | R73: 4 | S73: 480
C74: 3 | D74: 4 | E74: 3 | F74: 2 | G74: 2 | H74: 4 | I74: 2 | J74: 3 | K74: 3 | L74: 3 | M74: 3 | N74: 2 | O74: 4 | P74: 3 | Q74: 1 | R74: 4 | S74: 260
C75: 1 | D75: 3 | E75: 4 | F75: 1 | G75: 1 | H75: 4 | I75: 1 | J75: 3 | K75: 2 | L75: 3 | M75: 3 | N75: 1 | O75: 4 | P75: 3 | Q75: 1 | R75: 4 | S75: 120
C76: 1 | D76: 3 | E76: 4 | F76: 1 | G76: 2 | H76: 4 | I76: 1 | J76: 2 | K76: 2 | L76: 2 | M76: 3 | N76: 1 | O76: 3 | P76: 3 | Q76: 1 | R76: 4 | S76: 270
C77: 1 | D77: 1 | E77: 3 | F77: 1 | G77: 2 | H77: 4 | I77: 1 | J77: 1 | K77: 1 | L77: 1 | M77: 1 | N77: 1 | O77: 4 | P77: 2 | Q77: 1 | R77: 4 | S77: 130
C78: 1 | D78: 1 | E78: 3 | F78: 1 | G78: 1 | H78: 3 | I78: 1 | J78: 2 | K78: 1 | L78: 3 | M78: 3 | N78: 1 | O78: 3 | P78: 1 | Q78: 1 | R78: 4 | S78: 820
C79: 2 | D79: 1 | E79: 4 | F79: 3 | G79: 4 | H79: 3 | I79: 2 | J79: 1 | K79: 2 | L79: 2 | M79: 2 | N79: 3 | O79: 3 | P79: 2 | Q79: 1 | R79: 2 | S79: 1340
C80: 3 | D80: 3 | E80: 1 | F80: 3 | G80: 3 | H80: 3 | I80: 3 | J80: 3 | K80: 3 | L80: 1 | M80: 1 | N80: 3 | O80: 3 | P80: 2 | Q80: 2 | R80: 2 | S80: 1600
C81: 3 | D81: 4 | E81: 4 | F81: 2 | G81: 4 | H81: 4 | I81: 3 | J81: 4 | K81: 4 | L81: 4 | M81: 4 | N81: 2 | O81: 4 | P81: 3 | Q81: 4 | R81: 3 | S81: 1930
C82: 3 | D82: 4 | E82: 4 | F82: 3 | G82: 4 | H82: 3 | I82: 4 | J82: 4 | K82: 4 | L82: 4 | M82: 4 | N82: 2 | O82: 4 | P82: 4 | Q82: 4 | R82: 3 | S82: 1660
C83: 4 | D83: 3 | E83: 1 | F83: 4 | G83: 3 | H83: 3 | I83: 4 | J83: 3 | K83: 4 | L83: 2 | M83: 2 | N83: 4 | O83: 3 | P83: 4 | Q83: 4 | R83: 3 | S83: 1630
C84: 3 | D84: 4 | E84: 4 | F84: 3 | G84: 2 | H84: 4 | I84: 4 | J84: 3 | K84: 3 | L84: 4 | M84: 4 | N84: 4 | O84: 3 | P84: 3 | Q84: 4 | R84: 2 | S84: 670
C85: 1 | D85: 3 | E85: 4 | F85: 1 | G85: 1 | H85: 3 | I85: 1 | J85: 3 | K85: 1 | L85: 3 | M85: 3 | N85: 1 | O85: 3 | P85: 4 | Q85: 4 | R85: =IF(R19<R$64,1,IF(R19<R$65,2,IF(R19<R$66,3,4))) -> 4 | S85: 390
C86: =IF(C20<C$64,1,IF(C20<C$65,2,IF(C20<C$66,3,4))) -> 1 | D86: 3 | E86: 4 | F86: 1 | G86: 3 | H86: 3 | I86: 1 | J86: 2 | K86: 1 | L86: 2 | M86: 1 | N86: 1 | O86: 3 | P86: 3 | Q86: 1 | R86: 4 | S86: 510
C87: 2 | D87: 3 | E87: 3 | F87: 2 | G87: 2 | H87: 3 | I87: 1 | J87: 2 | K87: 1 | L87: 3 | M87: 2 | N87: 2 | O87: 3 | P87: 2 | Q87: 2 | R87: 4 | S87: 430
C88: 3 | D88: 2 | E88: 2 | F88: 3 | G88: 4 | H88: 4 | I88: 4 | J88: 2 | K88: 3 | L88: 1 | M88: 2 | N88: 3 | O88: 4 | P88: 3 | Q88: 2 | R88: 2 | S88: 1480
C89: 3 | D89: 4 | E89: 4 | F89: 4 | G89: 3 | H89: 4 | I89: 4 | J89: 4 | K89: 3 | L89: 4 | M89: 4 | N89: 4 | O89: 4 | P89: 3 | Q89: 2 | R89: 3 | S89: 1880
C90: 3 | D90: 4 | E90: 4 | F90: 2 | G90: 3 | H90: 4 | I90: 4 | J90: 4 | K90: 3 | L90: 4 | M90: 4 | N90: 2 | O90: 3 | P90: 4 | Q90: 4 | R90: 4 | S90: 1300
C91: 1 | D91: 3 | E91: 4 | F91: 1 | G91: 1 | H91: 3 | I91: 2 | J91: 3 | K91: 1 | L91: 3 | M91: 3 | N91: 1 | O91: 3 | P91: 4 | Q91: 2 | R91: 3 | S91: 190
C92: 3 | D92: 2 | E92: 1 | F92: 2 | G92: 1 | H92: 3 | I92: 2 | J92: 1 | K92: 2 | L92: 1 | M92: 1 | N92: 2 | O92: 3 | P92: 3 | Q92: 2 | R92: 3 | S92: 560
C93: 4 | D93: 2 | E93: 2 | F93: 4 | G93: 2 | H93: 1 | I93: 3 | J93: 2 | K93: 4 | L93: 3 | M93: 2 | N93: 4 | O93: 1 | P93: 1 | Q93: 3 | R93: 2 | S93: 1290
C94: 4 | D94: 2 | E94: 2 | F94: 2 | G94: 2 | H94: 3 | I94: 2 | J94: 3 | K94: 2 | L94: 2 | M94: 2 | N94: 4 | O94: 1 | P94: 1 | Q94: 3 | R94: 2 | S94: 1050
C95: 3 | D95: 1 | E95: 1 | F95: 3 | G95: 2 | H95: 3 | I95: 2 | J95: 1 | K95: 2 | L95: 1 | M95: 1 | N95: 3 | O95: 3 | P95: 4 | Q95: 2 | R95: 2 | S95: 420
C96: 4 | D96: 1 | E96: 2 | F96: 3 | G96: 3 | H96: 3 | I96: 4 | J96: 1 | K96: 4 | L96: 2 | M96: 1 | N96: 3 | O96: 3 | P96: 1 | Q96: 1 | R96: 2 | S96: 1360
C97: 3 | D97: 4 | E97: 3 | F97: 3 | G97: 2 | H97: 3 | I97: 3 | J97: 4 | K97: 2 | L97: 4 | M97: 4 | N97: 3 | O97: 3 | P97: 3 | Q97: 3 | R97: 2 | S97: 690
C98: 2 | D98: 4 | E98: 4 | F98: 2 | G98: 1 | H98: 3 | I98: 3 | J98: 4 | K98: 2 | L98: 4 | M98: 3 | N98: 2 | O98: 3 | P98: 4 | Q98: 2 | R98: 4 | S98: 1040
C99: 4 | D99: 1 | E99: 1 | F99: 3 | G99: 2 | H99: 3 | I99: 4 | J99: 2 | K99: 4 | L99: 1 | M99: 1 | N99: 3 | O99: 3 | P99: 3 | Q99: 2 | R99: 4 | S99: 1240
C100: 4 | D100: 3 | E100: 1 | F100: 4 | G100: 3 | H100: 1 | I100: 4 | J100: 2 | K100: 4 | L100: 3 | M100: 1 | N100: 4 | O100: 1 | P100: 3 | Q100: 3 | R100: 2 | S100: 1000
C101: 4 | D101: 3 | E101: 1 | F101: 4 | G101: 4 | H101: 3 | I101: 4 | J101: 2 | K101: 4 | L101: 4 | M101: 1 | N101: 4 | O101: 1 | P101: 3 | Q101: 3 | R101: =IF(R35<R$64,1,IF(R35<R$65,2,IF(R35<R$66,3,4))) -> 2 | S101: 1540
C102: =IF(C36<C$64,1,IF(C36<C$65,2,IF(C36<C$66,3,4))) -> 4 | D102: 4 | E102: 1 | F102: 4 | G102: 4 | H102: 1 | I102: 4 | J102: 4 | K102: 4 | L102: 4 | M102: 3 | N102: 4 | O102: 1 | P102: 3 | Q102: 4 | R102: 2 | S102: 1620
C103: 4 | D103: 4 | E103: 3 | F103: 4 | G103: 4 | H103: 3 | I103: 4 | J103: 4 | K103: 3 | L103: 4 | M103: 4 | N103: 4 | O103: 3 | P103: 3 | Q103: 4 | R103: 2 | S103: 940
C104: 4 | D104: 4 | E104: 4 | F104: 4 | G104: 4 | H104: 4 | I104: 2 | J104: 4 | K104: 4 | L104: 4 | M104: 4 | N104: 4 | O104: 4 | P104: 4 | Q104: 4 | R104: 4 | S104: 970
C105: 3 | D105: 4 | E105: 3 | F105: 4 | G105: 4 | H105: 4 | I105: 2 | J105: 4 | K105: 2 | L105: 4 | M105: 4 | N105: 4 | O105: 4 | P105: 4 | Q105: 4 | R105: 2 | S105: 380
C106: 2 | D106: 3 | E106: 3 | F106: 2 | G106: 2 | H106: 3 | I106: 2 | J106: 2 | K106: 1 | L106: 3 | M106: 4 | N106: 4 | O106: 4 | P106: 4 | Q106: 3 | R106: 3 | S106: 450
C107: 4 | D107: 3 | E107: 2 | F107: 3 | G107: 3 | H107: 1 | I107: 4 | J107: 3 | K107: 3 | L107: 4 | M107: 3 | N107: 3 | O107: 1 | P107: 3 | Q107: 4 | R107: 2 | S107: 1330
C108: 3 | D108: 4 | E108: 2 | F108: 3 | G108: 2 | H108: 3 | I108: 4 | J108: 4 | K108: 2 | L108: 4 | M108: 4 | N108: 3 | O108: 3 | P108: 4 | Q108: 4 | R108: 3 | S108: 580
C109: 2 | D109: 1 | E109: 1 | F109: 1 | G109: 1 | H109: 3 | I109: 2 | J109: 1 | K109: 1 | L109: 1 | M109: 1 | N109: 1 | O109: 3 | P109: 1 | Q109: 1 | R109: 2 | S109: 670
C110: 3 | D110: 1 | E110: 1 | F110: 3 | G110: 1 | H110: 3 | I110: 4 | J110: 1 | K110: 3 | L110: 1 | M110: 1 | N110: 3 | O110: 3 | P110: 1 | Q110: 2 | R110: 2 | S110: 780
C111: 2 | D111: 3 | E111: 2 | F111: 2 | G111: 3 | H111: 3 | I111: 2 | J111: 4 | K111: 2 | L111: 3 | M111: 3 | N111: 2 | O111: 3 | P111: 4 | Q111: 2 | R111: 3 | S111: 1240
C112: 1 | D112: 2 | E112: 3 | F112: 2 | G112: 3 | H112: 3 | I112: 2 | J112: 2 | K112: 1 | L112: 3 | M112: 3 | N112: 2 | O112: 3 | P112: 3 | Q112: 1 | R112: 3 | S112: 840
C113: 1 | D113: 3 | E113: 4 | F113: 1 | G113: 2 | H113: 4 | I113: 1 | J113: 3 | K113: 1 | L113: 3 | M113: 3 | N113: 1 | O113: 4 | P113: 2 | Q113: 1 | R113: 4 | S113: 170
C114: 1 | D114: 1 | E114: 2 | F114: 1 | G114: 1 | H114: 3 | I114: 1 | J114: 1 | K114: 1 | L114: 3 | M114: 1 | N114: 1 | O114: 3 | P114: 1 | Q114: 1 | R114: 2 | S114: 630
C115: 2 | D115: 1 | E115: 2 | F115: 2 | G115: 2 | H115: 3 | I115: 2 | J115: 1 | K115: 1 | L115: 1 | M115: 1 | N115: 2 | O115: 3 | P115: 1 | Q115: 2 | R115: 2 | S115: 1290
C116: 3 | D116: 1 | E116: 1 | F116: 3 | G116: 3 | H116: 3 | I116: 3 | J116: 1 | K116: 3 | L116: 1 | M116: 2 | N116: 3 | O116: 3 | P116: 2 | Q116: 4 | R116: 2 | S116: 1850
C117: 4 | D117: 1 | E117: 1 | F117: 4 | G117: 3 | H117: 3 | I117: 3 | J117: 2 | K117: 4 | L117: 3 | M117: 3 | N117: 4 | O117: 3 | P117: 3 | Q117: 4 | R117: =IF(R51<R$64,1,IF(R51<R$65,2,IF(R51<R$66,3,4))) -> 2 | S117: 1630
C118: =IF(C52<C$64,1,IF(C52<C$65,2,IF(C52<C$66,3,4))) -> 2 | D118: 3 | E118: 2 | F118: 1 | G118: 2 | H118: 3 | I118: 1 | J118: 2 | K118: 2 | L118: 3 | M118: 3 | N118: 1 | O118: 3 | P118: 3 | Q118: 1 | R118: 2 | S118: 640
C119: 1 | D119: 1 | E119: 2 | F119: 2 | G119: 1 | H119: 3 | I119: 1 | J119: 1 | K119: 1 | L119: 2 | M119: 3 | N119: 2 | O119: 3 | P119: 3 | Q119: 1 | R119: 2 | S119: 330
C120: 1 | D120: 1 | E120: 2 | F120: 1 | G120: 3 | H120: 4 | I120: 1 | J120: 1 | K120: 1 | L120: 1 | M120: 3 | N120: 1 | O120: 3 | P120: 3 | Q120: 1 | R120: 2 | S120: 280
C121: 1 | D121: 1 | E121: 2 | F121: 1 | G121: 2 | H121: 3 | I121: 1 | J121: 1 | K121: 1 | L121: 2 | M121: 2 | N121: 1 | O121: 4 | P121: 2 | Q121: 1 | R121: 4 | S121: 590
C122: 1 | D122: 1 | E122: 4 | F122: 1 | G122: 2 | H122: 4 | I122: 2 | J122: 1 | K122: 1 | L122: 1 | M122: 2 | N122: 1 | O122: 3 | P122: 1 | Q122: 1 | R122: 4 | S122: 670
C123: 3 | D123: 2 | E123: 1 | F123: 3 | G123: 4 | H123: 3 | I123: 2 | J123: 1 | K123: 3 | L123: 3 | M123: 3 | N123: 3 | O123: 3 | P123: 2 | Q123: 3 | R123: 2 | S123: 1010
C124: 2 | D124: 3 | E124: 1 | F124: 2 | G124: 2 | H124: 3 | I124: 1 | J124: 2 | K124: 2 | L124: 4 | M124: 3 | N124: 2 | O124: 3 | P124: 3 | Q124: 2 | R124: 3 | S124: 1400
C125: 2 | D125: 1 | E125: 1 | F125: 2 | G125: 1 | H125: 1 | I125: 1 | J125: 1 | K125: 2 | L125: 1 | M125: 1 | N125: 2 | O125: 1 | P125: 1 | Q125: 2 | R125: 2 | S125: 1860
C126: 2 | D126: 1 | E126: 1 | F126: 2 | G126: 1 | H126: 1 | I126: 2 | J126: 1 | K126: 2 | L126: 3 | M126: 1 | N126: 2 | O126: 1 | P126: 2 | Q126: 2 | R126: 2 | S126: 1790
C127: 2 | D127: 2 | E127: 2 | F127: 3 | G127: 1 | H127: 1 | I127: 2 | J127: 2 | K127: 2 | L127: 3 | M127: 1 | N127: 2 | O127: 1 | P127: 3 | Q127: 2 | R127: 2 | S127: 1450
C128: 2 | D128: 3 | E128: 3 | F128: 3 | G128: 2 | H128: 3 | I128: 2 | J128: 2 | K128: 2 | L128: 3 | M128: 3 | N128: 3 | O128: 3 | P128: 3 | Q128: 3 | R128: 2 | S128: 1170
A130: LINEÁRIS közelítés (additív)
A132: A feladat alapadatainak visszaigazolása: | B132: -
A133: Feladat azonosítója: | B133: maxar1
A134: Objektumok (primer sorok) száma: | B134: 50
A135: X-attribútumok (oszlopok) száma: | B135: 16
A136: Lépcsők száma: | B136: 4
A137: Az eltolás mértéke | B137: 0
A138: A feladat részletes jellemzése | B138: MCM: demo
A141: Rangsorszámok | B141: X (A1) | C141: X (A2) | D141: X (A3) | E141: X (A4) | F141: X (A5) | G141: X (A6) | H141: X (A7) | I141: X (A8) | J141: X (A9) | K141: X (A10) | L141: X (A11) | M141: X (A12) | N141: X (A13) | O141: X (A14) | P141: X (A15) | Q141: X (A16) | R141: Y (A17)
A142: feladatkód N°= maxar1
A143: O(1) | B143: 4 | C143: 4 | D143: 2 | E143: 4 | F143: 4 | G143: 3 | H143: 4 | I143: 4 | J143: 4 | K143: 4 | L143: 4 | M143: 4 | N143: 3 | O143: 4 | P143: 4 | Q143: 2 | R143: 1660
A144: O(2) | B144: 4 | C144: 4 | D144: 2 | E144: 4 | F144: 4 | G144: 3 | H144: 4 | I144: 4 | J144: 4 | K144: 4 | L144: 4 | M144: 4 | N144: 3 | O144: 4 | P144: 4 | Q144: 2 | R144: 1160
A145: O(3) | B145: 4 | C145: 4 | D145: 3 | E145: 4 | F145: 4 | G145: 4 | H145: 4 | I145: 4 | J145: 4 | K145: 4 | L145: 4 | M145: 4 | N145: 4 | O145: 4 | P145: 4 | Q145: 2 | R145: 970
A146: O(4) | B146: 3 | C146: 4 | D146: 3 | E146: 3 | F146: 3 | G146: 4 | H146: 3 | I146: 4 | J146: 3 | K146: 3 | L146: 3 | M146: 3 | N146: 4 | O146: 4 | P146: 3 | Q146: 4 | R146: 850
A147: O(5) | B147: 3 | C147: 4 | D147: 4 | E147: 3 | F147: 4 | G147: 3 | H147: 2 | I147: 4 | J147: 3 | K147: 4 | L147: 3 | M147: 3 | N147: 3 | O147: 4 | P147: 3 | Q147: 4 | R147: 480
A148: O(6) | B148: 3 | C148: 4 | D148: 3 | E148: 2 | F148: 2 | G148: 4 | H148: 2 | I148: 3 | J148: 3 | K148: 3 | L148: 3 | M148: 2 | N148: 4 | O148: 3 | P148: 1 | Q148: 4 | R148: 260
A149: O(7) | B149: 1 | C149: 3 | D149: 4 | E149: 1 | F149: 1 | G149: 4 | H149: 1 | I149: 3 | J149: 2 | K149: 3 | L149: 3 | M149: 1 | N149: 4 | O149: 3 | P149: 1 | Q149: 4 | R149: 120
A150: O(8) | B150: 1 | C150: 3 | D150: 4 | E150: 1 | F150: 2 | G150: 4 | H150: 1 | I150: 2 | J150: 2 | K150: 2 | L150: 3 | M150: 1 | N150: 3 | O150: 3 | P150: 1 | Q150: 4 | R150: 270
A151: O(9) | B151: 1 | C151: 1 | D151: 3 | E151: 1 | F151: 2 | G151: 4 | H151: 1 | I151: 1 | J151: 1 | K151: 1 | L151: 1 | M151: 1 | N151: 4 | O151: 2 | P151: 1 | Q151: 4 | R151: 130
A152: O(10) | B152: 1 | C152: 1 | D152: 3 | E152: 1 | F152: 1 | G152: 3 | H152: 1 | I152: 2 | J152: 1 | K152: 3 | L152: 3 | M152: 1 | N152: 3 | O152: 1 | P152: 1 | Q152: 4 | R152: 820
A153: O(11) | B153: 2 | C153: 1 | D153: 4 | E153: 3 | F153: 4 | G153: 3 | H153: 2 | I153: 1 | J153: 2 | K153: 2 | L153: 2 | M153: 3 | N153: 3 | O153: 2 | P153: 1 | Q153: 2 | R153: 1340
A154: O(12) | B154: 3 | C154: 3 | D154: 1 | E154: 3 | F154: 3 | G154: 3 | H154: 3 | I154: 3 | J154: 3 | K154: 1 | L154: 1 | M154: 3 | N154: 3 | O154: 2 | P154: 2 | Q154: 2 | R154: 1600
A155: O(13) | B155: 3 | C155: 4 | D155: 4 | E155: 2 | F155: 4 | G155: 4 | H155: 3 | I155: 4 | J155: 4 | K155: 4 | L155: 4 | M155: 2 | N155: 4 | O155: 3 | P155: 4 | Q155: 3 | R155: 1930
A156: O(14) | B156: 3 | C156: 4 | D156: 4 | E156: 3 | F156: 4 | G156: 3 | H156: 4 | I156: 4 | J156: 4 | K156: 4 | L156: 4 | M156: 2 | N156: 4 | O156: 4 | P156: 4 | Q156: 3 | R156: 1660
A157: O(15) | B157: 4 | C157: 3 | D157: 1 | E157: 4 | F157: 3 | G157: 3 | H157: 4 | I157: 3 | J157: 4 | K157: 2 | L157: 2 | M157: 4 | N157: 3 | O157: 4 | P157: 4 | Q157: 3 | R157: 1630
A158: O(16) | B158: 3 | C158: 4 | D158: 4 | E158: 3 | F158: 2 | G158: 4 | H158: 4 | I158: 3 | J158: 3 | K158: 4 | L158: 4 | M158: 4 | N158: 3 | O158: 3 | P158: 4 | Q158: 2 | R158: 670
A159: O(17) | B159: 1 | C159: 3 | D159: 4 | E159: 1 | F159: 1 | G159: 3 | H159: 1 | I159: 3 | J159: 1 | K159: 3 | L159: 3 | M159: 1 | N159: 3 | O159: 4 | P159: 4 | Q159: 4 | R159: 390
A160: O(18) | B160: 1 | C160: 3 | D160: 4 | E160: 1 | F160: 3 | G160: 3 | H160: 1 | I160: 2 | J160: 1 | K160: 2 | L160: 1 | M160: 1 | N160: 3 | O160: 3 | P160: 1 | Q160: 4 | R160: 510
A161: O(19) | B161: 2 | C161: 3 | D161: 3 | E161: 2 | F161: 2 | G161: 3 | H161: 1 | I161: 2 | J161: 1 | K161: 3 | L161: 2 | M161: 2 | N161: 3 | O161: 2 | P161: 2 | Q161: 4 | R161: 430
A162: O(20) | B162: 3 | C162: 2 | D162: 2 | E162: 3 | F162: 4 | G162: 4 | H162: 4 | I162: 2 | J162: 3 | K162: 1 | L162: 2 | M162: 3 | N162: 4 | O162: 3 | P162: 2 | Q162: 2 | R162: 1480
A163: O(21) | B163: 3 | C163: 4 | D163: 4 | E163: 4 | F163: 3 | G163: 4 | H163: 4 | I163: 4 | J163: 3 | K163: 4 | L163: 4 | M163: 4 | N163: 4 | O163: 3 | P163: 2 | Q163: 3 | R163: 1880
A164: O(22) | B164: 3 | C164: 4 | D164: 4 | E164: 2 | F164: 3 | G164: 4 | H164: 4 | I164: 4 | J164: 3 | K164: 4 | L164: 4 | M164: 2 | N164: 3 | O164: 4 | P164: 4 | Q164: 4 | R164: 1300
A165: O(23) | B165: 1 | C165: 3 | D165: 4 | E165: 1 | F165: 1 | G165: 3 | H165: 2 | I165: 3 | J165: 1 | K165: 3 | L165: 3 | M165: 1 | N165: 3 | O165: 4 | P165: 2 | Q165: 3 | R165: 190
A166: O(24) | B166: 3 | C166: 2 | D166: 1 | E166: 2 | F166: 1 | G166: 3 | H166: 2 | I166: 1 | J166: 2 | K166: 1 | L166: 1 | M166: 2 | N166: 3 | O166: 3 | P166: 2 | Q166: 3 | R166: 560
A167: O(25) | B167: 4 | C167: 2 | D167: 2 | E167: 4 | F167: 2 | G167: 1 | H167: 3 | I167: 2 | J167: 4 | K167: 3 | L167: 2 | M167: 4 | N167: 1 | O167: 1 | P167: 3 | Q167: 2 | R167: 1290
A168: O(26) | B168: 4 | C168: 2 | D168: 2 | E168: 2 | F168: 2 | G168: 3 | H168: 2 | I168: 3 | J168: 2 | K168: 2 | L168: 2 | M168: 4 | N168: 1 | O168: 1 | P168: 3 | Q168: 2 | R168: 1050
A169: O(27) | B169: 3 | C169: 1 | D169: 1 | E169: 3 | F169: 2 | G169: 3 | H169: 2 | I169: 1 | J169: 2 | K169: 1 | L169: 1 | M169: 3 | N169: 3 | O169: 4 | P169: 2 | Q169: 2 | R169: 420
A170: O(28) | B170: 4 | C170: 1 | D170: 2 | E170: 3 | F170: 3 | G170: 3 | H170: 4 | I170: 1 | J170: 4 | K170: 2 | L170: 1 | M170: 3 | N170: 3 | O170: 1 | P170: 1 | Q170: 2 | R170: 1360
A171: O(29) | B171: 3 | C171: 4 | D171: 3 | E171: 3 | F171: 2 | G171: 3 | H171: 3 | I171: 4 | J171: 2 | K171: 4 | L171: 4 | M171: 3 | N171: 3 | O171: 3 | P171: 3 | Q171: 2 | R171: 690
A172: O(30) | B172: 2 | C172: 4 | D172: 4 | E172: 2 | F172: 1 | G172: 3 | H172: 3 | I172: 4 | J172: 2 | K172: 4 | L172: 3 | M172: 2 | N172: 3 | O172: 4 | P172: 2 | Q172: 4 | R172: 1040
A173: O(31) | B173: 4 | C173: 1 | D173: 1 | E173: 3 | F173: 2 | G173: 3 | H173: 4 | I173: 2 | J173: 4 | K173: 1 | L173: 1 | M173: 3 | N173: 3 | O173: 3 | P173: 2 | Q173: 4 | R173: 1240
A174: O(32) | B174: 4 | C174: 3 | D174: 1 | E174: 4 | F174: 3 | G174: 1 | H174: 4 | I174: 2 | J174: 4 | K174: 3 | L174: 1 | M174: 4 | N174: 1 | O174: 3 | P174: 3 | Q174: 2 | R174: 1000
A175: O(33) | B175: 4 | C175: 3 | D175: 1 | E175: 4 | F175: 4 | G175: 3 | H175: 4 | I175: 2 | J175: 4 | K175: 4 | L175: 1 | M175: 4 | N175: 1 | O175: 3 | P175: 3 | Q175: 2 | R175: 1540
A176: O(34) | B176: 4 | C176: 4 | D176: 1 | E176: 4 | F176: 4 | G176: 1 | H176: 4 | I176: 4 | J176: 4 | K176: 4 | L176: 3 | M176: 4 | N176: 1 | O176: 3 | P176: 4 | Q176: 2 | R176: 1620
A177: O(35) | B177: 4 | C177: 4 | D177: 3 | E177: 4 | F177: 4 | G177: 3 | H177: 4 | I177: 4 | J177: 3 | K177: 4 | L177: 4 | M177: 4 | N177: 3 | O177: 3 | P177: 4 | Q177: 2 | R177: 940
A178: O(36) | B178: 4 | C178: 4 | D178: 4 | E178: 4 | F178: 4 | G178: 4 | H178: 2 | I178: 4 | J178: 4 | K178: 4 | L178: 4 | M178: 4 | N178: 4 | O178: 4 | P178: 4 | Q178: 4 | R178: 970
A179: O(37) | B179: 3 | C179: 4 | D179: 3 | E179: 4 | F179: 4 | G179: 4 | H179: 2 | I179: 4 | J179: 2 | K179: 4 | L179: 4 | M179: 4 | N179: 4 | O179: 4 | P179: 4 | Q179: 2 | R179: 380
A180: O(38) | B180: 2 | C180: 3 | D180: 3 | E180: 2 | F180: 2 | G180: 3 | H180: 2 | I180: 2 | J180: 1 | K180: 3 | L180: 4 | M180: 4 | N180: 4 | O180: 4 | P180: 3 | Q180: 3 | R180: 450
A181: O(39) | B181: 4 | C181: 3 | D181: 2 | E181: 3 | F181: 3 | G181: 1 | H181: 4 | I181: 3 | J181: 3 | K181: 4 | L181: 3 | M181: 3 | N181: 1 | O181: 3 | P181: 4 | Q181: 2 | R181: 1330
A182: O(40) | B182: 3 | C182: 4 | D182: 2 | E182: 3 | F182: 2 | G182: 3 | H182: 4 | I182: 4 | J182: 2 | K182: 4 | L182: 4 | M182: 3 | N182: 3 | O182: 4 | P182: 4 | Q182: 3 | R182: 580
A183: O(41) | B183: 2 | C183: 1 | D183: 1 | E183: 1 | F183: 1 | G183: 3 | H183: 2 | I183: 1 | J183: 1 | K183: 1 | L183: 1 | M183: 1 | N183: 3 | O183: 1 | P183: 1 | Q183: 2 | R183: 670
A184: O(42) | B184: 3 | C184: 1 | D184: 1 | E184: 3 | F184: 1 | G184: 3 | H184: 4 | I184: 1 | J184: 3 | K184: 1 | L184: 1 | M184: 3 | N184: 3 | O184: 1 | P184: 2 | Q184: 2 | R184: 780
A185: O(43) | B185: 2 | C185: 3 | D185: 2 | E185: 2 | F185: 3 | G185: 3 | H185: 2 | I185: 4 | J185: 2 | K185: 3 | L185: 3 | M185: 2 | N185: 3 | O185: 4 | P185: 2 | Q185: 3 | R185: 1240
A186: O(44) | B186: 1 | C186: 2 | D186: 3 | E186: 2 | F186: 3 | G186: 3 | H186: 2 | I186: 2 | J186: 1 | K186: 3 | L186: 3 | M186: 2 | N186: 3 | O186: 3 | P186: 1 | Q186: 3 | R186: 840
A187: O(45) | B187: 1 | C187: 3 | D187: 4 | E187: 1 | F187: 2 | G187: 4 | H187: 1 | I187: 3 | J187: 1 | K187: 3 | L187: 3 | M187: 1 | N187: 4 | O187: 2 | P187: 1 | Q187: 4 | R187: 170
A188: O(46) | B188: 1 | C188: 1 | D188: 2 | E188: 1 | F188: 1 | G188: 3 | H188: 1 | I188: 1 | J188: 1 | K188: 3 | L188: 1 | M188: 1 | N188: 3 | O188: 1 | P188: 1 | Q188: 2 | R188: 630
A189: O(47) | B189: 2 | C189: 1 | D189: 2 | E189: 2 | F189: 2 | G189: 3 | H189: 2 | I189: 1 | J189: 1 | K189: 1 | L189: 1 | M189: 2 | N189: 3 | O189: 1 | P189: 2 | Q189: 2 | R189: 1290
A190: O(48) | B190: 3 | C190: 1 | D190: 1 | E190: 3 | F190: 3 | G190: 3 | H190: 3 | I190: 1 | J190: 3 | K190: 1 | L190: 2 | M190: 3 | N190: 3 | O190: 2 | P190: 4 | Q190: 2 | R190: 1850
A191: O(49) | B191: 4 | C191: 1 | D191: 1 | E191: 4 | F191: 3 | G191: 3 | H191: 3 | I191: 2 | J191: 4 | K191: 3 | L191: 3 | M191: 4 | N191: 3 | O191: 3 | P191: 4 | Q191: 2 | R191: 1630
A192: O(50) | B192: 2 | C192: 3 | D192: 2 | E192: 1 | F192: 2 | G192: 3 | H192: 1 | I192: 2 | J192: 2 | K192: 3 | L192: 3 | M192: 1 | N192: 3 | O192: 3 | P192: 1 | Q192: 2 | R192: 640
A193: Lépcsők (átlag) | B193: X (A1) | C193: X (A2) | D193: X (A3) | E193: X (A4) | F193: X (A5) | G193: X (A6) | H193: X (A7) | I193: X (A8) | J193: X (A9) | K193: X (A10) | L193: X (A11) | M193: X (A12) | N193: X (A13) | O193: X (A14) | P193: X (A15) | Q193: X (A16)
A194: feladatkód N°= maxar1
A195: S1 | B195: (0+0)/2=0 | C195: (130+258)/2=194 | D195: (186+0)/2=93 | E195: (0+0)/2=0 | F195: (0+0)/2=0 | G195: (0+0)/2=0 | H195: (0+247)/2=123.5 | I195: (0+0)/2=0 | J195: (0+0)/2=0 | K195: (0+32)/2=16 | L195: (0+0)/2=0 | M195: (0+0)/2=0 | N195: (0+230)/2=115 | O195: (34+301)/2=167.5 | P195: (0+0)/2=0 | Q195: (0+0)/2=0
A196: S2 | B196: (253+79)/2=166 | C196: (186+0)/2=93 | D196: (148+230)/2=189 | E196: (118+24)/2=71 | F196: (0+0)/2=0 | G196: (0+0)/2=0 | H196: (0+0)/2=0 | I196: (0+14)/2=7 | J196: (0+0)/2=0 | K196: (172+0)/2=86 | L196: (0+264)/2=132 | M196: (0+0)/2=0 | N196: (0+0)/2=0 | O196: (0+352)/2=176 | P196: (17+366)/2=191.5 | Q196: (26+0)/2=13
A197: S3 | B197: (0+0)/2=0 | C197: (0+0)/2=0 | D197: (0+0)/2=0 | E197: (20+0)/2=10 | F197: (198+510)/2=354 | G197: (42+0)/2=21 | H197: (512+175)/2=343.5 | I197: (22+0)/2=11 | J197: (120+165)/2=142.5 | K197: (0+0)/2=0 | L197: (0+0)/2=0 | M197: (0+0)/2=0 | N197: (0+0)/2=0 | O197: (0+70)/2=35 | P197: (0+0)/2=0 | Q197: (11+221)/2=116
A198: S4 | B198: (192+0)/2=96 | C198: (0+0)/2=0 | D198: (98+49)/2=73.5 | E198: (0+41)/2=20.5 | F198: (202+338)/2=270 | G198: (0+0)/2=0 | H198: (207+0)/2=103.5 | I198: (0+0)/2=0 | J198: (191+500)/2=345.5 | K198: (0+346)/2=173 | L198: (0+111)/2=55.5 | M198: (0+0)/2=0 | N198: (0+0)/2=0 | O198: (0+0)/2=0 | P198: (153+94)/2=123.5 | Q198: (0+0)/2=0
A199: Lépcsők (átlag) | B199: X (A1) | C199: X (A2) | D199: X (A3) | E199: X (A4) | F199: X (A5) | G199: X (A6) | H199: X (A7) | I199: X (A8) | J199: X (A9) | K199: X (A10) | L199: X (A11) | M199: X (A12) | N199: X (A13) | O199: X (A14) | P199: X (A15) | Q199: X (A16)
A200: feladatkód N°= maxar1
A201: S1 | B201: 0 | C201: 194 | D201: 93 | E201: 0 | F201: 0 | G201: 0 | H201: 123.5 | I201: 0 | J201: 0 | K201: 16 | L201: 0 | M201: 0 | N201: 115 | O201: 167.5 | P201: 0 | Q201: 0 | AA201: 22.62
A202: S2 | B202: 166 | C202: 93 | D202: 189 | E202: 71 | F202: 0 | G202: 0 | H202: 0 | I202: 7 | J202: 0 | K202: 86 | L202: 132 | M202: 0 | N202: 0 | O202: 176 | P202: 191.5 | Q202: 13 | V202: max | W202: =MAX(W208:W267) -> 13.585 | AA202: =AA201+0.45 -> 23.07
A203: S3 | B203: 0 | C203: 0 | D203: 0 | E203: 10 | F203: 354 | G203: 21 | H203: 343.5 | I203: 11 | J203: 142.5 | K203: 0 | L203: 0 | M203: 0 | N203: 0 | O203: 35 | P203: 0 | Q203: 116 | V203: min | W203: =MIN(W208:W267) -> -13.585
A204: S4 | B204: 96 | C204: 0 | D204: 73.5 | E204: 20.5 | F204: 270 | G204: 0 | H204: 103.5 | I204: 0 | J204: 345.5 | K204: 173 | L204: 55.5 | M204: 0 | N204: 0 | O204: 0 | P204: 123.5 | Q204: 0 | V204: határért. | W204: 22.62
A205: COCO-matrix N°: maxar1 | B205: X (A1) | C205: X (A2) | D205: X (A3) | E205: X (A4) | F205: X (A5) | G205: X (A6) | H205: X (A7) | I205: X (A8) | J205: X (A9) | K205: X (A10) | L205: X (A11) | M205: X (A12) | N205: X (A13) | O205: X (A14) | P205: X (A15) | Q205: X (A16) | R205: Y(*) (A17) | S205: Y | T205: delta | U205: %
... 65 more rows

Sheet minar1
A1: adatgyűjtés | B1: progn. | C1: weatheronline | D1: weatheronline | E1: weatheronline | F1: kurier | G1: kurier | H1: kurier | I1: wetter.rtl | J1: wetter.rtl | K1: raiffeisen | L1: raiffeisen | M1: stern | N1: stern | O1: stern | P1: wetter.exite | Q1: wetter.exite | R1: wetter.exite | S1: progn. | T1: tények | U1: tények
A2: kelte | B2: kelte | C2: T-max | D2: T-min | E2: Rain-risk | F2: max | G2: min | H2: niederschlag | I2: max | J2: min | K2: max | L2: min | M2: min | N2: max | O2: niederschlag | P2: min | Q2: max | R2: niederschlag | S2: kelte | T2: minhőm. | U2: kelt
A3: 2009-06-29 | B3: 2009-06-28 | C3: =data!C10 -> 29 | D3: =data!D10 -> 18 | E3: =data!E10 -> 0.35 | F3: =data!F10 -> 31 | G3: =data!G10 -> 16 | H3: =data!H10 -> 0.05 | I3: =data!I10 -> 29 | J3: =data!J10 -> 16 | K3: =data!K10 -> 29 | L3: =data!L10 -> 15 | M3: =data!M10 -> 16 | N3: =data!N10 -> 31 | O3: =data!O10 -> 0.05 | P3: =data!P10 -> 17 | Q3: =data!Q10 -> 27 | R3: =data!R10 -> 0.1 | S3: 2009-06-28 | T3: =data!U10-data!Z10 -> 2 | U3: =[1]data!Y10 -> 2009-07-02
A4: 2009-06-30 | B4: 2009-06-29 | C4: =data!C11 -> 30 | D4: =data!D11 -> 19 | E4: =data!E11 -> 0.3 | F4: =data!F11 -> 31 | G4: =data!G11 -> 15 | H4: =data!H11 -> 0.05 | I4: =data!I11 -> 28 | J4: =data!J11 -> 16 | K4: =data!K11 -> 29 | L4: =data!L11 -> 13 | M4: =data!M11 -> 16 | N4: =data!N11 -> 31 | O4: =data!O11 -> 0.05 | P4: =data!P11 -> 17 | Q4: =data!Q11 -> 27 | R4: =data!R11 -> 0.1 | S4: 2009-06-29 | T4: =data!U11-data!Z11 -> 4 | U4: =[1]data!Y11 -> 2009-07-03
A5: 2009-07-01 | B5: 2009-06-30 | C5: =data!C12 -> 30 | D5: =data!D12 -> 19 | E5: =data!E12 -> 0.45 | F5: =data!F12 -> 31 | G5: =data!G12 -> 18 | H5: =data!H12 -> 0.5 | I5: =data!I12 -> 26 | J5: =data!J12 -> 17 | K5: =data!K12 -> 24 | L5: =data!L12 -> 15 | M5: =data!M12 -> 18 | N5: =data!N12 -> 31 | O5: =data!O12 -> 0.5 | P5: =data!P12 -> 17 | Q5: =data!Q12 -> 27 | R5: =data!R12 -> 0.1 | S5: 2009-06-30 | T5: =data!U12-data!Z12 -> -1.5 | U5: =[1]data!Y12 -> 2009-07-04
A6: 2009-07-02 | B6: 2009-07-01 | C6: =data!C13 -> 25 | D6: =data!D13 -> 15 | E6: =data!E13 -> 0.55 | F6: =data!F13 -> 27 | G6: =data!G13 -> 14 | H6: =data!H13 -> 0.5 | I6: =data!I13 -> 24 | J6: =data!J13 -> 14 | K6: =data!K13 -> 22 | L6: =data!L13 -> 10 | M6: =data!M13 -> 14 | N6: =data!N13 -> 27 | O6: =data!O13 -> 0.5 | P6: =data!P13 -> 16 | Q6: =data!Q13 -> 23 | R6: =data!R13 -> 0.8 | S6: 2009-07-01 | T6: =data!U13-data!Z13 -> -2.8 | U6: =[1]data!Y13 -> 2009-07-05
A7: 2009-07-03 | B7: 2009-07-02 | C7: =data!C14 -> 24 | D7: =data!D14 -> 15 | E7: =data!E14 -> 0.6 | F7: =data!F14 -> 26 | G7: =data!G14 -> 16 | H7: =data!H14 -> 0.05 | I7: =data!I14 -> 22 | J7: =data!J14 -> 14 | K7: =data!K14 -> 22 | L7: =data!L14 -> 13 | M7: =data!M14 -> 12 | N7: =data!N14 -> 26 | O7: =data!O14 -> 0.05 | P7: =data!P14 -> 15 | Q7: =data!Q14 -> 23 | R7: =data!R14 -> 0.8 | S7: 2009-07-02 | T7: =data!U14-data!Z14 -> -1.7 | U7: =[1]data!Y14 -> 2009-07-06
A8: 2009-07-04 | B8: 2009-07-03 | C8: =data!C15 -> 24 | D8: =data!D15 -> 16 | E8: =data!E15 -> 0.45 | F8: =data!F15 -> 22 | G8: =data!G15 -> 12 | H8: =data!H15 -> 0.5 | I8: =data!I15 -> 21 | J8: =data!J15 -> 13 | K8: =data!K15 -> 22 | L8: =data!L15 -> 12 | M8: =data!M15 -> 12 | N8: =data!N15 -> 22 | O8: =data!O15 -> 0.5 | P8: =data!P15 -> 12 | Q8: =data!Q15 -> 19 | R8: =data!R15 -> 0.7 | S8: 2009-07-03 | T8: =data!U15-data!Z15 -> -2.7 | U8: =[1]data!Y15 -> 2009-07-07
A9: 2009-07-05 | B9: 2009-07-04 | C9: =data!C16 -> 19 | D9: =data!D16 -> 14 | E9: =data!E16 -> 0.85 | F9: =data!F16 -> 21 | G9: =data!G16 -> 10 | H9: =data!H16 -> 0.5 | I9: =data!I16 -> 20 | J9: =data!J16 -> 13 | K9: =data!K16 -> 19 | L9: =data!L16 -> 10 | M9: =data!M16 -> 14 | N9: =data!N16 -> 21 | O9: =data!O16 -> 0.5 | P9: =data!P16 -> 12 | Q9: =data!Q16 -> 16 | R9: =data!R16 -> 0.8 | S9: 2009-07-04 | T9: =data!U16-data!Z16 -> -4 | U9: =[1]data!Y16 -> 2009-07-08
A10: 2009-07-06 | B10: 2009-07-05 | C10: =data!C17 -> 18 | D10: =data!D17 -> 13 | E10: =data!E17 -> 0.6 | F10: =data!F17 -> 16 | G10: =data!G17 -> 11 | H10: =data!H17 -> 0.3 | I10: =data!I17 -> 19 | J10: =data!J17 -> 11 | K10: =data!K17 -> 20 | L10: =data!L17 -> 9 | M10: =data!M17 -> 14 | N10: =data!N17 -> 16 | O10: =data!O17 -> 0.3 | P10: =data!P17 -> 12 | Q10: =data!Q17 -> 16 | R10: =data!R17 -> 0.8 | S10: 2009-07-05 | T10: =data!U17-data!Z17 -> -2.2 | U10: =[1]data!Y17 -> 2009-07-09
A11: 2009-07-07 | B11: 2009-07-06 | C11: =data!C18 -> 17 | D11: =data!D18 -> 9 | E11: =data!E18 -> 0.55 | F11: =data!F18 -> 19 | G11: =data!G18 -> 12 | H11: =data!H18 -> 0.5 | I11: =data!I18 -> 17 | J11: =data!J18 -> 9 | K11: =data!K18 -> 13 | L11: =data!L18 -> 6 | M11: =data!M18 -> 8 | N11: =data!N18 -> 19 | O11: =data!O18 -> 0.5 | P11: =data!P18 -> 11 | Q11: =data!Q18 -> 15 | R11: =data!R18 -> 0.8 | S11: 2009-07-06 | T11: =data!U18-data!Z18 -> -5.6 | U11: =[1]data!Y18 -> 2009-07-10
A12: 2009-07-08 | B12: 2009-07-07 | C12: =data!C19 -> 19 | D12: =data!D19 -> 11 | E12: =data!E19 -> 0.45 | F12: =data!F19 -> 19 | G12: =data!G19 -> 7 | H12: =data!H19 -> 0.15 | I12: =data!I19 -> 19 | J12: =data!J19 -> 11 | K12: =data!K19 -> 18 | L12: =data!L19 -> 10 | M12: =data!M19 -> 12 | N12: =data!N19 -> 19 | O12: =data!O19 -> 0.15 | P12: =data!P19 -> 10 | Q12: =data!Q19 -> 16 | R12: =data!R19 -> 0.8 | S12: 2009-07-07 | T12: =data!U19-data!Z19 -> -2.8 | U12: =[1]data!Y19 -> 2009-07-11
A13: 2009-07-09 | B13: 2009-07-08 | C13: =data!C20 -> 21 | D13: =data!D20 -> 11 | E13: =data!E20 -> 0.8 | F13: =data!F20 -> 25 | G13: =data!G20 -> 17 | H13: =data!H20 -> 0.1 | I13: =data!I20 -> 21 | J13: =data!J20 -> 10 | K13: =data!K20 -> 19 | L13: =data!L20 -> 9 | M13: =data!M20 -> 11 | N13: =data!N20 -> 25 | O13: =data!O20 -> 0.1 | P13: =data!P20 -> 11 | Q13: =data!Q20 -> 19 | R13: =data!R20 -> 0.3 | S13: 2009-07-08 | T13: =data!U20-data!Z20 -> -0.2 | U13: =[1]data!Y20 -> 2009-07-12
A14: 2009-07-10 | B14: 2009-07-09 | C14: =data!C21 -> 25 | D14: =data!D21 -> 13 | E14: =data!E21 -> 0.1 | F14: =data!F21 -> 25 | G14: =data!G21 -> 14 | H14: =data!H21 -> 0.05 | I14: =data!I21 -> 24 | J14: =data!J21 -> 13 | K14: =data!K21 -> 22 | L14: =data!L21 -> 8 | M14: =data!M21 -> 10 | N14: =data!N21 -> 25 | O14: =data!O21 -> 0.05 | P14: =data!P21 -> 11 | Q14: =data!Q21 -> 20 | R14: =data!R21 -> 0.3 | S14: 2009-07-09 | T14: =data!U21-data!Z21 -> 2.9 | U14: =[1]data!Y21 -> 2009-07-13
A15: 2009-07-11 | B15: 2009-07-10 | C15: =data!C22 -> 24 | D15: =data!D22 -> 15 | E15: =data!E22 -> 0.8 | F15: =data!F22 -> 24 | G15: =data!G22 -> 16 | H15: =data!H22 -> 0.8 | I15: =data!I22 -> 25 | J15: =data!J22 -> 15 | K15: =data!K22 -> 24 | L15: =data!L22 -> 13 | M15: =data!M22 -> 16 | N15: =data!N22 -> 24 | O15: =data!O22 -> 0.8 | P15: =data!P22 -> 14 | Q15: =data!Q22 -> 24 | R15: =data!R22 -> 0.5 | S15: 2009-07-10 | T15: =data!U22-data!Z22 -> 7.5 | U15: =[1]data!Y22 -> 2009-07-14
A16: 2009-07-12 | B16: 2009-07-11 | C16: =data!C23 -> 24 | D16: =data!D23 -> 15 | E16: =data!E23 -> 0.9 | F16: =data!F23 -> 27 | G16: =data!G23 -> 15 | H16: =data!H23 -> 0.05 | I16: =data!I23 -> 26 | J16: =data!J23 -> 15 | K16: =data!K23 -> 24 | L16: =data!L23 -> 13 | M16: =data!M23 -> 16 | N16: =data!N23 -> 24 | O16: =data!O23 -> 0.8 | P16: =data!P23 -> 16 | Q16: =data!Q23 -> 24 | R16: =data!R23 -> 0.6 | S16: 2009-07-11 | T16: =data!U23-data!Z23 -> 6 | U16: =[1]data!Y23 -> 2009-07-15
A17: 2009-07-13 | B17: 2009-07-12 | C17: =data!C24 -> 28 | D17: =data!D24 -> 13 | E17: =data!E24 -> 0.1 | F17: =data!F24 -> 28 | G17: =data!G24 -> 14 | H17: =data!H24 -> 0.05 | I17: =data!I24 -> 27 | J17: =data!J24 -> 13 | K17: =data!K24 -> 26 | L17: =data!L24 -> 9 | M17: =data!M24 -> 11 | N17: =data!N24 -> 28 | O17: =data!O24 -> 0.05 | P17: =data!P24 -> 18 | Q17: =data!Q24 -> 24 | R17: =data!R24 -> 0.6 | S17: 2009-07-12 | T17: =data!U24-data!Z24 -> -0.2 | U17: =[1]data!Y24 -> 2009-07-16
A18: 2009-07-14 | B18: 2009-07-13 | C18: =data!C25 -> 24 | D18: =data!D25 -> 15 | E18: =data!E25 -> 0.95 | F18: =data!F25 -> 26 | G18: =data!G25 -> 12 | H18: =data!H25 -> 0.3 | I18: =data!I25 -> 26 | J18: =data!J25 -> 13 | K18: =data!K25 -> 22 | L18: =data!L25 -> 15 | M18: =data!M25 -> 15 | N18: =data!N25 -> 32 | O18: =data!O25 -> 0.05 | P18: =data!P25 -> 12 | Q18: =data!Q25 -> 25 | R18: =data!R25 -> 0.2 | S18: 2009-07-13 | T18: =data!U25-data!Z25 -> 1.2 | U18: =[1]data!Y25 -> 2009-07-17
A19: 2009-07-15 | B19: 2009-07-14 | C19: =data!C26 -> 17 | D19: =data!D26 -> 13 | E19: =data!E26 -> 0.75 | F19: =data!F26 -> 15 | G19: =data!G26 -> 10 | H19: =data!H26 -> 0.15 | I19: =data!I26 -> 18 | J19: =data!J26 -> 13 | K19: =data!K26 -> 13 | L19: =data!L26 -> 10 | M19: =data!M26 -> 13 | N19: =data!N26 -> 15 | O19: =data!O26 -> 0.15 | P19: =data!P26 -> 17 | Q19: =data!Q26 -> 24 | R19: =data!R26 -> 0.7 | S19: 2009-07-14 | T19: =data!U26-data!Z26 -> -4.1 | U19: =[1]data!Y26 -> 2009-07-18
A20: 2009-07-16 | B20: 2009-07-15 | C20: =data!C27 -> 19 | D20: =data!D27 -> 13 | E20: =data!E27 -> 0.75 | F20: =data!F27 -> 21 | G20: =data!G27 -> 13 | H20: =data!H27 -> 0.05 | I20: =data!I27 -> 19 | J20: =data!J27 -> 11 | K20: =data!K27 -> 17 | L20: =data!L27 -> 9 | M20: =data!M27 -> 10 | N20: =data!N27 -> 21 | O20: =data!O27 -> 0.05 | P20: =data!P27 -> 14 | Q20: =data!Q27 -> 16 | R20: =data!R27 -> 0.8 | S20: 2009-07-15 | T20: =data!U27-data!Z27 -> -7 | U20: =[1]data!Y27 -> 2009-07-19
A21: 2009-07-17 | B21: 2009-07-16 | C21: =data!C28 -> 21 | D21: =data!D28 -> 13 | E21: =data!E28 -> 0.55 | F21: =data!F28 -> 22 | G21: =data!G28 -> 11 | H21: =data!H28 -> 0.05 | I21: =data!I28 -> 20 | J21: =data!J28 -> 12 | K21: =data!K28 -> 18 | L21: =data!L28 -> 10 | M21: =data!M28 -> 11 | N21: =data!N28 -> 22 | O21: =data!O28 -> 0.05 | P21: =data!P28 -> 11 | Q21: =data!Q28 -> 20 | R21: =data!R28 -> 0.8 | S21: 2009-07-16 | T21: =data!U28-data!Z28 -> -0.6 | U21: =[1]data!Y28 -> 2009-07-20
A22: 2009-07-18 | B22: 2009-07-17 | C22: =data!C29 -> 24 | D22: =data!D29 -> 12 | E22: =data!E29 -> 0.35 | F22: =data!F29 -> 27 | G22: =data!G29 -> 19 | H22: =data!H29 -> 0.5 | I22: =data!I29 -> 26 | J22: =data!J29 -> 11 | K22: =data!K29 -> 23 | L22: =data!L29 -> 8 | M22: =data!M29 -> 11 | N22: =data!N29 -> 27 | O22: =data!O29 -> 0.5 | P22: =data!P29 -> 12 | Q22: =data!Q29 -> 21 | R22: =data!R29 -> 0.2 | S22: 2009-07-17 | T22: =data!U29-data!Z29 -> -2.2 | U22: =[1]data!Y29 -> 2009-07-21
A23: 2009-07-19 | B23: 2009-07-18 | C23: =data!C30 -> 25 | D23: =data!D30 -> 17 | E23: =data!E30 -> 0.7 | F23: =data!F30 -> 28 | G23: =data!G30 -> 14 | H23: =data!H30 -> 0.5 | I23: =data!I30 -> 26 | J23: =data!J30 -> 16 | K23: =data!K30 -> 23 | L23: =data!L30 -> 15 | M23: =data!M30 -> 17 | N23: =data!N30 -> 28 | O23: =data!O30 -> 0.5 | P23: =data!P30 -> 14 | Q23: =data!Q30 -> 22 | R23: =data!R30 -> 0.6 | S23: 2009-07-18 | T23: =data!U30-data!Z30 -> 4.9 | U23: =[1]data!Y30 -> 2009-07-22
A24: 2009-07-20 | B24: 2009-07-19 | C24: =data!C31 -> 24 | D24: =data!D31 -> 18 | E24: =data!E31 -> 0.85 | F24: =data!F31 -> 24 | G24: =data!G31 -> 14 | H24: =data!H31 -> 0.3 | I24: =data!I31 -> 27 | J24: =data!J31 -> 16 | K24: =data!K31 -> 22 | L24: =data!L31 -> 14 | M24: =data!M31 -> 15 | N24: =data!N31 -> 24 | O24: =data!O31 -> 0.3 | P24: =data!P31 -> 18 | Q24: =data!Q31 -> 25 | R24: =data!R31 -> 0.9 | S24: 2009-07-19 | T24: =data!U31-data!Z31 -> 6.3 | U24: =[1]data!Y31 -> 2009-07-23
A25: 2009-07-22 | B25: 2009-07-21 | C25: =data!C32 -> 20 | D25: =data!D32 -> 14 | E25: =data!E32 -> 0.6 | F25: =data!F32 -> 21 | G25: =data!G32 -> 7 | H25: =data!H32 -> 0.15 | I25: =data!I32 -> 21 | J25: =data!J32 -> 13 | K25: =data!K32 -> 18 | L25: =data!L32 -> 10 | M25: =data!M32 -> 12 | N25: =data!N32 -> 21 | O25: =data!O32 -> 0.15 | P25: =data!P32 -> 16 | Q25: =data!Q32 -> 22 | R25: =data!R32 -> 0.4 | S25: 2009-07-21 | T25: =data!U32-data!Z32 -> -0.5 | U25: =[1]data!Y32 -> 2009-07-25
A26: 2009-07-23 | B26: 2009-07-22 | C26: =data!C33 -> 25 | D26: =data!D33 -> 12 | E26: =data!E33 -> 0.05 | F26: =data!F33 -> 24 | G26: =data!G33 -> 10 | H26: =data!H33 -> 0.05 | I26: =data!I33 -> 22 | J26: =data!J33 -> 10 | K26: =data!K33 -> 20 | L26: =data!L33 -> 7 | M26: =data!M33 -> 7 | N26: =data!N33 -> 24 | O26: =data!O33 -> 0.05 | P26: =data!P33 -> 12 | Q26: =data!Q33 -> 20 | R26: =data!R33 -> 0.5 | S26: 2009-07-22 | T26: =data!U33-data!Z33 -> -9.2 | U26: =[1]data!Y33 -> 2009-07-26
A27: 2009-07-24 | B27: 2009-07-23 | C27: =data!C34 -> 28 | D27: =data!D34 -> 12 | E27: =data!E34 -> 0.35 | F27: =data!F34 -> 30 | G27: =data!G34 -> 11 | H27: =data!H34 -> 0.02 | I27: =data!I34 -> 25 | J27: =data!J34 -> 12 | K27: =data!K34 -> 26 | L27: =data!L34 -> 11 | M27: =data!M34 -> 11 | N27: =data!N34 -> 30 | O27: =data!O34 -> 0 | P27: =data!P34 -> 10 | Q27: =data!Q34 -> 23 | R27: =data!R34 -> 0.1 | S27: 2009-07-23 | T27: =data!U34-data!Z34 -> -5.8 | U27: =[1]data!Y34 -> 2009-07-27
A28: 2009-07-25 | B28: 2009-07-24 | C28: =data!C35 -> 27 | D28: =data!D35 -> 12 | E28: =data!E35 -> 0.25 | F28: =data!F35 -> 24 | G28: =data!G35 -> 11 | H28: =data!H35 -> 0.05 | I28: =data!I35 -> 23 | J28: =data!J35 -> 13 | K28: =data!K35 -> 19 | L28: =data!L35 -> 9 | M28: =data!M35 -> 11 | N28: =data!N35 -> 30 | O28: =data!O35 -> 0 | P28: =data!P35 -> 10 | Q28: =data!Q35 -> 23 | R28: =data!R35 -> 0.1 | S28: 2009-07-24 | T28: =data!U35-data!Z35 -> -3.3 | U28: =[1]data!Y35 -> 2009-07-28
A29: 2009-07-28 | B29: 2009-07-27 | C29: =data!C36 -> 24 | D29: =data!D36 -> 10 | E29: =data!E36 -> 0.05 | F29: =data!F36 -> 25 | G29: =data!G36 -> 12 | H29: =data!H36 -> 0.05 | I29: =data!I36 -> 21 | J29: =data!J36 -> 10 | K29: =data!K36 -> 21 | L29: =data!L36 -> 6 | M29: =data!M36 -> 10 | N29: =data!N36 -> 25 | O29: =data!O36 -> 0.05 | P29: =data!P36 -> 18 | Q29: =data!Q36 -> 21 | R29: =data!R36 -> 0.1 | S29: 2009-07-27 | T29: =data!U36-data!Z36 -> -0.3 | U29: =[1]data!Y36 -> 2009-07-31
A30: 2009-07-29 | B30: 2009-07-28 | C30: =data!C37 -> 26 | D30: =data!D37 -> 10 | E30: =data!E37 -> 0.2 | F30: =data!F37 -> 25 | G30: =data!G37 -> 13 | H30: =data!H37 -> 0.05 | I30: =data!I37 -> 27 | J30: =data!J37 -> 10 | K30: =data!K37 -> 25 | L30: =data!L37 -> 9 | M30: =data!M37 -> 8 | N30: =data!N37 -> 25 | O30: =data!O37 -> 0.05 | P30: =data!P37 -> 9 | Q30: =data!Q37 -> 19 | R30: =data!R37 -> 0.2 | S30: 2009-07-28 | T30: =data!U37-data!Z37 -> -3.1 | U30: =[1]data!Y37 -> 2009-08-01
A31: 2009-07-30 | B31: 2009-07-29 | C31: =data!C38 -> 25 | D31: =data!D38 -> 16 | E31: =data!E38 -> 0.55 | F31: =data!F38 -> 25 | G31: =data!G38 -> 11 | H31: =data!H38 -> 0.1 | I31: =data!I38 -> 24 | J31: =data!J38 -> 14 | K31: =data!K38 -> 19 | L31: =data!L38 -> 13 | M31: =data!M38 -> 16 | N31: =data!N38 -> 25 | O31: =data!O38 -> 0.1 | P31: =data!P38 -> 12 | Q31: =data!Q38 -> 23 | R31: =data!R38 -> 0.1 | S31: 2009-07-29 | T31: =data!U38-data!Z38 -> 4.7 | U31: =[1]data!Y38 -> 2009-08-02
A32: 2009-07-31 | B32: 2009-07-30 | C32: =data!C39 -> 21 | D32: =data!D39 -> 15 | E32: =data!E39 -> 0.6 | F32: =data!F39 -> 23 | G32: =data!G39 -> 7 | H32: =data!H39 -> 0.05 | I32: =data!I39 -> 24 | J32: =data!J39 -> 14 | K32: =data!K39 -> 19 | L32: =data!L39 -> 13 | M32: =data!M39 -> 13 | N32: =data!N39 -> 23 | O32: =data!O39 -> 0.05 | P32: =data!P39 -> 15 | Q32: =data!Q39 -> 22 | R32: =data!R39 -> 0.7 | S32: 2009-07-30 | T32: =data!U39-data!Z39 -> -1.8 | U32: =[1]data!Y39 -> 2009-08-03
A33: 2009-08-01 | B33: 2009-07-31 | C33: =data!C40 -> 26 | D33: =data!D40 -> 11 | E33: =data!E40 -> 0.05 | F33: =data!F40 -> 26 | G33: =data!G40 -> 11 | H33: =data!H40 -> 0.05 | I33: =data!I40 -> 27 | J33: =data!J40 -> 11 | K33: =data!K40 -> 24 | L33: =data!L40 -> 7 | M33: =data!M40 -> 8 | N33: =data!N40 -> 26 | O33: =data!O40 -> 0.05 | P33: =data!P40 -> 12 | Q33: =data!Q40 -> 21 | R33: =data!R40 -> 0.7 | S33: 2009-07-31 | T33: =data!U40-data!Z40 -> -1.5 | U33: =[1]data!Y40 -> 2009-08-04
A34: 2009-08-02 | B34: 2009-08-01 | C34: =data!C41 -> 28 | D34: =data!D41 -> 13 | E34: =data!E41 -> 0.05 | F34: =data!F41 -> 28 | G34: =data!G41 -> 14 | H34: =data!H41 -> 0.02 | I34: =data!I41 -> 27 | J34: =data!J41 -> 11 | K34: =data!K41 -> 27 | L34: =data!L41 -> 12 | M34: =data!M41 -> 10 | N34: =data!N41 -> 28 | O34: =data!O41 -> 0 | P34: =data!P41 -> 12 | Q34: =data!Q41 -> 23 | R34: =data!R41 -> 0.1 | S34: 2009-08-01 | T34: =data!U41-data!Z41 -> 0.9 | U34: =[1]data!Y41 -> 2009-08-05
A35: 2009-08-03 | B35: 2009-08-02 | C35: =data!C42 -> 28 | D35: =data!D42 -> 13 | E35: =data!E42 -> 0.05 | F35: =data!F42 -> 31 | G35: =data!G42 -> 16 | H35: =data!H42 -> 0.05 | I35: =data!I42 -> 28 | J35: =data!J42 -> 12 | K35: =data!K42 -> 27 | L35: =data!L42 -> 13 | M35: =data!M42 -> 10 | N35: =data!N42 -> 28 | O35: =data!O42 -> 0 | P35: =data!P42 -> 12 | Q35: =data!Q42 -> 23 | R35: =data!R42 -> 0.1 | S35: 2009-08-02 | T35: =data!U42-data!Z42 -> -1.8 | U35: =[1]data!Y42 -> 2009-08-06
A36: 2009-08-04 | B36: 2009-08-03 | C36: =data!C43 -> 30 | D36: =data!D43 -> 15 | E36: =data!E43 -> 0.05 | F36: =data!F43 -> 30 | G36: =data!G43 -> 16 | H36: =data!H43 -> 0.02 | I36: =data!I43 -> 30 | J36: =data!J43 -> 14 | K36: =data!K43 -> 30 | L36: =data!L43 -> 14 | M36: =data!M43 -> 13 | N36: =data!N43 -> 30 | O36: =data!O43 -> 0 | P36: =data!P43 -> 13 | Q36: =data!Q43 -> 26 | R36: =data!R43 -> 0.1 | S36: 2009-08-03 | T36: =data!U43-data!Z43 -> 1.5 | U36: =[1]data!Y43 -> 2009-08-07
A37: 2009-08-05 | B37: 2009-08-04 | C37: =data!C44 -> 26 | D37: =data!D44 -> 16 | E37: =data!E44 -> 0.55 | F37: =data!F44 -> 29 | G37: =data!G44 -> 18 | H37: =data!H44 -> 0.1 | I37: =data!I44 -> 26 | J37: =data!J44 -> 16 | K37: =data!K44 -> 22 | L37: =data!L44 -> 16 | M37: =data!M44 -> 17 | N37: =data!N44 -> 29 | O37: =data!O44 -> 0.1 | P37: =data!P44 -> 14 | Q37: =data!Q44 -> 28 | R37: =data!R44 -> 0.1 | S37: 2009-08-04 | T37: =data!U44-data!Z44 -> 7.6 | U37: =[1]data!Y44 -> 2009-08-08
A38: 2009-08-06 | B38: 2009-08-05 | C38: =data!C45 -> 27 | D38: =data!D45 -> 17 | E38: =data!E45 -> 0.6 | F38: =data!F45 -> 29 | G38: =data!G45 -> 17 | H38: =data!H45 -> 0.5 | I38: =data!I45 -> 23 | J38: =data!J45 -> 15 | K38: =data!K45 -> 29 | L38: =data!L45 -> 15 | M38: =data!M45 -> 18 | N38: =data!N45 -> 29 | O38: =data!O45 -> 0.5 | P38: =data!P45 -> 16 | Q38: =data!Q45 -> 24 | R38: =data!R45 -> 0.7 | S38: 2009-08-05 | T38: =data!U45-data!Z45 -> 5.4 | U38: =[1]data!Y45 -> 2009-08-09
A39: 2009-08-07 | B39: 2009-08-06 | C39: =data!C46 -> 25 | D39: =data!D46 -> 17 | E39: =data!E46 -> 0.55 | F39: =data!F46 -> 28 | G39: =data!G46 -> 15 | H39: =data!H46 -> 0.5 | I39: =data!I46 -> 23 | J39: =data!J46 -> 15 | K39: =data!K46 -> 20 | L39: =data!L46 -> 13 | M39: =data!M46 -> 17 | N39: =data!N46 -> 28 | O39: =data!O46 -> 0.5 | P39: =data!P46 -> 15 | Q39: =data!Q46 -> 24 | R39: =data!R46 -> 0.2 | S39: 2009-08-06 | T39: =data!U46-data!Z46 -> 3.4 | U39: =[1]data!Y46 -> 2009-08-10
A40: 2009-08-08 | B40: 2009-08-07 | C40: =data!C47 -> 22 | D40: =data!D47 -> 13 | E40: =data!E47 -> 0.45 | F40: =data!F47 -> 24 | G40: =data!G47 -> 11 | H40: =data!H47 -> 0.05 | I40: =data!I47 -> 22 | J40: =data!J47 -> 12 | K40: =data!K47 -> 18 | L40: =data!L47 -> 11 | M40: =data!M47 -> 17 | N40: =data!N47 -> 28 | O40: =data!O47 -> 0.5 | P40: =data!P47 -> 15 | Q40: =data!Q47 -> 23 | R40: =data!R47 -> 0.6 | S40: 2009-08-07 | T40: =data!U47-data!Z47 -> 0.2 | U40: =[1]data!Y47 -> 2009-08-11
A41: 2009-08-24 | B41: 2009-08-23 | C41: =data!C48 -> 26 | D41: =data!D48 -> 14 | E41: =data!E48 -> 0.2 | F41: =data!F48 -> 27 | G41: =data!G48 -> 14 | H41: =data!H48 -> 0.02 | I41: =data!I48 -> 26 | J41: =data!J48 -> 13 | K41: =data!K48 -> 22 | L41: =data!L48 -> 13 | M41: =data!M48 -> 12 | N41: =data!N48 -> 27 | O41: =data!O48 -> 0 | P41: =data!P48 -> 12 | Q41: =data!Q48 -> 25 | R41: =data!R48 -> 0.1 | S41: 2009-08-23 | T41: =data!U48-data!Z48 -> 5.1 | U41: =[1]data!Y48 -> 2009-08-27
A42: 2009-08-25 | B42: 2009-08-24 | C42: =data!C49 -> 24 | D42: =data!D49 -> 15 | E42: =data!E49 -> 0.35 | F42: =data!F49 -> 25 | G42: =data!G49 -> 11 | H42: =data!H49 -> 0.05 | I42: =data!I49 -> 26 | J42: =data!J49 -> 14 | K42: =data!K49 -> 19 | L42: =data!L49 -> 14 | M42: =data!M49 -> 15 | N42: =data!N49 -> 25 | O42: =data!O49 -> 0.05 | P42: =data!P49 -> 15 | Q42: =data!Q49 -> 24 | R42: =data!R49 -> 0.6 | S42: 2009-08-24 | T42: =data!U49-data!Z49 -> 4.5 | U42: =[1]data!Y49 -> 2009-08-28
A43: 2009-08-27 | B43: 2009-08-26 | C43: =data!C50 -> 21 | D43: =data!D50 -> 8 | E43: =data!E50 -> 0.05 | F43: =data!F50 -> 21 | G43: =data!G50 -> 9 | H43: =data!H50 -> 0.05 | I43: =data!I50 -> 21 | J43: =data!J50 -> 7 | K43: =data!K50 -> 18 | L43: =data!L50 -> 6 | M43: =data!M50 -> 7 | N43: =data!N50 -> 21 | O43: =data!O50 -> 0.05 | P43: =data!P50 -> 9 | Q43: =data!Q50 -> 19 | R43: =data!R50 -> 0.1 | S43: 2009-08-26 | T43: =data!U50-data!Z50 -> -7.2 | U43: =[1]data!Y50 -> 2009-08-30
A44: 2009-08-28 | B44: 2009-08-27 | C44: =data!C51 -> 24 | D44: =data!D51 -> 9 | E44: =data!E51 -> 0.05 | F44: =data!F51 -> 25 | G44: =data!G51 -> 10 | H44: =data!H51 -> 0.05 | I44: =data!I51 -> 26 | J44: =data!J51 -> 8 | K44: =data!K51 -> 23 | L44: =data!L51 -> 6 | M44: =data!M51 -> 6 | N44: =data!N51 -> 25 | O44: =data!O51 -> 0.05 | P44: =data!P51 -> 8 | Q44: =data!Q51 -> 22 | R44: =data!R51 -> 0.1 | S44: 2009-08-27 | T44: =data!U51-data!Z51 -> -6.8 | U44: =[1]data!Y51 -> 2009-08-31
A45: 2009-08-30 | B45: 2009-08-29 | C45: =data!C52 -> 22 | D45: =data!D52 -> 14 | E45: =data!E52 -> 0.4 | F45: =data!F52 -> 23 | G45: =data!G52 -> 14 | H45: =data!H52 -> 0.05 | I45: =data!I52 -> 22 | J45: =data!J52 -> 15 | K45: =data!K52 -> 19 | L45: =data!L52 -> 12 | M45: =data!M52 -> 14 | N45: =data!N52 -> 23 | O45: =data!O52 -> 0.05 | P45: =data!P52 -> 17 | Q45: =data!Q52 -> 21 | R45: =data!R52 -> 0.6 | S45: 2009-08-29 | T45: =data!U52-data!Z52 -> 3.1 | U45: =[1]data!Y52 -> 2009-09-02
A46: 2009-08-31 | B46: 2009-08-30 | C46: =data!C53 -> 19 | D46: =data!D53 -> 12 | E46: =data!E53 -> 0.55 | F46: =data!F53 -> 22 | G46: =data!G53 -> 13 | H46: =data!H53 -> 0.05 | I46: =data!I53 -> 22 | J46: =data!J53 -> 12 | K46: =data!K53 -> 18 | L46: =data!L53 -> 10 | M46: =data!M53 -> 14 | N46: =data!N53 -> 22 | O46: =data!O53 -> 0.05 | P46: =data!P53 -> 14 | Q46: =data!Q53 -> 19 | R46: =data!R53 -> 0.6 | S46: 2009-08-30 | T46: =data!U53-data!Z53 -> 8.2 | U46: =[1]data!Y53 -> 2009-09-03
A47: 2009-09-01 | B47: 2009-08-31 | C47: =data!C54 -> 16 | D47: =data!D54 -> 13 | E47: =data!E54 -> 0.75 | F47: =data!F54 -> 17 | G47: =data!G54 -> 12 | H47: =data!H54 -> 0.5 | I47: =data!I54 -> 18 | J47: =data!J54 -> 13 | K47: =data!K54 -> 13 | L47: =data!L54 -> 11 | M47: =data!M54 -> 12 | N47: =data!N54 -> 17 | O47: =data!O54 -> 0.5 | P47: =data!P54 -> 11 | Q47: =data!Q54 -> 14 | R47: =data!R54 -> 0.9 | S47: 2009-08-31 | T47: =data!U54-data!Z54 -> 3.4 | U47: =[1]data!Y54 -> 2009-09-04
A48: 2009-09-03 | B48: 2009-09-02 | C48: =data!C55 -> 19 | D48: =data!D55 -> 10 | E48: =data!E55 -> 0.2 | F48: =data!F55 -> 19 | G48: =data!G55 -> 8 | H48: =data!H55 -> 0.1 | I48: =data!I55 -> 19 | J48: =data!J55 -> 9 | K48: =data!K55 -> 16 | L48: =data!L55 -> 10 | M48: =data!M55 -> 10 | N48: =data!N55 -> 19 | O48: =data!O55 -> 0.1 | P48: =data!P55 -> 8 | Q48: =data!Q55 -> 18 | R48: =data!R55 -> 0.2 | S48: 2009-09-02 | T48: =data!U55-data!Z55 -> -5.9 | U48: =[1]data!Y55 -> 2009-09-06
A49: 2009-09-04 | B49: 2009-09-03 | C49: =data!C56 -> 21 | D49: =data!D56 -> 8 | E49: =data!E56 -> 0.2 | F49: =data!F56 -> 23 | G49: =data!G56 -> 11 | H49: =data!H56 -> 0.05 | I49: =data!I56 -> 21 | J49: =data!J56 -> 8 | K49: =data!K56 -> 18 | L49: =data!L56 -> 8 | M49: =data!M56 -> 10 | N49: =data!N56 -> 23 | O49: =data!O56 -> 0.05 | P49: =data!P56 -> 9 | Q49: =data!Q56 -> 20 | R49: =data!R56 -> 0.2 | S49: 2009-09-03 | T49: =data!U56-data!Z56 -> -5.6 | U49: =[1]data!Y56 -> 2009-09-07
A50: 2009-09-05 | B50: 2009-09-04 | C50: =data!C57 -> 25 | D50: =data!D57 -> 11 | E50: =data!E57 -> 0.05 | F50: =data!F57 -> 26 | G50: =data!G57 -> 13 | H50: =data!H57 -> 0.05 | I50: =data!I57 -> 24 | J50: =data!J57 -> 9 | K50: =data!K57 -> 23 | L50: =data!L57 -> 8 | M50: =data!M57 -> 11 | N50: =data!N57 -> 26 | O50: =data!O57 -> 0.05 | P50: =data!P57 -> 11 | Q50: =data!Q57 -> 24 | R50: =data!R57 -> 0.1 | S50: 2009-09-04 | T50: =data!U57-data!Z57 -> -2.3 | U50: =[1]data!Y57 -> 2009-09-08
A51: 2009-09-06 | B51: 2009-09-05 | C51: =data!C58 -> 27 | D51: =data!D58 -> 11 | E51: =data!E58 -> 0.05 | F51: =data!F58 -> 28 | G51: =data!G58 -> 14 | H51: =data!H58 -> 0.05 | I51: =data!I58 -> 24 | J51: =data!J58 -> 11 | K51: =data!K58 -> 26 | L51: =data!L58 -> 10 | M51: =data!M58 -> 12 | N51: =data!N58 -> 28 | O51: =data!O58 -> 0.05 | P51: =data!P58 -> 12 | Q51: =data!Q58 -> 24 | R51: =data!R58 -> 0.3 | S51: 2009-09-05 | T51: =data!U58-data!Z58 -> -1 | U51: =[1]data!Y58 -> 2009-09-09
A52: 2009-09-08 | B52: 2009-09-07 | C52: =data!C59 -> 21 | D52: =data!D59 -> 13 | E52: =data!E59 -> 0.2 | F52: =data!F59 -> 21 | G52: =data!G59 -> 11 | H52: =data!H59 -> 0.05 | I52: =data!I59 -> 20 | J52: =data!J59 -> 11 | K52: =data!K59 -> 19 | L52: =data!L59 -> 10 | M52: =data!M59 -> 13 | N52: =data!N59 -> 21 | O52: =data!O59 -> 0.05 | P52: =data!P59 -> 13 | Q52: =data!Q59 -> 19 | R52: =data!R59 -> 0.2 | S52: 2009-09-07 | T52: =data!U59-data!Z59 -> 5.1 | U52: =[1]data!Y59 -> 2009-09-11
A53: 2009-09-09 | B53: 2009-09-08 | C53: =data!C60 -> 20 | D53: =data!D60 -> 11 | E53: =data!E60 -> 0.3 | F53: =data!F60 -> 22 | G53: =data!G60 -> 10 | H53: =data!H60 -> 0.1 | I53: =data!I60 -> 18 | J53: =data!J60 -> 9 | K53: =data!K60 -> 17 | L53: =data!L60 -> 9 | M53: =data!M60 -> 14 | N53: =data!N60 -> 22 | O53: =data!O60 -> 0.1 | P53: =data!P60 -> 14 | Q53: =data!Q60 -> 19 | R53: =data!R60 -> 0.3 | S53: 2009-09-08 | T53: =data!U60-data!Z60 -> 3.5 | U53: =[1]data!Y60 -> 2009-09-12
A54: 2009-09-10 | B54: 2009-09-09 | C54: =data!C61 -> 18 | D54: =data!D61 -> 10 | E54: =data!E61 -> 0.2 | F54: =data!F61 -> 19 | G54: =data!G61 -> 13 | H54: =data!H61 -> 10 | I54: =data!I61 -> 20 | J54: =data!J61 -> 9 | K54: =data!K61 -> 14 | L54: =data!L61 -> 6 | M54: =data!M61 -> 13 | N54: =data!N61 -> 19 | O54: =data!O61 -> 0.1 | P54: =data!P61 -> 12 | Q54: =data!Q61 -> 17 | R54: =data!R61 -> 0.2 | S54: 2009-09-09 | T54: =data!U61-data!Z61 -> -0.8 | U54: =[1]data!Y61 -> 2009-09-13
A55: 2009-09-11 | B55: 2009-09-10 | C55: =data!C62 -> 17 | D55: =data!D62 -> 11 | E55: =data!E62 -> 0.35 | F55: =data!F62 -> 17 | G55: =data!G62 -> 11 | H55: =data!H62 -> 0.15 | I55: =data!I62 -> 18 | J55: =data!J62 -> 9 | K55: =data!K62 -> 15 | L55: =data!L62 -> 9 | M55: =data!M62 -> 11 | N55: =data!N62 -> 17 | O55: =data!O62 -> 15 | P55: =data!P62 -> 11 | Q55: =data!Q62 -> 16 | R55: =data!R62 -> 0.8 | S55: 2009-09-10 | T55: =data!U62-data!Z62 -> -3.8 | U55: =[1]data!Y62 -> 2009-09-14
A56: 2009-09-12 | B56: 2009-09-11 | C56: =data!C63 -> 16 | D56: =data!D63 -> 11 | E56: =data!E63 -> 0.7 | F56: =data!F63 -> 18 | G56: =data!G63 -> 12 | H56: =data!H63 -> 30 | I56: =data!I63 -> 21 | J56: =data!J63 -> 10 | K56: =data!K63 -> 12 | L56: =data!L63 -> 8 | M56: =data!M63 -> 11 | N56: =data!N63 -> 18 | O56: =data!O63 -> 0.3 | P56: =data!P63 -> 8 | Q56: =data!Q63 -> 15 | R56: =data!R63 -> 0.7 | S56: 2009-09-11 | T56: =data!U63-data!Z63 -> -1.8 | U56: =[1]data!Y63 -> 2009-09-15
A57: 2009-09-13 | B57: 2009-09-12 | C57: =data!C64 -> 24 | D57: =data!D64 -> 12 | E57: =data!E64 -> 0.1 | F57: =data!F64 -> 26 | G57: =data!G64 -> 15 | H57: =data!H64 -> 0.05 | I57: =data!I64 -> 22 | J57: =data!J64 -> 10 | K57: =data!K64 -> 23 | L57: =data!L64 -> 10 | M57: =data!M64 -> 12 | N57: =data!N64 -> 26 | O57: =data!O64 -> 0.05 | P57: =data!P64 -> 11 | Q57: =data!Q64 -> 23 | R57: =data!R64 -> 0.2 | S57: 2009-09-12 | T57: =data!U64-data!Z64 -> 2.6 | U57: =[1]data!Y64 -> 2009-09-16
A58: 2009-09-14 | B58: 2009-09-13 | C58: =data!C65 -> 23 | D58: =data!D65 -> 13 | E58: =data!E65 -> 0.1 | F58: =data!F65 -> 23 | G58: =data!G65 -> 11 | H58: =data!H65 -> 0.05 | I58: =data!I65 -> 18 | J58: =data!J65 -> 12 | K58: =data!K65 -> 20 | L58: =data!L65 -> 13 | M58: =data!M65 -> 13 | N58: =data!N65 -> 23 | O58: =data!O65 -> 0.05 | P58: =data!P65 -> 14 | Q58: =data!Q65 -> 20 | R58: =data!R65 -> 0.5 | S58: 2009-09-13 | T58: =data!U65-data!Z65 -> 4.5 | U58: =[1]data!Y65 -> 2009-09-17
A59: 2009-09-15 | B59: 2009-09-14 | C59: =data!C66 -> 22 | D59: =data!D66 -> 8 | E59: =data!E66 -> 0.05 | F59: =data!F66 -> 23 | G59: =data!G66 -> 10 | H59: =data!H66 -> 0.02 | I59: =data!I66 -> 20 | J59: =data!J66 -> 8 | K59: =data!K66 -> 20 | L59: =data!L66 -> 6 | M59: =data!M66 -> 8 | N59: =data!N66 -> 23 | O59: =data!O66 -> 0 | P59: =data!P66 -> 9 | Q59: =data!Q66 -> 22 | R59: =data!R66 -> 0.1 | S59: 2009-09-14 | T59: =data!U66-data!Z66 -> 1.2 | U59: =[1]data!Y66 -> 2009-09-18
A60: 2009-09-16 | B60: 2009-09-15 | C60: =data!C67 -> 23 | D60: =data!D67 -> 9 | E60: =data!E67 -> 0.05 | F60: =data!F67 -> 24 | G60: =data!G67 -> 9 | H60: =data!H67 -> 0.02 | I60: =data!I67 -> 22 | J60: =data!J67 -> 8 | K60: =data!K67 -> 20 | L60: =data!L67 -> 10 | M60: =data!M67 -> 9 | N60: =data!N67 -> 24 | O60: =data!O67 -> 0 | P60: =data!P67 -> 11 | Q60: =data!Q67 -> 22 | R60: =data!R67 -> 0.1 | S60: 2009-09-15 | T60: =data!U67-data!Z67 -> 2.2 | U60: =[1]data!Y67 -> 2009-09-19
A61: 2009-09-17 | B61: 2009-09-16 | C61: =data!C68 -> 23 | D61: =data!D68 -> 12 | E61: =data!E68 -> 0.35 | F61: =data!F68 -> 25 | G61: =data!G68 -> 10 | H61: =data!H68 -> 0.02 | I61: =data!I68 -> 21 | J61: =data!J68 -> 11 | K61: =data!K68 -> 21 | L61: =data!L68 -> 10 | M61: =data!M68 -> 9 | N61: =data!N68 -> 24 | O61: =data!O68 -> 0 | P61: =data!P68 -> 12 | Q61: =data!Q68 -> 21 | R61: =data!R68 -> 0.3 | S61: 2009-09-16 | T61: =data!U68-data!Z68 -> 0.8 | U61: =[1]data!Y68 -> 2009-09-20
A62: 2009-09-18 | B62: 2009-09-17 | C62: =data!C69 -> 23 | D62: =data!D69 -> 13 | E62: =data!E69 -> 0.55 | F62: =data!F69 -> 26 | G62: =data!G69 -> 11 | H62: =data!H69 -> 0.05 | I62: =data!I69 -> 22 | J62: =data!J69 -> 11 | K62: =data!K69 -> 21 | L62: =data!L69 -> 12 | M62: =data!M69 -> 13 | N62: =data!N69 -> 26 | O62: =data!O69 -> 0.05 | P62: =data!P69 -> 13 | Q62: =data!Q69 -> 23 | R62: =data!R69 -> 0.2 | S62: 2009-09-17 | T62: =data!U69-data!Z69 -> 2.3 | U62: =[1]data!Y69 -> 2009-09-21
A64: első | B64: qvartilis | C64: =QUARTILE(C$3:C$52,1) -> 21 | D64: =QUARTILE(D$3:D$52,1) -> 12 | E64: 0.2 | F64: 22 | G64: 11 | H64: 0.05 | I64: 21 | J64: 11 | K64: 19 | L64: 9 | M64: 10.25 | N64: 22 | O64: 0.05 | P64: 11 | Q64: 19.25 | R64: 0.1
A65: második | B65: qvartilis | C65: =QUARTILE(C$3:C$52,2) -> 24 | D65: =QUARTILE(D$3:D$52,2) -> 13 | E65: 0.45 | F65: 25 | G65: 13 | H65: 0.05 | I65: 24 | J65: 13 | K65: 22 | L65: 10 | M65: 12 | N65: 25 | O65: 0.05 | P65: 12 | Q65: 22.5 | R65: 0.35
A66: harmadik | B66: qvartilis | C66: =QUARTILE(C$3:C$52,3) -> 26 | D66: =QUARTILE(D$3:D$52,3) -> 15 | E66: 0.6 | F66: 27.75 | G66: 14.75 | H66: 0.3 | I66: 26 | J66: 14 | K66: 24 | L66: 13 | M66: 15 | N66: 28 | O66: 0.45 | P66: 15 | Q66: 24 | R66: 0.7
S67: delta
S68: (tény+10)*100
A69: minar1 | C69: =IF(C3<C$64,1,IF(C3<C$65,2,IF(C3<C$66,3,4))) -> 4 | D69: =IF(D3<D$64,1,IF(D3<D$65,2,IF(D3<D$66,3,4))) -> 4 | E69: 2 | F69: 4 | G69: 4 | H69: 3 | I69: 4 | J69: 4 | K69: 4 | L69: 4 | M69: 4 | N69: 4 | O69: 3 | P69: 4 | Q69: 4 | R69: 2 | S69: =(T3+10)*100 -> 1200 | T69: méret: | U69: 50*16(+1)
C70: =IF(C4<C$64,1,IF(C4<C$65,2,IF(C4<C$66,3,4))) -> 4 | D70: 4 | E70: 2 | F70: 4 | G70: 4 | H70: 3 | I70: 4 | J70: 4 | K70: 4 | L70: 4 | M70: 4 | N70: 4 | O70: 3 | P70: 4 | Q70: 4 | R70: 2 | S70: =(T4+10)*100 -> 1400
C71: 4 | D71: 4 | E71: 3 | F71: 4 | G71: 4 | H71: 4 | I71: 4 | J71: 4 | K71: 4 | L71: 4 | M71: 4 | N71: 4 | O71: 4 | P71: 4 | Q71: 4 | R71: 2 | S71: 850
C72: 3 | D72: 4 | E72: 3 | F72: 3 | G72: 3 | H72: 4 | I72: 3 | J72: 4 | K72: 3 | L72: 3 | M72: 3 | N72: 3 | O72: 4 | P72: 4 | Q72: 3 | R72: 4 | S72: 720
C73: 3 | D73: 4 | E73: 4 | F73: 3 | G73: 4 | H73: 3 | I73: 2 | J73: 4 | K73: 3 | L73: 4 | M73: 3 | N73: 3 | O73: 3 | P73: 4 | Q73: 3 | R73: 4 | S73: 830
C74: 3 | D74: 4 | E74: 3 | F74: 2 | G74: 2 | H74: 4 | I74: 2 | J74: 3 | K74: 3 | L74: 3 | M74: 3 | N74: 2 | O74: 4 | P74: 3 | Q74: 1 | R74: 4 | S74: 730
C75: 1 | D75: 3 | E75: 4 | F75: 1 | G75: 1 | H75: 4 | I75: 1 | J75: 3 | K75: 2 | L75: 3 | M75: 3 | N75: 1 | O75: 4 | P75: 3 | Q75: 1 | R75: 4 | S75: 600
C76: 1 | D76: 3 | E76: 4 | F76: 1 | G76: 2 | H76: 4 | I76: 1 | J76: 2 | K76: 2 | L76: 2 | M76: 3 | N76: 1 | O76: 3 | P76: 3 | Q76: 1 | R76: 4 | S76: 780
C77: 1 | D77: 1 | E77: 3 | F77: 1 | G77: 2 | H77: 4 | I77: 1 | J77: 1 | K77: 1 | L77: 1 | M77: 1 | N77: 1 | O77: 4 | P77: 2 | Q77: 1 | R77: 4 | S77: 440
C78: 1 | D78: 1 | E78: 3 | F78: 1 | G78: 1 | H78: 3 | I78: 1 | J78: 2 | K78: 1 | L78: 3 | M78: 3 | N78: 1 | O78: 3 | P78: 1 | Q78: 1 | R78: 4 | S78: 720
C79: 2 | D79: 1 | E79: 4 | F79: 3 | G79: 4 | H79: 3 | I79: 2 | J79: 1 | K79: 2 | L79: 2 | M79: 2 | N79: 3 | O79: 3 | P79: 2 | Q79: 1 | R79: 2 | S79: 980
C80: 3 | D80: 3 | E80: 1 | F80: 3 | G80: 3 | H80: 3 | I80: 3 | J80: 3 | K80: 3 | L80: 1 | M80: 1 | N80: 3 | O80: 3 | P80: 2 | Q80: 2 | R80: 2 | S80: 1290
C81: 3 | D81: 4 | E81: 4 | F81: 2 | G81: 4 | H81: 4 | I81: 3 | J81: 4 | K81: 4 | L81: 4 | M81: 4 | N81: 2 | O81: 4 | P81: 3 | Q81: 4 | R81: 3 | S81: 1750
C82: 3 | D82: 4 | E82: 4 | F82: 3 | G82: 4 | H82: 3 | I82: 4 | J82: 4 | K82: 4 | L82: 4 | M82: 4 | N82: 2 | O82: 4 | P82: 4 | Q82: 4 | R82: 3 | S82: 1600
C83: 4 | D83: 3 | E83: 1 | F83: 4 | G83: 3 | H83: 3 | I83: 4 | J83: 3 | K83: 4 | L83: 2 | M83: 2 | N83: 4 | O83: 3 | P83: 4 | Q83: 4 | R83: 3 | S83: 980
C84: 3 | D84: 4 | E84: 4 | F84: 3 | G84: 2 | H84: 4 | I84: 4 | J84: 3 | K84: 3 | L84: 4 | M84: 4 | N84: 4 | O84: 3 | P84: 3 | Q84: 4 | R84: 2 | S84: 1120
C85: 1 | D85: 3 | E85: 4 | F85: 1 | G85: 1 | H85: 3 | I85: 1 | J85: 3 | K85: 1 | L85: 3 | M85: 3 | N85: 1 | O85: 3 | P85: 4 | Q85: 4 | R85: =IF(R19<R$64,1,IF(R19<R$65,2,IF(R19<R$66,3,4))) -> 4 | S85: 590
C86: =IF(C20<C$64,1,IF(C20<C$65,2,IF(C20<C$66,3,4))) -> 1 | D86: 3 | E86: 4 | F86: 1 | G86: 3 | H86: 3 | I86: 1 | J86: 2 | K86: 1 | L86: 2 | M86: 1 | N86: 1 | O86: 3 | P86: 3 | Q86: 1 | R86: 4 | S86: 300
C87: 2 | D87: 3 | E87: 3 | F87: 2 | G87: 2 | H87: 3 | I87: 1 | J87: 2 | K87: 1 | L87: 3 | M87: 2 | N87: 2 | O87: 3 | P87: 2 | Q87: 2 | R87: 4 | S87: 940
C88: 3 | D88: 2 | E88: 2 | F88: 3 | G88: 4 | H88: 4 | I88: 4 | J88: 2 | K88: 3 | L88: 1 | M88: 2 | N88: 3 | O88: 4 | P88: 3 | Q88: 2 | R88: 2 | S88: 780
C89: 3 | D89: 4 | E89: 4 | F89: 4 | G89: 3 | H89: 4 | I89: 4 | J89: 4 | K89: 3 | L89: 4 | M89: 4 | N89: 4 | O89: 4 | P89: 3 | Q89: 2 | R89: 3 | S89: 1490
C90: 3 | D90: 4 | E90: 4 | F90: 2 | G90: 3 | H90: 4 | I90: 4 | J90: 4 | K90: 3 | L90: 4 | M90: 4 | N90: 2 | O90: 3 | P90: 4 | Q90: 4 | R90: 4 | S90: 1630
C91: 1 | D91: 3 | E91: 4 | F91: 1 | G91: 1 | H91: 3 | I91: 2 | J91: 3 | K91: 1 | L91: 3 | M91: 3 | N91: 1 | O91: 3 | P91: 4 | Q91: 2 | R91: 3 | S91: 950
C92: 3 | D92: 2 | E92: 1 | F92: 2 | G92: 1 | H92: 3 | I92: 2 | J92: 1 | K92: 2 | L92: 1 | M92: 1 | N92: 2 | O92: 3 | P92: 3 | Q92: 2 | R92: 3 | S92: 80
C93: 4 | D93: 2 | E93: 2 | F93: 4 | G93: 2 | H93: 1 | I93: 3 | J93: 2 | K93: 4 | L93: 3 | M93: 2 | N93: 4 | O93: 1 | P93: 1 | Q93: 3 | R93: 2 | S93: 420
C94: 4 | D94: 2 | E94: 2 | F94: 2 | G94: 2 | H94: 3 | I94: 2 | J94: 3 | K94: 2 | L94: 2 | M94: 2 | N94: 4 | O94: 1 | P94: 1 | Q94: 3 | R94: 2 | S94: 670
C95: 3 | D95: 1 | E95: 1 | F95: 3 | G95: 2 | H95: 3 | I95: 2 | J95: 1 | K95: 2 | L95: 1 | M95: 1 | N95: 3 | O95: 3 | P95: 4 | Q95: 2 | R95: 2 | S95: 970
C96: 4 | D96: 1 | E96: 2 | F96: 3 | G96: 3 | H96: 3 | I96: 4 | J96: 1 | K96: 4 | L96: 2 | M96: 1 | N96: 3 | O96: 3 | P96: 1 | Q96: 1 | R96: 2 | S96: 690
C97: 3 | D97: 4 | E97: 3 | F97: 3 | G97: 2 | H97: 3 | I97: 3 | J97: 4 | K97: 2 | L97: 4 | M97: 4 | N97: 3 | O97: 3 | P97: 3 | Q97: 3 | R97: 2 | S97: 1470
C98: 2 | D98: 4 | E98: 4 | F98: 2 | G98: 1 | H98: 3 | I98: 3 | J98: 4 | K98: 2 | L98: 4 | M98: 3 | N98: 2 | O98: 3 | P98: 4 | Q98: 2 | R98: 4 | S98: 820
C99: 4 | D99: 1 | E99: 1 | F99: 3 | G99: 2 | H99: 3 | I99: 4 | J99: 2 | K99: 4 | L99: 1 | M99: 1 | N99: 3 | O99: 3 | P99: 3 | Q99: 2 | R99: 4 | S99: 850
C100: 4 | D100: 3 | E100: 1 | F100: 4 | G100: 3 | H100: 1 | I100: 4 | J100: 2 | K100: 4 | L100: 3 | M100: 1 | N100: 4 | O100: 1 | P100: 3 | Q100: 3 | R100: 2 | S100: 1090
C101: 4 | D101: 3 | E101: 1 | F101: 4 | G101: 4 | H101: 3 | I101: 4 | J101: 2 | K101: 4 | L101: 4 | M101: 1 | N101: 4 | O101: 1 | P101: 3 | Q101: 3 | R101: =IF(R35<R$64,1,IF(R35<R$65,2,IF(R35<R$66,3,4))) -> 2 | S101: 820
C102: =IF(C36<C$64,1,IF(C36<C$65,2,IF(C36<C$66,3,4))) -> 4 | D102: 4 | E102: 1 | F102: 4 | G102: 4 | H102: 1 | I102: 4 | J102: 4 | K102: 4 | L102: 4 | M102: 3 | N102: 4 | O102: 1 | P102: 3 | Q102: 4 | R102: 2 | S102: 1150
C103: 4 | D103: 4 | E103: 3 | F103: 4 | G103: 4 | H103: 3 | I103: 4 | J103: 4 | K103: 3 | L103: 4 | M103: 4 | N103: 4 | O103: 3 | P103: 3 | Q103: 4 | R103: 2 | S103: 1760
C104: 4 | D104: 4 | E104: 4 | F104: 4 | G104: 4 | H104: 4 | I104: 2 | J104: 4 | K104: 4 | L104: 4 | M104: 4 | N104: 4 | O104: 4 | P104: 4 | Q104: 4 | R104: 4 | S104: 1540
C105: 3 | D105: 4 | E105: 3 | F105: 4 | G105: 4 | H105: 4 | I105: 2 | J105: 4 | K105: 2 | L105: 4 | M105: 4 | N105: 4 | O105: 4 | P105: 4 | Q105: 4 | R105: 2 | S105: 1340
C106: 2 | D106: 3 | E106: 3 | F106: 2 | G106: 2 | H106: 3 | I106: 2 | J106: 2 | K106: 1 | L106: 3 | M106: 4 | N106: 4 | O106: 4 | P106: 4 | Q106: 3 | R106: 3 | S106: 1020
C107: 4 | D107: 3 | E107: 2 | F107: 3 | G107: 3 | H107: 1 | I107: 4 | J107: 3 | K107: 3 | L107: 4 | M107: 3 | N107: 3 | O107: 1 | P107: 3 | Q107: 4 | R107: 2 | S107: 1510
C108: 3 | D108: 4 | E108: 2 | F108: 3 | G108: 2 | H108: 3 | I108: 4 | J108: 4 | K108: 2 | L108: 4 | M108: 4 | N108: 3 | O108: 3 | P108: 4 | Q108: 4 | R108: 3 | S108: 1450
C109: 2 | D109: 1 | E109: 1 | F109: 1 | G109: 1 | H109: 3 | I109: 2 | J109: 1 | K109: 1 | L109: 1 | M109: 1 | N109: 1 | O109: 3 | P109: 1 | Q109: 1 | R109: 2 | S109: 280
C110: 3 | D110: 1 | E110: 1 | F110: 3 | G110: 1 | H110: 3 | I110: 4 | J110: 1 | K110: 3 | L110: 1 | M110: 1 | N110: 3 | O110: 3 | P110: 1 | Q110: 2 | R110: 2 | S110: 320
C111: 2 | D111: 3 | E111: 2 | F111: 2 | G111: 3 | H111: 3 | I111: 2 | J111: 4 | K111: 2 | L111: 3 | M111: 3 | N111: 2 | O111: 3 | P111: 4 | Q111: 2 | R111: 3 | S111: 1310
C112: 1 | D112: 2 | E112: 3 | F112: 2 | G112: 3 | H112: 3 | I112: 2 | J112: 2 | K112: 1 | L112: 3 | M112: 3 | N112: 2 | O112: 3 | P112: 3 | Q112: 1 | R112: 3 | S112: 1820
C113: 1 | D113: 3 | E113: 4 | F113: 1 | G113: 2 | H113: 4 | I113: 1 | J113: 3 | K113: 1 | L113: 3 | M113: 3 | N113: 1 | O113: 4 | P113: 2 | Q113: 1 | R113: 4 | S113: 1340
C114: 1 | D114: 1 | E114: 2 | F114: 1 | G114: 1 | H114: 3 | I114: 1 | J114: 1 | K114: 1 | L114: 3 | M114: 1 | N114: 1 | O114: 3 | P114: 1 | Q114: 1 | R114: 2 | S114: 410
C115: 2 | D115: 1 | E115: 2 | F115: 2 | G115: 2 | H115: 3 | I115: 2 | J115: 1 | K115: 1 | L115: 1 | M115: 1 | N115: 2 | O115: 3 | P115: 1 | Q115: 2 | R115: 2 | S115: 440
C116: 3 | D116: 1 | E116: 1 | F116: 3 | G116: 3 | H116: 3 | I116: 3 | J116: 1 | K116: 3 | L116: 1 | M116: 2 | N116: 3 | O116: 3 | P116: 2 | Q116: 4 | R116: 2 | S116: 770
C117: 4 | D117: 1 | E117: 1 | F117: 4 | G117: 3 | H117: 3 | I117: 3 | J117: 2 | K117: 4 | L117: 3 | M117: 3 | N117: 4 | O117: 3 | P117: 3 | Q117: 4 | R117: =IF(R51<R$64,1,IF(R51<R$65,2,IF(R51<R$66,3,4))) -> 2 | S117: 900
C118: =IF(C52<C$64,1,IF(C52<C$65,2,IF(C52<C$66,3,4))) -> 2 | D118: 3 | E118: 2 | F118: 1 | G118: 2 | H118: 3 | I118: 1 | J118: 2 | K118: 2 | L118: 3 | M118: 3 | N118: 1 | O118: 3 | P118: 3 | Q118: 1 | R118: 2 | S118: 1510
C119: 1 | D119: 1 | E119: 2 | F119: 2 | G119: 1 | H119: 3 | I119: 1 | J119: 1 | K119: 1 | L119: 2 | M119: 3 | N119: 2 | O119: 3 | P119: 3 | Q119: 1 | R119: 2 | S119: 1350
C120: 1 | D120: 1 | E120: 2 | F120: 1 | G120: 3 | H120: 4 | I120: 1 | J120: 1 | K120: 1 | L120: 1 | M120: 3 | N120: 1 | O120: 3 | P120: 3 | Q120: 1 | R120: 2 | S120: 920
C121: 1 | D121: 1 | E121: 2 | F121: 1 | G121: 2 | H121: 3 | I121: 1 | J121: 1 | K121: 1 | L121: 2 | M121: 2 | N121: 1 | O121: 4 | P121: 2 | Q121: 1 | R121: 4 | S121: 620
C122: 1 | D122: 1 | E122: 4 | F122: 1 | G122: 2 | H122: 4 | I122: 2 | J122: 1 | K122: 1 | L122: 1 | M122: 2 | N122: 1 | O122: 3 | P122: 1 | Q122: 1 | R122: 4 | S122: 820
C123: 3 | D123: 2 | E123: 1 | F123: 3 | G123: 4 | H123: 3 | I123: 2 | J123: 1 | K123: 3 | L123: 3 | M123: 3 | N123: 3 | O123: 3 | P123: 2 | Q123: 3 | R123: 2 | S123: 1260
C124: 2 | D124: 3 | E124: 1 | F124: 2 | G124: 2 | H124: 3 | I124: 1 | J124: 2 | K124: 2 | L124: 4 | M124: 3 | N124: 2 | O124: 3 | P124: 3 | Q124: 2 | R124: 3 | S124: 1450
C125: 2 | D125: 1 | E125: 1 | F125: 2 | G125: 1 | H125: 1 | I125: 1 | J125: 1 | K125: 2 | L125: 1 | M125: 1 | N125: 2 | O125: 1 | P125: 1 | Q125: 2 | R125: 2 | S125: 1120
C126: 2 | D126: 1 | E126: 1 | F126: 2 | G126: 1 | H126: 1 | I126: 2 | J126: 1 | K126: 2 | L126: 3 | M126: 1 | N126: 2 | O126: 1 | P126: 2 | Q126: 2 | R126: 2 | S126: 1220
C127: 2 | D127: 2 | E127: 2 | F127: 3 | G127: 1 | H127: 1 | I127: 2 | J127: 2 | K127: 2 | L127: 3 | M127: 1 | N127: 2 | O127: 1 | P127: 3 | Q127: 2 | R127: 2 | S127: 1080
C128: 2 | D128: 3 | E128: 3 | F128: 3 | G128: 2 | H128: 3 | I128: 2 | J128: 2 | K128: 2 | L128: 3 | M128: 3 | N128: 3 | O128: 3 | P128: 3 | Q128: 3 | R128: 2 | S128: 1230
A130: LINEÁRIS közelítés (additív)
A132: A feladat alapadatainak visszaigazolása: | B132: -
A133: Feladat azonosítója: | B133: minar1
A134: Objektumok (primer sorok) száma: | B134: 50
A135: X-attribútumok (oszlopok) száma: | B135: 16
A136: Lépcsők száma: | B136: 4
A137: Az eltolás mértéke | B137: 0
A138: A feladat részletes jellemzése | B138: MCM: demo
A141: Rangsorszámok | B141: X (A1) | C141: X (A2) | D141: X (A3) | E141: X (A4) | F141: X (A5) | G141: X (A6) | H141: X (A7) | I141: X (A8) | J141: X (A9) | K141: X (A10) | L141: X (A11) | M141: X (A12) | N141: X (A13) | O141: X (A14) | P141: X (A15) | Q141: X (A16) | R141: Y (A17)
A142: feladatkód N°= minar1
A143: O(1) | B143: 4 | C143: 4 | D143: 2 | E143: 4 | F143: 4 | G143: 3 | H143: 4 | I143: 4 | J143: 4 | K143: 4 | L143: 4 | M143: 4 | N143: 3 | O143: 4 | P143: 4 | Q143: 2 | R143: 1200
A144: O(2) | B144: 4 | C144: 4 | D144: 2 | E144: 4 | F144: 4 | G144: 3 | H144: 4 | I144: 4 | J144: 4 | K144: 4 | L144: 4 | M144: 4 | N144: 3 | O144: 4 | P144: 4 | Q144: 2 | R144: 1400
A145: O(3) | B145: 4 | C145: 4 | D145: 3 | E145: 4 | F145: 4 | G145: 4 | H145: 4 | I145: 4 | J145: 4 | K145: 4 | L145: 4 | M145: 4 | N145: 4 | O145: 4 | P145: 4 | Q145: 2 | R145: 850
A146: O(4) | B146: 3 | C146: 4 | D146: 3 | E146: 3 | F146: 3 | G146: 4 | H146: 3 | I146: 4 | J146: 3 | K146: 3 | L146: 3 | M146: 3 | N146: 4 | O146: 4 | P146: 3 | Q146: 4 | R146: 720
A147: O(5) | B147: 3 | C147: 4 | D147: 4 | E147: 3 | F147: 4 | G147: 3 | H147: 2 | I147: 4 | J147: 3 | K147: 4 | L147: 3 | M147: 3 | N147: 3 | O147: 4 | P147: 3 | Q147: 4 | R147: 830
A148: O(6) | B148: 3 | C148: 4 | D148: 3 | E148: 2 | F148: 2 | G148: 4 | H148: 2 | I148: 3 | J148: 3 | K148: 3 | L148: 3 | M148: 2 | N148: 4 | O148: 3 | P148: 1 | Q148: 4 | R148: 730
A149: O(7) | B149: 1 | C149: 3 | D149: 4 | E149: 1 | F149: 1 | G149: 4 | H149: 1 | I149: 3 | J149: 2 | K149: 3 | L149: 3 | M149: 1 | N149: 4 | O149: 3 | P149: 1 | Q149: 4 | R149: 600
A150: O(8) | B150: 1 | C150: 3 | D150: 4 | E150: 1 | F150: 2 | G150: 4 | H150: 1 | I150: 2 | J150: 2 | K150: 2 | L150: 3 | M150: 1 | N150: 3 | O150: 3 | P150: 1 | Q150: 4 | R150: 780
A151: O(9) | B151: 1 | C151: 1 | D151: 3 | E151: 1 | F151: 2 | G151: 4 | H151: 1 | I151: 1 | J151: 1 | K151: 1 | L151: 1 | M151: 1 | N151: 4 | O151: 2 | P151: 1 | Q151: 4 | R151: 440
A152: O(10) | B152: 1 | C152: 1 | D152: 3 | E152: 1 | F152: 1 | G152: 3 | H152: 1 | I152: 2 | J152: 1 | K152: 3 | L152: 3 | M152: 1 | N152: 3 | O152: 1 | P152: 1 | Q152: 4 | R152: 720
A153: O(11) | B153: 2 | C153: 1 | D153: 4 | E153: 3 | F153: 4 | G153: 3 | H153: 2 | I153: 1 | J153: 2 | K153: 2 | L153: 2 | M153: 3 | N153: 3 | O153: 2 | P153: 1 | Q153: 2 | R153: 980
A154: O(12) | B154: 3 | C154: 3 | D154: 1 | E154: 3 | F154: 3 | G154: 3 | H154: 3 | I154: 3 | J154: 3 | K154: 1 | L154: 1 | M154: 3 | N154: 3 | O154: 2 | P154: 2 | Q154: 2 | R154: 1290
A155: O(13) | B155: 3 | C155: 4 | D155: 4 | E155: 2 | F155: 4 | G155: 4 | H155: 3 | I155: 4 | J155: 4 | K155: 4 | L155: 4 | M155: 2 | N155: 4 | O155: 3 | P155: 4 | Q155: 3 | R155: 1750
A156: O(14) | B156: 3 | C156: 4 | D156: 4 | E156: 3 | F156: 4 | G156: 3 | H156: 4 | I156: 4 | J156: 4 | K156: 4 | L156: 4 | M156: 2 | N156: 4 | O156: 4 | P156: 4 | Q156: 3 | R156: 1600
A157: O(15) | B157: 4 | C157: 3 | D157: 1 | E157: 4 | F157: 3 | G157: 3 | H157: 4 | I157: 3 | J157: 4 | K157: 2 | L157: 2 | M157: 4 | N157: 3 | O157: 4 | P157: 4 | Q157: 3 | R157: 980
A158: O(16) | B158: 3 | C158: 4 | D158: 4 | E158: 3 | F158: 2 | G158: 4 | H158: 4 | I158: 3 | J158: 3 | K158: 4 | L158: 4 | M158: 4 | N158: 3 | O158: 3 | P158: 4 | Q158: 2 | R158: 1120
A159: O(17) | B159: 1 | C159: 3 | D159: 4 | E159: 1 | F159: 1 | G159: 3 | H159: 1 | I159: 3 | J159: 1 | K159: 3 | L159: 3 | M159: 1 | N159: 3 | O159: 4 | P159: 4 | Q159: 4 | R159: 590
A160: O(18) | B160: 1 | C160: 3 | D160: 4 | E160: 1 | F160: 3 | G160: 3 | H160: 1 | I160: 2 | J160: 1 | K160: 2 | L160: 1 | M160: 1 | N160: 3 | O160: 3 | P160: 1 | Q160: 4 | R160: 300
A161: O(19) | B161: 2 | C161: 3 | D161: 3 | E161: 2 | F161: 2 | G161: 3 | H161: 1 | I161: 2 | J161: 1 | K161: 3 | L161: 2 | M161: 2 | N161: 3 | O161: 2 | P161: 2 | Q161: 4 | R161: 940
A162: O(20) | B162: 3 | C162: 2 | D162: 2 | E162: 3 | F162: 4 | G162: 4 | H162: 4 | I162: 2 | J162: 3 | K162: 1 | L162: 2 | M162: 3 | N162: 4 | O162: 3 | P162: 2 | Q162: 2 | R162: 780
A163: O(21) | B163: 3 | C163: 4 | D163: 4 | E163: 4 | F163: 3 | G163: 4 | H163: 4 | I163: 4 | J163: 3 | K163: 4 | L163: 4 | M163: 4 | N163: 4 | O163: 3 | P163: 2 | Q163: 3 | R163: 1490
A164: O(22) | B164: 3 | C164: 4 | D164: 4 | E164: 2 | F164: 3 | G164: 4 | H164: 4 | I164: 4 | J164: 3 | K164: 4 | L164: 4 | M164: 2 | N164: 3 | O164: 4 | P164: 4 | Q164: 4 | R164: 1630
A165: O(23) | B165: 1 | C165: 3 | D165: 4 | E165: 1 | F165: 1 | G165: 3 | H165: 2 | I165: 3 | J165: 1 | K165: 3 | L165: 3 | M165: 1 | N165: 3 | O165: 4 | P165: 2 | Q165: 3 | R165: 950
A166: O(24) | B166: 3 | C166: 2 | D166: 1 | E166: 2 | F166: 1 | G166: 3 | H166: 2 | I166: 1 | J166: 2 | K166: 1 | L166: 1 | M166: 2 | N166: 3 | O166: 3 | P166: 2 | Q166: 3 | R166: 80
A167: O(25) | B167: 4 | C167: 2 | D167: 2 | E167: 4 | F167: 2 | G167: 1 | H167: 3 | I167: 2 | J167: 4 | K167: 3 | L167: 2 | M167: 4 | N167: 1 | O167: 1 | P167: 3 | Q167: 2 | R167: 420
A168: O(26) | B168: 4 | C168: 2 | D168: 2 | E168: 2 | F168: 2 | G168: 3 | H168: 2 | I168: 3 | J168: 2 | K168: 2 | L168: 2 | M168: 4 | N168: 1 | O168: 1 | P168: 3 | Q168: 2 | R168: 670
A169: O(27) | B169: 3 | C169: 1 | D169: 1 | E169: 3 | F169: 2 | G169: 3 | H169: 2 | I169: 1 | J169: 2 | K169: 1 | L169: 1 | M169: 3 | N169: 3 | O169: 4 | P169: 2 | Q169: 2 | R169: 970
A170: O(28) | B170: 4 | C170: 1 | D170: 2 | E170: 3 | F170: 3 | G170: 3 | H170: 4 | I170: 1 | J170: 4 | K170: 2 | L170: 1 | M170: 3 | N170: 3 | O170: 1 | P170: 1 | Q170: 2 | R170: 690
A171: O(29) | B171: 3 | C171: 4 | D171: 3 | E171: 3 | F171: 2 | G171: 3 | H171: 3 | I171: 4 | J171: 2 | K171: 4 | L171: 4 | M171: 3 | N171: 3 | O171: 3 | P171: 3 | Q171: 2 | R171: 1470
A172: O(30) | B172: 2 | C172: 4 | D172: 4 | E172: 2 | F172: 1 | G172: 3 | H172: 3 | I172: 4 | J172: 2 | K172: 4 | L172: 3 | M172: 2 | N172: 3 | O172: 4 | P172: 2 | Q172: 4 | R172: 820
A173: O(31) | B173: 4 | C173: 1 | D173: 1 | E173: 3 | F173: 2 | G173: 3 | H173: 4 | I173: 2 | J173: 4 | K173: 1 | L173: 1 | M173: 3 | N173: 3 | O173: 3 | P173: 2 | Q173: 4 | R173: 850
A174: O(32) | B174: 4 | C174: 3 | D174: 1 | E174: 4 | F174: 3 | G174: 1 | H174: 4 | I174: 2 | J174: 4 | K174: 3 | L174: 1 | M174: 4 | N174: 1 | O174: 3 | P174: 3 | Q174: 2 | R174: 1090
A175: O(33) | B175: 4 | C175: 3 | D175: 1 | E175: 4 | F175: 4 | G175: 3 | H175: 4 | I175: 2 | J175: 4 | K175: 4 | L175: 1 | M175: 4 | N175: 1 | O175: 3 | P175: 3 | Q175: 2 | R175: 820
A176: O(34) | B176: 4 | C176: 4 | D176: 1 | E176: 4 | F176: 4 | G176: 1 | H176: 4 | I176: 4 | J176: 4 | K176: 4 | L176: 3 | M176: 4 | N176: 1 | O176: 3 | P176: 4 | Q176: 2 | R176: 1150
A177: O(35) | B177: 4 | C177: 4 | D177: 3 | E177: 4 | F177: 4 | G177: 3 | H177: 4 | I177: 4 | J177: 3 | K177: 4 | L177: 4 | M177: 4 | N177: 3 | O177: 3 | P177: 4 | Q177: 2 | R177: 1760
A178: O(36) | B178: 4 | C178: 4 | D178: 4 | E178: 4 | F178: 4 | G178: 4 | H178: 2 | I178: 4 | J178: 4 | K178: 4 | L178: 4 | M178: 4 | N178: 4 | O178: 4 | P178: 4 | Q178: 4 | R178: 1540
A179: O(37) | B179: 3 | C179: 4 | D179: 3 | E179: 4 | F179: 4 | G179: 4 | H179: 2 | I179: 4 | J179: 2 | K179: 4 | L179: 4 | M179: 4 | N179: 4 | O179: 4 | P179: 4 | Q179: 2 | R179: 1340
A180: O(38) | B180: 2 | C180: 3 | D180: 3 | E180: 2 | F180: 2 | G180: 3 | H180: 2 | I180: 2 | J180: 1 | K180: 3 | L180: 4 | M180: 4 | N180: 4 | O180: 4 | P180: 3 | Q180: 3 | R180: 1020
A181: O(39) | B181: 4 | C181: 3 | D181: 2 | E181: 3 | F181: 3 | G181: 1 | H181: 4 | I181: 3 | J181: 3 | K181: 4 | L181: 3 | M181: 3 | N181: 1 | O181: 3 | P181: 4 | Q181: 2 | R181: 1510
A182: O(40) | B182: 3 | C182: 4 | D182: 2 | E182: 3 | F182: 2 | G182: 3 | H182: 4 | I182: 4 | J182: 2 | K182: 4 | L182: 4 | M182: 3 | N182: 3 | O182: 4 | P182: 4 | Q182: 3 | R182: 1450
A183: O(41) | B183: 2 | C183: 1 | D183: 1 | E183: 1 | F183: 1 | G183: 3 | H183: 2 | I183: 1 | J183: 1 | K183: 1 | L183: 1 | M183: 1 | N183: 3 | O183: 1 | P183: 1 | Q183: 2 | R183: 280
A184: O(42) | B184: 3 | C184: 1 | D184: 1 | E184: 3 | F184: 1 | G184: 3 | H184: 4 | I184: 1 | J184: 3 | K184: 1 | L184: 1 | M184: 3 | N184: 3 | O184: 1 | P184: 2 | Q184: 2 | R184: 320
A185: O(43) | B185: 2 | C185: 3 | D185: 2 | E185: 2 | F185: 3 | G185: 3 | H185: 2 | I185: 4 | J185: 2 | K185: 3 | L185: 3 | M185: 2 | N185: 3 | O185: 4 | P185: 2 | Q185: 3 | R185: 1310
A186: O(44) | B186: 1 | C186: 2 | D186: 3 | E186: 2 | F186: 3 | G186: 3 | H186: 2 | I186: 2 | J186: 1 | K186: 3 | L186: 3 | M186: 2 | N186: 3 | O186: 3 | P186: 1 | Q186: 3 | R186: 1820
A187: O(45) | B187: 1 | C187: 3 | D187: 4 | E187: 1 | F187: 2 | G187: 4 | H187: 1 | I187: 3 | J187: 1 | K187: 3 | L187: 3 | M187: 1 | N187: 4 | O187: 2 | P187: 1 | Q187: 4 | R187: 1340
A188: O(46) | B188: 1 | C188: 1 | D188: 2 | E188: 1 | F188: 1 | G188: 3 | H188: 1 | I188: 1 | J188: 1 | K188: 3 | L188: 1 | M188: 1 | N188: 3 | O188: 1 | P188: 1 | Q188: 2 | R188: 410
A189: O(47) | B189: 2 | C189: 1 | D189: 2 | E189: 2 | F189: 2 | G189: 3 | H189: 2 | I189: 1 | J189: 1 | K189: 1 | L189: 1 | M189: 2 | N189: 3 | O189: 1 | P189: 2 | Q189: 2 | R189: 440
A190: O(48) | B190: 3 | C190: 1 | D190: 1 | E190: 3 | F190: 3 | G190: 3 | H190: 3 | I190: 1 | J190: 3 | K190: 1 | L190: 2 | M190: 3 | N190: 3 | O190: 2 | P190: 4 | Q190: 2 | R190: 770
A191: O(49) | B191: 4 | C191: 1 | D191: 1 | E191: 4 | F191: 3 | G191: 3 | H191: 3 | I191: 2 | J191: 4 | K191: 3 | L191: 3 | M191: 4 | N191: 3 | O191: 3 | P191: 4 | Q191: 2 | R191: 900
A192: O(50) | B192: 2 | C192: 3 | D192: 2 | E192: 1 | F192: 2 | G192: 3 | H192: 1 | I192: 2 | J192: 2 | K192: 3 | L192: 3 | M192: 1 | N192: 3 | O192: 3 | P192: 1 | Q192: 2 | R192: 1510
A193: Lépcsők (átlag) | B193: X (A1) | C193: X (A2) | D193: X (A3) | E193: X (A4) | F193: X (A5) | G193: X (A6) | H193: X (A7) | I193: X (A8) | J193: X (A9) | K193: X (A10) | L193: X (A11) | M193: X (A12) | N193: X (A13) | O193: X (A14) | P193: X (A15) | Q193: X (A16)
A194: feladatkód N°= minar1
A195: S1 | B195: (0+0)/2=0 | C195: (0+0)/2=0 | D195: (0+304)/2=152 | E195: (0+0)/2=0 | F195: (0+0)/2=0 | G195: (0+0)/2=0 | H195: (0+0)/2=0 | I195: (0+0)/2=0 | J195: (0+0)/2=0 | K195: (0+0)/2=0 | L195: (0+0)/2=0 | M195: (0+0)/2=0 | N195: (50+0)/2=25 | O195: (0+0)/2=0 | P195: (10+301)/2=155.5 | Q195: (0+0)/2=0
A196: S2 | B196: (220+0)/2=110 | C196: (0+163)/2=81.5 | D196: (220+0)/2=110 | E196: (0+0)/2=0 | F196: (0+105)/2=52.5 | G196: (0+0)/2=0 | H196: (0+249)/2=124.5 | I196: (150+0)/2=75 | J196: (0+114)/2=57 | K196: (0+0)/2=0 | L196: (0+0)/2=0 | M196: (0+263)/2=131.5 | N196: (0+0)/2=0 | O196: (430+313)/2=371.5 | P196: (0+11)/2=5.5 | Q196: (0+77)/2=38.5
A197: S3 | B197: (0+0)/2=0 | C197: (30+234)/2=132 | D197: (0+0)/2=0 | E197: (90+65)/2=77.5 | F197: (110+141)/2=125.5 | G197: (0+32)/2=16 | H197: (0+0)/2=0 | I197: (180+0)/2=90 | J197: (0+114)/2=57 | K197: (0+0)/2=0 | L197: (380+387)/2=383.5 | M197: (140+0)/2=70 | N197: (0+0)/2=0 | O197: (0+259)/2=129.5 | P197: (0+0)/2=0 | Q197: (80+24)/2=52
A198: S4 | B198: (0+74)/2=37 | C198: (0+0)/2=0 | D198: (0+0)/2=0 | E198: (0+0)/2=0 | F198: (0+105)/2=52.5 | G198: (0+0)/2=0 | H198: (90+0)/2=45 | I198: (0+0)/2=0 | J198: (0+0)/2=0 | K198: (220+0)/2=110 | L198: (540+941)/2=740.5 | M198: (0+0)/2=0 | N198: (0+0)/2=0 | O198: (0+13)/2=6.5 | P198: (0+158)/2=79 | Q198: (0+0)/2=0
A199: Lépcsők (átlag) | B199: X (A1) | C199: X (A2) | D199: X (A3) | E199: X (A4) | F199: X (A5) | G199: X (A6) | H199: X (A7) | I199: X (A8) | J199: X (A9) | K199: X (A10) | L199: X (A11) | M199: X (A12) | N199: X (A13) | O199: X (A14) | P199: X (A15) | Q199: X (A16)
A200: feladatkód N°= minar1
A201: S1 | B201: 0 | C201: 0 | D201: 152 | E201: 0 | F201: 0 | G201: 0 | H201: 0 | I201: 0 | J201: 0 | K201: 0 | L201: 0 | M201: 0 | N201: 25 | O201: 0 | P201: 155.5 | Q201: 0 | W201: =(ABS(W202)+ABS(W203))/2 -> 10.825
A202: S2 | B202: 110 | C202: 81.5 | D202: 110 | E202: 0 | F202: 52.5 | G202: 0 | H202: 124.5 | I202: 75 | J202: 57 | K202: 0 | L202: 0 | M202: 131.5 | N202: 0 | O202: 371.5 | P202: 5.5 | Q202: 38.5 | V202: max | W202: =MAX(W208:W267) -> 11.751
A203: S3 | B203: 0 | C203: 132 | D203: 0 | E203: 77.5 | F203: 125.5 | G203: 16 | H203: 0 | I203: 90 | J203: 57 | K203: 0 | L203: 383.5 | M203: 70 | N203: 0 | O203: 129.5 | P203: 0 | Q203: 52 | V203: min | W203: =MIN(W208:W267) -> -9.899
A204: S4 | B204: 37 | C204: 0 | D204: 0 | E204: 0 | F204: 52.5 | G204: 0 | H204: 45 | I204: 0 | J204: 0 | K204: 110 | L204: 740.5 | M204: 0 | N204: 0 | O204: 6.5 | P204: 79 | Q204: 0 | V204: határért. | W204: 23.286
A205: COCO-matrix N°: minar1 | B205: X (A1) | C205: X (A2) | D205: X (A3) | E205: X (A4) | F205: X (A5) | G205: X (A6) | H205: X (A7) | I205: X (A8) | J205: X (A9) | K205: X (A10) | L205: X (A11) | M205: X (A12) | N205: X (A13) | O205: X (A14) | P205: X (A15) | Q205: X (A16) | R205: Y(*) (A17) | S205: Y | T205: delta | U205: %
... 65 more rows

Sheet csap.találat
A1: csap.(mm)+4 | B1: -4 nap | C1: -3 nap | D1: -2 nap | E1: -1 nap | F1: teszt1 | G1: teszt2 | H1: teszt3 | I1: teszt4 | J1: teszt5 | K1: teszt6 | L1: teszt7 | M1: teszt8 | N1: teszt9 | O1: teszt10
A2: absz.tény | B2: 0 | C2: 0 | D2: 0 | E2: 0 | F2: 0 | G2: 1 | H2: 1 | I2: 1 | J2: 0 | K2: 0 | L2: 0 | M2: 0 | N2: 0 | O2: 0 | P2: binaris teny!!!
A3: v1 | F3: 0 | G3: 0 | H3: 0 | I3: 1 | J3: 0 | K3: 0 | L3: 0 | M3: 0 | N3: 0 | O3: 1
A4: saját aa | F4: 0 | G4: 1 | H4: 0 | I4: 1 | J4: 0 | K4: 0 | L4: 0 | M4: 0 | N4: 0 | O4: 1
A5: találatok: | P5: összesítés:
A6: v1 | F6: =IF(F$2=F3,1,0) -> 1 | G6: 0 | H6: 0 | I6: 1 | J6: 1 | K6: 1 | L6: 1 | M6: 1 | N6: 1 | O6: 0 | P6: =SUM(F6:O6)/10 -> 0.7
A7: saját aa | F7: =IF(F$2=F4,1,0) -> 1 | G7: 1 | H7: 0 | I7: 1 | J7: 1 | K7: 1 | L7: 1 | M7: 1 | N7: 1 | O7: 0 | P7: 0.8

Sheet találatok-maxhő
A1: maximum-hőmérséklet találati arányai % - ban kifejezve:
B2: weatheronline | C2: kurier | D2: wetter.rtl | E2: raiffeisen | F2: stern | G2: wetter.excite
A3: maximum hőmérséklet első 50 nap(konkurencia) | B3: 90 | C3: 88 | D3: 92 | E3: 86 | F3: 88 | G3: 80
A4: maximum hőmérséklet első 50 nap(saját) | D4: 98
A5: maximum hőmérséklet utolsó 10 nap(konkurencia) | B5: 100 | C5: 100 | D5: 80 | E5: 100 | F5: 100 | G5: 100
A6: maximum hőmérséklet utolsó 10 nap(saját) | D6: 80
A7: maximum hőmérséklet összes(konkurencia) | B7: 91.66666667 | C7: 90 | D7: 90 | E7: 88.33333333 | F7: 90 | G7: 83.33333333
A8: maximum hőmérséklet összes(saját) | D8: 95

Sheet találatok-minhő
A1: minimum-hőmérséklet találati arányai % - ban kifejezve:
B2: weatheronline | C2: kurier | D2: wetter.rtl | E2: raiffeisen | F2: stern | G2: wetter.excite
A3: minimum hőmérséklet első 50 nap(konkurencia) | B3: 80 | C3: 78 | D3: 88 | E3: 92 | F3: 90 | G3: 80
A4: minimum hőmérséklet első 50 nap(saját) | E4: 82
A5: minimum hőmérséklet utolsó 10 nap(konkurencia) | B5: 60 | C5: 50 | D5: 40 | E5: 50 | F5: 60 | G5: 60
A6: minimum hőmérséklet utolsó 10 nap(saját) | E6: 80
A7: minimum hőmérséklet összes(konkurencia) | B7: 76.66666667 | C7: 73.33333333 | D7: 80 | E7: 85 | F7: 85 | G7: 76.66666667
A8: minimum hőmérséklet összes(saját) | E8: 81.66666667

Sheet találatok-csapadék
A1: csapadék-prognózisok találati arányai % - ban kifejezve:
B2: weatheronline | C2: kurier | D2: stern | E2: wetter.excite
A3: csapadék első 50 nap(konkurencia) | B3: 74 | C3: 56 | D3: 54 | E3: 62
A4: csapadék első 50 nap(saját) | B4: 76
A5: csapadék utolsó 10 nap(konkurencia) | B5: 70 | C5: 90 | D5: 80 | E5: 90
A6: csapadék utolsó 10 nap(saját) | B6: 80
A7: csapadék összes(konkurencia) | B7: 73.33333333 | C7: 61.66666667 | D7: 58.33333333 | E7: 66.66666667
A8: csapadék összes(saját) | B8: 76.66666667
